Workbook

Sheet Notes
A1: The 2019 Razzball *Excel* War Room
A2: Features
A3: 1) | B3: Color Coded Dashboard that crosses off" selected players | Q3: HOW TO USE (2017 screenshots):
A4: 2) | B4: Team by Team analysis of players taken, players left.
A5: 3) | B5: Real time projected totals, along with real time projected league standings
A6: 4) | B6: Goal Tracking Dashboard | Q6: Click any of the drop-down arrow boxes to sort by that ranking
A7: 5) | B7: Auto updating Draftee List for your team.
A8: 6) | B8: User customizable for Team Names,League Type, and Goals
A10: User Steps
A11: 1) | B11: Complete User Input Tab based upon league parameters
B12: (Enter "Your Team" in the first slot. This populates the War Room page with your selected players.)
A13: 2) | B13: Populate Players Tab during Draft
A14: 3) | B14: Dashboard and War Room Tabs will automatically update
B15: NOTE: On the War Room tab, the box top left indicates "# of Players Taken". In order to get a "true" evaluation of my team, I add/drop players from specific teams until each has 13 hitters and 9 pitchers.
A16: Notes
A17: 1) | B17: All statistics based upon Grey Albright, RAZZBALL.COM, and Razzball's Steamer projections
A19: ANY QUESTIONS? Post a comment at the official website: | G19: http://razzball.com/2018-excel-fantasy-baseball-war-room/
A22: Created by Lou Poulas
A23: 2011 updates: Fred Barker
A24: 2012 updates: John Hassett
A25: 2013 updates: Trevor Gallo & John Hassett
A26: 2014-2016 updates: Nick Kern
A27: 2016 tweaks: Jimmy Bond
A28: 2017 update: Hot Rod
A29: 2018 update: Hot Rod
A30: 2019 update: Hot Rod
A31: (thanks to Knucks for first pass on tiers!)

Sheet User Input
A1: Team 1 Name | C1: a | D1: ← ← ← | E1: YOUR TEAM | G1: Hitting Categories | H1: Points | J1: Pitching Categories | K1: Points
A2: Team 2 Name | C2: b | G2: 1B | H2: 1 | J2: Win | K2: 7
A3: Team 3 Name | C3: c | G3: 2B | H3: 2 | J3: Loss | K3: -5
A4: Team 4 Name | C4: d | G4: 3B | H4: 3 | J4: Save | K4: 7
A5: Team 5 Name | C5: e | G5: HR | H5: 4 | J5: Blown Save | K5: 0 | M5: not supported 2019 due to using Steamer projections
A6: Team 6 Name | C6: f | G6: RBI | H6: 1 | J6: Inning Pitched | K6: 3
A7: Team 7 Name | C7: g | G7: Run | H7: 1 | J7: Strikeout | K7: 0.5
A8: Team 8 Name | C8: h | G8: Walk | H8: 1 | J8: Walk | K8: -1
A9: Team 9 Name | C9: i | G9: Strikeout | H9: -0.5 | J9: ER | K9: -1
A10: Team 10 Name | C10: j | G10: Stolen Base | H10: 2 | J10: Hit | K10: -1
A11: Team 11 Name | C11: k | G11: Caught Stealing | H11: -1 | J11: Hold | K11: 0
A12: Team 12 Name | C12: l | D12: 12 team | G12: Hit By Pitch | H12: 0 | J12: Quality Start | K12: 3
A13: Team 13 Name | G13: Sacrifice Fly | H13: 0 | J13: Complete Game | K13: 0 | M13: not supported 2019 due to using Steamer projections
A14: Team 14 Name | G14: Total Bases | H14: 0 | J14: Shutout | K14: 0 | M14: not supported 2019 due to using Steamer projections
A15: Team 15 Name | D15: 15 team | G15: Hit | H15: 0 | J15: Hit Batsman | K15: 0 | M15: not supported 2019 due to using Steamer projections
A16: Team 16 Name | G16: Plate Appearances | H16: 0 | J16: Wild Pitch | K16: 0 | M16: not supported 2019 due to using Steamer projections
A17: Team 17 Name | G17: At Bat | H17: 0 | J17: HR Allowed | K17: 0 | M17: not supported 2019 due to using Steamer projections
A18: Team 18 Name
A19: Team 19 Name | G19: POINTS LEAGUES - ENTER YOUR SCORING SYSTEM ABOVE IN YELLOW BOXES
A20: Team 20 Name
A21: Team 21 Name
A22: Team 22 Name
A23: Team 23 Name | J23: Preferred standings ranking style: | K23: 0 | N23: (# teams changes automatically based on # of team names)
A24: Team 24 Name | K24: where: | L24: 0 | M24: = | N24: ="descending 1-"&COUNTA(C1:C30)&" (1 is best, "&COUNTA(C1:C30)&" worst)" -> descending 1-12 (1 is best, 12 worst)
A25: Team 25 Name | D25: 25 team | L25: 1 | M25: = | N25: ="descending "&COUNTA(C1:C30)&"-1 ("&COUNTA(C1:C30)&" is best, 1 worst)" -> descending 12-1 (12 is best, 1 worst)
A26: Team 26 Name
A27: Team 27 Name
A28: Team 28 Name
A29: Team 29 Name
A30: Team 30 Name | D30: 30 team
D31: Examples / default
A32: Team Budget | C32: 280 | D32: ($280, $260, etc)
A34: # of Batters Per Team | C34: 17 | D34: 17, 15, 14, 9
A35: # of Pitchers Per Team | C35: 15 | D35: 15, 10, 7
A36: # of BENCH Per Team | C36: 0 | D36: 0, 5
A37: Total players | C37: =SUM(C34:C36) -> 32
A39: Personal Team Goals (Optional)
A40: R | C40: 1021 | D40: 1021
A41: HR | C41: 255 | D41: 255
A42: RBI | C42: 973 | D42: 973
A43: SB | C43: 177 | D43: 177
A44: AVG | C44: 0.271 | D44: 0.271
A46: ERA | C46: 3.56 | D46: 3.56
A47: WHIP | C47: 1.23 | D47: 1.23
A48: W | C48: 86 | D48: 86
A49: S | C49: 122 | D49: 122
A50: K | C50: 1272 | D50: 1272

Sheet Dashboard
B1: C | F1: 1B | J1: 2B | N1: 3B | R1: SS | V1: OF | Z1: DH | AA1: hitter | AB1: pitcher | AE1: SP | AF1: pitcher | AG1: hitter | AJ1: CLOSERS & RP | AN1: Prospects - ALL | AS1: Prospects - HITTERS | AX1: Prospects - PITCHERS | BC1: by ETA - HITTER prospects (ranked in each year) | BH1: by ETA - PITCHER prospects (ranked in each year)
A2: 1 | B2: J.T. Realmuto | C2: =VLOOKUP($B2,Players!$N$3:$O$1273,2,FALSE) -> 0 | D2: =IF(C2>0,1,0) -> 0 | F2: Paul Goldschmidt | G2: =VLOOKUP($F2,Players!$N$3:$O$1273,2,FALSE) -> 0 | H2: =IF(G2>0,1,0) -> 0 | J2: Javier Baez | K2: =VLOOKUP($J2,Players!$N$3:$O$1273,2,FALSE) -> 0 | L2: =IF(K2>0,1,0) -> 0 | N2: Javier Baez | O2: =VLOOKUP($N2,Players!$N$3:$O$1273,2,FALSE) -> 0 | P2: =IF(O2>0,1,0) -> 0 | R2: Trea Turner | S2: =VLOOKUP($R2,Players!$N$3:$O$1273,2,FALSE) -> 0 | T2: =IF(S2>0,1,0) -> 0 | V2: Mike Trout | W2: =VLOOKUP($V2,Players!$N$3:$O$1273,2,FALSE) -> 0 | X2: =IF(W2>0,1,0) -> 0 | Z2: Khris Davis | AA2: =VLOOKUP($Z2,Players!$N$3:$O$1273,2,FALSE) -> 0 | AC2: =IF(AA2>0,1,0) -> 0 | AE2: Max Scherzer | AF2: =VLOOKUP($AE2,Players!$AV$3:$AW$1447,2,FALSE) -> 0 | AH2: =IF(AF2>0,1,0) -> 0 | AJ2: Edwin Diaz | AK2: =VLOOKUP($AJ2,Players!$AV$3:$AW$1447,2,FALSE) -> 0 | AL2: =IF(AK2>0,1,0) -> 0 | AN2: 3B | AO2: Vladimir Guerrero Jr. | AP2: =IF(ISERROR(VLOOKUP($AO2,Players!$N$3:$O$1456,2,FALSE)),(VLOOKUP($AO2,Players!$AV$3:$AW$1447,2,FALSE)),(VLOOKUP($AO2,Players!$N$3:$O$1456,2,FALSE))) -> 0 | AQ2: =IF(AP2>0,1,0) -> 0 | AS2: 3B | AT2: Vladimir Guerrero Jr. | AU2: =VLOOKUP($AT2,Players!$N$3:$O$1456,2,FALSE) -> 0 | AV2: =IF(AU2>0,1,0) -> 0 | AX2: RHP | AY2: Forrest Whitley | AZ2: =VLOOKUP($AY2,Players!$AV$3:$AW$1447,2,FALSE) -> 0 | BA2: =IF(AZ2>0,1,0) -> 0 | BD2: 2019 | BI2: 2019
A3: 2 | B3: Gary Sanchez | C3: =VLOOKUP($B3,Players!$N$3:$O$1273,2,FALSE) -> 0 | D3: =IF(C3>0,1,0) -> 0 | F3: Freddie Freeman | G3: =VLOOKUP($F3,Players!$N$3:$O$1273,2,FALSE) -> 0 | H3: =IF(G3>0,1,0) -> 0 | J3: Jose Ramirez | K3: =VLOOKUP($J3,Players!$N$3:$O$1273,2,FALSE) -> 0 | L3: =IF(K3>0,1,0) -> 0 | N3: Alex Bregman | O3: =VLOOKUP($N3,Players!$N$3:$O$1273,2,FALSE) -> 0 | P3: =IF(O3>0,1,0) -> 0 | R3: Javier Baez | S3: =VLOOKUP($R3,Players!$N$3:$O$1273,2,FALSE) -> 0 | T3: =IF(S3>0,1,0) -> 0 | V3: Mookie Betts | W3: =VLOOKUP($V3,Players!$N$3:$O$1273,2,FALSE) -> 0 | X3: =IF(W3>0,1,0) -> 0 | Z3: Nelson Cruz | AA3: =VLOOKUP($Z3,Players!$N$3:$O$1273,2,FALSE) -> 0 | AC3: =IF(AA3>0,1,0) -> 0 | AE3: Jacob deGrom | AF3: =VLOOKUP($AE3,Players!$AV$3:$AW$1447,2,FALSE) -> 0 | AH3: =IF(AF3>0,1,0) -> 0 | AJ3: Blake Treinen | AK3: =VLOOKUP($AJ3,Players!$AV$3:$AW$1447,2,FALSE) -> 0 | AL3: 0 | AN3: SS | AO3: Fernando Tatis Jr. | AP3: =IF(ISERROR(VLOOKUP($AO3,Players!$N$3:$O$1456,2,FALSE)),(VLOOKUP($AO3,Players!$AV$3:$AW$1447,2,FALSE)),(VLOOKUP($AO3,Players!$N$3:$O$1456,2,FALSE))) -> 0 | AQ3: =IF(AP3>0,1,0) -> 0 | AS3: SS | AT3: Fernando Tatis Jr. | AU3: =VLOOKUP($AT3,Players!$N$3:$O$1456,2,FALSE) -> 0 | AV3: =IF(AU3>0,1,0) -> 0 | AX3: RHP | AY3: Brent Honeywell | AZ3: =VLOOKUP($AY3,Players!$AV$3:$AW$1447,2,FALSE) -> 0 | BA3: 0 | BC3: 3B | BD3: Vladimir Guerrero Jr. | BE3: =VLOOKUP($BD3,Players!$N$3:$O$1456,2,FALSE) -> 0 | BF3: =IF(BE3>0,1,0) -> 0 | BH3: RHP | BI3: Forrest Whitley | BJ3: =VLOOKUP($BI3,Players!$AV$3:$AW$1447,2,FALSE) -> 0 | BK3: =IF(BJ3>0,1,0) -> 0 | BN3: Grey's Pitcher Pairings
A4: 3 | B4: Willson Contreras | C4: =VLOOKUP($B4,Players!$N$3:$O$1273,2,FALSE) -> 0 | D4: 0 | F4: Rhys Hoskins | G4: =VLOOKUP($F4,Players!$N$3:$O$1273,2,FALSE) -> 0 | H4: 0 | J4: Adalberto Mondesi | K4: =VLOOKUP($J4,Players!$N$3:$O$1273,2,FALSE) -> 0 | L4: 0 | N4: Nolan Arenado | O4: =VLOOKUP($N4,Players!$N$3:$O$1273,2,FALSE) -> 0 | P4: 0 | R4: Alex Bregman | S4: =VLOOKUP($R4,Players!$N$3:$O$1273,2,FALSE) -> 0 | T4: 0 | V4: Christian Yelich | W4: =VLOOKUP($V4,Players!$N$3:$O$1273,2,FALSE) -> 0 | X4: 0 | Z4: Shohei Ohtani | AA4: =VLOOKUP($Z4,Players!$N$3:$O$1273,2,FALSE) -> 0 | AC4: 0 | AE4: Chris Sale | AF4: =VLOOKUP($AE4,Players!$AV$3:$AW$1447,2,FALSE) -> 0 | AH4: 0 | AJ4: Aroldis Chapman | AK4: =VLOOKUP($AJ4,Players!$AV$3:$AW$1447,2,FALSE) -> 0 | AL4: 0 | AN4: OF | AO4: Eloy Jimenez | AP4: =IF(ISERROR(VLOOKUP($AO4,Players!$N$3:$O$1456,2,FALSE)),(VLOOKUP($AO4,Players!$AV$3:$AW$1447,2,FALSE)),(VLOOKUP($AO4,Players!$N$3:$O$1456,2,FALSE))) -> 0 | AQ4: 0 | AS4: OF | AT4: Eloy Jimenez | AU4: =VLOOKUP($AT4,Players!$N$3:$O$1456,2,FALSE) -> 0 | AV4: 0 | AX4: RHP | AY4: Dylan Cease | AZ4: =VLOOKUP($AY4,Players!$AV$3:$AW$1447,2,FALSE) -> 0 | BA4: 0 | BC4: SS | BD4: Fernando Tatis Jr. | BE4: =VLOOKUP($BD4,Players!$N$3:$O$1456,2,FALSE) -> 0 | BF4: =IF(BE4>0,1,0) -> 0 | BH4: RHP | BI4: Brent Honeywell | BJ4: =VLOOKUP($BI4,Players!$AV$3:$AW$1447,2,FALSE) -> 0 | BK4: =IF(BJ4>0,1,0) -> 0
A5: 4 | B5: Yasmani Grandal | C5: =VLOOKUP($B5,Players!$N$3:$O$1273,2,FALSE) -> 0 | D5: 0 | F5: Anthony Rizzo | G5: =VLOOKUP($F5,Players!$N$3:$O$1273,2,FALSE) -> 0 | H5: 0 | J5: Jose Altuve | K5: =VLOOKUP($J5,Players!$N$3:$O$1273,2,FALSE) -> 0 | L5: 0 | N5: Manny Machado | O5: =VLOOKUP($N5,Players!$N$3:$O$1273,2,FALSE) -> 0 | P5: 0 | R5: Manny Machado | S5: =VLOOKUP($R5,Players!$N$3:$O$1273,2,FALSE) -> 0 | T5: 0 | V5: Ronald Acuna Jr. | W5: =VLOOKUP($V5,Players!$N$3:$O$1273,2,FALSE) -> 0 | X5: 0 | Z5: Kendrys Morales | AA5: =VLOOKUP($Z5,Players!$N$3:$O$1273,2,FALSE) -> 0 | AC5: =IF(AA5>0,1,0) -> 0 | AE5: Justin Verlander | AF5: =VLOOKUP($AE5,Players!$AV$3:$AW$1447,2,FALSE) -> 0 | AH5: 0 | AJ5: Craig Kimbrel | AK5: =VLOOKUP($AJ5,Players!$AV$3:$AW$1447,2,FALSE) -> 0 | AL5: 0 | AN5: OF | AO5: Victor Robles | AP5: =IF(ISERROR(VLOOKUP($AO5,Players!$N$3:$O$1456,2,FALSE)),(VLOOKUP($AO5,Players!$AV$3:$AW$1447,2,FALSE)),(VLOOKUP($AO5,Players!$N$3:$O$1456,2,FALSE))) -> 0 | AQ5: 0 | AS5: OF | AT5: Victor Robles | AU5: =VLOOKUP($AT5,Players!$N$3:$O$1456,2,FALSE) -> 0 | AV5: 0 | AX5: LHP | AY5: Jesus Luzardo | AZ5: =VLOOKUP($AY5,Players!$AV$3:$AW$1447,2,FALSE) -> 0 | BA5: 0 | BC5: OF | BD5: Eloy Jimenez | BE5: =VLOOKUP($BD5,Players!$N$3:$O$1456,2,FALSE) -> 0 | BF5: 0 | BH5: RHP | BI5: Dylan Cease | BJ5: =VLOOKUP($BI5,Players!$AV$3:$AW$1447,2,FALSE) -> 0 | BK5: 0
A6: 5 | B6: Yadier Molina | C6: =VLOOKUP($B6,Players!$N$3:$O$1273,2,FALSE) -> 0 | D6: 0 | F6: Cody Bellinger | G6: =VLOOKUP($F6,Players!$N$3:$O$1273,2,FALSE) -> 0 | H6: 0 | J6: Ozzie Albies | K6: =VLOOKUP($J6,Players!$N$3:$O$1273,2,FALSE) -> 0 | L6: 0 | N6: Jose Ramirez | O6: =VLOOKUP($N6,Players!$N$3:$O$1273,2,FALSE) -> 0 | P6: 0 | R6: Francisco Lindor | S6: =VLOOKUP($R6,Players!$N$3:$O$1273,2,FALSE) -> 0 | T6: 0 | V6: Bryce Harper | W6: =VLOOKUP($V6,Players!$N$3:$O$1273,2,FALSE) -> 0 | X6: 0 | Z6: Ji-Man Choi | AA6: =VLOOKUP($Z6,Players!$N$3:$O$1273,2,FALSE) -> 0 | AC6: =IF(AA6>0,1,0) -> 0 | AE6: Blake Snell | AF6: =VLOOKUP($AE6,Players!$AV$3:$AW$1447,2,FALSE) -> 0 | AH6: 0 | AJ6: Kenley Jansen | AK6: =VLOOKUP($AJ6,Players!$AV$3:$AW$1447,2,FALSE) -> 0 | AL6: 0 | AN6: SS | AO6: Wander Franco | AP6: =IF(ISERROR(VLOOKUP($AO6,Players!$N$3:$O$1456,2,FALSE)),(VLOOKUP($AO6,Players!$AV$3:$AW$1447,2,FALSE)),(VLOOKUP($AO6,Players!$N$3:$O$1456,2,FALSE))) -> 0 | AQ6: 0 | AS6: SS | AT6: Wander Franco | AU6: =VLOOKUP($AT6,Players!$N$3:$O$1456,2,FALSE) -> 0 | AV6: 0 | AX6: LHP | AY6: MacKenzie Gore | AZ6: =VLOOKUP($AY6,Players!$AV$3:$AW$1447,2,FALSE) -> 0 | BA6: 0 | BC6: OF | BD6: Victor Robles | BE6: =VLOOKUP($BD6,Players!$N$3:$O$1456,2,FALSE) -> 0 | BF6: 0 | BH6: LHP | BI6: Jesus Luzardo | BJ6: =VLOOKUP($BI6,Players!$AV$3:$AW$1447,2,FALSE) -> 0 | BK6: 0
A7: 6 | B7: Wilson Ramos | C7: =VLOOKUP($B7,Players!$N$3:$O$1273,2,FALSE) -> 0 | D7: 0 | F7: Joey Gallo | G7: =VLOOKUP($F7,Players!$N$3:$O$1273,2,FALSE) -> 0 | H7: 0 | J7: Whit Merrifield | K7: =VLOOKUP($J7,Players!$N$3:$O$1273,2,FALSE) -> 0 | L7: 0 | N7: Kris Bryant | O7: =VLOOKUP($N7,Players!$N$3:$O$1273,2,FALSE) -> 0 | P7: 0 | R7: Trevor Story | S7: =VLOOKUP($R7,Players!$N$3:$O$1273,2,FALSE) -> 0 | T7: 0 | V7: J.D. Martinez | W7: =VLOOKUP($V7,Players!$N$3:$O$1273,2,FALSE) -> 0 | X7: 0 | Z7: Evan Gattis | AA7: =VLOOKUP($Z7,Players!$N$3:$O$1273,2,FALSE) -> 0 | AC7: 0 | AE7: Gerrit Cole | AF7: =VLOOKUP($AE7,Players!$AV$3:$AW$1447,2,FALSE) -> 0 | AH7: 0 | AJ7: Raisel Iglesias | AK7: =VLOOKUP($AJ7,Players!$AV$3:$AW$1447,2,FALSE) -> 0 | AL7: 0 | AN7: SS | AO7: Royce Lewis | AP7: =IF(ISERROR(VLOOKUP($AO7,Players!$N$3:$O$1456,2,FALSE)),(VLOOKUP($AO7,Players!$AV$3:$AW$1447,2,FALSE)),(VLOOKUP($AO7,Players!$N$3:$O$1456,2,FALSE))) -> 0 | AQ7: 0 | AS7: SS | AT7: Royce Lewis | AU7: =VLOOKUP($AT7,Players!$N$3:$O$1456,2,FALSE) -> 0 | AV7: 0 | AX7: RHP | AY7: Alex Reyes | AZ7: =VLOOKUP($AY7,Players!$AV$3:$AW$1447,2,FALSE) -> 0 | BA7: 0 | BC7: 2B | BD7: Keston Hiura | BE7: =VLOOKUP($BD7,Players!$N$3:$O$1456,2,FALSE) -> 0 | BF7: 0 | BH7: RHP | BI7: Alex Reyes | BJ7: =VLOOKUP($BI7,Players!$AV$3:$AW$1447,2,FALSE) -> 0 | BK7: 0
A8: 7 | B8: Jorge Alfaro | C8: =VLOOKUP($B8,Players!$N$3:$O$1273,2,FALSE) -> 0 | D8: 0 | F8: Edwin Encarnacion | G8: =VLOOKUP($F8,Players!$N$3:$O$1273,2,FALSE) -> 0 | H8: 0 | J8: Travis Shaw | K8: =VLOOKUP($J8,Players!$N$3:$O$1273,2,FALSE) -> 0 | L8: 0 | N8: Anthony Rendon | O8: =VLOOKUP($N8,Players!$N$3:$O$1273,2,FALSE) -> 0 | P8: 0 | R8: Adalberto Mondesi | S8: =VLOOKUP($R8,Players!$N$3:$O$1273,2,FALSE) -> 0 | T8: 0 | V8: Giancarlo Stanton | W8: =VLOOKUP($V8,Players!$N$3:$O$1273,2,FALSE) -> 0 | X8: 0 | Z8: Mark Trumbo | AA8: =VLOOKUP($Z8,Players!$N$3:$O$1273,2,FALSE) -> 0 | AC8: 0 | AE8: Corey Kluber | AF8: =VLOOKUP($AE8,Players!$AV$3:$AW$1447,2,FALSE) -> 0 | AH8: 0 | AJ8: Felipe Vazquez | AK8: =VLOOKUP($AJ8,Players!$AV$3:$AW$1447,2,FALSE) -> 0 | AL8: 0 | AN8: 2B | AO8: Keston Hiura | AP8: =IF(ISERROR(VLOOKUP($AO8,Players!$N$3:$O$1456,2,FALSE)),(VLOOKUP($AO8,Players!$AV$3:$AW$1447,2,FALSE)),(VLOOKUP($AO8,Players!$N$3:$O$1456,2,FALSE))) -> 0 | AQ8: 0 | AS8: 2B | AT8: Keston Hiura | AU8: =VLOOKUP($AT8,Players!$N$3:$O$1456,2,FALSE) -> 0 | AV8: 0 | AX8: RHP | AY8: Casey Mize | AZ8: =VLOOKUP($AY8,Players!$AV$3:$AW$1447,2,FALSE) -> 0 | BA8: 0 | BC8: OF | BD8: Kyle Tucker | BE8: =VLOOKUP($BD8,Players!$N$3:$O$1456,2,FALSE) -> 0 | BF8: 0 | BH8: RHP | BI8: Casey Mize | BJ8: =VLOOKUP($BI8,Players!$AV$3:$AW$1447,2,FALSE) -> 0 | BK8: 0
A9: 8 | B9: Welington Castillo | C9: =VLOOKUP($B9,Players!$N$3:$O$1273,2,FALSE) -> 0 | D9: 0 | F9: Jose Abreu | G9: =VLOOKUP($F9,Players!$N$3:$O$1273,2,FALSE) -> 0 | H9: 0 | J9: Max Muncy | K9: =VLOOKUP($J9,Players!$N$3:$O$1273,2,FALSE) -> 0 | L9: 0 | N9: Eugenio Suarez | O9: =VLOOKUP($N9,Players!$N$3:$O$1273,2,FALSE) -> 0 | P9: 0 | R9: Xander Bogaerts | S9: =VLOOKUP($R9,Players!$N$3:$O$1273,2,FALSE) -> 0 | T9: 0 | V9: Aaron Judge | W9: =VLOOKUP($V9,Players!$N$3:$O$1273,2,FALSE) -> 0 | X9: 0 | Z9: Yandy Diaz | AA9: =VLOOKUP($Z9,Players!$N$3:$O$1273,2,FALSE) -> 0 | AC9: 0 | AE9: Aaron Nola | AF9: =VLOOKUP($AE9,Players!$AV$3:$AW$1447,2,FALSE) -> 0 | AH9: 0 | AJ9: David Robertson | AK9: =VLOOKUP($AJ9,Players!$AV$3:$AW$1447,2,FALSE) -> 0 | AL9: 0 | AN9: OF | AO9: Kyle Tucker | AP9: =IF(ISERROR(VLOOKUP($AO9,Players!$N$3:$O$1456,2,FALSE)),(VLOOKUP($AO9,Players!$AV$3:$AW$1447,2,FALSE)),(VLOOKUP($AO9,Players!$N$3:$O$1456,2,FALSE))) -> 0 | AQ9: 0 | AS9: OF | AT9: Kyle Tucker | AU9: =VLOOKUP($AT9,Players!$N$3:$O$1456,2,FALSE) -> 0 | AV9: 0 | AX9: RHP | AY9: Touki Toussaint | AZ9: =VLOOKUP($AY9,Players!$AV$3:$AW$1447,2,FALSE) -> 0 | BA9: 0 | BC9: SS | BD9: Bo Bichette | BE9: =VLOOKUP($BD9,Players!$N$3:$O$1456,2,FALSE) -> 0 | BF9: 0 | BH9: RHP | BI9: Touki Toussaint | BJ9: =VLOOKUP($BI9,Players!$AV$3:$AW$1447,2,FALSE) -> 0 | BK9: 0
A10: 9 | B10: Carson Kelly | C10: =VLOOKUP($B10,Players!$N$3:$O$1273,2,FALSE) -> 0 | D10: 0 | F10: J.T. Realmuto | G10: =VLOOKUP($F10,Players!$N$3:$O$1273,2,FALSE) -> 0 | H10: 0 | J10: Jonathan Villar | K10: =VLOOKUP($J10,Players!$N$3:$O$1273,2,FALSE) -> 0 | L10: 0 | N10: Joey Gallo | O10: =VLOOKUP($N10,Players!$N$3:$O$1273,2,FALSE) -> 0 | P10: 0 | R10: Jean Segura | S10: =VLOOKUP($R10,Players!$N$3:$O$1273,2,FALSE) -> 0 | T10: 0 | V10: Andrew Benintendi | W10: =VLOOKUP($V10,Players!$N$3:$O$1273,2,FALSE) -> 0 | X10: 0 | AE10: Trevor Bauer | AF10: =VLOOKUP($AE10,Players!$AV$3:$AW$1447,2,FALSE) -> 0 | AH10: 0 | AJ10: Brad Hand | AK10: =VLOOKUP($AJ10,Players!$AV$3:$AW$1447,2,FALSE) -> 0 | AL10: 0 | AN10: SS | AO10: Bo Bichette | AP10: =IF(ISERROR(VLOOKUP($AO10,Players!$N$3:$O$1456,2,FALSE)),(VLOOKUP($AO10,Players!$AV$3:$AW$1447,2,FALSE)),(VLOOKUP($AO10,Players!$N$3:$O$1456,2,FALSE))) -> 0 | AQ10: 0 | AS10: SS | AT10: Bo Bichette | AU10: =VLOOKUP($AT10,Players!$N$3:$O$1456,2,FALSE) -> 0 | AV10: 0 | AX10: LHP | AY10: Yusei Kikuchi | AZ10: =VLOOKUP($AY10,Players!$AV$3:$AW$1447,2,FALSE) -> 0 | BA10: 0 | BC10: 3B | BD10: Nick Senzel | BE10: =VLOOKUP($BD10,Players!$N$3:$O$1456,2,FALSE) -> 0 | BF10: 0 | BH10: LHP | BI10: Yusei Kikuchi | BJ10: =VLOOKUP($BI10,Players!$AV$3:$AW$1447,2,FALSE) -> 0 | BK10: 0
A11: 10 | B11: Buster Posey | C11: =VLOOKUP($B11,Players!$N$3:$O$1273,2,FALSE) -> 0 | D11: 0 | F11: Whit Merrifield | G11: =VLOOKUP($F11,Players!$N$3:$O$1273,2,FALSE) -> 0 | H11: 0 | J11: Rougned Odor | K11: =VLOOKUP($J11,Players!$N$3:$O$1273,2,FALSE) -> 0 | L11: 0 | N11: Travis Shaw | O11: =VLOOKUP($N11,Players!$N$3:$O$1273,2,FALSE) -> 0 | P11: 0 | R11: Jose Peraza | S11: =VLOOKUP($R11,Players!$N$3:$O$1273,2,FALSE) -> 0 | T11: 0 | V11: Rhys Hoskins | W11: =VLOOKUP($V11,Players!$N$3:$O$1273,2,FALSE) -> 0 | X11: 0 | AE11: Walker Buehler | AF11: =VLOOKUP($AE11,Players!$AV$3:$AW$1447,2,FALSE) -> 0 | AH11: 0 | AJ11: Roberto Osuna | AK11: =VLOOKUP($AJ11,Players!$AV$3:$AW$1447,2,FALSE) -> 0 | AL11: 0 | AN11: 3B | AO11: Nick Senzel | AP11: =IF(ISERROR(VLOOKUP($AO11,Players!$N$3:$O$1456,2,FALSE)),(VLOOKUP($AO11,Players!$AV$3:$AW$1447,2,FALSE)),(VLOOKUP($AO11,Players!$N$3:$O$1456,2,FALSE))) -> 0 | AQ11: 0 | AS11: 3B | AT11: Nick Senzel | AU11: =VLOOKUP($AT11,Players!$N$3:$O$1456,2,FALSE) -> 0 | AV11: 0 | AX11: LHP | AY11: Brendan McKay | AZ11: =VLOOKUP($AY11,Players!$AV$3:$AW$1447,2,FALSE) -> 0 | BA11: 0 | BC11: SS | BD11: Brendan Rodgers | BE11: =VLOOKUP($BD11,Players!$N$3:$O$1456,2,FALSE) -> 0 | BF11: 0 | BH11: LHP | BI11: Brendan McKay | BJ11: =VLOOKUP($BI11,Players!$AV$3:$AW$1447,2,FALSE) -> 0 | BK11: 0
A12: 11 | B12: Brian McCann | C12: =VLOOKUP($B12,Players!$N$3:$O$1273,2,FALSE) -> 0 | D12: 0 | F12: Jesus Aguilar | G12: =VLOOKUP($F12,Players!$N$3:$O$1273,2,FALSE) -> 0 | H12: 0 | J12: Gleyber Torres | K12: =VLOOKUP($J12,Players!$N$3:$O$1273,2,FALSE) -> 0 | L12: 0 | N12: Max Muncy | O12: =VLOOKUP($N12,Players!$N$3:$O$1273,2,FALSE) -> 0 | P12: 0 | R12: Carlos Correa | S12: =VLOOKUP($R12,Players!$N$3:$O$1273,2,FALSE) -> 0 | T12: 0 | V12: Juan Soto | W12: =VLOOKUP($V12,Players!$N$3:$O$1273,2,FALSE) -> 0 | X12: 0 | AE12: Patrick Corbin | AF12: =VLOOKUP($AE12,Players!$AV$3:$AW$1447,2,FALSE) -> 0 | AH12: 0 | AJ12: Josh Hader | AK12: =VLOOKUP($AJ12,Players!$AV$3:$AW$1447,2,FALSE) -> 0 | AL12: 0 | AN12: SS | AO12: Carter Kieboom | AP12: =IF(ISERROR(VLOOKUP($AO12,Players!$N$3:$O$1456,2,FALSE)),(VLOOKUP($AO12,Players!$AV$3:$AW$1447,2,FALSE)),(VLOOKUP($AO12,Players!$N$3:$O$1456,2,FALSE))) -> 0 | AQ12: 0 | AS12: SS | AT12: Carter Kieboom | AU12: =VLOOKUP($AT12,Players!$N$3:$O$1456,2,FALSE) -> 0 | AV12: 0 | AX12: RHP | AY12: Michael Soroka | AZ12: =VLOOKUP($AY12,Players!$AV$3:$AW$1447,2,FALSE) -> 0 | BA12: 0 | BC12: 1B | BD12: Peter Alonso | BE12: =VLOOKUP($BD12,Players!$N$3:$O$1456,2,FALSE) -> 0 | BF12: 0 | BH12: RHP | BI12: Michael Soroka | BJ12: =VLOOKUP($BI12,Players!$AV$3:$AW$1447,2,FALSE) -> 0 | BK12: 0
A13: 12 | B13: Yan Gomes | C13: =VLOOKUP($B13,Players!$N$3:$O$1273,2,FALSE) -> 0 | D13: 0 | F13: Max Muncy | G13: =VLOOKUP($F13,Players!$N$3:$O$1273,2,FALSE) -> 0 | H13: 0 | J13: Jurickson Profar | K13: =VLOOKUP($J13,Players!$N$3:$O$1273,2,FALSE) -> 0 | L13: 0 | N13: Miguel Andujar | O13: =VLOOKUP($N13,Players!$N$3:$O$1273,2,FALSE) -> 0 | P13: 0 | R13: Corey Seager | S13: =VLOOKUP($R13,Players!$N$3:$O$1273,2,FALSE) -> 0 | T13: 0 | V13: Kris Bryant | W13: =VLOOKUP($V13,Players!$N$3:$O$1273,2,FALSE) -> 0 | X13: 0 | AE13: Carlos Carrasco | AF13: =VLOOKUP($AE13,Players!$AV$3:$AW$1447,2,FALSE) -> 0 | AH13: 0 | AJ13: Wade Davis | AK13: =VLOOKUP($AJ13,Players!$AV$3:$AW$1447,2,FALSE) -> 0 | AL13: 0 | AN13: SS | AO13: Brendan Rodgers | AP13: =IF(ISERROR(VLOOKUP($AO13,Players!$N$3:$O$1456,2,FALSE)),(VLOOKUP($AO13,Players!$AV$3:$AW$1447,2,FALSE)),(VLOOKUP($AO13,Players!$N$3:$O$1456,2,FALSE))) -> 0 | AQ13: 0 | AS13: SS | AT13: Brendan Rodgers | AU13: =VLOOKUP($AT13,Players!$N$3:$O$1456,2,FALSE) -> 0 | AV13: 0 | AX13: LHP | AY13: Justus Sheffield | AZ13: =VLOOKUP($AY13,Players!$AV$3:$AW$1447,2,FALSE) -> 0 | BA13: 0 | BC13: SS | BD13: Andres Gimenez | BE13: =VLOOKUP($BD13,Players!$N$3:$O$1456,2,FALSE) -> 0 | BF13: 0 | BH13: LHP | BI13: Justus Sheffield | BJ13: =VLOOKUP($BI13,Players!$AV$3:$AW$1447,2,FALSE) -> 0 | BK13: 0
A14: 13 | B14: Danny Jansen | C14: =VLOOKUP($B14,Players!$N$3:$O$1273,2,FALSE) -> 0 | D14: 0 | F14: Matt Olson | G14: =VLOOKUP($F14,Players!$N$3:$O$1273,2,FALSE) -> 0 | H14: 0 | J14: Robinson Cano | K14: =VLOOKUP($J14,Players!$N$3:$O$1273,2,FALSE) -> 0 | L14: 0 | N14: Vladimir Guerrero Jr. | O14: =VLOOKUP($N14,Players!$N$3:$O$1273,2,FALSE) -> 0 | P14: 0 | R14: Tim Anderson | S14: =VLOOKUP($R14,Players!$N$3:$O$1273,2,FALSE) -> 0 | T14: 0 | V14: George Springer | W14: =VLOOKUP($V14,Players!$N$3:$O$1273,2,FALSE) -> 0 | X14: 0 | AE14: Jack Flaherty | AF14: =VLOOKUP($AE14,Players!$AV$3:$AW$1447,2,FALSE) -> 0 | AH14: 0 | AJ14: Ken Giles | AK14: =VLOOKUP($AJ14,Players!$AV$3:$AW$1447,2,FALSE) -> 0 | AL14: 0 | AN14: 1B | AO14: Peter Alonso | AP14: =IF(ISERROR(VLOOKUP($AO14,Players!$N$3:$O$1456,2,FALSE)),(VLOOKUP($AO14,Players!$AV$3:$AW$1447,2,FALSE)),(VLOOKUP($AO14,Players!$N$3:$O$1456,2,FALSE))) -> 0 | AQ14: 0 | AS14: 1B | AT14: Peter Alonso | AU14: =VLOOKUP($AT14,Players!$N$3:$O$1456,2,FALSE) -> 0 | AV14: 0 | AX14: RHP | AY14: Sixto Sanchez | AZ14: =VLOOKUP($AY14,Players!$AV$3:$AW$1447,2,FALSE) -> 0 | BA14: 0 | BC14: 2B | BD14: Luis Urias | BE14: =VLOOKUP($BD14,Players!$N$3:$O$1456,2,FALSE) -> 0 | BF14: 0 | BH14: RHP | BI14: Chris Paddack | BJ14: =VLOOKUP($BI14,Players!$AV$3:$AW$1447,2,FALSE) -> 0 | BK14: 0
A15: 14 | B15: Francisco Mejia | C15: =VLOOKUP($B15,Players!$N$3:$O$1273,2,FALSE) -> 0 | D15: 0 | F15: Jurickson Profar | G15: =VLOOKUP($F15,Players!$N$3:$O$1273,2,FALSE) -> 0 | H15: 0 | J15: Scooter Gennett | K15: =VLOOKUP($J15,Players!$N$3:$O$1273,2,FALSE) -> 0 | L15: 0 | N15: Eduardo Escobar | O15: =VLOOKUP($N15,Players!$N$3:$O$1273,2,FALSE) -> 0 | P15: 0 | R15: Jonathan Villar | S15: =VLOOKUP($R15,Players!$N$3:$O$1273,2,FALSE) -> 0 | T15: 0 | V15: Cody Bellinger | W15: =VLOOKUP($V15,Players!$N$3:$O$1273,2,FALSE) -> 0 | X15: 0 | AE15: Stephen Strasburg | AF15: =VLOOKUP($AE15,Players!$AV$3:$AW$1447,2,FALSE) -> 0 | AH15: 0 | AJ15: Sean Doolittle | AK15: =VLOOKUP($AJ15,Players!$AV$3:$AW$1447,2,FALSE) -> 0 | AL15: 0 | AN15: OF | AO15: Alex Kirilloff | AP15: =IF(ISERROR(VLOOKUP($AO15,Players!$N$3:$O$1456,2,FALSE)),(VLOOKUP($AO15,Players!$AV$3:$AW$1447,2,FALSE)),(VLOOKUP($AO15,Players!$N$3:$O$1456,2,FALSE))) -> 0 | AQ15: 0 | AS15: OF | AT15: Alex Kirilloff | AU15: =VLOOKUP($AT15,Players!$N$3:$O$1456,2,FALSE) -> 0 | AV15: 0 | AX15: RHP | AY15: Chris Paddack | AZ15: =VLOOKUP($AY15,Players!$AV$3:$AW$1447,2,FALSE) -> 0 | BA15: 0 | BC15: C | BD15: Francisco Mejia | BE15: =VLOOKUP($BD15,Players!$N$3:$O$1456,2,FALSE) -> 0 | BF15: 0 | BH15: LHP | BI15: A.J. Puk | BJ15: =VLOOKUP($BI15,Players!$AV$3:$AW$1447,2,FALSE) -> 0 | BK15: 0
A16: 15 | B16: Chris Iannetta | C16: =VLOOKUP($B16,Players!$N$3:$O$1273,2,FALSE) -> 0 | D16: 0 | F16: Robinson Cano | G16: =VLOOKUP($F16,Players!$N$3:$O$1273,2,FALSE) -> 0 | H16: 0 | J16: Matt Carpenter | K16: =VLOOKUP($J16,Players!$N$3:$O$1273,2,FALSE) -> 0 | L16: 0 | N16: Jurickson Profar | O16: =VLOOKUP($N16,Players!$N$3:$O$1273,2,FALSE) -> 0 | P16: 0 | R16: Eduardo Escobar | S16: =VLOOKUP($R16,Players!$N$3:$O$1273,2,FALSE) -> 0 | T16: 0 | V16: Charlie Blackmon | W16: =VLOOKUP($V16,Players!$N$3:$O$1273,2,FALSE) -> 0 | X16: 0 | AE16: Mike Clevinger | AF16: =VLOOKUP($AE16,Players!$AV$3:$AW$1447,2,FALSE) -> 0 | AH16: 0 | AJ16: Kirby Yates | AK16: =VLOOKUP($AJ16,Players!$AV$3:$AW$1447,2,FALSE) -> 0 | AL16: 0 | AN16: OF | AO16: Taylor Trammell | AP16: =IF(ISERROR(VLOOKUP($AO16,Players!$N$3:$O$1456,2,FALSE)),(VLOOKUP($AO16,Players!$AV$3:$AW$1447,2,FALSE)),(VLOOKUP($AO16,Players!$N$3:$O$1456,2,FALSE))) -> 0 | AQ16: 0 | AS16: OF | AT16: Taylor Trammell | AU16: =VLOOKUP($AT16,Players!$N$3:$O$1456,2,FALSE) -> 0 | AV16: 0 | AX16: RHP | AY16: Michael Kopech | AZ16: =VLOOKUP($AY16,Players!$AV$3:$AW$1447,2,FALSE) -> 0 | BA16: 0 | BC16: 3B | BD16: Austin Riley | BE16: =VLOOKUP($BD16,Players!$N$3:$O$1456,2,FALSE) -> 0 | BF16: 0 | BH16: RHP | BI16: Mitch Keller | BJ16: =VLOOKUP($BI16,Players!$AV$3:$AW$1447,2,FALSE) -> 0 | BK16: 0
A17: 16 | B17: Omar Narvaez | C17: =VLOOKUP($B17,Players!$N$3:$O$1273,2,FALSE) -> 0 | D17: 0 | F17: Matt Carpenter | G17: =VLOOKUP($F17,Players!$N$3:$O$1273,2,FALSE) -> 0 | H17: 0 | J17: Jonathan Schoop | K17: =VLOOKUP($J17,Players!$N$3:$O$1273,2,FALSE) -> 0 | L17: 0 | N17: Matt Chapman | O17: =VLOOKUP($N17,Players!$N$3:$O$1273,2,FALSE) -> 0 | P17: 0 | R17: Gleyber Torres | S17: =VLOOKUP($R17,Players!$N$3:$O$1273,2,FALSE) -> 0 | T17: 0 | V17: Starling Marte | W17: =VLOOKUP($V17,Players!$N$3:$O$1273,2,FALSE) -> 0 | X17: 0 | AE17: James Paxton | AF17: =VLOOKUP($AE17,Players!$AV$3:$AW$1447,2,FALSE) -> 0 | AH17: 0 | AJ17: Jose Leclerc | AK17: =VLOOKUP($AJ17,Players!$AV$3:$AW$1447,2,FALSE) -> 0 | AL17: 0 | AN17: OF | AO17: Christian Pache | AP17: =IF(ISERROR(VLOOKUP($AO17,Players!$N$3:$O$1456,2,FALSE)),(VLOOKUP($AO17,Players!$AV$3:$AW$1447,2,FALSE)),(VLOOKUP($AO17,Players!$N$3:$O$1456,2,FALSE))) -> 0 | AQ17: 0 | AS17: OF | AT17: Christian Pache | AU17: =VLOOKUP($AT17,Players!$N$3:$O$1456,2,FALSE) -> 0 | AV17: 0 | AX17: RHP | AY17: Kyle Wright | AZ17: =VLOOKUP($AY17,Players!$AV$3:$AW$1447,2,FALSE) -> 0 | BA17: 0 | BC17: OF | BD17: Alex Verdugo | BE17: =VLOOKUP($BD17,Players!$N$3:$O$1456,2,FALSE) -> 0 | BF17: 0 | BH17: RHP | BI17: Jon Duplantier | BJ17: =VLOOKUP($BI17,Players!$AV$3:$AW$1447,2,FALSE) -> 0 | BK17: 0
A18: 17 | B18: Robinson Chirinos | C18: =VLOOKUP($B18,Players!$N$3:$O$1273,2,FALSE) -> 0 | D18: 0 | F18: Eric Hosmer | G18: =VLOOKUP($F18,Players!$N$3:$O$1273,2,FALSE) -> 0 | H18: 0 | J18: Yoan Moncada | K18: =VLOOKUP($J18,Players!$N$3:$O$1273,2,FALSE) -> 0 | L18: 0 | N18: Mike Moustakas | O18: =VLOOKUP($N18,Players!$N$3:$O$1273,2,FALSE) -> 0 | P18: 0 | R18: Jurickson Profar | S18: =VLOOKUP($R18,Players!$N$3:$O$1273,2,FALSE) -> 0 | T18: 0 | V18: Khris Davis | W18: =VLOOKUP($V18,Players!$N$3:$O$1273,2,FALSE) -> 0 | X18: 0 | AE18: German Marquez | AF18: =VLOOKUP($AE18,Players!$AV$3:$AW$1447,2,FALSE) -> 0 | AH18: 0 | AJ18: Jose Alvarado | AK18: =VLOOKUP($AJ18,Players!$AV$3:$AW$1447,2,FALSE) -> 0 | AL18: 0 | AN18: OF | AO18: Jo Adell | AP18: =IF(ISERROR(VLOOKUP($AO18,Players!$N$3:$O$1456,2,FALSE)),(VLOOKUP($AO18,Players!$AV$3:$AW$1447,2,FALSE)),(VLOOKUP($AO18,Players!$N$3:$O$1456,2,FALSE))) -> 0 | AQ18: 0 | AS18: OF | AT18: Jo Adell | AU18: =VLOOKUP($AT18,Players!$N$3:$O$1456,2,FALSE) -> 0 | AV18: 0 | AX18: LHP | AY18: A.J. Puk | AZ18: =VLOOKUP($AY18,Players!$AV$3:$AW$1447,2,FALSE) -> 0 | BA18: 0 | BC18: OF | BD18: Yordan Alvarez | BE18: =VLOOKUP($BD18,Players!$N$3:$O$1456,2,FALSE) -> 0 | BF18: 0 | BH18: RHP | BI18: Josh James | BJ18: =VLOOKUP($BI18,Players!$AV$3:$AW$1447,2,FALSE) -> 0 | BK18: 0
A19: 18 | B19: Mike Zunino | C19: =VLOOKUP($B19,Players!$N$3:$O$1273,2,FALSE) -> 0 | D19: 0 | F19: Joey Votto | G19: =VLOOKUP($F19,Players!$N$3:$O$1273,2,FALSE) -> 0 | H19: 0 | J19: Chris Taylor | K19: =VLOOKUP($J19,Players!$N$3:$O$1273,2,FALSE) -> 0 | L19: 0 | N19: Matt Carpenter | O19: =VLOOKUP($N19,Players!$N$3:$O$1273,2,FALSE) -> 0 | P19: 0 | R19: Amed Rosario | S19: =VLOOKUP($R19,Players!$N$3:$O$1273,2,FALSE) -> 0 | T19: 0 | V19: David Dahl | W19: =VLOOKUP($V19,Players!$N$3:$O$1273,2,FALSE) -> 0 | X19: 0 | AE19: Noah Syndergaard | AF19: =VLOOKUP($AE19,Players!$AV$3:$AW$1447,2,FALSE) -> 0 | AH19: 0 | AJ19: Mychal Givens | AK19: =VLOOKUP($AJ19,Players!$AV$3:$AW$1447,2,FALSE) -> 0 | AL19: 0 | AN19: RHP | AO19: Forrest Whitley | AP19: =IF(ISERROR(VLOOKUP($AO19,Players!$N$3:$O$1456,2,FALSE)),(VLOOKUP($AO19,Players!$AV$3:$AW$1447,2,FALSE)),(VLOOKUP($AO19,Players!$N$3:$O$1456,2,FALSE))) -> 0 | AQ19: 0 | AS19: SS | AT19: Andres Gimenez | AU19: =VLOOKUP($AT19,Players!$N$3:$O$1456,2,FALSE) -> 0 | AV19: 0 | AX19: RHP | AY19: Triston McKenzie | AZ19: =VLOOKUP($AY19,Players!$AV$3:$AW$1447,2,FALSE) -> 0 | BA19: 0 | BC19: OF | BD19: Victor Victor Mesa | BE19: =VLOOKUP($BD19,Players!$N$3:$O$1456,2,FALSE) -> 0 | BF19: 0 | BH19: LHP | BI19: Luiz Gohara | BJ19: =VLOOKUP($BI19,Players!$AV$3:$AW$1447,2,FALSE) -> 0 | BK19: 0
A20: 19 | B20: Francisco Cervelli | C20: =VLOOKUP($B20,Players!$N$3:$O$1273,2,FALSE) -> 0 | D20: 0 | F20: Daniel Murphy | G20: =VLOOKUP($F20,Players!$N$3:$O$1273,2,FALSE) -> 0 | H20: 0 | J20: Daniel Murphy | K20: =VLOOKUP($J20,Players!$N$3:$O$1273,2,FALSE) -> 0 | L20: 0 | N20: Wil Myers | O20: =VLOOKUP($N20,Players!$N$3:$O$1273,2,FALSE) -> 0 | P20: 0 | R20: Marcus Semien | S20: =VLOOKUP($R20,Players!$N$3:$O$1273,2,FALSE) -> 0 | T20: 0 | V20: Marcell Ozuna | W20: =VLOOKUP($V20,Players!$N$3:$O$1273,2,FALSE) -> 0 | X20: 0 | AE20: Luis Severino | AF20: =VLOOKUP($AE20,Players!$AV$3:$AW$1447,2,FALSE) -> 0 | AH20: 0 | AJ20: Corey Knebel | AK20: =VLOOKUP($AJ20,Players!$AV$3:$AW$1447,2,FALSE) -> 0 | AL20: 0 | AN20: RHP | AO20: Brent Honeywell | AP20: =IF(ISERROR(VLOOKUP($AO20,Players!$N$3:$O$1456,2,FALSE)),(VLOOKUP($AO20,Players!$AV$3:$AW$1447,2,FALSE)),(VLOOKUP($AO20,Players!$N$3:$O$1456,2,FALSE))) -> 0 | AQ20: 0 | AS20: 2B | AT20: Luis Urias | AU20: =VLOOKUP($AT20,Players!$N$3:$O$1456,2,FALSE) -> 0 | AV20: 0 | AX20: RHP | AY20: Mitch Keller | AZ20: =VLOOKUP($AY20,Players!$AV$3:$AW$1447,2,FALSE) -> 0 | BA20: 0 | BC20: 2B | BD20: Garrett Hampson | BE20: =VLOOKUP($BD20,Players!$N$3:$O$1456,2,FALSE) -> 0 | BF20: 0 | BH20: RHP | BI20: Jonathan Loaisiga | BJ20: =VLOOKUP($BI20,Players!$AV$3:$AW$1447,2,FALSE) -> 0 | BK20: 0
A21: 20 | B21: Christian Vazquez | C21: =VLOOKUP($B21,Players!$N$3:$O$1273,2,FALSE) -> 0 | D21: 0 | F21: Miguel Cabrera | G21: =VLOOKUP($F21,Players!$N$3:$O$1273,2,FALSE) -> 0 | H21: 0 | J21: Yuli Gurriel | K21: =VLOOKUP($J21,Players!$N$3:$O$1273,2,FALSE) -> 0 | L21: 0 | N21: Justin Turner | O21: =VLOOKUP($N21,Players!$N$3:$O$1273,2,FALSE) -> 0 | P21: 0 | R21: Jonathan Schoop | S21: =VLOOKUP($R21,Players!$N$3:$O$1273,2,FALSE) -> 0 | T21: 0 | V21: Eddie Rosario | W21: =VLOOKUP($V21,Players!$N$3:$O$1273,2,FALSE) -> 0 | X21: 0 | AE21: Zack Greinke | AF21: =VLOOKUP($AE21,Players!$AV$3:$AW$1447,2,FALSE) -> 0 | AH21: 0 | AJ21: Archie Bradley | AK21: =VLOOKUP($AJ21,Players!$AV$3:$AW$1447,2,FALSE) -> 0 | AL21: 0 | AN21: RHP | AO21: Dylan Cease | AP21: =IF(ISERROR(VLOOKUP($AO21,Players!$N$3:$O$1456,2,FALSE)),(VLOOKUP($AO21,Players!$AV$3:$AW$1447,2,FALSE)),(VLOOKUP($AO21,Players!$N$3:$O$1456,2,FALSE))) -> 0 | AQ21: 0 | AS21: C | AT21: Francisco Mejia | AU21: =VLOOKUP($AT21,Players!$N$3:$O$1456,2,FALSE) -> 0 | AV21: 0 | AX21: RHP | AY21: Ian Anderson | AZ21: =VLOOKUP($AY21,Players!$AV$3:$AW$1447,2,FALSE) -> 0 | BA21: 0 | BC21: SS | BD21: Jorge Mateo | BE21: =VLOOKUP($BD21,Players!$N$3:$O$1456,2,FALSE) -> 0 | BF21: 0 | BH21: RHP | BI21: Michel Baez | BJ21: =VLOOKUP($BI21,Players!$AV$3:$AW$1447,2,FALSE) -> 0 | BK21: 0
A22: 21 | B22: Tucker Barnhart | C22: =VLOOKUP($B22,Players!$N$3:$O$1273,2,FALSE) -> 0 | D22: 0 | F22: Ryan Braun | G22: =VLOOKUP($F22,Players!$N$3:$O$1273,2,FALSE) -> 0 | H22: 0 | J22: DJ LeMahieu | K22: =VLOOKUP($J22,Players!$N$3:$O$1273,2,FALSE) -> 0 | L22: 0 | N22: Yuli Gurriel | O22: =VLOOKUP($N22,Players!$N$3:$O$1273,2,FALSE) -> 0 | P22: 0 | R22: Chris Taylor | S22: =VLOOKUP($R22,Players!$N$3:$O$1273,2,FALSE) -> 0 | T22: 0 | V22: Michael Conforto | W22: =VLOOKUP($V22,Players!$N$3:$O$1273,2,FALSE) -> 0 | X22: 0 | AE22: Jameson Taillon | AF22: =VLOOKUP($AE22,Players!$AV$3:$AW$1447,2,FALSE) -> 0 | AH22: =IF(AF22>0,1,0) -> 0 | AJ22: Cody Allen | AK22: =VLOOKUP($AJ22,Players!$AV$3:$AW$1447,2,FALSE) -> 0 | AL22: 0 | AN22: SS | AO22: Andres Gimenez | AP22: =IF(ISERROR(VLOOKUP($AO22,Players!$N$3:$O$1456,2,FALSE)),(VLOOKUP($AO22,Players!$AV$3:$AW$1447,2,FALSE)),(VLOOKUP($AO22,Players!$N$3:$O$1456,2,FALSE))) -> 0 | AQ22: 0 | AS22: 3B | AT22: Austin Riley | AU22: =VLOOKUP($AT22,Players!$N$3:$O$1456,2,FALSE) -> 0 | AV22: 0 | AX22: RHP | AY22: Hunter Greene | AZ22: =VLOOKUP($AY22,Players!$AV$3:$AW$1447,2,FALSE) -> 0 | BA22: 0 | BC22: SS | BD22: Nick Gordon | BE22: =VLOOKUP($BD22,Players!$N$3:$O$1456,2,FALSE) -> 0 | BF22: 0 | BH22: RHP | BI22: Rogelio Armenteros | BJ22: =VLOOKUP($BI22,Players!$AV$3:$AW$1447,2,FALSE) -> 
A23: 22 | B23: Josh Phegley | C23: =VLOOKUP($B23,Players!$N$3:$O$1273,2,FALSE) -> 0 | D23: 0 | F23: Ian Desmond | G23: =VLOOKUP($F23,Players!$N$3:$O$1273,2,FALSE) -> 0 | H23: 0 | J23: Brian Dozier | K23: =VLOOKUP($J23,Players!$N$3:$O$1273,2,FALSE) -> 0 | L23: 0 | N23: Josh Donaldson | O23: =VLOOKUP($N23,Players!$N$3:$O$1273,2,FALSE) -> 0 | P23: 0 | R23: Paul DeJong | S23: =VLOOKUP($R23,Players!$N$3:$O$1273,2,FALSE) -> 0 | T23: 0 | V23: Joey Gallo | W23: =VLOOKUP($V23,Players!$N$3:$O$1273,2,FALSE) -> 0 | X23: 0 | AE23: Zack Wheeler | AF23: =VLOOKUP($AE23,Players!$AV$3:$AW$1447,2,FALSE) -> 0 | AH23: 0 | AJ23: Arodys Vizcaino | AK23: =VLOOKUP($AJ23,Players!$AV$3:$AW$1447,2,FALSE) -> 0 | AL23: 0 | AN23: 2B | AO23: Luis Urias | AP23: =IF(ISERROR(VLOOKUP($AO23,Players!$N$3:$O$1456,2,FALSE)),(VLOOKUP($AO23,Players!$AV$3:$AW$1447,2,FALSE)),(VLOOKUP($AO23,Players!$N$3:$O$1456,2,FALSE))) -> 0 | AQ23: 0 | AS23: OF | AT23: Luis Robert | AU23: =VLOOKUP($AT23,Players!$N$3:$O$1456,2,FALSE) -> 0 | AV23: 0 | AX23: RHP | AY23: Jon Duplantier | AZ23: =VLOOKUP($AY23,Players!$AV$3:$AW$1447,2,FALSE) -> 0 | BA23: 0 | BC23: OF | BD23: Christin Stewart | BE23: =VLOOKUP($BD23,Players!$N$3:$O$1456,2,FALSE) -> 0 | BF23: 0 | BI23: 2020
A24: 23 | B24: Grayson Greiner | C24: =VLOOKUP($B24,Players!$N$3:$O$1273,2,FALSE) -> 0 | D24: 0 | F24: Yuli Gurriel | G24: =VLOOKUP($F24,Players!$N$3:$O$1273,2,FALSE) -> 0 | H24: 0 | J24: Dee Gordon | K24: =VLOOKUP($J24,Players!$N$3:$O$1273,2,FALSE) -> 0 | L24: 0 | N24: Ian Happ | O24: =VLOOKUP($N24,Players!$N$3:$O$1273,2,FALSE) -> 0 | P24: 0 | R24: Elvis Andrus | S24: =VLOOKUP($R24,Players!$N$3:$O$1273,2,FALSE) -> 0 | T24: 0 | V24: Whit Merrifield | W24: =VLOOKUP($V24,Players!$N$3:$O$1273,2,FALSE) -> 0 | X24: 0 | AE24: Mike Foltynewicz | AF24: =VLOOKUP($AE24,Players!$AV$3:$AW$1447,2,FALSE) -> 0 | AH24: 0 | AJ24: Shane Greene | AK24: =VLOOKUP($AJ24,Players!$AV$3:$AW$1447,2,FALSE) -> 0 | AL24: 0 | AN24: C | AO24: Francisco Mejia | AP24: =IF(ISERROR(VLOOKUP($AO24,Players!$N$3:$O$1456,2,FALSE)),(VLOOKUP($AO24,Players!$AV$3:$AW$1447,2,FALSE)),(VLOOKUP($AO24,Players!$N$3:$O$1456,2,FALSE))) -> 0 | AQ24: 0 | AS24: OF | AT24: Alex Verdugo | AU24: =VLOOKUP($AT24,Players!$N$3:$O$1456,2,FALSE) -> 0 | AV24: 0 | AX24: RHP | AY24: Josh James | AZ24: =VLOOKUP($AY24,Players!$AV$3:$AW$1447,2,FALSE) -> 0 | BA24: 0 | BC24: 1B | BD24: Nathaniel Lowe | BE24: =VLOOKUP($BD24,Players!$N$3:$O$1456,2,FALSE) -> 0 | BF24: 0 | BH24: RHP | BI24: Sixto Sanchez | BJ24: =VLOOKUP($BI24,Players!$AV$3:$AW$1447,2,FALSE) -> 0 | BK24: 0
A25: 24 | B25: Russell Martin | C25: =VLOOKUP($B25,Players!$N$3:$O$1273,2,FALSE) -> 0 | D25: 0 | F25: Yonder Alonso | G25: =VLOOKUP($F25,Players!$N$3:$O$1273,2,FALSE) -> 0 | H25: 0 | J25: Joey Wendle | K25: =VLOOKUP($J25,Players!$N$3:$O$1273,2,FALSE) -> 0 | L25: 0 | N25: Joey Wendle | O25: =VLOOKUP($N25,Players!$N$3:$O$1273,2,FALSE) -> 0 | P25: 0 | R25: Dee Gordon | S25: =VLOOKUP($R25,Players!$N$3:$O$1273,2,FALSE) -> 0 | T25: 0 | V25: Nicholas Castellanos | W25: =VLOOKUP($V25,Players!$N$3:$O$1273,2,FALSE) -> 0 | X25: 0 | AE25: Jose Berrios | AF25: =VLOOKUP($AE25,Players!$AV$3:$AW$1447,2,FALSE) -> 0 | AH25: 0 | AJ25: Andrew Miller | AK25: =VLOOKUP($AJ25,Players!$AV$3:$AW$1447,2,FALSE) -> 0 | AL25: 0 | AN25: 3B | AO25: Austin Riley | AP25: =IF(ISERROR(VLOOKUP($AO25,Players!$N$3:$O$1456,2,FALSE)),(VLOOKUP($AO25,Players!$AV$3:$AW$1447,2,FALSE)),(VLOOKUP($AO25,Players!$N$3:$O$1456,2,FALSE))) -> 0 | AQ25: 0 | AS25: OF | AT25: Yordan Alvarez | AU25: =VLOOKUP($AT25,Players!$N$3:$O$1456,2,FALSE) -> 0 | AV25: 0 | AX25: RHP | AY25: Matt Manning | AZ25: =VLOOKUP($AY25,Players!$AV$3:$AW$1447,2,FALSE) -> 0 | BA25: 0 | BC25: OF | BD25: Yusniel Diaz | BE25: =VLOOKUP($BD25,Players!$N$3:$O$1456,2,FALSE) -> 0 | BF25: 0 | BH25: RHP | BI25: Michael Kopech | BJ25: =VLOOKUP($BI25,Players!$AV$3:$AW$1447,2,FALSE) -> 0 | BK25: 0
A26: 25 | B26: Austin Hedges | C26: =VLOOKUP($B26,Players!$N$3:$O$1273,2,FALSE) -> 0 | D26: 0 | F26: Luke Voit | G26: =VLOOKUP($F26,Players!$N$3:$O$1273,2,FALSE) -> 0 | H26: 0 | J26: Garrett Hampson | K26: =VLOOKUP($J26,Players!$N$3:$O$1273,2,FALSE) -> 0 | L26: 0 | N26: Nick Senzel | O26: =VLOOKUP($N26,Players!$N$3:$O$1273,2,FALSE) -> 0 | P26: 0 | R26: Joey Wendle | S26: =VLOOKUP($R26,Players!$N$3:$O$1273,2,FALSE) -> 0 | T26: 0 | V26: Justin Upton | W26: =VLOOKUP($V26,Players!$N$3:$O$1273,2,FALSE) -> 0 | X26: 0 | AE26: J.A. Happ | AF26: =VLOOKUP($AE26,Players!$AV$3:$AW$1447,2,FALSE) -> 0 | AH26: 0 | AJ26: Will Smith | AK26: =VLOOKUP($AJ26,Players!$AV$3:$AW$1447,2,FALSE) -> 0 | AL26: 0 | AN26: OF | AO26: Luis Robert | AP26: =IF(ISERROR(VLOOKUP($AO26,Players!$N$3:$O$1456,2,FALSE)),(VLOOKUP($AO26,Players!$AV$3:$AW$1447,2,FALSE)),(VLOOKUP($AO26,Players!$N$3:$O$1456,2,FALSE))) -> 0 | AQ26: 0 | AS26: 3B | AT26: Nolan Gorman | AU26: =VLOOKUP($AT26,Players!$N$3:$O$1456,2,FALSE) -> 0 | AV26: 0 | AX26: RHP | AY26: Luis Patino | AZ26: =VLOOKUP($AY26,Players!$AV$3:$AW$1447,2,FALSE) -> 0 | BA26: 0 | BC26: 3B | BD26: Michael Chavis | BE26: =VLOOKUP($BD26,Players!$N$3:$O$1456,2,FALSE) -> 0 | BF26: 0 | BH26: RHP | BI26: Kyle Wright | BJ26: =VLOOKUP($BI26,Players!$AV$3:$AW$1447,2,FALSE) -> 0 | BK26: 0
A27: 26 | B27: Austin Barnes | C27: =VLOOKUP($B27,Players!$N$3:$O$1273,2,FALSE) -> 0 | D27: 0 | F27: Trey Mancini | G27: =VLOOKUP($F27,Players!$N$3:$O$1273,2,FALSE) -> 0 | H27: 0 | J27: Willy Adames | K27: =VLOOKUP($J27,Players!$N$3:$O$1273,2,FALSE) -> 0 | L27: 0 | N27: Rafael Devers | O27: =VLOOKUP($N27,Players!$N$3:$O$1273,2,FALSE) -> 0 | P27: 0 | R27: Garrett Hampson | S27: =VLOOKUP($R27,Players!$N$3:$O$1273,2,FALSE) -> 0 | T27: 0 | V27: Nomar Mazara | W27: =VLOOKUP($V27,Players!$N$3:$O$1273,2,FALSE) -> 0 | X27: 0 | AE27: David Price | AF27: =VLOOKUP($AE27,Players!$AV$3:$AW$1447,2,FALSE) -> 0 | AH27: 0 | AJ27: Jordan Hicks | AK27: =VLOOKUP($AJ27,Players!$AV$3:$AW$1447,2,FALSE) -> 0 | AL27: 0 | AN27: OF | AO27: Alex Verdugo | AP27: =IF(ISERROR(VLOOKUP($AO27,Players!$N$3:$O$1456,2,FALSE)),(VLOOKUP($AO27,Players!$AV$3:$AW$1447,2,FALSE)),(VLOOKUP($AO27,Players!$N$3:$O$1456,2,FALSE))) -> 0 | AQ27: 0 | AS27: 2B | AT27: Nick Madrigal | AU27: =VLOOKUP($AT27,Players!$N$3:$O$1456,2,FALSE) -> 0 | AV27: 0 | AX27: LHP | AY27: Luiz Gohara | AZ27: =VLOOKUP($AY27,Players!$AV$3:$AW$1447,2,FALSE) -> 0 | BA27: 0 | BC27: C | BD27: Sean Murphy | BE27: =VLOOKUP($BD27,Players!$N$3:$O$1456,2,FALSE) -> 0 | BF27: 0 | BH27: RHP | BI27: Triston McKenzie | BJ27: =VLOOKUP($BI27,Players!$AV$3:$AW$1447,2,FALSE) -> 0 | BK27: 0
A28: 27 | B28: John Hicks | C28: =VLOOKUP($B28,Players!$N$3:$O$1273,2,FALSE) -> 0 | D28: 0 | F28: Tyler White | G28: =VLOOKUP($F28,Players!$N$3:$O$1273,2,FALSE) -> 0 | H28: 0 | J28: Cesar Hernandez | K28: =VLOOKUP($J28,Players!$N$3:$O$1273,2,FALSE) -> 0 | L28: 0 | N28: Jake Lamb | O28: =VLOOKUP($N28,Players!$N$3:$O$1273,2,FALSE) -> 0 | P28: 0 | R28: Willy Adames | S28: =VLOOKUP($R28,Players!$N$3:$O$1273,2,FALSE) -> 0 | T28: 0 | V28: Ender Inciarte | W28: =VLOOKUP($V28,Players!$N$3:$O$1273,2,FALSE) -> 0 | X28: 0 | AE28: Joey Lucchesi | AF28: =VLOOKUP($AE28,Players!$AV$3:$AW$1447,2,FALSE) -> 0 | AH28: 0 | AJ28: Blake Parker | AK28: =VLOOKUP($AJ28,Players!$AV$3:$AW$1447,2,FALSE) -> 0 | AL28: 0 | AN28: OF | AO28: Yordan Alvarez | AP28: =IF(ISERROR(VLOOKUP($AO28,Players!$N$3:$O$1456,2,FALSE)),(VLOOKUP($AO28,Players!$AV$3:$AW$1447,2,FALSE)),(VLOOKUP($AO28,Players!$N$3:$O$1456,2,FALSE))) -> 0 | AQ28: 0 | AS28: 2B | AT28: Vidal Brujan | AU28: =VLOOKUP($AT28,Players!$N$3:$O$1456,2,FALSE) -> 0 | AV28: 0 | AX28: RHP | AY28: Jonathan Loaisiga | AZ28: =VLOOKUP($AY28,Players!$AV$3:$AW$1447,2,FALSE) -> 0 | BA28: 0 | BC28: C | BD28: Danny Jansen | BE28: =VLOOKUP($BD28,Players!$N$3:$O$1456,2,FALSE) -> 0 | BF28: 0 | BH28: RHP | BI28: Ian Anderson | BJ28: =VLOOKUP($BI28,Players!$AV$3:$AW$1447,2,FALSE) -> 0 | BK28: 0
A29: 28 | B29: Tyler Flowers | C29: =VLOOKUP($B29,Players!$N$3:$O$1273,2,FALSE) -> 0 | D29: 0 | F29: Jake Bauers | G29: =VLOOKUP($F29,Players!$N$3:$O$1273,2,FALSE) -> 0 | H29: 0 | J29: Yolmer Sanchez | K29: =VLOOKUP($J29,Players!$N$3:$O$1273,2,FALSE) -> 0 | L29: 0 | N29: Yolmer Sanchez | O29: =VLOOKUP($N29,Players!$N$3:$O$1273,2,FALSE) -> 0 | P29: 0 | R29: Niko Goodrum | S29: =VLOOKUP($R29,Players!$N$3:$O$1273,2,FALSE) -> 0 | T29: 0 | V29: Victor Robles | W29: =VLOOKUP($V29,Players!$N$3:$O$1273,2,FALSE) -> 0 | X29: 0 | AE29: Eduardo Rodriguez | AF29: =VLOOKUP($AE29,Players!$AV$3:$AW$1447,2,FALSE) -> 0 | AH29: 0 | AJ29: Kelvin Herrera | AK29: =VLOOKUP($AJ29,Players!$AV$3:$AW$1447,2,FALSE) -> 0 | AL29: 0 | AN29: 3B | AO29: Nolan Gorman | AP29: =IF(ISERROR(VLOOKUP($AO29,Players!$N$3:$O$1456,2,FALSE)),(VLOOKUP($AO29,Players!$AV$3:$AW$1447,2,FALSE)),(VLOOKUP($AO29,Players!$N$3:$O$1456,2,FALSE))) -> 0 | AQ29: 0 | AS29: OF | AT29: Jarred Kelenic | AU29: =VLOOKUP($AT29,Players!$N$3:$O$1456,2,FALSE) -> 0 | AV29: 0 | AX29: RHP | AY29: Michel Baez | AZ29: =VLOOKUP($AY29,Players!$AV$3:$AW$1447,2,FALSE) -> 0 | BA29: 0 | BC29: 3B | BD29: Ryan Mountcastle | BE29: =VLOOKUP($BD29,Players!$N$3:$O$1456,2,FALSE) -> 0 | BF29: 0 | BH29: RHP | BI29: Matt Manning | BJ29: =VLOOKUP($BI29,Players!$AV$3:$AW$1447,2,FALSE) -> 0 | BK29: 0
A30: 29 | B30: Kurt Suzuki | C30: =VLOOKUP($B30,Players!$N$3:$O$1273,2,FALSE) -> 0 | D30: 0 | F30: C.J. Cron | G30: =VLOOKUP($F30,Players!$N$3:$O$1273,2,FALSE) -> 0 | H30: 0 | J30: Luis Urias | K30: =VLOOKUP($J30,Players!$N$3:$O$1273,2,FALSE) -> 0 | L30: 0 | N30: David Fletcher | O30: =VLOOKUP($N30,Players!$N$3:$O$1273,2,FALSE) -> 0 | P30: 0 | R30: Asdrubal Cabrera | S30: =VLOOKUP($R30,Players!$N$3:$O$1273,2,FALSE) -> 0 | T30: 0 | V30: Eloy Jimenez | W30: =VLOOKUP($V30,Players!$N$3:$O$1273,2,FALSE) -> 0 | X30: 0 | AE30: Tyler Glasnow | AF30: =VLOOKUP($AE30,Players!$AV$3:$AW$1447,2,FALSE) -> 0 | AH30: 0 | AJ30: Ryan Brasier | AK30: =VLOOKUP($AJ30,Players!$AV$3:$AW$1447,2,FALSE) -> 0 | AL30: 0 | AN30: 2B | AO30: Nick Madrigal | AP30: =IF(ISERROR(VLOOKUP($AO30,Players!$N$3:$O$1456,2,FALSE)),(VLOOKUP($AO30,Players!$AV$3:$AW$1447,2,FALSE)),(VLOOKUP($AO30,Players!$N$3:$O$1456,2,FALSE))) -> 0 | AQ30: 0 | AS30: OF | AT30: Trevor Larnach | AU30: =VLOOKUP($AT30,Players!$N$3:$O$1456,2,FALSE) -> 0 | AV30: 0 | AX30: LHP | AY30: Matthew Liberatore | AZ30: =VLOOKUP($AY30,Players!$AV$3:$AW$1447,2,FALSE) -> 0 | BA30: 0 | BC30: 1B | BD30: Bobby Bradley | BE30: =VLOOKUP($BD30,Players!$N$3:$O$1456,2,FALSE) -> 0 | BF30: 0 | BH30: RHP | BI30: Brady Singer | BJ30: =VLOOKUP($BI30,Players!$AV$3:$AW$1447,2,FALSE) -> 0 | BK30: 0
A31: 30 | B31: Victor Caratini | C31: =VLOOKUP($B31,Players!$N$3:$O$1273,2,FALSE) -> 0 | D31: 0 | F31: Niko Goodrum | G31: =VLOOKUP($F31,Players!$N$3:$O$1273,2,FALSE) -> 0 | H31: 0 | J31: David Fletcher | K31: =VLOOKUP($J31,Players!$N$3:$O$1273,2,FALSE) -> 0 | L31: 0 | N31: Renato Nunez | O31: =VLOOKUP($N31,Players!$N$3:$O$1273,2,FALSE) -> 0 | P31: 0 | R31: Andrelton Simmons | S31: =VLOOKUP($R31,Players!$N$3:$O$1273,2,FALSE) -> 0 | T31: 0 | V31: Lorenzo Cain | W31: =VLOOKUP($V31,Players!$N$3:$O$1273,2,FALSE) -> 0 | X31: 0 | AE31: Shane Bieber | AF31: =VLOOKUP($AE31,Players!$AV$3:$AW$1447,2,FALSE) -> 0 | AH31: 0 | AJ31: Brad Boxberger | AK31: =VLOOKUP($AJ31,Players!$AV$3:$AW$1447,2,FALSE) -> 0 | AL31: 0 | AN31: 2B | AO31: Vidal Brujan | AP31: =IF(ISERROR(VLOOKUP($AO31,Players!$N$3:$O$1456,2,FALSE)),(VLOOKUP($AO31,Players!$AV$3:$AW$1447,2,FALSE)),(VLOOKUP($AO31,Players!$N$3:$O$1456,2,FALSE))) -> 0 | AQ31: 0 | AS31: OF | AT31: Victor Victor Mesa | AU31: =VLOOKUP($AT31,Players!$N$3:$O$1456,2,FALSE) -> 0 | AV31: 0 | AX31: RHP | AY31: Brady Singer | AZ31: =VLOOKUP($AY31,Players!$AV$3:$AW$1447,2,FALSE) -> 0 | BA31: 0 | BC31: 2B/OF | BD31: Jahmai Jones | BE31: =VLOOKUP($BD31,Players!$N$3:$O$1456,2,FALSE) -> 0 | BF31: 0 | BI31: 2021
A32: 31 | B32: Mitch Garver | C32: =VLOOKUP($B32,Players!$N$3:$O$1273,2,FALSE) -> 0 | D32: 0 | F32: Miguel Sano | G32: =VLOOKUP($F32,Players!$N$3:$O$1273,2,FALSE) -> 0 | H32: 0 | J32: Jeff McNeil | K32: =VLOOKUP($J32,Players!$N$3:$O$1273,2,FALSE) -> 0 | L32: 0 | N32: Niko Goodrum | O32: =VLOOKUP($N32,Players!$N$3:$O$1273,2,FALSE) -> 0 | P32: 0 | R32: Tim Beckham | S32: =VLOOKUP($R32,Players!$N$3:$O$1273,2,FALSE) -> 0 | T32: 0 | V32: A.J. Pollock | W32: =VLOOKUP($V32,Players!$N$3:$O$1273,2,FALSE) -> 0 | X32: 0 | AE32: Luis Castillo | AF32: =VLOOKUP($AE32,Players!$AV$3:$AW$1447,2,FALSE) -> 0 | AH32: =IF(AF32>0,1,0) -> 0 | AJ32: Dellin Betances | AK32: =VLOOKUP($AJ32,Players!$AV$3:$AW$1447,2,FALSE) -> 0 | AL32: 0 | AN32: LHP | AO32: Jesus Luzardo | AP32: =IF(ISERROR(VLOOKUP($AO32,Players!$N$3:$O$1456,2,FALSE)),(VLOOKUP($AO32,Players!$AV$3:$AW$1447,2,FALSE)),(VLOOKUP($AO32,Players!$N$3:$O$1456,2,FALSE))) -> 0 | AQ32: 0 | AS32: 3B | AT32: Ke’Bryan Hayes | AU32: =VLOOKUP($AT32,Players!$N$3:$O$1456,2,FALSE) -> 0 | AV32: 0 | AX32: RHP | AY32: Rogelio Armenteros | BC32: 2B | BD32: Cavan Biggio | BE32: =VLOOKUP($BD32,Players!$N$3:$O$1456,2,FALSE) -> 0 | BF32: 0 | BH32: LHP | BI32: MacKenzie Gore | BJ32: =VLOOKUP($BI32,Players!$AV$3:$AW$1447,2,FALSE) -> 0 | BK32: 0
A33: 32 | B33: Willians Astudillo | C33: =VLOOKUP($B33,Players!$N$3:$O$1273,2,FALSE) -> 0 | D33: 0 | F33: Justin Smoak | G33: =VLOOKUP($F33,Players!$N$3:$O$1273,2,FALSE) -> 0 | H33: 0 | J33: Niko Goodrum | K33: =VLOOKUP($J33,Players!$N$3:$O$1273,2,FALSE) -> 0 | L33: 0 | N33: Kyle Seager | O33: =VLOOKUP($N33,Players!$N$3:$O$1273,2,FALSE) -> 0 | P33: 0 | R33: Didi Gregorius | S33: =VLOOKUP($R33,Players!$N$3:$O$1273,2,FALSE) -> 0 | T33: 0 | V33: Mitch Haniger | W33: =VLOOKUP($V33,Players!$N$3:$O$1273,2,FALSE) -> 0 | X33: 0 | AE33: Charlie Morton | AF33: =VLOOKUP($AE33,Players!$AV$3:$AW$1447,2,FALSE) -> 0 | AH33: 0 | AJ33: Hunter Strickland | AK33: =VLOOKUP($AJ33,Players!$AV$3:$AW$1447,2,FALSE) -> 0 | AL33: 0 | AN33: LHP | AO33: MacKenzie Gore | AP33: =IF(ISERROR(VLOOKUP($AO33,Players!$N$3:$O$1456,2,FALSE)),(VLOOKUP($AO33,Players!$AV$3:$AW$1447,2,FALSE)),(VLOOKUP($AO33,Players!$N$3:$O$1456,2,FALSE))) -> 0 | AQ33: 0 | AS33: OF | AT33: Leody Taveras | AU33: =VLOOKUP($AT33,Players!$N$3:$O$1456,2,FALSE) -> 0 | AV33: 0 | BC33: 3B | BD33: Yu Chang | BE33: =VLOOKUP($BD33,Players!$N$3:$O$1456,2,FALSE) -> 0 | BF33: 0 | BH33: RHP | BI33: Hunter Greene | BJ33: =VLOOKUP($BI33,Players!$AV$3:$AW$1447,2,FALSE) -> 0 | BK33: 0
A34: 33 | B34: Chance Sisco | C34: =VLOOKUP($B34,Players!$N$3:$O$1273,2,FALSE) -> 0 | D34: 0 | F34: Buster Posey | G34: =VLOOKUP($F34,Players!$N$3:$O$1273,2,FALSE) -> 0 | H34: 0 | J34: Asdrubal Cabrera | K34: =VLOOKUP($J34,Players!$N$3:$O$1273,2,FALSE) -> 0 | L34: 0 | N34: Asdrubal Cabrera | O34: =VLOOKUP($N34,Players!$N$3:$O$1273,2,FALSE) -> 0 | P34: 0 | R34: Ketel Marte | S34: =VLOOKUP($R34,Players!$N$3:$O$1273,2,FALSE) -> 0 | T34: 0 | V34: Yasiel Puig | W34: =VLOOKUP($V34,Players!$N$3:$O$1273,2,FALSE) -> 0 | X34: 0 | AE34: Madison Bumgarner | AF34: =VLOOKUP($AE34,Players!$AV$3:$AW$1447,2,FALSE) -> 0 | AH34: 0 | AJ34: Brandon Morrow | AK34: =VLOOKUP($AJ34,Players!$AV$3:$AW$1447,2,FALSE) -> 0 | AL34: =IF(AK34>0,1,0) -> 0 | AN34: RHP | AO34: Alex Reyes | AP34: =IF(ISERROR(VLOOKUP($AO34,Players!$N$3:$O$1456,2,FALSE)),(VLOOKUP($AO34,Players!$AV$3:$AW$1447,2,FALSE)),(VLOOKUP($AO34,Players!$N$3:$O$1456,2,FALSE))) -> 0 | AQ34: 0 | AS34: OF | AT34: Estevan Florial | AU34: =VLOOKUP($AT34,Players!$N$3:$O$1456,2,FALSE) -> 0 | AV34: 0 | BD34: 2020 | BI34: 2022
A35: 34 | B35: Aramis Garcia | C35: =VLOOKUP($B35,Players!$N$3:$O$1273,2,FALSE) -> 0 | D35: 0 | F35: Ryan O’Hearn | G35: =VLOOKUP($F35,Players!$N$3:$O$1273,2,FALSE) -> 0 | H35: 0 | J35: Ketel Marte | K35: =VLOOKUP($J35,Players!$N$3:$O$1273,2,FALSE) -> 0 | L35: 0 | N35: Miguel Sano | O35: =VLOOKUP($N35,Players!$N$3:$O$1273,2,FALSE) -> 0 | P35: 0 | R35: Orlando Arcia | S35: =VLOOKUP($R35,Players!$N$3:$O$1273,2,FALSE) -> 0 | T35: 0 | V35: Stephen Piscotty | W35: =VLOOKUP($V35,Players!$N$3:$O$1273,2,FALSE) -> 0 | X35: 0 | AE35: Chris Archer | AF35: =VLOOKUP($AE35,Players!$AV$3:$AW$1447,2,FALSE) -> 0 | AH35: 0 | AJ35: Pedro Strop | AK35: =VLOOKUP($AJ35,Players!$AV$3:$AW$1447,2,FALSE) -> 0 | AL35: 0 | AN35: OF | AO35: Jarred Kelenic | AP35: =IF(ISERROR(VLOOKUP($AO35,Players!$N$3:$O$1456,2,FALSE)),(VLOOKUP($AO35,Players!$AV$3:$AW$1447,2,FALSE)),(VLOOKUP($AO35,Players!$N$3:$O$1456,2,FALSE))) -> 0 | AQ35: 0 | AS35: 3B | AT35: Alec Bohm | AU35: =VLOOKUP($AT35,Players!$N$3:$O$1456,2,FALSE) -> 0 | AV35: 0 | BC35: SS | BD35: Royce Lewis | BE35: =VLOOKUP($BD35,Players!$N$3:$O$1456,2,FALSE) -> 0 | BF35: 0 | BH35: LHP | BI35: Matthew Liberatore | BJ35: =VLOOKUP($BI35,Players!$AV$3:$AW$1447,2,FALSE) -> 0 | BK35: 0
A36: 35 | B36: Tom Murphy | C36: =VLOOKUP($B36,Players!$N$3:$O$1273,2,FALSE) -> 0 | D36: 0 | F36: Carlos Santana | G36: =VLOOKUP($F36,Players!$N$3:$O$1273,2,FALSE) -> 0 | H36: 0 | J36: Jed Lowrie | K36: =VLOOKUP($J36,Players!$N$3:$O$1273,2,FALSE) -> 0 | L36: 0 | N36: Tim Beckham | O36: =VLOOKUP($N36,Players!$N$3:$O$1273,2,FALSE) -> 0 | P36: 0 | R36: Jorge Polanco | S36: =VLOOKUP($R36,Players!$N$3:$O$1273,2,FALSE) -> 0 | T36: 0 | V36: Domingo Santana | W36: =VLOOKUP($V36,Players!$N$3:$O$1273,2,FALSE) -> 0 | X36: 0 | AE36: Masahiro Tanaka | AF36: =VLOOKUP($AE36,Players!$AV$3:$AW$1447,2,FALSE) -> 0 | AH36: 0 | AJ36: A.J. Minter | AK36: =VLOOKUP($AJ36,Players!$AV$3:$AW$1447,2,FALSE) -> 0 | AL36: 0 | AN36: OF | AO36: Trevor Larnach | AP36: =IF(ISERROR(VLOOKUP($AO36,Players!$N$3:$O$1456,2,FALSE)),(VLOOKUP($AO36,Players!$AV$3:$AW$1447,2,FALSE)),(VLOOKUP($AO36,Players!$N$3:$O$1456,2,FALSE))) -> 0 | AQ36: 0 | AS36: 1B | AT36: Seth Beer | AU36: =VLOOKUP($AT36,Players!$N$3:$O$1456,2,FALSE) -> 0 | AV36: 0 | BC36: SS | BD36: Carter Kieboom | BE36: =VLOOKUP($BD36,Players!$N$3:$O$1456,2,FALSE) -> 0 | BF36: 0 | BI36: 2023
A37: 36 | B37: Blake Swihart | C37: =VLOOKUP($B37,Players!$N$3:$O$1273,2,FALSE) -> 0 | D37: 0 | F37: Ryan Zimmerman | G37: =VLOOKUP($F37,Players!$N$3:$O$1273,2,FALSE) -> 0 | H37: 0 | J37: Wilmer Flores | K37: =VLOOKUP($J37,Players!$N$3:$O$1273,2,FALSE) -> 0 | L37: 0 | N37: Carlos Santana | O37: =VLOOKUP($N37,Players!$N$3:$O$1273,2,FALSE) -> 0 | P37: 0 | R37: Marwin Gonzalez | S37: =VLOOKUP($R37,Players!$N$3:$O$1273,2,FALSE) -> 0 | T37: 0 | V37: Andrew McCutchen | W37: =VLOOKUP($V37,Players!$N$3:$O$1273,2,FALSE) -> 0 | X37: 0 | AE37: Robbie Ray | AF37: =VLOOKUP($AE37,Players!$AV$3:$AW$1447,2,FALSE) -> 0 | AH37: 0 | AJ37: Trevor May | AK37: =VLOOKUP($AJ37,Players!$AV$3:$AW$1447,2,FALSE) -> 0 | AL37: 0 | AN37: OF | AO37: Victor Victor Mesa | AP37: =IF(ISERROR(VLOOKUP($AO37,Players!$N$3:$O$1456,2,FALSE)),(VLOOKUP($AO37,Players!$AV$3:$AW$1447,2,FALSE)),(VLOOKUP($AO37,Players!$N$3:$O$1456,2,FALSE))) -> 0 | AQ37: 0 | AS37: C | AT37: Joey Bart | AU37: =VLOOKUP($AT37,Players!$N$3:$O$1456,2,FALSE) -> 0 | AV37: 0 | BC37: OF | BD37: Alex Kirilloff | BE37: =VLOOKUP($BD37,Players!$N$3:$O$1456,2,FALSE) -> 0 | BF37: 0 | BH37: RHP | BI37: Luis Patino
A38: 37 | B38: Kevin Plawecki | C38: =VLOOKUP($B38,Players!$N$3:$O$1273,2,FALSE) -> 0 | D38: 0 | F38: Josh Bell | G38: =VLOOKUP($F38,Players!$N$3:$O$1273,2,FALSE) -> 0 | H38: 0 | J38: Marwin Gonzalez | K38: =VLOOKUP($J38,Players!$N$3:$O$1273,2,FALSE) -> 0 | L38: 0 | N38: Jed Lowrie | O38: =VLOOKUP($N38,Players!$N$3:$O$1273,2,FALSE) -> 0 | P38: 0 | R38: Zack Cozart | S38: =VLOOKUP($R38,Players!$N$3:$O$1273,2,FALSE) -> 0 | T38: 0 | V38: Tommy Pham | W38: =VLOOKUP($V38,Players!$N$3:$O$1273,2,FALSE) -> 0 | X38: 0 | AE38: Clayton Kershaw | AF38: =VLOOKUP($AE38,Players!$AV$3:$AW$1447,2,FALSE) -> 0 | AH38: 0 | AJ38: Sergio Romo | AK38: =VLOOKUP($AJ38,Players!$AV$3:$AW$1447,2,FALSE) -> 0 | AL38: 0 | AN38: 3B | AO38: Ke’Bryan Hayes | AP38: =IF(ISERROR(VLOOKUP($AO38,Players!$N$3:$O$1456,2,FALSE)),(VLOOKUP($AO38,Players!$AV$3:$AW$1447,2,FALSE)),(VLOOKUP($AO38,Players!$N$3:$O$1456,2,FALSE))) -> 0 | AQ38: 0 | AS38: OF | AT38: Travis Swaggerty | AU38: =VLOOKUP($AT38,Players!$N$3:$O$1456,2,FALSE) -> 0 | AV38: 0 | BC38: OF | BD38: Christian Pache | BE38: =VLOOKUP($BD38,Players!$N$3:$O$1456,2,FALSE) -> 0 | BF38: 0
A39: 38 | B39: Elias Diaz | C39: =VLOOKUP($B39,Players!$N$3:$O$1273,2,FALSE) -> 0 | D39: 0 | F39: Wilmer Flores | G39: =VLOOKUP($F39,Players!$N$3:$O$1273,2,FALSE) -> 0 | H39: 0 | J39: Zack Cozart | K39: =VLOOKUP($J39,Players!$N$3:$O$1273,2,FALSE) -> 0 | L39: 0 | N39: Wilmer Flores | O39: =VLOOKUP($N39,Players!$N$3:$O$1273,2,FALSE) -> 0 | P39: 0 | R39: Freddy Galvis | S39: =VLOOKUP($R39,Players!$N$3:$O$1273,2,FALSE) -> 0 | T39: 0 | V39: David Peralta | W39: =VLOOKUP($V39,Players!$N$3:$O$1273,2,FALSE) -> 0 | X39: 0 | AE39: Kyle Hendricks | AF39: =VLOOKUP($AE39,Players!$AV$3:$AW$1447,2,FALSE) -> 0 | AH39: 0 | AJ39: Drew Steckenrider | AK39: =VLOOKUP($AJ39,Players!$AV$3:$AW$1447,2,FALSE) -> 0 | AL39: 0 | AN39: OF | AO39: Leody Taveras | AP39: =IF(ISERROR(VLOOKUP($AO39,Players!$N$3:$O$1456,2,FALSE)),(VLOOKUP($AO39,Players!$AV$3:$AW$1447,2,FALSE)),(VLOOKUP($AO39,Players!$N$3:$O$1456,2,FALSE))) -> 0 | AQ39: 0 | AS39: 3B | AT39: Jonathan India | AU39: =VLOOKUP($AT39,Players!$N$3:$O$1456,2,FALSE) -> 0 | AV39: 0 | BC39: OF | BD39: Luis Robert | BE39: =VLOOKUP($BD39,Players!$N$3:$O$1456,2,FALSE) -> 0 | BF39: 0
A40: 39 | B40: Jonathan Lucroy | C40: =VLOOKUP($B40,Players!$N$3:$O$1273,2,FALSE) -> 0 | D40: =IF(C40>0,1,0) -> 0 | F40: Ronald Guzman | G40: =VLOOKUP($F40,Players!$N$3:$O$1273,2,FALSE) -> 0 | H40: 0 | J40: Josh Harrison | K40: =VLOOKUP($J40,Players!$N$3:$O$1273,2,FALSE) -> 0 | L40: 0 | N40: Jeimer Candelario | O40: =VLOOKUP($N40,Players!$N$3:$O$1273,2,FALSE) -> 0 | P40: 0 | R40: Brandon Crawford | S40: =VLOOKUP($R40,Players!$N$3:$O$1273,2,FALSE) -> 0 | T40: 0 | V40: Wil Myers | W40: =VLOOKUP($V40,Players!$N$3:$O$1273,2,FALSE) -> 0 | X40: 0 | AE40: Miles Mikolas | AF40: =VLOOKUP($AE40,Players!$AV$3:$AW$1447,2,FALSE) -> 0 | AH40: 0 | AJ40: Alex Colome | AK40: =VLOOKUP($AJ40,Players!$AV$3:$AW$1447,2,FALSE) -> 0 | AL40: 0 | AN40: OF | AO40: Estevan Florial | AP40: =IF(ISERROR(VLOOKUP($AO40,Players!$N$3:$O$1456,2,FALSE)),(VLOOKUP($AO40,Players!$AV$3:$AW$1447,2,FALSE)),(VLOOKUP($AO40,Players!$N$3:$O$1456,2,FALSE))) -> 0 | AQ40: 0 | AS40: 2B | AT40: Garrett Hampson | AU40: =VLOOKUP($AT40,Players!$N$3:$O$1456,2,FALSE) -> 0 | AV40: 0 | BC40: 2B | BD40: Nick Madrigal | BE40: =VLOOKUP($BD40,Players!$N$3:$O$1456,2,FALSE) -> 0 | BF40: 0
A41: 40 | B41: Isiah Kiner-Falefa | C41: =VLOOKUP($B41,Players!$N$3:$O$1273,2,FALSE) -> 0 | D41: 0 | F41: Justin Bour | G41: =VLOOKUP($F41,Players!$N$3:$O$1273,2,FALSE) -> 0 | H41: 0 | J41: Starlin Castro | K41: =VLOOKUP($J41,Players!$N$3:$O$1273,2,FALSE) -> 0 | L41: 0 | N41: Evan Longoria | O41: =VLOOKUP($N41,Players!$N$3:$O$1273,2,FALSE) -> 0 | P41: 0 | R41: Nick Ahmed | S41: =VLOOKUP($R41,Players!$N$3:$O$1273,2,FALSE) -> 0 | T41: 0 | V41: Aaron Hicks | W41: =VLOOKUP($V41,Players!$N$3:$O$1273,2,FALSE) -> 0 | X41: 0 | AE41: Nathan Eovaldi | AF41: =VLOOKUP($AE41,Players!$AV$3:$AW$1447,2,FALSE) -> 0 | AH41: 0 | AJ41: Matt Barnes | AK41: =VLOOKUP($AJ41,Players!$AV$3:$AW$1447,2,FALSE) -> 0 | AL41: 0 | AN41: 3B | AO41: Alec Bohm | AP41: =IF(ISERROR(VLOOKUP($AO41,Players!$N$3:$O$1456,2,FALSE)),(VLOOKUP($AO41,Players!$AV$3:$AW$1447,2,FALSE)),(VLOOKUP($AO41,Players!$N$3:$O$1456,2,FALSE))) -> 0 | AQ41: 0 | AS41: SS | AT41: Nico Hoerner | AU41: =VLOOKUP($AT41,Players!$N$3:$O$1456,2,FALSE) -> 0 | AV41: 0 | BC41: OF | BD41: Trevor Larnach | BE41: =VLOOKUP($BD41,Players!$N$3:$O$1456,2,FALSE) -> 0 | BF41: 0
A42: 41 | B42: James McCann | C42: =VLOOKUP($B42,Players!$N$3:$O$1273,2,FALSE) -> 0 | D42: 0 | F42: Brandon Belt | G42: =VLOOKUP($F42,Players!$N$3:$O$1273,2,FALSE) -> 0 | H42: 0 | J42: Jason Kipnis | K42: =VLOOKUP($J42,Players!$N$3:$O$1273,2,FALSE) -> 0 | L42: 0 | N42: Zack Cozart | O42: =VLOOKUP($N42,Players!$N$3:$O$1273,2,FALSE) -> 0 | P42: 0 | R42: Lourdes Gurriel Jr. | S42: =VLOOKUP($R42,Players!$N$3:$O$1273,2,FALSE) -> 0 | T42: 0 | V42: Chris Taylor | W42: =VLOOKUP($V42,Players!$N$3:$O$1273,2,FALSE) -> 0 | X42: 0 | AE42: Cole Hamels | AF42: =VLOOKUP($AE42,Players!$AV$3:$AW$1447,2,FALSE) -> 0 | AH42: 0 | AJ42: Trevor Rosenthal | AK42: =VLOOKUP($AJ42,Players!$AV$3:$AW$1447,2,FALSE) -> 0 | AL42: 0 | AN42: 1B | AO42: Seth Beer | AP42: =IF(ISERROR(VLOOKUP($AO42,Players!$N$3:$O$1456,2,FALSE)),(VLOOKUP($AO42,Players!$AV$3:$AW$1447,2,FALSE)),(VLOOKUP($AO42,Players!$N$3:$O$1456,2,FALSE))) -> 0 | AQ42: 0 | AS42: OF | AT42: Monte Harrison | AU42: =VLOOKUP($AT42,Players!$N$3:$O$1456,2,FALSE) -> 0 | AV42: 0 | BC42: 3B | BD42: Ke’Bryan Hayes | BE42: =VLOOKUP($BD42,Players!$N$3:$O$1456,2,FALSE) -> 0 | BF42: 0
A43: 42 | B43: Manny Pina | C43: =VLOOKUP($B43,Players!$N$3:$O$1273,2,FALSE) -> 0 | D43: 0 | F43: Marwin Gonzalez | G43: =VLOOKUP($F43,Players!$N$3:$O$1273,2,FALSE) -> 0 | H43: 0 | J43: Freddy Galvis | K43: =VLOOKUP($J43,Players!$N$3:$O$1273,2,FALSE) -> 0 | L43: 0 | N43: Russell Martin | O43: =VLOOKUP($N43,Players!$N$3:$O$1273,2,FALSE) -> 0 | P43: 0 | R43: Enrique Hernandez | S43: =VLOOKUP($R43,Players!$N$3:$O$1273,2,FALSE) -> 0 | T43: 0 | V43: Ryan Braun | W43: =VLOOKUP($V43,Players!$N$3:$O$1273,2,FALSE) -> 0 | X43: 0 | AE43: Rick Porcello | AF43: =VLOOKUP($AE43,Players!$AV$3:$AW$1447,2,FALSE) -> 0 | AH43: 0 | AJ43: Seranthony Dominguez | AK43: =VLOOKUP($AJ43,Players!$AV$3:$AW$1447,2,FALSE) -> 0 | AL43: 0 | AN43: C | AO43: Joey Bart | AP43: =IF(ISERROR(VLOOKUP($AO43,Players!$N$3:$O$1456,2,FALSE)),(VLOOKUP($AO43,Players!$AV$3:$AW$1447,2,FALSE)),(VLOOKUP($AO43,Players!$N$3:$O$1456,2,FALSE))) -> 0 | AQ43: 0 | AS43: OF | AT43: Drew Waters | AU43: =VLOOKUP($AT43,Players!$N$3:$O$1456,2,FALSE) -> 0 | AV43: 0 | BC43: OF | BD43: Leody Taveras | BE43: =VLOOKUP($BD43,Players!$N$3:$O$1456,2,FALSE) -> 0 | BF43: 0
A44: 43 | B44: Jason Castro | C44: =VLOOKUP($B44,Players!$N$3:$O$1273,2,FALSE) -> 0 | D44: 0 | F44: Albert Pujols | G44: =VLOOKUP($F44,Players!$N$3:$O$1273,2,FALSE) -> 0 | H44: 0 | J44: Ben Zobrist | K44: =VLOOKUP($J44,Players!$N$3:$O$1273,2,FALSE) -> 0 | L44: 0 | N44: J.D. Davis | O44: =VLOOKUP($N44,Players!$N$3:$O$1273,2,FALSE) -> 0 | P44: 0 | R44: Brendan Rodgers | S44: =VLOOKUP($R44,Players!$N$3:$O$1273,2,FALSE) -> 0 | T44: =IF(S44>0,1,0) -> 0 | V44: Ian Desmond | W44: =VLOOKUP($V44,Players!$N$3:$O$1273,2,FALSE) -> 0 | X44: 0 | AE44: Chase Anderson | AF44: =VLOOKUP($AE44,Players!$AV$3:$AW$1447,2,FALSE) -> 0 | AH44: 0 | AJ44: Diego Castillo | AK44: =VLOOKUP($AJ44,Players!$AV$3:$AW$1447,2,FALSE) -> 0 | AL44: 0 | AN44: RHP | AO44: Casey Mize | AP44: =IF(ISERROR(VLOOKUP($AO44,Players!$N$3:$O$1456,2,FALSE)),(VLOOKUP($AO44,Players!$AV$3:$AW$1447,2,FALSE)),(VLOOKUP($AO44,Players!$N$3:$O$1456,2,FALSE))) -> 0 | AQ44: 0 | AS44: SS | AT44: Jorge Mateo | AU44: =VLOOKUP($AT44,Players!$N$3:$O$1456,2,FALSE) -> 0 | AV44: 0 | BC44: OF | BD44: Estevan Florial | BE44: =VLOOKUP($BD44,Players!$N$3:$O$1456,2,FALSE) -> 0 | BF44: 0
A45: 44 | B45: Sandy Leon | C45: =VLOOKUP($B45,Players!$N$3:$O$1273,2,FALSE) -> 0 | D45: 0 | F45: Peter O’Brien | G45: =VLOOKUP($F45,Players!$N$3:$O$1273,2,FALSE) -> 0 | H45: 0 | J45: Lourdes Gurriel Jr. | K45: =VLOOKUP($J45,Players!$N$3:$O$1273,2,FALSE) -> 0 | L45: 0 | N45: Matt Duffy | O45: =VLOOKUP($N45,Players!$N$3:$O$1273,2,FALSE) -> 0 | P45: 0 | R45: Johan Camargo | S45: =VLOOKUP($R45,Players!$N$3:$O$1273,2,FALSE) -> 0 | T45: 0 | V45: Dee Gordon | W45: =VLOOKUP($V45,Players!$N$3:$O$1273,2,FALSE) -> 0 | X45: 0 | AE45: Rich Hill | AF45: =VLOOKUP($AE45,Players!$AV$3:$AW$1447,2,FALSE) -> 0 | AH45: 0 | AJ45: Steve Cishek | AK45: =VLOOKUP($AJ45,Players!$AV$3:$AW$1447,2,FALSE) -> 0 | AL45: 0 | AN45: RHP | AO45: Touki Toussaint | AP45: =IF(ISERROR(VLOOKUP($AO45,Players!$N$3:$O$1456,2,FALSE)),(VLOOKUP($AO45,Players!$AV$3:$AW$1447,2,FALSE)),(VLOOKUP($AO45,Players!$N$3:$O$1456,2,FALSE))) -> 0 | AQ45: 0 | AS45: SS | AT45: Nick Gordon | AU45: =VLOOKUP($AT45,Players!$N$3:$O$1456,2,FALSE) -> 0 | AV45: 0 | BC45: C | BD45: Joey Bart | BE45: =VLOOKUP($BD45,Players!$N$3:$O$1456,2,FALSE) -> 0 | BF45: 0
A46: 45 | B46: Tony Wolters | C46: =VLOOKUP($B46,Players!$N$3:$O$1273,2,FALSE) -> 0 | D46: 0 | F46: Tucker Barnhart | G46: =VLOOKUP($F46,Players!$N$3:$O$1273,2,FALSE) -> 0 | H46: 0 | J46: Keston Hiura | K46: =VLOOKUP($J46,Players!$N$3:$O$1273,2,FALSE) -> 0 | L46: =IF(K46>0,1,0) -> 0 | N46: Brian Anderson | O46: =VLOOKUP($N46,Players!$N$3:$O$1273,2,FALSE) -> 0 | P46: 0 | R46: Bo Bichette | S46: =VLOOKUP($R46,Players!$N$3:$O$1273,2,FALSE) -> 0 | T46: 0 | V46: Harrison Bader | W46: =VLOOKUP($V46,Players!$N$3:$O$1273,2,FALSE) -> 0 | X46: 0 | AE46: Hyun-Jin Ryu | AF46: =VLOOKUP($AE46,Players!$AV$3:$AW$1447,2,FALSE) -> 0 | AH46: 0 | AJ46: Mark Melancon | AK46: =VLOOKUP($AJ46,Players!$AV$3:$AW$1447,2,FALSE) -> 0 | AL46: 0 | AN46: LHP | AO46: Yusei Kikuchi | AP46: =IF(ISERROR(VLOOKUP($AO46,Players!$N$3:$O$1456,2,FALSE)),(VLOOKUP($AO46,Players!$AV$3:$AW$1447,2,FALSE)),(VLOOKUP($AO46,Players!$N$3:$O$1456,2,FALSE))) -> 0 | AQ46: 0 | AS46: OF | AT46: Christin Stewart | AU46: =VLOOKUP($AT46,Players!$N$3:$O$1456,2,FALSE) -> 0 | AV46: 0 | BC46: 3B | BD46: Jonathan India | BE46: =VLOOKUP($BD46,Players!$N$3:$O$1456,2,FALSE) -> 0 | BF46: 0
A47: 46 | F47: Jay Bruce | G47: =VLOOKUP($F47,Players!$N$3:$O$1273,2,FALSE) -> 0 | H47: 0 | J47: Brandon Lowe | K47: =VLOOKUP($J47,Players!$N$3:$O$1273,2,FALSE) -> 0 | L47: 0 | N47: Willians Astudillo | O47: =VLOOKUP($N47,Players!$N$3:$O$1273,2,FALSE) -> 0 | P47: 0 | R47: Fernando Tatis Jr. | S47: =VLOOKUP($R47,Players!$N$3:$O$1273,2,FALSE) -> 0 | T47: 0 | V47: Ramon Laureano | W47: =VLOOKUP($V47,Players!$N$3:$O$1273,2,FALSE) -> 0 | X47: 0 | AE47: Nick Pivetta | AF47: =VLOOKUP($AE47,Players!$AV$3:$AW$1447,2,FALSE) -> 0 | AH47: 0 | AJ47: Zack Britton | AK47: =VLOOKUP($AJ47,Players!$AV$3:$AW$1447,2,FALSE) -> 0 | AL47: 0 | AN47: LHP | AO47: Brendan McKay | AP47: =IF(ISERROR(VLOOKUP($AO47,Players!$N$3:$O$1456,2,FALSE)),(VLOOKUP($AO47,Players!$AV$3:$AW$1447,2,FALSE)),(VLOOKUP($AO47,Players!$N$3:$O$1456,2,FALSE))) -> 0 | AQ47: 0 | AS47: 1B | AT47: Nathaniel Lowe | AU47: =VLOOKUP($AT47,Players!$N$3:$O$1456,2,FALSE) -> 0 | AV47: 0 | BC47: SS | BD47: Nico Hoerner | BE47: =VLOOKUP($BD47,Players!$N$3:$O$1456,2,FALSE) -> 0 | BF47: 0
A48: 47 | F48: Peter Alonso | G48: =VLOOKUP($F48,Players!$N$3:$O$1273,2,FALSE) -> 0 | H48: 0 | J48: Adam Frazier | K48: =VLOOKUP($J48,Players!$N$3:$O$1273,2,FALSE) -> 0 | L48: 0 | N48: Johan Camargo | O48: =VLOOKUP($N48,Players!$N$3:$O$1273,2,FALSE) -> 0 | P48: 0 | R48: Aledmys Diaz | S48: =VLOOKUP($R48,Players!$N$3:$O$1273,2,FALSE) -> 0 | T48: 0 | V48: Hunter Renfroe | W48: =VLOOKUP($V48,Players!$N$3:$O$1273,2,FALSE) -> 0 | X48: 0 | AE48: Andrew Heaney | AF48: =VLOOKUP($AE48,Players!$AV$3:$AW$1447,2,FALSE) -> 0 | AH48: 0 | AJ48: Keone Kela | AK48: =VLOOKUP($AJ48,Players!$AV$3:$AW$1447,2,FALSE) -> 0 | AL48: 0 | AN48: OF | AO48: Travis Swaggerty | AP48: =IF(ISERROR(VLOOKUP($AO48,Players!$N$3:$O$1456,2,FALSE)),(VLOOKUP($AO48,Players!$AV$3:$AW$1447,2,FALSE)),(VLOOKUP($AO48,Players!$N$3:$O$1456,2,FALSE))) -> 0 | AQ48: 0 | AS48: 3B | AT48: Nolan Jones | AU48: =VLOOKUP($AT48,Players!$N$3:$O$1456,2,FALSE) -> 0 | AV48: 0 | BC48: OF | BD48: Monte Harrison | BE48: =VLOOKUP($BD48,Players!$N$3:$O$1456,2,FALSE) -> 0 | BF48: 0
A49: 48 | F49: Jose Martinez | G49: =VLOOKUP($F49,Players!$N$3:$O$1273,2,FALSE) -> 0 | H49: 0 | J49: Enrique Hernandez | K49: =VLOOKUP($J49,Players!$N$3:$O$1273,2,FALSE) -> 0 | L49: 0 | N49: Brandon Drury | O49: =VLOOKUP($N49,Players!$N$3:$O$1273,2,FALSE) -> 0 | P49: =IF(O49>0,1,0) -> 0 | R49: Hernan Perez | S49: =VLOOKUP($R49,Players!$N$3:$O$1273,2,FALSE) -> 0 | T49: 0 | V49: Daniel Palka | W49: =VLOOKUP($V49,Players!$N$3:$O$1273,2,FALSE) -> 0 | X49: 0 | AE49: Yusei Kikuchi | AF49: =VLOOKUP($AE49,Players!$AV$3:$AW$1447,2,FALSE) -> 0 | AH49: 0 | AJ49: Shawn Armstrong | AK49: =VLOOKUP($AJ49,Players!$AV$3:$AW$1447,2,FALSE) -> 0 | AL49: 0 | AN49: 3B | AO49: Jonathan India | AP49: =IF(ISERROR(VLOOKUP($AO49,Players!$N$3:$O$1456,2,FALSE)),(VLOOKUP($AO49,Players!$AV$3:$AW$1447,2,FALSE)),(VLOOKUP($AO49,Players!$N$3:$O$1456,2,FALSE))) -> 0 | AQ49: 0 | AS49: 1B | AT49: Tyler Nevin | AU49: =VLOOKUP($AT49,Players!$N$3:$O$1456,2,FALSE) -> 0 | AV49: 0 | BC49: 1B | BD49: Tyler Nevin | BE49: =VLOOKUP($BD49,Players!$N$3:$O$1456,2,FALSE) -> 0 | BF49: 0
A50: 49 | F50: Tyler Austin | G50: =VLOOKUP($F50,Players!$N$3:$O$1273,2,FALSE) ->  | J50: Brandon Drury | K50: =VLOOKUP($J50,Players!$N$3:$O$1273,2,FALSE) -> 0 | L50: 0 | N50: Todd Frazier | O50: =VLOOKUP($N50,Players!$N$3:$O$1273,2,FALSE) -> 0 | P50: 0 | R50: Dansby Swanson | S50: =VLOOKUP($R50,Players!$N$3:$O$1273,2,FALSE) -> 0 | T50: 0 | V50: Ian Happ | W50: =VLOOKUP($V50,Players!$N$3:$O$1273,2,FALSE) -> 0 | X50: 0 | AE50: Kyle Freeland | AF50: =VLOOKUP($AE50,Players!$AV$3:$AW$1447,2,FALSE) -> 0 | AH50: 0 | AJ50: Yoshihisa Hirano | AK50: =VLOOKUP($AJ50,Players!$AV$3:$AW$1447,2,FALSE) -> 0 | AL50: 0 | AN50: RHP | AO50: Michael Soroka | AP50: =IF(ISERROR(VLOOKUP($AO50,Players!$N$3:$O$1456,2,FALSE)),(VLOOKUP($AO50,Players!$AV$3:$AW$1447,2,FALSE)),(VLOOKUP($AO50,Players!$N$3:$O$1456,2,FALSE))) -> 0 | AQ50: 0 | AS50: OF | AT50: Yusniel Diaz | AU50: =VLOOKUP($AT50,Players!$N$3:$O$1456,2,FALSE) -> 0 | AV50: 0 | BC50: OF | BD50: Julio Pablo Martinez | BE50: =VLOOKUP($BD50,Players!$N$3:$O$1456,2,FALSE) -> 0 | BF50: 0
A51: 50 | F51: J.D. Davis | G51: =VLOOKUP($F51,Players!$N$3:$O$1273,2,FALSE) -> 0 | H51: 0 | J51: Kolten Wong | K51: =VLOOKUP($J51,Players!$N$3:$O$1273,2,FALSE) -> 0 | L51: 0 | N51: Aledmys Diaz | O51: =VLOOKUP($N51,Players!$N$3:$O$1273,2,FALSE) -> 0 | P51: 0 | R51: Scott Kingery | S51: =VLOOKUP($R51,Players!$N$3:$O$1273,2,FALSE) -> 0 | T51: 0 | V51: Mallex Smith | W51: =VLOOKUP($V51,Players!$N$3:$O$1273,2,FALSE) -> 0 | X51: 0 | AE51: Alex Wood | AF51: =VLOOKUP($AE51,Players!$AV$3:$AW$1447,2,FALSE) -> 0 | AH51: 0 | AJ51: Joe Jimenez | AK51: =VLOOKUP($AJ51,Players!$AV$3:$AW$1447,2,FALSE) -> 0 | AL51: 0 | AN51: LHP | AO51: Justus Sheffield | AP51: =IF(ISERROR(VLOOKUP($AO51,Players!$N$3:$O$1456,2,FALSE)),(VLOOKUP($AO51,Players!$AV$3:$AW$1447,2,FALSE)),(VLOOKUP($AO51,Players!$N$3:$O$1456,2,FALSE))) -> 0 | AQ51: 0 | AS51: OF | AT51: Julio Pablo Martinez | AU51: =VLOOKUP($AT51,Players!$N$3:$O$1456,2,FALSE) -> 0 | AV51: 0 | BC51: 1B | BD51: Evan White | BE51: =VLOOKUP($BD51,Players!$N$3:$O$1456,2,FALSE) -> 0 | BF51: 0
A52: 51 | F52: John Hicks | G52: =VLOOKUP($F52,Players!$N$3:$O$1273,2,FALSE) -> 0 | H52: 0 | J52: Cory Spangenberg | K52: =VLOOKUP($J52,Players!$N$3:$O$1273,2,FALSE) -> 0 | L52: 0 | N52: Cory Spangenberg | O52: =VLOOKUP($N52,Players!$N$3:$O$1273,2,FALSE) -> 0 | P52: 0 | R52: J.P. Crawford | S52: =VLOOKUP($R52,Players!$N$3:$O$1273,2,FALSE) -> 0 | T52: 0 | V52: Odubel Herrera | W52: =VLOOKUP($V52,Players!$N$3:$O$1273,2,FALSE) -> 0 | X52: 0 | AE52: Yu Darvish | AF52: =VLOOKUP($AE52,Players!$AV$3:$AW$1447,2,FALSE) -> 0 | AH52: 0 | AJ52: Chad Green | AK52: =VLOOKUP($AJ52,Players!$AV$3:$AW$1447,2,FALSE) -> 0 | AL52: 0 | AN52: RHP | AO52: Sixto Sanchez | AP52: =IF(ISERROR(VLOOKUP($AO52,Players!$N$3:$O$1456,2,FALSE)),(VLOOKUP($AO52,Players!$AV$3:$AW$1447,2,FALSE)),(VLOOKUP($AO52,Players!$N$3:$O$1456,2,FALSE))) -> 0 | AQ52: 0 | AS52: 1B | AT52: Evan White | AU52: =VLOOKUP($AT52,Players!$N$3:$O$1456,2,FALSE) -> 0 | AV52: 0 | BC52: 2B | BD52: Kevin Smith | BE52: =VLOOKUP($BD52,Players!$N$3:$O$1456,2,FALSE) -> 0 | BF52: 0
A53: 52 | F53: Victor Caratini | G53: =VLOOKUP($F53,Players!$N$3:$O$1273,2,FALSE) -> 0 | H53: 0 | J53: Ian Kinsler | K53: =VLOOKUP($J53,Players!$N$3:$O$1273,2,FALSE) -> 0 | L53: 0 | N53: Hernan Perez | O53: =VLOOKUP($N53,Players!$N$3:$O$1273,2,FALSE) -> 0 | P53: 0 | R53: J.T. Riddle | S53: =VLOOKUP($R53,Players!$N$3:$O$1273,2,FALSE) -> 0 | T53: =IF(S53>0,1,0) -> 0 | V53: Jackie Bradley Jr. | W53: =VLOOKUP($V53,Players!$N$3:$O$1273,2,FALSE) -> 0 | X53: 0 | AE53: Jon Lester | AF53: =VLOOKUP($AE53,Players!$AV$3:$AW$1447,2,FALSE) -> 0 | AH53: 0 | AJ53: Brad Brach | AK53: =VLOOKUP($AJ53,Players!$AV$3:$AW$1447,2,FALSE) -> 0 | AL53: 0 | AN53: RHP | AO53: Chris Paddack | AP53: =IF(ISERROR(VLOOKUP($AO53,Players!$N$3:$O$1456,2,FALSE)),(VLOOKUP($AO53,Players!$AV$3:$AW$1447,2,FALSE)),(VLOOKUP($AO53,Players!$N$3:$O$1456,2,FALSE))) -> 0 | AQ53: 0 | AS53: OF | AT53: Lazaro Armenteros | AU53: =VLOOKUP($AT53,Players!$N$3:$O$1456,2,FALSE) -> 0 | AV53: 0 | BC53: SS | BD53: Cole Tucker | BE53: =VLOOKUP($BD53,Players!$N$3:$O$1456,2,FALSE) -> 0 | BF53: 0
A54: 53 | F54: Mitch Moreland | G54: =VLOOKUP($F54,Players!$N$3:$O$1273,2,FALSE) -> 0 | H54: 0 | J54: Hernan Perez | K54: =VLOOKUP($J54,Players!$N$3:$O$1273,2,FALSE) -> 0 | L54: 0 | N54: Kaleb Cowart | O54: =VLOOKUP($N54,Players!$N$3:$O$1273,2,FALSE) -> 0 | P54: 0 | R54: Addison Russell | S54: =VLOOKUP($R54,Players!$N$3:$O$1273,2,FALSE) -> 0 | T54: 0 | V54: Corey Dickerson | W54: =VLOOKUP($V54,Players!$N$3:$O$1273,2,FALSE) -> 0 | X54: 0 | AE54: Jose Quintana | AF54: =VLOOKUP($AE54,Players!$AV$3:$AW$1447,2,FALSE) -> 0 | AH54: 0 | AJ54: Joe Kelly | AK54: =VLOOKUP($AJ54,Players!$AV$3:$AW$1447,2,FALSE) -> 0 | AL54: 0 | AN54: RHP | AO54: Michael Kopech | AP54: =IF(ISERROR(VLOOKUP($AO54,Players!$N$3:$O$1456,2,FALSE)),(VLOOKUP($AO54,Players!$AV$3:$AW$1447,2,FALSE)),(VLOOKUP($AO54,Players!$N$3:$O$1456,2,FALSE))) -> 0 | AQ54: 0 | AS54: 2B | AT54: Kevin Smith | AU54: =VLOOKUP($AT54,Players!$N$3:$O$1456,2,FALSE) -> 0 | AV54: 0 | BC54: C | BD54: Keibert Ruiz | BE54: =VLOOKUP($BD54,Players!$N$3:$O$1456,2,FALSE) -> 0 | BF54: 0
A55: 54 | F55: Blake Swihart | G55: =VLOOKUP($F55,Players!$N$3:$O$1273,2,FALSE) -> 0 | H55: 0 | J55: Franklin Barreto | K55: =VLOOKUP($J55,Players!$N$3:$O$1273,2,FALSE) -> 0 | L55: 0 | N55: Isiah Kiner-Falefa | O55: =VLOOKUP($N55,Players!$N$3:$O$1273,2,FALSE) -> 0 | P55: 0 | R55: Yairo Munoz | S55: =VLOOKUP($R55,Players!$N$3:$O$1273,2,FALSE) -> 0 | T55: 0 | V55: Cedric Mullins | W55: =VLOOKUP($V55,Players!$N$3:$O$1273,2,FALSE) -> 0 | X55: 0 | AE55: Jon Gray | AF55: =VLOOKUP($AE55,Players!$AV$3:$AW$1447,2,FALSE) -> 0 | AH55: 0 | AJ55: Ryan Pressly | AK55: =VLOOKUP($AJ55,Players!$AV$3:$AW$1447,2,FALSE) -> 0 | AL55: 0 | AN55: RHP | AO55: Kyle Wright | AP55: =IF(ISERROR(VLOOKUP($AO55,Players!$N$3:$O$1456,2,FALSE)),(VLOOKUP($AO55,Players!$AV$3:$AW$1447,2,FALSE)),(VLOOKUP($AO55,Players!$N$3:$O$1456,2,FALSE))) -> 0 | AQ55: 0 | AS55: SS | AT55: Cole Tucker | AU55: =VLOOKUP($AT55,Players!$N$3:$O$1456,2,FALSE) -> 0 | AV55: 0 | BC55: 3B | BD55: Bobby Dalbec | BE55: =VLOOKUP($BD55,Players!$N$3:$O$1456,2,FALSE) -> 0 | BF55: 0
A56: 55 | F56: Adam Duvall | G56: =VLOOKUP($F56,Players!$N$3:$O$1273,2,FALSE) -> 0 | H56: 0 | J56: Joe Panik | K56: =VLOOKUP($J56,Players!$N$3:$O$1273,2,FALSE) -> 0 | L56: 0 | N56: Yandy Diaz | O56: =VLOOKUP($N56,Players!$N$3:$O$1273,2,FALSE) -> 0 | P56: 0 | R56: Troy Tulowitzki | S56: =VLOOKUP($R56,Players!$N$3:$O$1273,2,FALSE) -> 0 | T56: 0 | V56: Trey Mancini | W56: =VLOOKUP($V56,Players!$N$3:$O$1273,2,FALSE) -> 0 | X56: 0 | AE56: Sean Newcomb | AF56: =VLOOKUP($AE56,Players!$AV$3:$AW$1447,2,FALSE) -> 0 | AH56: 0 | AJ56: Joakim Soria | AK56: =VLOOKUP($AJ56,Players!$AV$3:$AW$1447,2,FALSE) -> 0 | AL56: 0 | AN56: LHP | AO56: A.J. Puk | AP56: =IF(ISERROR(VLOOKUP($AO56,Players!$N$3:$O$1456,2,FALSE)),(VLOOKUP($AO56,Players!$AV$3:$AW$1447,2,FALSE)),(VLOOKUP($AO56,Players!$N$3:$O$1456,2,FALSE))) -> 0 | AQ56: 0 | AS56: 3B | AT56: Michael Chavis | AU56: =VLOOKUP($AT56,Players!$N$3:$O$1456,2,FALSE) -> 0 | AV56: 0 | BC56: OF | BD56: Brandon Marsh | BE56: =VLOOKUP($BD56,Players!$N$3:$O$1456,2,FALSE) -> 0 | BF56: 0
A57: 56 | F57: Ryon Healy | G57: =VLOOKUP($F57,Players!$N$3:$O$1273,2,FALSE) -> 0 | H57: 0 | J57: Isiah Kiner-Falefa | K57: =VLOOKUP($J57,Players!$N$3:$O$1273,2,FALSE) -> 0 | L57: 0 | N57: Chris Owings | O57: =VLOOKUP($N57,Players!$N$3:$O$1273,2,FALSE) -> 0 | P57: 0 | R57: Jordy Mercer | S57: =VLOOKUP($R57,Players!$N$3:$O$1273,2,FALSE) -> 0 | T57: 0 | V57: Joey Wendle | W57: =VLOOKUP($V57,Players!$N$3:$O$1273,2,FALSE) -> 0 | X57: 0 | AE57: Kevin Gausman | AF57: =VLOOKUP($AE57,Players!$AV$3:$AW$1447,2,FALSE) -> 0 | AH57: 0 | AJ57: Jeremy Jeffress | AK57: =VLOOKUP($AJ57,Players!$AV$3:$AW$1447,2,FALSE) -> 0 | AL57: 0 | AN57: RHP | AO57: Triston McKenzie | AP57: =IF(ISERROR(VLOOKUP($AO57,Players!$N$3:$O$1456,2,FALSE)),(VLOOKUP($AO57,Players!$AV$3:$AW$1447,2,FALSE)),(VLOOKUP($AO57,Players!$N$3:$O$1456,2,FALSE))) -> 0 | AQ57: 0 | AS57: C | AT57: Sean Murphy | AU57: =VLOOKUP($AT57,Players!$N$3:$O$1456,2,FALSE) -> 0 | AV57: 0 | BD57: 2021
A58: 57 | F58: Matt Adams | G58: =VLOOKUP($F58,Players!$N$3:$O$1273,2,FALSE) -> 0 | H58: 0 | J58: Kaleb Cowart | K58: =VLOOKUP($J58,Players!$N$3:$O$1273,2,FALSE) -> 0 | L58: 0 | N58: Hunter Dozier | O58: =VLOOKUP($N58,Players!$N$3:$O$1273,2,FALSE) -> 0 | P58: 0 | R58: Erik Gonzalez | S58: =VLOOKUP($R58,Players!$N$3:$O$1273,2,FALSE) -> 0 | T58: 0 | V58: Billy Hamilton | W58: =VLOOKUP($V58,Players!$N$3:$O$1273,2,FALSE) -> 0 | X58: 0 | AE58: Tyler Skaggs | AF58: =VLOOKUP($AE58,Players!$AV$3:$AW$1447,2,FALSE) -> 0 | AH58: 0 | AJ58: Craig Stammen | AK58: =VLOOKUP($AJ58,Players!$AV$3:$AW$1447,2,FALSE) -> 0 | AL58: 0 | AN58: 2B | AO58: Garrett Hampson | AP58: =IF(ISERROR(VLOOKUP($AO58,Players!$N$3:$O$1456,2,FALSE)),(VLOOKUP($AO58,Players!$AV$3:$AW$1447,2,FALSE)),(VLOOKUP($AO58,Players!$N$3:$O$1456,2,FALSE))) -> 0 | AQ58: 0 | AS58: C | AT58: Keibert Ruiz | AU58: =VLOOKUP($AT58,Players!$N$3:$O$1456,2,FALSE) -> 0 | AV58: 0 | BC58: OF | BD58: Taylor Trammell | BE58: =VLOOKUP($BD58,Players!$N$3:$O$1456,2,FALSE) -> 0 | BF58: 0
A59: 58 | F59: Enrique Hernandez | G59: =VLOOKUP($F59,Players!$N$3:$O$1273,2,FALSE) -> 0 | H59: 0 | J59: Devon Travis | K59: =VLOOKUP($J59,Players!$N$3:$O$1273,2,FALSE) -> 0 | L59: 0 | N59: Scott Kingery | O59: =VLOOKUP($N59,Players!$N$3:$O$1273,2,FALSE) -> 0 | P59: =IF(O59>0,1,0) -> 0 | V59: Byron Buxton | W59: =VLOOKUP($V59,Players!$N$3:$O$1273,2,FALSE) -> 0 | X59: 0 | AE59: Kenta Maeda | AF59: =VLOOKUP($AE59,Players!$AV$3:$AW$1447,2,FALSE) -> 0 | AH59: 0 | AJ59: Jeurys Familia | AK59: =VLOOKUP($AJ59,Players!$AV$3:$AW$1447,2,FALSE) -> 0 | AL59: 0 | AN59: SS | AO59: Nico Hoerner | AP59: =IF(ISERROR(VLOOKUP($AO59,Players!$N$3:$O$1456,2,FALSE)),(VLOOKUP($AO59,Players!$AV$3:$AW$1447,2,FALSE)),(VLOOKUP($AO59,Players!$N$3:$O$1456,2,FALSE))) -> 0 | AQ59: 0 | AS59: C | AT59: Danny Jansen | AU59: =VLOOKUP($AT59,Players!$N$3:$O$1456,2,FALSE) -> 0 | AV59: 0 | BC59: OF | BD59: Jo Adell | BE59: =VLOOKUP($BD59,Players!$N$3:$O$1456,2,FALSE) -> 0 | BF59: 0
A60: 59 | F60: Steve Pearce | G60: =VLOOKUP($F60,Players!$N$3:$O$1273,2,FALSE) -> 0 | H60: 0 | J60: Chris Owings | K60: =VLOOKUP($J60,Players!$N$3:$O$1273,2,FALSE) -> 0 | L60: 0 | N60: Ryan McMahon | O60: =VLOOKUP($N60,Players!$N$3:$O$1273,2,FALSE) -> 0 | P60: 0 | V60: Brandon Nimmo | W60: =VLOOKUP($V60,Players!$N$3:$O$1273,2,FALSE) -> 0 | X60: 0 | AE60: Brandon Woodruff | AF60: =VLOOKUP($AE60,Players!$AV$3:$AW$1447,2,FALSE) -> 0 | AH60: 0 | AJ60: Ty Buttrey | AK60: =VLOOKUP($AJ60,Players!$AV$3:$AW$1447,2,FALSE) -> 0 | AL60: 0 | AN60: OF | AO60: Monte Harrison | AP60: =IF(ISERROR(VLOOKUP($AO60,Players!$N$3:$O$1456,2,FALSE)),(VLOOKUP($AO60,Players!$AV$3:$AW$1447,2,FALSE)),(VLOOKUP($AO60,Players!$N$3:$O$1456,2,FALSE))) -> 0 | AQ60: 0 | AS60: 3B | AT60: Ryan Mountcastle | AU60: =VLOOKUP($AT60,Players!$N$3:$O$1456,2,FALSE) -> 0 | AV60: 0 | BC60: 3B | BD60: Nolan Gorman | BE60: =VLOOKUP($BD60,Players!$N$3:$O$1456,2,FALSE) -> 0 | BF60: 0
A61: 60 | F61: Mark Canha | G61: =VLOOKUP($F61,Players!$N$3:$O$1273,2,FALSE) -> 0 | H61: 0 | J61: Ryan McMahon | K61: =VLOOKUP($J61,Players!$N$3:$O$1273,2,FALSE) -> 0 | L61: =IF(K61>0,1,0) -> 0 | N61: J.P. Crawford | O61: =VLOOKUP($N61,Players!$N$3:$O$1273,2,FALSE) -> 0 | P61: 0 | V61: Michael Brantley | W61: =VLOOKUP($V61,Players!$N$3:$O$1273,2,FALSE) -> 0 | X61: 0 | AE61: Marco Gonzales | AF61: =VLOOKUP($AE61,Players!$AV$3:$AW$1447,2,FALSE) -> 0 | AH61: 0 | AJ61: Ryan Tepera | AK61: =VLOOKUP($AJ61,Players!$AV$3:$AW$1447,2,FALSE) -> 0 | AL61: 0 | AN61: OF | AO61: Drew Waters | AP61: =IF(ISERROR(VLOOKUP($AO61,Players!$N$3:$O$1456,2,FALSE)),(VLOOKUP($AO61,Players!$AV$3:$AW$1447,2,FALSE)),(VLOOKUP($AO61,Players!$N$3:$O$1456,2,FALSE))) -> 0 | AQ61: 0 | AS61: SS | AT61: Kevin Maitan | AU61: =VLOOKUP($AT61,Players!$N$3:$O$1456,2,FALSE) -> 0 | AV61: 0 | BC61: 2B | BD61: Vidal Brujan | BE61: =VLOOKUP($BD61,Players!$N$3:$O$1456,2,FALSE) -> 0 | BF61: 0
A62: 61 | F62: Austin Slater | G62: =VLOOKUP($F62,Players!$N$3:$O$1273,2,FALSE) -> 0 | H62: 0 | J62: Steve Wilkerson | K62: =VLOOKUP($J62,Players!$N$3:$O$1273,2,FALSE) -> 0 | L62: 0 | N62: Colin Moran | O62: =VLOOKUP($N62,Players!$N$3:$O$1273,2,FALSE) -> 0 | P62: 0 | V62: Adam Jones | W62: =VLOOKUP($V62,Players!$N$3:$O$1273,2,FALSE) -> 0 | X62: 0 | AE62: Steven Matz | AF62: =VLOOKUP($AE62,Players!$AV$3:$AW$1447,2,FALSE) -> 0 | AH62: 0 | AJ62: Adam Ottavino | AK62: =VLOOKUP($AJ62,Players!$AV$3:$AW$1447,2,FALSE) -> 0 | AL62: 0 | AN62: SS | AO62: Jorge Mateo | AP62: =IF(ISERROR(VLOOKUP($AO62,Players!$N$3:$O$1456,2,FALSE)),(VLOOKUP($AO62,Players!$AV$3:$AW$1447,2,FALSE)),(VLOOKUP($AO62,Players!$N$3:$O$1456,2,FALSE))) -> 0 | AQ62: 0 | AS62: 3B | AT62: Bobby Dalbec | AU62: =VLOOKUP($AT62,Players!$N$3:$O$1456,2,FALSE) -> 0 | AV62: 0 | BC62: OF | BD62: Jarred Kelenic | BE62: =VLOOKUP($BD62,Players!$N$3:$O$1456,2,FALSE) -> 0 | BF62: 0
A63: 62 | F63: Yandy Diaz | G63: =VLOOKUP($F63,Players!$N$3:$O$1273,2,FALSE) -> 0 | H63: 0 | J63: Chad Pinder | K63: =VLOOKUP($J63,Players!$N$3:$O$1273,2,FALSE) -> 0 | L63: 0 | N63: Maikel Franco | O63: =VLOOKUP($N63,Players!$N$3:$O$1273,2,FALSE) -> 0 | P63: 0 | V63: Austin Meadows | W63: =VLOOKUP($V63,Players!$N$3:$O$1273,2,FALSE) -> 0 | X63: 0 | AE63: Alex Reyes | AF63: =VLOOKUP($AE63,Players!$AV$3:$AW$1447,2,FALSE) -> 0 | AH63: 0 | AJ63: Anthony Swarzak | AK63: =VLOOKUP($AJ63,Players!$AV$3:$AW$1447,2,FALSE) -> 0 | AL63: 0 | AN63: SS | AO63: Nick Gordon | AP63: =IF(ISERROR(VLOOKUP($AO63,Players!$N$3:$O$1456,2,FALSE)),(VLOOKUP($AO63,Players!$AV$3:$AW$1447,2,FALSE)),(VLOOKUP($AO63,Players!$N$3:$O$1456,2,FALSE))) -> 0 | AQ63: 0 | AS63: OF | AT63: Bubba Thompson | AU63: =VLOOKUP($AT63,Players!$N$3:$O$1456,2,FALSE) -> 0 | AV63: 0 | BC63: 3B | BD63: Alec Bohm | BE63: =VLOOKUP($BD63,Players!$N$3:$O$1456,2,FALSE) -> 0 | BF63: 0
A64: 63 | F64: Hunter Dozier | G64: =VLOOKUP($F64,Players!$N$3:$O$1273,2,FALSE) -> 0 | H64: 0 | J64: Dustin Pedroia | K64: =VLOOKUP($J64,Players!$N$3:$O$1273,2,FALSE) -> 0 | L64: 0 | N64: Patrick Wisdom | O64: =VLOOKUP($N64,Players!$N$3:$O$1273,2,FALSE) -> 0 | P64: 0 | V64: Jake Bauers | W64: =VLOOKUP($V64,Players!$N$3:$O$1273,2,FALSE) -> 0 | X64: 0 | AE64: Zach Eflin | AF64: =VLOOKUP($AE64,Players!$AV$3:$AW$1447,2,FALSE) -> 0 | AH64: 0 | AJ64: Matt Strahm | AK64: =VLOOKUP($AJ64,Players!$AV$3:$AW$1447,2,FALSE) -> 0 | AL64: 0 | AN64: OF | AO64: Christin Stewart | AP64: =IF(ISERROR(VLOOKUP($AO64,Players!$N$3:$O$1456,2,FALSE)),(VLOOKUP($AO64,Players!$AV$3:$AW$1447,2,FALSE)),(VLOOKUP($AO64,Players!$N$3:$O$1456,2,FALSE))) -> 0 | AQ64: 0 | AS64: 1B | AT64: Bobby Bradley | AU64: =VLOOKUP($AT64,Players!$N$3:$O$1456,2,FALSE) -> 0 | AV64: 0 | BC64: 1B | BD64: Seth Beer | BE64: =VLOOKUP($BD64,Players!$N$3:$O$1456,2,FALSE) -> 0 | BF64: 0
A65: 64 | F65: Ryan McMahon | G65: =VLOOKUP($F65,Players!$N$3:$O$1273,2,FALSE) -> 0 | H65: 0 | J65: Jedd Gyorko | K65: =VLOOKUP($J65,Players!$N$3:$O$1273,2,FALSE) -> 0 | L65: 0 | N65: Jedd Gyorko | O65: =VLOOKUP($N65,Players!$N$3:$O$1273,2,FALSE) -> 0 | P65: 0 | V65: Jesse Winker | W65: =VLOOKUP($V65,Players!$N$3:$O$1273,2,FALSE) -> 0 | X65: 0 | AE65: Joe Musgrove | AF65: =VLOOKUP($AE65,Players!$AV$3:$AW$1447,2,FALSE) -> 0 | AH65: 0 | AJ65: Lou Trivino | AK65: =VLOOKUP($AJ65,Players!$AV$3:$AW$1447,2,FALSE) -> 0 | AL65: 0 | AN65: 1B | AO65: Nathaniel Lowe | AP65: =IF(ISERROR(VLOOKUP($AO65,Players!$N$3:$O$1456,2,FALSE)),(VLOOKUP($AO65,Players!$AV$3:$AW$1447,2,FALSE)),(VLOOKUP($AO65,Players!$N$3:$O$1456,2,FALSE))) -> 0 | AQ65: 0 | AS65: 2B/OF | AT65: Jahmai Jones | AU65: =VLOOKUP($AT65,Players!$N$3:$O$1456,2,FALSE) -> 0 | AV65: 0 | BC65: OF | BD65: Travis Swaggerty | BE65: =VLOOKUP($BD65,Players!$N$3:$O$1456,2,FALSE) -> 0 | BF65: 0
A66: 65 | F66: Nick Delmonico | G66: =VLOOKUP($F66,Players!$N$3:$O$1273,2,FALSE) -> 0 | H66: 0 | J66: Eduardo Nunez | K66: =VLOOKUP($J66,Players!$N$3:$O$1273,2,FALSE) -> 0 | L66: 0 | N66: Eduardo Nunez | O66: =VLOOKUP($N66,Players!$N$3:$O$1273,2,FALSE) -> 0 | P66: 0 | V66: Kevin Pillar | W66: =VLOOKUP($V66,Players!$N$3:$O$1273,2,FALSE) -> 0 | X66: 0 | AE66: Jake Arrieta | AF66: =VLOOKUP($AE66,Players!$AV$3:$AW$1447,2,FALSE) -> 0 | AH66: 0 | AJ66: Ryne Stanek | AK66: =VLOOKUP($AJ66,Players!$AV$3:$AW$1447,2,FALSE) -> 0 | AL66: =IF(AK66>0,1,0) -> 0 | AN66: 3B | AO66: Nolan Jones | AP66: =IF(ISERROR(VLOOKUP($AO66,Players!$N$3:$O$1456,2,FALSE)),(VLOOKUP($AO66,Players!$AV$3:$AW$1447,2,FALSE)),(VLOOKUP($AO66,Players!$N$3:$O$1456,2,FALSE))) -> 0 | AQ66: 0 | AS66: 2B | AT66: Cavan Biggio | AU66: =VLOOKUP($AT66,Players!$N$3:$O$1456,2,FALSE) -> 0 | AV66: 0 | BC66: OF | BD66: Drew Waters | BE66: =VLOOKUP($BD66,Players!$N$3:$O$1456,2,FALSE) -> 0 | BF66: 0
A67: 66 | F67: Eric Thames | G67: =VLOOKUP($F67,Players!$N$3:$O$1273,2,FALSE) -> 0 | H67: =IF(G67>0,1,0) -> 0 | J67: Yairo Munoz | K67: =VLOOKUP($J67,Players!$N$3:$O$1273,2,FALSE) -> 0 | L67: 0 | N67: Yairo Munoz | O67: =VLOOKUP($N67,Players!$N$3:$O$1273,2,FALSE) -> 0 | P67: 0 | V67: Kyle Schwarber | W67: =VLOOKUP($V67,Players!$N$3:$O$1273,2,FALSE) -> 0 | X67: =IF(W67>0,1,0) -> 0 | AE67: Dallas Keuchel | AF67: =VLOOKUP($AE67,Players!$AV$3:$AW$1447,2,FALSE) -> 0 | AH67: =IF(AF67>0,1,0) -> 0 | AJ67: Seung Hwan Oh | AK67: =VLOOKUP($AJ67,Players!$AV$3:$AW$1447,2,FALSE) -> 0 | AL67: 0 | AN67: 1B | AO67: Tyler Nevin | AP67: =IF(ISERROR(VLOOKUP($AO67,Players!$N$3:$O$1456,2,FALSE)),(VLOOKUP($AO67,Players!$AV$3:$AW$1447,2,FALSE)),(VLOOKUP($AO67,Players!$N$3:$O$1456,2,FALSE))) -> 0 | AQ67: =IF(AP67>0,1,0) -> 0 | AS67: 3B | AT67: Yu Chang | AU67: =VLOOKUP($AT67,Players!$N$3:$O$1456,2,FALSE) -> 0 | AV67: =IF(AU67>0,1,0) -> 0 | BC67: 3B | BD67: Nolan Jones | BE67: =VLOOKUP($BD67,Players!$N$3:$O$1456,2,FALSE) -> 0 | BF67: 0
A68: 67 | F68: Dominic Smith | G68: =VLOOKUP($F68,Players!$N$3:$O$1273,2,FALSE) -> 0 | H68: 0 | J68: Erik Gonzalez | K68: =VLOOKUP($J68,Players!$N$3:$O$1273,2,FALSE) -> 0 | L68: 0 | N68: Erik Gonzalez | O68: =VLOOKUP($N68,Players!$N$3:$O$1273,2,FALSE) -> 0 | P68: 0 | V68: Randal Grichuk | W68: =VLOOKUP($V68,Players!$N$3:$O$1273,2,FALSE) -> 0 | X68: 0 | AE68: Jhoulys Chacin | AF68: =VLOOKUP($AE68,Players!$AV$3:$AW$1447,2,FALSE) -> 0 | AH68: 0 | AJ68: Carl Edwards Jr. | AK68: =VLOOKUP($AJ68,Players!$AV$3:$AW$1447,2,FALSE) -> 0 | AL68: 0 | AN68: OF | AO68: Yusniel Diaz | AP68: =IF(ISERROR(VLOOKUP($AO68,Players!$N$3:$O$1456,2,FALSE)),(VLOOKUP($AO68,Players!$AV$3:$AW$1447,2,FALSE)),(VLOOKUP($AO68,Players!$N$3:$O$1456,2,FALSE))) -> 0 | AQ68: 0 | AS68: OF | AT68: Brandon Marsh | AU68: =VLOOKUP($AT68,Players!$N$3:$O$1456,2,FALSE) -> 0 | AV68: =IF(AU68>0,1,0) -> 0 | BC68: OF | BD68: Lazaro Armenteros | BE68: =VLOOKUP($BD68,Players!$N$3:$O$1456,2,FALSE) -> 0 | BF68: =IF(BE68>0,1,0) -> 0
A69: 68 | F69: Chris Davis | G69: =VLOOKUP($F69,Players!$N$3:$O$1273,2,FALSE) -> 0 | H69: 0 | V69: Niko Goodrum | W69: =VLOOKUP($V69,Players!$N$3:$O$1273,2,FALSE) -> 0 | X69: 0 | AE69: Zack Godley | AF69: =VLOOKUP($AE69,Players!$AV$3:$AW$1447,2,FALSE) -> 0 | AH69: 0 | AJ69: Mike Montgomery | AK69: =VLOOKUP($AJ69,Players!$AV$3:$AW$1447,2,FALSE) -> 0 | AL69: 0 | AN69: RHP | AO69: Mitch Keller | AP69: =IF(ISERROR(VLOOKUP($AO69,Players!$N$3:$O$1456,2,FALSE)),(VLOOKUP($AO69,Players!$AV$3:$AW$1447,2,FALSE)),(VLOOKUP($AO69,Players!$N$3:$O$1456,2,FALSE))) -> 0 | AQ69: 0 | AS69: 2B | AT69: Xavier Edwards | AU69: =VLOOKUP($AT69,Players!$N$3:$O$1456,2,FALSE) -> 0 | AV69: 0 | BC69: SS | BD69: Kevin Maitan | BE69: =VLOOKUP($BD69,Players!$N$3:$O$1456,2,FALSE) -> 0 | BF69: 0
A70: 69 | V70: Joc Pederson | W70: =VLOOKUP($V70,Players!$N$3:$O$1273,2,FALSE) -> 0 | X70: 0 | AE70: Trevor Williams | AF70: =VLOOKUP($AE70,Players!$AV$3:$AW$1447,2,FALSE) -> 0 | AH70: 0 | AJ70: Darren O’Day | AK70: =VLOOKUP($AJ70,Players!$AV$3:$AW$1447,2,FALSE) -> 0 | AL70: 0 | AN70: RHP | AO70: Ian Anderson | AP70: =IF(ISERROR(VLOOKUP($AO70,Players!$N$3:$O$1456,2,FALSE)),(VLOOKUP($AO70,Players!$AV$3:$AW$1447,2,FALSE)),(VLOOKUP($AO70,Players!$N$3:$O$1456,2,FALSE))) -> 0 | AQ70: 0 | AS70: OF | AT70: Tristen Lutz | AU70: =VLOOKUP($AT70,Players!$N$3:$O$1456,2,FALSE) -> 0 | AV70: 0 | BC70: OF | BD70: Bubba Thompson | BE70: =VLOOKUP($BD70,Players!$N$3:$O$1456,2,FALSE) -> 0 | BF70: 0
A71: 70 | V71: Gregory Polanco | W71: =VLOOKUP($V71,Players!$N$3:$O$1273,2,FALSE) -> 0 | X71: 0 | AE71: Reynaldo Lopez | AF71: =VLOOKUP($AE71,Players!$AV$3:$AW$1447,2,FALSE) -> 0 | AH71: 0 | AJ71: Nate Jones | AK71: =VLOOKUP($AJ71,Players!$AV$3:$AW$1447,2,FALSE) -> 0 | AL71: 0 | AN71: RHP | AO71: Hunter Greene | AP71: =IF(ISERROR(VLOOKUP($AO71,Players!$N$3:$O$1456,2,FALSE)),(VLOOKUP($AO71,Players!$AV$3:$AW$1447,2,FALSE)),(VLOOKUP($AO71,Players!$N$3:$O$1456,2,FALSE))) -> 0 | AQ71: 0 | BC71: OF | BD71: Tristen Lutz | BE71: =VLOOKUP($BD71,Players!$N$3:$O$1456,2,FALSE) -> 0 | BF71: 0
A72: 71 | V72: Brandon Belt | W72: =VLOOKUP($V72,Players!$N$3:$O$1273,2,FALSE) -> 0 | X72: 0 | AE72: Carlos Rodon | AF72: =VLOOKUP($AE72,Players!$AV$3:$AW$1447,2,FALSE) -> 0 | AH72: 0 | AJ72: Richard Rodriguez | AK72: =VLOOKUP($AJ72,Players!$AV$3:$AW$1447,2,FALSE) -> 0 | AL72: 0 | AN72: RHP | AO72: Jon Duplantier | AP72: =IF(ISERROR(VLOOKUP($AO72,Players!$N$3:$O$1456,2,FALSE)),(VLOOKUP($AO72,Players!$AV$3:$AW$1447,2,FALSE)),(VLOOKUP($AO72,Players!$N$3:$O$1456,2,FALSE))) -> 0 | AQ72: 0 | BD72: 2022
A73: 72 | V73: Marwin Gonzalez | W73: =VLOOKUP($V73,Players!$N$3:$O$1273,2,FALSE) -> 0 | X73: 0 | AE73: Matt Shoemaker | AF73: =VLOOKUP($AE73,Players!$AV$3:$AW$1447,2,FALSE) -> 0 | AH73: 0 | AJ73: Pedro Baez | AK73: =VLOOKUP($AJ73,Players!$AV$3:$AW$1447,2,FALSE) -> 0 | AL73: 0 | AN73: RHP | AO73: Josh James | AP73: =IF(ISERROR(VLOOKUP($AO73,Players!$N$3:$O$1456,2,FALSE)),(VLOOKUP($AO73,Players!$AV$3:$AW$1447,2,FALSE)),(VLOOKUP($AO73,Players!$N$3:$O$1456,2,FALSE))) -> 0 | AQ73: 0 | BC73: SS | BD73: Wander Franco | BE73: =VLOOKUP($BD73,Players!$N$3:$O$1456,2,FALSE) -> 0 | BF73: 0
A74: 73 | V74: Jason Kipnis | W74: =VLOOKUP($V74,Players!$N$3:$O$1273,2,FALSE) -> 0 | X74: 0 | AE74: Collin McHugh | AF74: =VLOOKUP($AE74,Players!$AV$3:$AW$1447,2,FALSE) -> 0 | AH74: 0 | AJ74: Hector Rondon | AK74: =VLOOKUP($AJ74,Players!$AV$3:$AW$1447,2,FALSE) -> 0 | AL74: 0 | AN74: RHP | AO74: Matt Manning | AP74: =IF(ISERROR(VLOOKUP($AO74,Players!$N$3:$O$1456,2,FALSE)),(VLOOKUP($AO74,Players!$AV$3:$AW$1447,2,FALSE)),(VLOOKUP($AO74,Players!$N$3:$O$1456,2,FALSE))) -> 0 | AQ74: 0 | BC74: 2B | BD74: Xavier Edwards | BE74: =VLOOKUP($BD74,Players!$N$3:$O$1456,2,FALSE) -> 0 | BF74: 0
A75: 74 | V75: Shin-Soo Choo | W75: =VLOOKUP($V75,Players!$N$3:$O$1273,2,FALSE) -> 0 | X75: 0 | AE75: Michael Wacha | AF75: =VLOOKUP($AE75,Players!$AV$3:$AW$1447,2,FALSE) -> 0 | AH75: 0 | AJ75: Adam Cimber | AK75: =VLOOKUP($AJ75,Players!$AV$3:$AW$1447,2,FALSE) -> 0 | AL75: 0 | AN75: RHP | AO75: Luis Patino | AP75: =IF(ISERROR(VLOOKUP($AO75,Players!$N$3:$O$1456,2,FALSE)),(VLOOKUP($AO75,Players!$AV$3:$AW$1447,2,FALSE)),(VLOOKUP($AO75,Players!$N$3:$O$1456,2,FALSE))) -> 0 | AQ75: 0
A76: 75 | V76: Ben Zobrist | W76: =VLOOKUP($V76,Players!$N$3:$O$1273,2,FALSE) -> 0 | X76: 0 | AE76: Kyle Gibson | AF76: =VLOOKUP($AE76,Players!$AV$3:$AW$1447,2,FALSE) -> 0 | AH76: 0 | AJ76: Tony Watson | AK76: =VLOOKUP($AJ76,Players!$AV$3:$AW$1447,2,FALSE) -> 0 | AL76: 0 | AN76: LHP | AO76: Luiz Gohara | AP76: =IF(ISERROR(VLOOKUP($AO76,Players!$N$3:$O$1456,2,FALSE)),(VLOOKUP($AO76,Players!$AV$3:$AW$1447,2,FALSE)),(VLOOKUP($AO76,Players!$N$3:$O$1456,2,FALSE))) -> 0 | AQ76: 0
A77: 76 | V77: Jay Bruce | W77: =VLOOKUP($V77,Players!$N$3:$O$1273,2,FALSE) -> 0 | X77: 0 | AE77: Trevor Cahill | AF77: =VLOOKUP($AE77,Players!$AV$3:$AW$1447,2,FALSE) -> 0 | AH77: 0 | AJ77: Tommy Hunter | AK77: =VLOOKUP($AJ77,Players!$AV$3:$AW$1447,2,FALSE) -> 0 | AL77: 0 | AN77: RHP | AO77: Jonathan Loaisiga | AP77: =IF(ISERROR(VLOOKUP($AO77,Players!$N$3:$O$1456,2,FALSE)),(VLOOKUP($AO77,Players!$AV$3:$AW$1447,2,FALSE)),(VLOOKUP($AO77,Players!$N$3:$O$1456,2,FALSE))) -> 0 | AQ77: 0
A78: 77 | V78: Christin Stewart | W78: =VLOOKUP($V78,Players!$N$3:$O$1273,2,FALSE) -> 0 | X78: 0 | AE78: Tyson Ross | AF78: =VLOOKUP($AE78,Players!$AV$3:$AW$1447,2,FALSE) -> 0 | AH78: 0 | AJ78: Wily Peralta | AK78: =VLOOKUP($AJ78,Players!$AV$3:$AW$1447,2,FALSE) -> 0 | AL78: =IF(AK78>0,1,0) -> 0 | AN78: OF | AO78: Julio Pablo Martinez | AP78: =IF(ISERROR(VLOOKUP($AO78,Players!$N$3:$O$1456,2,FALSE)),(VLOOKUP($AO78,Players!$AV$3:$AW$1447,2,FALSE)),(VLOOKUP($AO78,Players!$N$3:$O$1456,2,FALSE))) -> 0 | AQ78: 0
A79: 78 | V79: Manuel Margot | W79: =VLOOKUP($V79,Players!$N$3:$O$1273,2,FALSE) -> 0 | X79: 0 | AE79: Ross Stripling | AF79: =VLOOKUP($AE79,Players!$AV$3:$AW$1447,2,FALSE) -> 0 | AH79: 0 | AJ79: Adam Conley | AK79: =VLOOKUP($AJ79,Players!$AV$3:$AW$1447,2,FALSE) -> 0 | AL79: 0 | AN79: 1B | AO79: Evan White | AP79: =IF(ISERROR(VLOOKUP($AO79,Players!$N$3:$O$1456,2,FALSE)),(VLOOKUP($AO79,Players!$AV$3:$AW$1447,2,FALSE)),(VLOOKUP($AO79,Players!$N$3:$O$1456,2,FALSE))) -> 0 | AQ79: 0
A80: 79 | V80: Franmil Reyes | W80: =VLOOKUP($V80,Players!$N$3:$O$1273,2,FALSE) -> 0 | X80: 0 | AE80: Jimmy Nelson | AF80: =VLOOKUP($AE80,Players!$AV$3:$AW$1447,2,FALSE) -> 0 | AH80: 0 | AJ80: Manny Banuelos | AK80: =VLOOKUP($AJ80,Players!$AV$3:$AW$1447,2,FALSE) -> 0 | AL80: 0 | AN80: OF | AO80: Lazaro Armenteros | AP80: =IF(ISERROR(VLOOKUP($AO80,Players!$N$3:$O$1456,2,FALSE)),(VLOOKUP($AO80,Players!$AV$3:$AW$1447,2,FALSE)),(VLOOKUP($AO80,Players!$N$3:$O$1456,2,FALSE))) -> 0 | AQ80: 0
A81: 80 | V81: Lewis Brinson | W81: =VLOOKUP($V81,Players!$N$3:$O$1273,2,FALSE) -> 0 | X81: 0 | AE81: Danny Salazar | AF81: =VLOOKUP($AE81,Players!$AV$3:$AW$1447,2,FALSE) -> 0 | AH81: 0 | AJ81: Cam Bedrosian | AK81: =VLOOKUP($AJ81,Players!$AV$3:$AW$1447,2,FALSE) -> 0 | AL81: 0 | AN81: 2B | AO81: Kevin Smith | AP81: =IF(ISERROR(VLOOKUP($AO81,Players!$N$3:$O$1456,2,FALSE)),(VLOOKUP($AO81,Players!$AV$3:$AW$1447,2,FALSE)),(VLOOKUP($AO81,Players!$N$3:$O$1456,2,FALSE))) -> 0 | AQ81: 0
A82: 81 | V82: Jose Martinez | W82: =VLOOKUP($V82,Players!$N$3:$O$1273,2,FALSE) -> 0 | X82: 0 | AE82: Touki Toussaint | AF82: =VLOOKUP($AE82,Players!$AV$3:$AW$1447,2,FALSE) -> 0 | AH82: 0 | AJ82: Jesse Chavez | AK82: =VLOOKUP($AJ82,Players!$AV$3:$AW$1447,2,FALSE) -> 0 | AL82: 0 | AN82: SS | AO82: Cole Tucker | AP82: =IF(ISERROR(VLOOKUP($AO82,Players!$N$3:$O$1456,2,FALSE)),(VLOOKUP($AO82,Players!$AV$3:$AW$1447,2,FALSE)),(VLOOKUP($AO82,Players!$N$3:$O$1456,2,FALSE))) -> 0 | AQ82: 0
A83: 82 | V83: Mac Williamson | W83: =VLOOKUP($V83,Players!$N$3:$O$1273,2,FALSE) -> 0 | X83: 0 | AE83: Brent Honeywell | AF83: =VLOOKUP($AE83,Players!$AV$3:$AW$1447,2,FALSE) -> 0 | AH83: 0 | AJ83: Andrew Chafin | AK83: =VLOOKUP($AJ83,Players!$AV$3:$AW$1447,2,FALSE) -> 0 | AL83: 0 | AN83: 3B | AO83: Michael Chavis | AP83: =IF(ISERROR(VLOOKUP($AO83,Players!$N$3:$O$1456,2,FALSE)),(VLOOKUP($AO83,Players!$AV$3:$AW$1447,2,FALSE)),(VLOOKUP($AO83,Players!$N$3:$O$1456,2,FALSE))) -> 0 | AQ83: 0
A84: 83 | V84: Teoscar Hernandez | W84: =VLOOKUP($V84,Players!$N$3:$O$1273,2,FALSE) -> 0 | X84: 0 | AE84: Dereck Rodriguez | AF84: =VLOOKUP($AE84,Players!$AV$3:$AW$1447,2,FALSE) -> 0 | AH84: 0 | AJ84: Jared Hughes | AK84: =VLOOKUP($AJ84,Players!$AV$3:$AW$1447,2,FALSE) -> 0 | AL84: 0 | AN84: C | AO84: Sean Murphy | AP84: =IF(ISERROR(VLOOKUP($AO84,Players!$N$3:$O$1456,2,FALSE)),(VLOOKUP($AO84,Players!$AV$3:$AW$1447,2,FALSE)),(VLOOKUP($AO84,Players!$N$3:$O$1456,2,FALSE))) -> 0 | AQ84: 0
A85: 84 | V85: Billy McKinney | W85: =VLOOKUP($V85,Players!$N$3:$O$1273,2,FALSE) -> 0 | X85: 0 | AE85: Luke Weaver | AF85: =VLOOKUP($AE85,Players!$AV$3:$AW$1447,2,FALSE) -> 0 | AH85: 0 | AJ85: Adalberto Mejia | AK85: =VLOOKUP($AJ85,Players!$AV$3:$AW$1447,2,FALSE) -> 0 | AL85: 0 | AN85: C | AO85: Keibert Ruiz | AP85: =IF(ISERROR(VLOOKUP($AO85,Players!$N$3:$O$1456,2,FALSE)),(VLOOKUP($AO85,Players!$AV$3:$AW$1447,2,FALSE)),(VLOOKUP($AO85,Players!$N$3:$O$1456,2,FALSE))) -> 0 | AQ85: 0
A86: 85 | V86: Franchy Cordero | W86: =VLOOKUP($V86,Players!$N$3:$O$1273,2,FALSE) -> 0 | X86: 0 | AE86: Michael Pineda | AF86: =VLOOKUP($AE86,Players!$AV$3:$AW$1447,2,FALSE) -> 0 | AH86: 0 | AJ86: Tayron Guerrero | AK86: =VLOOKUP($AJ86,Players!$AV$3:$AW$1447,2,FALSE) -> 0 | AL86: 0 | AN86: C | AO86: Danny Jansen | AP86: =IF(ISERROR(VLOOKUP($AO86,Players!$N$3:$O$1456,2,FALSE)),(VLOOKUP($AO86,Players!$AV$3:$AW$1447,2,FALSE)),(VLOOKUP($AO86,Players!$N$3:$O$1456,2,FALSE))) -> 0 | AQ86: 0
A87: 86 | V87: Michael A. Taylor | W87: =VLOOKUP($V87,Players!$N$3:$O$1273,2,FALSE) -> 0 | X87: 0 | AE87: Justus Sheffield | AF87: =VLOOKUP($AE87,Players!$AV$3:$AW$1447,2,FALSE) -> 0 | AH87: 0 | AJ87: Juan Nicasio | AK87: =VLOOKUP($AJ87,Players!$AV$3:$AW$1447,2,FALSE) -> 0 | AL87: 0 | AN87: 3B | AO87: Ryan Mountcastle | AP87: =IF(ISERROR(VLOOKUP($AO87,Players!$N$3:$O$1456,2,FALSE)),(VLOOKUP($AO87,Players!$AV$3:$AW$1447,2,FALSE)),(VLOOKUP($AO87,Players!$N$3:$O$1456,2,FALSE))) -> 0 | AQ87: 0
A88: 87 | V88: Tyler O’Neill | W88: =VLOOKUP($V88,Players!$N$3:$O$1273,2,FALSE) -> 0 | X88: 0 | AE88: Freddy Peralta | AF88: =VLOOKUP($AE88,Players!$AV$3:$AW$1447,2,FALSE) -> 0 | AH88: 0 | AJ88: Kyle Barraclough | AK88: =VLOOKUP($AJ88,Players!$AV$3:$AW$1447,2,FALSE) -> 0 | AL88: 0 | AN88: SS | AO88: Kevin Maitan | AP88: =IF(ISERROR(VLOOKUP($AO88,Players!$N$3:$O$1456,2,FALSE)),(VLOOKUP($AO88,Players!$AV$3:$AW$1447,2,FALSE)),(VLOOKUP($AO88,Players!$N$3:$O$1456,2,FALSE))) -> 0 | AQ88: 0
A89: 88 | V89: Brandon Lowe | W89: =VLOOKUP($V89,Players!$N$3:$O$1273,2,FALSE) -> 0 | X89: 0 | AE89: Josh James | AF89: =VLOOKUP($AE89,Players!$AV$3:$AW$1447,2,FALSE) -> 0 | AH89: 0 | AJ89: Kevin McCarthy | AK89: =VLOOKUP($AJ89,Players!$AV$3:$AW$1447,2,FALSE) -> 0 | AL89: 0 | AN89: 3B | AO89: Bobby Dalbec | AP89: =IF(ISERROR(VLOOKUP($AO89,Players!$N$3:$O$1456,2,FALSE)),(VLOOKUP($AO89,Players!$AV$3:$AW$1447,2,FALSE)),(VLOOKUP($AO89,Players!$N$3:$O$1456,2,FALSE))) -> 0 | AQ89: 0
A90: 89 | V90: Jake Cave | W90: =VLOOKUP($V90,Players!$N$3:$O$1273,2,FALSE) -> 0 | X90: 0 | AE90: Forrest Whitley | AF90: =VLOOKUP($AE90,Players!$AV$3:$AW$1447,2,FALSE) -> 0 | AH90: 0 | AN90: OF | AO90: Bubba Thompson | AP90: =IF(ISERROR(VLOOKUP($AO90,Players!$N$3:$O$1456,2,FALSE)),(VLOOKUP($AO90,Players!$AV$3:$AW$1447,2,FALSE)),(VLOOKUP($AO90,Players!$N$3:$O$1456,2,FALSE))) -> 0 | AQ90: 0
A91: 90 | V91: Willie Calhoun | W91: =VLOOKUP($V91,Players!$N$3:$O$1273,2,FALSE) -> 0 | X91: 0 | AE91: Julio Urias | AF91: =VLOOKUP($AE91,Players!$AV$3:$AW$1447,2,FALSE) -> 0 | AH91: 0 | AN91: 1B | AO91: Bobby Bradley | AP91: =IF(ISERROR(VLOOKUP($AO91,Players!$N$3:$O$1456,2,FALSE)),(VLOOKUP($AO91,Players!$AV$3:$AW$1447,2,FALSE)),(VLOOKUP($AO91,Players!$N$3:$O$1456,2,FALSE))) -> 0 | AQ91: 0
A92: 91 | V92: Nick Markakis | W92: =VLOOKUP($V92,Players!$N$3:$O$1273,2,FALSE) -> 0 | X92: 0 | AE92: Mike Fiers | AF92: =VLOOKUP($AE92,Players!$AV$3:$AW$1447,2,FALSE) -> 0 | AH92: 0 | AN92: 2B/OF | AO92: Jahmai Jones | AP92: =IF(ISERROR(VLOOKUP($AO92,Players!$N$3:$O$1456,2,FALSE)),(VLOOKUP($AO92,Players!$AV$3:$AW$1447,2,FALSE)),(VLOOKUP($AO92,Players!$N$3:$O$1456,2,FALSE))) -> 0 | AQ92: 0
A93: 92 | V93: Avisail Garcia | W93: =VLOOKUP($V93,Players!$N$3:$O$1273,2,FALSE) -> 0 | X93: 0 | AE93: Julio Teheran | AF93: =VLOOKUP($AE93,Players!$AV$3:$AW$1447,2,FALSE) -> 0 | AH93: 0 | AN93: 2B | AO93: Cavan Biggio | AP93: =IF(ISERROR(VLOOKUP($AO93,Players!$N$3:$O$1456,2,FALSE)),(VLOOKUP($AO93,Players!$AV$3:$AW$1447,2,FALSE)),(VLOOKUP($AO93,Players!$N$3:$O$1456,2,FALSE))) -> 0 | AQ93: 0
A94: 93 | V94: Adam Eaton | W94: =VLOOKUP($V94,Players!$N$3:$O$1273,2,FALSE) -> 0 | X94: 0 | AE94: Michael Fulmer | AF94: =VLOOKUP($AE94,Players!$AV$3:$AW$1447,2,FALSE) -> 0 | AH94: 0 | AN94: 3B | AO94: Yu Chang | AP94: =IF(ISERROR(VLOOKUP($AO94,Players!$N$3:$O$1456,2,FALSE)),(VLOOKUP($AO94,Players!$AV$3:$AW$1447,2,FALSE)),(VLOOKUP($AO94,Players!$N$3:$O$1456,2,FALSE))) -> 0 | AQ94: 0
A95: 94 | V95: Adam Frazier | W95: =VLOOKUP($V95,Players!$N$3:$O$1273,2,FALSE) -> 0 | X95: 0 | AE95: CC Sabathia | AF95: =VLOOKUP($AE95,Players!$AV$3:$AW$1447,2,FALSE) -> 0 | AH95: 0 | AN95: OF | AO95: Brandon Marsh | AP95: =IF(ISERROR(VLOOKUP($AO95,Players!$N$3:$O$1456,2,FALSE)),(VLOOKUP($AO95,Players!$AV$3:$AW$1447,2,FALSE)),(VLOOKUP($AO95,Players!$N$3:$O$1456,2,FALSE))) -> 0 | AQ95: 0
A96: 95 | V96: Mark Trumbo | W96: =VLOOKUP($V96,Players!$N$3:$O$1273,2,FALSE) -> 0 | X96: 0 | AE96: Nick Kingham | AF96: =VLOOKUP($AE96,Players!$AV$3:$AW$1447,2,FALSE) -> 0 | AH96: 0 | AN96: 2B | AO96: Xavier Edwards | AP96: =IF(ISERROR(VLOOKUP($AO96,Players!$N$3:$O$1456,2,FALSE)),(VLOOKUP($AO96,Players!$AV$3:$AW$1447,2,FALSE)),(VLOOKUP($AO96,Players!$N$3:$O$1456,2,FALSE))) -> 0 | AQ96: 0
A97: 96 | V97: Kevin Kiermaier | W97: =VLOOKUP($V97,Players!$N$3:$O$1273,2,FALSE) -> 0 | X97: 0 | AE97: Merrill Kelly | AF97: =VLOOKUP($AE97,Players!$AV$3:$AW$1447,2,FALSE) -> 0 | AH97: 0 | AN97: OF | AO97: Tristen Lutz | AP97: =IF(ISERROR(VLOOKUP($AO97,Players!$N$3:$O$1456,2,FALSE)),(VLOOKUP($AO97,Players!$AV$3:$AW$1447,2,FALSE)),(VLOOKUP($AO97,Players!$N$3:$O$1456,2,FALSE))) -> 0 | AQ97: 0
A98: 97 | V98: Adam Engel | W98: =VLOOKUP($V98,Players!$N$3:$O$1273,2,FALSE) -> 0 | X98: 0 | AE98: Jake Junis | AF98: =VLOOKUP($AE98,Players!$AV$3:$AW$1447,2,FALSE) ->  | AN98: RHP | AO98: Michel Baez | AP98: =IF(ISERROR(VLOOKUP($AO98,Players!$N$3:$O$1456,2,FALSE)),(VLOOKUP($AO98,Players!$AV$3:$AW$1447,2,FALSE)),(VLOOKUP($AO98,Players!$N$3:$O$1456,2,FALSE))) -> 0 | AQ98: 0
A99: 98 | V99: Max Kepler | W99: =VLOOKUP($V99,Players!$N$3:$O$1273,2,FALSE) -> 0 | X99: 0 | AE99: Sonny Gray | AF99: =VLOOKUP($AE99,Players!$AV$3:$AW$1447,2,FALSE) -> 0 | AH99: 0 | AN99: LHP | AO99: Matthew Liberatore | AP99: =IF(ISERROR(VLOOKUP($AO99,Players!$N$3:$O$1456,2,FALSE)),(VLOOKUP($AO99,Players!$AV$3:$AW$1447,2,FALSE)),(VLOOKUP($AO99,Players!$N$3:$O$1456,2,FALSE))) -> 0 | AQ99: 0
A100: 99 | V100: Kole Calhoun | W100: =VLOOKUP($V100,Players!$N$3:$O$1273,2,FALSE) -> 0 | X100: 0 | AE100: Vince Velasquez | AF100: =VLOOKUP($AE100,Players!$AV$3:$AW$1447,2,FALSE) -> 0 | AH100: 0 | AN100: RHP | AO100: Brady Singer | AP100: =IF(ISERROR(VLOOKUP($AO100,Players!$N$3:$O$1456,2,FALSE)),(VLOOKUP($AO100,Players!$AV$3:$AW$1447,2,FALSE)),(VLOOKUP($AO100,Players!$N$3:$O$1456,2,FALSE))) -> 0 | AQ100: 0
A101: 100 | V101: Steven Souza Jr. | W101: =VLOOKUP($V101,Players!$N$3:$O$1273,2,FALSE) -> 0 | X101: 0 | AE101: Anibal Sanchez | AF101: =VLOOKUP($AE101,Players!$AV$3:$AW$1447,2,FALSE) -> 0 | AH101: 0 | AN101: RHP | AO101: Rogelio Armenteros | AP101: =IF(ISERROR(VLOOKUP($AO101,Players!$N$3:$O$1456,2,FALSE)),(VLOOKUP($AO101,Players!$AV$3:$AW$1447,2,FALSE)),(VLOOKUP($AO101,Players!$N$3:$O$1456,2,FALSE))) -> 
A102: 101 | V102: Brett Gardner | W102: =VLOOKUP($V102,Players!$N$3:$O$1273,2,FALSE) -> 0 | X102: 0 | AE102: Carlos Martinez | AF102: =VLOOKUP($AE102,Players!$AV$3:$AW$1447,2,FALSE) -> 0 | AH102: 0
A103: 102 | V103: Yoenis Cespedes | W103: =VLOOKUP($V103,Players!$N$3:$O$1273,2,FALSE) -> 0 | X103: 0 | AE103: Mike Soroka | AF103: =VLOOKUP($AE103,Players!$AV$3:$AW$1447,2,FALSE) -> 0 | AH103: 0
A104: 103 | V104: Brian Anderson | W104: =VLOOKUP($V104,Players!$N$3:$O$1273,2,FALSE) -> 0 | X104: 0 | AE104: Anthony DeSclafani | AF104: =VLOOKUP($AE104,Players!$AV$3:$AW$1447,2,FALSE) -> 0 | AH104: 0
A105: 104 | V105: Jorge Soler | W105: =VLOOKUP($V105,Players!$N$3:$O$1273,2,FALSE) -> 0 | X105: 0 | AE105: Joe Ross | AF105: =VLOOKUP($AE105,Players!$AV$3:$AW$1447,2,FALSE) -> 0 | AH105: 0
A106: 105 | V106: Leonys Martin | W106: =VLOOKUP($V106,Players!$N$3:$O$1273,2,FALSE) -> 0 | X106: 0 | AE106: Lance Lynn | AF106: =VLOOKUP($AE106,Players!$AV$3:$AW$1447,2,FALSE) -> 0 | AH106: 0
A107: 106 | V107: Josh Reddick | W107: =VLOOKUP($V107,Players!$N$3:$O$1273,2,FALSE) -> 0 | X107: 0 | AE107: Dan Straily | AF107: =VLOOKUP($AE107,Players!$AV$3:$AW$1447,2,FALSE) -> 0 | AH107: 0
A108: 107 | V108: Tyler Naquin | W108: =VLOOKUP($V108,Players!$N$3:$O$1273,2,FALSE) -> 0 | X108: 0 | AE108: Mike Minor | AF108: =VLOOKUP($AE108,Players!$AV$3:$AW$1447,2,FALSE) -> 0 | AH108: 0
A109: 108 | V109: Raimel Tapia | W109: =VLOOKUP($V109,Players!$N$3:$O$1273,2,FALSE) -> 0 | X109: 0 | AE109: Tanner Roark | AF109: =VLOOKUP($AE109,Players!$AV$3:$AW$1447,2,FALSE) -> 0 | AH109: 0
A110: 109 | V110: Matt Kemp | W110: =VLOOKUP($V110,Players!$N$3:$O$1273,2,FALSE) -> 0 | X110: 0 | AE110: Gio Gonzalez | AF110: =VLOOKUP($AE110,Players!$AV$3:$AW$1447,2,FALSE) -> 0 | AH110: 0
A111: 110 | V111: Scott Schebler | W111: =VLOOKUP($V111,Players!$N$3:$O$1273,2,FALSE) -> 0 | X111: 0 | AE111: Ivan Nova | AF111: =VLOOKUP($AE111,Players!$AV$3:$AW$1447,2,FALSE) -> 0 | AH111: 0
A112: 111 | V112: Adam Duvall | W112: =VLOOKUP($V112,Players!$N$3:$O$1273,2,FALSE) -> 0 | X112: 0 | AE112: Framber Valdez | AF112: =VLOOKUP($AE112,Players!$AV$3:$AW$1447,2,FALSE) -> 0 | AH112: 0
A113: 112 | V113: Blake Swihart | W113: =VLOOKUP($V113,Players!$N$3:$O$1273,2,FALSE) -> 0 | X113: 0 | AE113: Jonathan Loaisiga | AF113: =VLOOKUP($AE113,Players!$AV$3:$AW$1447,2,FALSE) -> 0 | AH113: 0
A114: 113 | V114: Matt Adams | W114: =VLOOKUP($V114,Players!$N$3:$O$1273,2,FALSE) -> 0 | X114: 0 | AE114: Domingo German | AF114: =VLOOKUP($AE114,Players!$AV$3:$AW$1447,2,FALSE) -> 0 | AH114: 0
A115: 114 | V115: Enrique Hernandez | W115: =VLOOKUP($V115,Players!$N$3:$O$1273,2,FALSE) -> 0 | X115: 0 | AE115: Nate Karns | AF115: =VLOOKUP($AE115,Players!$AV$3:$AW$1447,2,FALSE) -> 0 | AH115: 0
A116: 115 | V116: Steven Duggar | W116: =VLOOKUP($V116,Players!$N$3:$O$1273,2,FALSE) -> 0 | X116: 0 | AE116: Drew Smyly | AF116: =VLOOKUP($AE116,Players!$AV$3:$AW$1447,2,FALSE) -> 0 | AH116: 0
A117: 116 | V117: Greg Allen | W117: =VLOOKUP($V117,Players!$N$3:$O$1273,2,FALSE) -> 0 | X117: 0 | AE117: Sean Reid-Foley | AF117: =VLOOKUP($AE117,Players!$AV$3:$AW$1447,2,FALSE) -> 0 | AH117: 0
A118: 117 | V118: Delino DeShields | W118: =VLOOKUP($V118,Players!$N$3:$O$1273,2,FALSE) -> 0 | X118: 0 | AE118: Tyler Mahle | AF118: =VLOOKUP($AE118,Players!$AV$3:$AW$1447,2,FALSE) -> 0 | AH118: 0
A119: 118 | V119: Austin Dean | W119: =VLOOKUP($V119,Players!$N$3:$O$1273,2,FALSE) -> 0 | X119: 0 | AE119: Max Fried | AF119: =VLOOKUP($AE119,Players!$AV$3:$AW$1447,2,FALSE) -> 0 | AH119: 0
A120: 119 | V120: Cory Spangenberg | W120: =VLOOKUP($V120,Players!$N$3:$O$1273,2,FALSE) -> 0 | X120: 0 | AE120: Jesus Luzardo | AF120: =VLOOKUP($AE120,Players!$AV$3:$AW$1447,2,FALSE) -> 0 | AH120: 0
A121: 120 | V121: Dexter Fowler | W121: =VLOOKUP($V121,Players!$N$3:$O$1273,2,FALSE) -> 0 | X121: 0 | AE121: Matthew Boyd | AF121: =VLOOKUP($AE121,Players!$AV$3:$AW$1447,2,FALSE) -> 0 | AH121: 0
A122: 121 | V122: Lonnie Chisenhall | W122: =VLOOKUP($V122,Players!$N$3:$O$1273,2,FALSE) -> 0 | X122: 0 | AE122: Jose Urena | AF122: =VLOOKUP($AE122,Players!$AV$3:$AW$1447,2,FALSE) -> 0 | AH122: 0
A123: 122 | V123: Hernan Perez | W123: =VLOOKUP($V123,Players!$N$3:$O$1273,2,FALSE) -> 0 | X123: 0 | AE123: Jaime Barria | AF123: =VLOOKUP($AE123,Players!$AV$3:$AW$1447,2,FALSE) -> 0 | AH123: 0
A124: 123 | V124: Steve Pearce | W124: =VLOOKUP($V124,Players!$N$3:$O$1273,2,FALSE) -> 0 | X124: 0 | AE124: Dylan Bundy | AF124: =VLOOKUP($AE124,Players!$AV$3:$AW$1447,2,FALSE) -> 0 | AH124: 0
A125: 124 | V125: Mark Canha | W125: =VLOOKUP($V125,Players!$N$3:$O$1273,2,FALSE) -> 0 | X125: 0 | AE125: Marcus Stroman | AF125: =VLOOKUP($AE125,Players!$AV$3:$AW$1447,2,FALSE) -> 0 | AH125: 0
A126: 125 | V126: Austin Slater | W126: =VLOOKUP($V126,Players!$N$3:$O$1273,2,FALSE) -> 0 | X126: 0 | AE126: Drew Pomeranz | AF126: =VLOOKUP($AE126,Players!$AV$3:$AW$1447,2,FALSE) -> 0 | AH126: 0
A127: 126 | V127: Chris Owings | W127: =VLOOKUP($V127,Players!$N$3:$O$1273,2,FALSE) -> 0 | X127: 0 | AE127: Clay Buchholz | AF127: =VLOOKUP($AE127,Players!$AV$3:$AW$1447,2,FALSE) -> 0 | AH127: 0
A128: 127 | V128: Scott Kingery | W128: =VLOOKUP($V128,Players!$N$3:$O$1273,2,FALSE) -> 0 | X128: 0 | AE128: Jake Odorizzi | AF128: =VLOOKUP($AE128,Players!$AV$3:$AW$1447,2,FALSE) -> 0 | AH128: 0
A129: 128 | V129: Chad Pinder | W129: =VLOOKUP($V129,Players!$N$3:$O$1273,2,FALSE) -> 0 | X129: 0 | AE129: Manny Banuelos | AF129: =VLOOKUP($AE129,Players!$AV$3:$AW$1447,2,FALSE) -> 0 | AH129: 0
A130: 129 | V130: Nick Delmonico | W130: =VLOOKUP($V130,Players!$N$3:$O$1273,2,FALSE) -> 0 | X130: 0 | AE130: Danny Duffy | AF130: =VLOOKUP($AE130,Players!$AV$3:$AW$1447,2,FALSE) -> 0 | AH130: 0
A131: 130 | V131: Eric Thames | W131: =VLOOKUP($V131,Players!$N$3:$O$1273,2,FALSE) -> 0 | X131: =IF(W131>0,1,0) -> 0 | AE131: Matt Harvey | AF131: =VLOOKUP($AE131,Players!$AV$3:$AW$1447,2,FALSE) -> 0 | AH131: =IF(AF131>0,1,0) -> 0
A132: 131 | V132: Clint Frazier | W132: =VLOOKUP($V132,Players!$N$3:$O$1273,2,FALSE) -> 0 | X132: 0 | AE132: Ervin Santana | AF132: =VLOOKUP($AE132,Players!$AV$3:$AW$1447,2,FALSE) -> 0 | AH132: 0
A133: 132 | V133: Dominic Smith | W133: =VLOOKUP($V133,Players!$N$3:$O$1273,2,FALSE) -> 0 | X133: 0 | AE133: Dinelson Lamet | AF133: =VLOOKUP($AE133,Players!$AV$3:$AW$1447,2,FALSE) -> 0 | AH133: 0
A134: 133 | V134: Dustin Fowler | W134: =VLOOKUP($V134,Players!$N$3:$O$1273,2,FALSE) -> 0 | X134: 0 | AE134: Taijuan Walker | AF134: =VLOOKUP($AE134,Players!$AV$3:$AW$1447,2,FALSE) -> 0 | AH134: 0
A135: 134 | V135: Kyle Tucker | W135: =VLOOKUP($V135,Players!$N$3:$O$1273,2,FALSE) -> 0 | X135: 0 | AE135: Fernando Romero | AF135: =VLOOKUP($AE135,Players!$AV$3:$AW$1447,2,FALSE) -> 0 | AH135: 0
A136: 135 | V136: Alex Verdugo | W136: =VLOOKUP($V136,Players!$N$3:$O$1273,2,FALSE) -> 0 | X136: 0 | AE136: Junior Guerra | AF136: =VLOOKUP($AE136,Players!$AV$3:$AW$1447,2,FALSE) -> 0 | AH136: 0
A137: 136 | V137: Victor Victor Mesa | W137: =VLOOKUP($V137,Players!$N$3:$O$1273,2,FALSE) -> 0 | X137: 0 | AE137: Felix Hernandez | AF137: =VLOOKUP($AE137,Players!$AV$3:$AW$1447,2,FALSE) -> 0 | AH137: 0
A138: 137 | V138: Yairo Munoz | W138: =VLOOKUP($V138,Players!$N$3:$O$1273,2,FALSE) -> 0 | X138: =IF(W138>0,1,0) -> 0 | AE138: Jeff Samardzija | AF138: =VLOOKUP($AE138,Players!$AV$3:$AW$1447,2,FALSE) -> 0 | AH138: 0
A139: 138 | V139: Daz Cameron | W139: =VLOOKUP($V139,Players!$N$3:$O$1273,2,FALSE) -> 0 | X139: =IF(W139>0,1,0) -> 0 | AE139: Adam Wainwright | AF139: =VLOOKUP($AE139,Players!$AV$3:$AW$1447,2,FALSE) -> 0 | AH139: 0
A140: 139 | V140: JaCoby Jones | W140: =VLOOKUP($V140,Players!$N$3:$O$1273,2,FALSE) -> 0 | X140: 0 | AE140: Aaron Sanchez | AF140: =VLOOKUP($AE140,Players!$AV$3:$AW$1447,2,FALSE) -> 0 | AH140: 0
A141: 140 | V141: Nick Martini | W141: =VLOOKUP($V141,Players!$N$3:$O$1273,2,FALSE) -> 0 | X141: 0 | AE141: Lucas Giolito | AF141: =VLOOKUP($AE141,Players!$AV$3:$AW$1447,2,FALSE) -> 0 | AH141: 0
A142: 141 | V142: Jordan Luplow | W142: =VLOOKUP($V142,Players!$N$3:$O$1273,2,FALSE) -> 0 | X142: 0 | AE142: Adalberto Mejia | AF142: =VLOOKUP($AE142,Players!$AV$3:$AW$1447,2,FALSE) -> 0 | AH142: 0
A143: 142 | V143: Jason Heyward | W143: =VLOOKUP($V143,Players!$N$3:$O$1273,2,FALSE) -> 0 | X143: 0 | AE143: Alex Cobb | AF143: =VLOOKUP($AE143,Players!$AV$3:$AW$1447,2,FALSE) -> 0 | AH143: 0
A144: 143 | V144: Alex Gordon | W144: =VLOOKUP($V144,Players!$N$3:$O$1273,2,FALSE) -> 0 | X144: 0 | AE144: Derek Holland | AF144: =VLOOKUP($AE144,Players!$AV$3:$AW$1447,2,FALSE) -> 0 | AH144: =IF(AF144>0,1,0) -> 0
A145: 144 | V145: Albert Almora Jr. | W145: =VLOOKUP($V145,Players!$N$3:$O$1273,2,FALSE) -> 0 | X145: 0 | AE145: Tyler Anderson | AF145: =VLOOKUP($AE145,Players!$AV$3:$AW$1447,2,FALSE) -> 
A146: 145 | V146: Mikie Mahtook | W146: =VLOOKUP($V146,Players!$N$3:$O$1273,2,FALSE) -> 0 | X146: 0
A147: 146 | V147: Keon Broxton | W147: =VLOOKUP($V147,Players!$N$3:$O$1273,2,FALSE) -> 0 | X147: 0
A148: 147 | V148: Juan Lagares | W148: =VLOOKUP($V148,Players!$N$3:$O$1273,2,FALSE) -> 0 | X148: 0
A149: 148 | V149: Ben Gamel | W149: =VLOOKUP($V149,Players!$N$3:$O$1273,2,FALSE) -> 0 | X149: 0
A150: 149 | V150: Bradley Zimmer | W150: =VLOOKUP($V150,Players!$N$3:$O$1273,2,FALSE) -> 0 | X150: 0
A151: 150 | V151: Chris Shaw | W151: =VLOOKUP($V151,Players!$N$3:$O$1273,2,FALSE) -> 0 | X151: 0
A152: 151 | V152: Jarrod Dyson | W152: =VLOOKUP($V152,Players!$N$3:$O$1273,2,FALSE) -> 0 | X152: 0
A153: 152 | V153: D.J. Stewart | W153: =VLOOKUP($V153,Players!$N$3:$O$1273,2,FALSE) -> 0 | X153: 0
A154: 153 | V154: Jon Jay | W154: =VLOOKUP($V154,Players!$N$3:$O$1273,2,FALSE) -> 0 | X154: 0
A155: 154 | V155: Magneuris Sierra | W155: =VLOOKUP($V155,Players!$N$3:$O$1273,2,FALSE) -> 0 | X155: 0
A156: 155 | V156: Brian Goodwin | W156: =VLOOKUP($V156,Players!$N$3:$O$1273,2,FALSE) -> 0 | X156: 0
A157: 156
A158: 157
A159: 158
A160: 159
A161: 160
A162: 161
A163: 162
A164: 163
A165: 164
A166: 165
A167: 166
A168: 167
A169: 168
A170: 169
A171: 170
A172: 171
A173: 172
A174: 173
A175: 174
A176: 175
A177: 176
A178: 177
A179: 178
A180: 179
A181: 180
A182: 181
A183: 182
A184: 183
A185: 184
A186: 185
A187: 186
A188: 187
A189: 188
A190: 189
A191: 190
A192: 191
A193: 192
A194: 193
A195: 194
A196: 195
A197: 196
A198: 197
A199: 198
A200: 199
... 24 more rows

Sheet War Room
E1: Goal Tracking
E2: R | F2: HR | G2: RBI | H2: SB | I2: AVG
D3: Target | E3: ='User Input'!C40/'User Input'!C34 -> 60.05882353 | F3: ='User Input'!C41/'User Input'!C34 -> 15 | G3: ='User Input'!C42/'User Input'!C34 -> 57.23529412 | H3: ='User Input'!C43/'User Input'!C34 -> 10.41176471 | I3: ='User Input'!C44 -> 0.271 | Q3: (click '+' to expand above T & AC for salary details if required)
D4: Current | E4: =IF(ISERROR(C81),"N/A",C81) -> N/A | F4: =IF(ISERROR(D81),"N/A",D81) -> N/A | G4: =IF(ISERROR(E81),"N/A",E81) -> N/A | H4: =IF(ISERROR(F81),"N/A",F81) -> N/A | I4: =IF(ISERROR(G81),"N/A",G81) -> N/A
P5: Your Selected Players
E6: ERA | F6: WHIP | G6: W | H6: S | I6: K | P6: Batters | Y6: Pitchers
D7: Target | E7: ='User Input'!C46 -> 3.56 | F7: ='User Input'!C47 -> 1.23 | G7: ='User Input'!C48/'User Input'!C35 -> 5.733333333 | H7: ='User Input'!C49/'User Input'!C35 -> 8.133333333 | I7: ='User Input'!C50/'User Input'!C35 -> 84.8 | P7: # | Q7: Player | R7: Bid | S7: Proj | Y7: # | Z7: Player | AA7: Bid | AB7: Proj
D8: Current | E8: =IF(ISERROR(I81),"N/A",I81) -> N/A | F8: =IF(ISERROR(J81),"N/A",J81) -> N/A | G8: =IF(ISERROR(K81),"N/A",K81) -> N/A | H8: =IF(ISERROR(L81),"N/A",L81) -> N/A | I8: =IF(ISERROR(M81),"N/A",M81) -> N/A | P8: 1 | Q8: =IFERROR(VLOOKUP(P8,Players!$AF$3:$AH$1019,2,FALSE),"") ->  | R8: =IFERROR(VLOOKUP(P8,Players!$AF$3:$AH$1019,3,FALSE),"") ->  | S8: =VLOOKUP(P8,Players!$AF$3:$AI$1019,4,FALSE) ->  | U8: =ISERROR(S8) -> TRUE | V8: =IF(U8=FALSE,R8,0) -> 0 | W8: =IF(U8=FALSE,S8,0) -> 0 | Y8: 1 | Z8: =IFERROR(VLOOKUP(Y8,Players!$BO$3:$BQ$1019,2,FALSE),"") ->  | AA8: =IFERROR(VLOOKUP(Y8,Players!$BO$3:$BQ$1019,3,FALSE),"") ->  | AB8: =VLOOKUP(Y8,Players!$BO$3:$BR$1019,4,FALSE) ->  | AD8: =ISERROR(AB8) -> TRUE | AE8: =IF(AD8=FALSE,AA8,0) -> 0 | AF8: =IF(AD8=FALSE,AB8,0) -> 0
D9: =SUM(D13:D42) -> 0 | E9: Total Players Taken By All teams | P9: =P8+1 -> 2 | Q9: =IFERROR(VLOOKUP(P9,Players!$AF$3:$AH$1019,2,FALSE),"") ->  | R9: =IFERROR(VLOOKUP(P9,Players!$AF$3:$AH$1019,3,FALSE),"") ->  | S9: =VLOOKUP(P9,Players!$AF$3:$AI$1019,4,FALSE) ->  | U9: TRUE | V9: 0 | W9: 0 | Y9: =Y8+1 -> 2 | Z9: =IFERROR(VLOOKUP(Y9,Players!$BO$3:$BQ$1019,2,FALSE),"") ->  | AA9: =IFERROR(VLOOKUP(Y9,Players!$BO$3:$BQ$1019,3,FALSE),"") ->  | AB9: =VLOOKUP(Y9,Players!$BO$3:$BR$1019,4,FALSE) ->  | AD9: TRUE | AE9: 0 | AF9: 0
P10: =P9+1 -> 3 | Q10: =IFERROR(VLOOKUP(P10,Players!$AF$3:$AH$1019,2,FALSE),"") ->  | R10: =IFERROR(VLOOKUP(P10,Players!$AF$3:$AH$1019,3,FALSE),"") ->  | S10: =VLOOKUP(P10,Players!$AF$3:$AI$1019,4,FALSE) ->  | U10: =ISERROR(S10) -> TRUE | V10: =IF(U10=FALSE,R10,0) -> 0 | W10: =IF(U10=FALSE,S10,0) -> 0 | Y10: =Y9+1 -> 3 | Z10: =IFERROR(VLOOKUP(Y10,Players!$BO$3:$BQ$1019,2,FALSE),"") ->  | AA10: =IFERROR(VLOOKUP(Y10,Players!$BO$3:$BQ$1019,3,FALSE),"") ->  | AB10: =VLOOKUP(Y10,Players!$BO$3:$BR$1019,4,FALSE) ->  | AD10: TRUE | AE10: 0 | AF10: 0
B11: # of Players Taken | E11: Salaries | H11: # of Players Left | L11: Finances | P11: 4 | Q11: =IFERROR(VLOOKUP(P11,Players!$AF$3:$AH$1019,2,FALSE),"") ->  | R11: =IFERROR(VLOOKUP(P11,Players!$AF$3:$AH$1019,3,FALSE),"") ->  | S11: =VLOOKUP(P11,Players!$AF$3:$AI$1019,4,FALSE) ->  | U11: TRUE | V11: 0 | W11: 0 | Y11: 4 | Z11: =IFERROR(VLOOKUP(Y11,Players!$BO$3:$BQ$1019,2,FALSE),"") ->  | AA11: =IFERROR(VLOOKUP(Y11,Players!$BO$3:$BQ$1019,3,FALSE),"") ->  | AB11: =VLOOKUP(Y11,Players!$BO$3:$BR$1019,4,FALSE) ->  | AD11: TRUE | AE11: 0 | AF11: 0
A12: Team | B12: Bat | C12: Pit | D12: Tot | E12: Bat | F12: Pit | G12: Tot | H12: Bat | I12: Pit | J12: Bench | K12: Tot | L12: $$ Left | M12: APP | N12: Max Bid | P12: 5 | Q12: =IFERROR(VLOOKUP(P12,Players!$AF$3:$AH$1019,2,FALSE),"") ->  | R12: =IFERROR(VLOOKUP(P12,Players!$AF$3:$AH$1019,3,FALSE),"") ->  | S12: =VLOOKUP(P12,Players!$AF$3:$AI$1019,4,FALSE) ->  | U12: TRUE | V12: 0 | W12: 0 | Y12: 5 | Z12: =IFERROR(VLOOKUP(Y12,Players!$BO$3:$BQ$1019,2,FALSE),"") ->  | AA12: =IFERROR(VLOOKUP(Y12,Players!$BO$3:$BQ$1019,3,FALSE),"") ->  | AB12: =VLOOKUP(Y12,Players!$BO$3:$BR$1019,4,FALSE) ->  | AD12: TRUE | AE12: 0 | AF12: 0
A13: =IF('User Input'!C1 = 0,"",'User Input'!C1) -> a | B13: =IF('User Input'!C1=0,"",COUNTIF(Players!$O$3:$O$903,A13)) -> 0 | C13: =IF('User Input'!C1=0,"",COUNTIF(Players!$AV$3:$AW$937,A13)) -> 0 | D13: =IF('User Input'!C1=0,"",C13+B13) -> 0 | E13: =IF('User Input'!C1=0,"",SUMIF(Players!$O$3:$O$903,A13,Players!$P$3:$P$903)) -> 0 | F13: =IF('User Input'!C1=0,"",SUMIF(Players!$AW$3:$AW$937,A13,Players!$AX$3:$AX$937)) -> 0 | G13: =IF('User Input'!C1 = 0,"",F13+E13) -> 0 | H13: =IF('User Input'!C1=0,"",IF(('User Input'!$C$34-B13)<0,0,'User Input'!$C$34-B13)) -> 17 | I13: =IF('User Input'!C1=0,"",IF(('User Input'!$C$35-C13)<0,0,'User Input'!$C$35-C13)) -> 15 | J13: =IF('User Input'!C1=0,"",K13-H13-I13) -> 0 | K13: =IF('User Input'!C1 = 0,"",'User Input'!$C$34+'User Input'!$C$35+'User Input'!$C$36-D13) -> 32 | L13: =IF('User Input'!C1 = 0,"",'User Input'!$C$32-G13) -> 280 | M13: =IF('User Input'!C1=0,"",IF(K13<1,0,L13/K13)) -> 8.75 | N13: =IF('User Input'!C1 = 0,"",L13-K13+1) -> 249 | O13: ← YOUR TEAM | P13: 6 | Q13: =IFERROR(VLOOKUP(P13,Players!$AF$3:$AH$1019,2,FALSE),"") ->  | R13: =IFERROR(VLOOKUP(P13,Players!$AF$3:$AH$1019,3,FALSE),"") ->  | S13: =VLOOKUP(P13,Players!$AF$3:$AI$1019,4,FALSE) ->  | U13: TRUE | V13: 0 | W13: 0 | Y13: 6 | Z13: =IFERROR(VLOOKUP(Y13,Players!$BO$3:$BQ$1019,2,FALSE),"") ->  | AA13: =IFERROR(VLOOKUP(Y13,Players!$BO$3:$BQ$1019,3,FALSE),"") ->  | AB13: =VLOOKUP(Y13,Players!$BO$3:$BR$1019,4,FALSE) ->  | AD13: TRUE | AE13: 0 | AF13: 0
A14: =IF('User Input'!C2 = 0,"",'User Input'!C2) -> b | B14: =IF('User Input'!C2=0,"",COUNTIF(Players!$O$3:$O$903,A14)) -> 0 | C14: =IF('User Input'!C2=0,"",COUNTIF(Players!$AV$3:$AW$937,A14)) -> 0 | D14: =IF('User Input'!C2=0,"",C14+B14) -> 0 | E14: =IF('User Input'!C2=0,"",SUMIF(Players!$O$3:$O$903,A14,Players!$P$3:$P$903)) -> 0 | F14: =IF('User Input'!C2=0,"",SUMIF(Players!$AW$3:$AW$937,A14,Players!$AX$3:$AX$937)) -> 0 | G14: =IF('User Input'!C2 = 0,"",F14+E14) -> 0 | H14: =IF('User Input'!C2=0,"",IF(('User Input'!$C$34-B14)<0,0,'User Input'!$C$34-B14)) -> 17 | I14: =IF('User Input'!C2=0,"",IF(('User Input'!$C$35-C14)<0,0,'User Input'!$C$35-C14)) -> 15 | J14: =IF('User Input'!C2=0,"",K14-H14-I14) -> 0 | K14: =IF('User Input'!C2 = 0,"",'User Input'!$C$34+'User Input'!$C$35+'User Input'!$C$36-D14) -> 32 | L14: =IF('User Input'!C2 = 0,"",'User Input'!$C$32-G14) -> 280 | M14: =IF('User Input'!C2=0,"",IF(K14<1,0,L14/K14)) -> 8.75 | N14: =IF('User Input'!C2 = 0,"",L14-K14+1) -> 249 | P14: 7 | Q14: =IFERROR(VLOOKUP(P14,Players!$AF$3:$AH$1019,2,FALSE),"") ->  | R14: =IFERROR(VLOOKUP(P14,Players!$AF$3:$AH$1019,3,FALSE),"") ->  | S14: =VLOOKUP(P14,Players!$AF$3:$AI$1019,4,FALSE) ->  | U14: TRUE | V14: 0 | W14: 0 | Y14: 7 | Z14: =IFERROR(VLOOKUP(Y14,Players!$BO$3:$BQ$1019,2,FALSE),"") ->  | AA14: =IFERROR(VLOOKUP(Y14,Players!$BO$3:$BQ$1019,3,FALSE),"") ->  | AB14: =VLOOKUP(Y14,Players!$BO$3:$BR$1019,4,FALSE) ->  | AD14: TRUE | AE14: 0 | AF14: 0 | DT14: C | DU14: SP
A15: =IF('User Input'!C3 = 0,"",'User Input'!C3) -> c | B15: =IF('User Input'!C3=0,"",COUNTIF(Players!$O$3:$O$903,A15)) -> 0 | C15: =IF('User Input'!C3=0,"",COUNTIF(Players!$AV$3:$AW$937,A15)) -> 0 | D15: =IF('User Input'!C3=0,"",C15+B15) -> 0 | E15: =IF('User Input'!C3=0,"",SUMIF(Players!$O$3:$O$903,A15,Players!$P$3:$P$903)) -> 0 | F15: =IF('User Input'!C3=0,"",SUMIF(Players!$AW$3:$AW$937,A15,Players!$AX$3:$AX$937)) -> 0 | G15: =IF('User Input'!C3 = 0,"",F15+E15) -> 0 | H15: =IF('User Input'!C3=0,"",IF(('User Input'!$C$34-B15)<0,0,'User Input'!$C$34-B15)) -> 17 | I15: =IF('User Input'!C3=0,"",IF(('User Input'!$C$35-C15)<0,0,'User Input'!$C$35-C15)) -> 15 | J15: =IF('User Input'!C3=0,"",K15-H15-I15) -> 0 | K15: =IF('User Input'!C3 = 0,"",'User Input'!$C$34+'User Input'!$C$35+'User Input'!$C$36-D15) -> 32 | L15: =IF('User Input'!C3 = 0,"",'User Input'!$C$32-G15) -> 280 | M15: =IF('User Input'!C3=0,"",IF(K15<1,0,L15/K15)) -> 8.75 | N15: =IF('User Input'!C3 = 0,"",L15-K15+1) -> 249 | P15: 8 | Q15: =IFERROR(VLOOKUP(P15,Players!$AF$3:$AH$1019,2,FALSE),"") ->  | R15: =IFERROR(VLOOKUP(P15,Players!$AF$3:$AH$1019,3,FALSE),"") ->  | S15: =VLOOKUP(P15,Players!$AF$3:$AI$1019,4,FALSE) ->  | U15: TRUE | V15: 0 | W15: 0 | Y15: 8 | Z15: =IFERROR(VLOOKUP(Y15,Players!$BO$3:$BQ$1019,2,FALSE),"") ->  | AA15: =IFERROR(VLOOKUP(Y15,Players!$BO$3:$BQ$1019,3,FALSE),"") ->  | AB15: =VLOOKUP(Y15,Players!$BO$3:$BR$1019,4,FALSE) ->  | AD15: TRUE | AE15: 0 | AF15: 0 | DT15: 1B | DU15: RP
A16: =IF('User Input'!C4 = 0,"",'User Input'!C4) -> d | B16: =IF('User Input'!C4=0,"",COUNTIF(Players!$O$3:$O$903,A16)) -> 0 | C16: =IF('User Input'!C4=0,"",COUNTIF(Players!$AV$3:$AW$937,A16)) -> 0 | D16: =IF('User Input'!C4=0,"",C16+B16) -> 0 | E16: =IF('User Input'!C4=0,"",SUMIF(Players!$O$3:$O$903,A16,Players!$P$3:$P$903)) -> 0 | F16: =IF('User Input'!C4=0,"",SUMIF(Players!$AW$3:$AW$937,A16,Players!$AX$3:$AX$937)) -> 0 | G16: =IF('User Input'!C4 = 0,"",F16+E16) -> 0 | H16: =IF('User Input'!C4=0,"",IF(('User Input'!$C$34-B16)<0,0,'User Input'!$C$34-B16)) -> 17 | I16: =IF('User Input'!C4=0,"",IF(('User Input'!$C$35-C16)<0,0,'User Input'!$C$35-C16)) -> 15 | J16: =IF('User Input'!C4=0,"",K16-H16-I16) -> 0 | K16: =IF('User Input'!C4 = 0,"",'User Input'!$C$34+'User Input'!$C$35+'User Input'!$C$36-D16) -> 32 | L16: =IF('User Input'!C4 = 0,"",'User Input'!$C$32-G16) -> 280 | M16: =IF('User Input'!C4=0,"",IF(K16<1,0,L16/K16)) -> 8.75 | N16: =IF('User Input'!C4 = 0,"",L16-K16+1) -> 249 | P16: 9 | Q16: =IFERROR(VLOOKUP(P16,Players!$AF$3:$AH$1019,2,FALSE),"") ->  | R16: =IFERROR(VLOOKUP(P16,Players!$AF$3:$AH$1019,3,FALSE),"") ->  | S16: =VLOOKUP(P16,Players!$AF$3:$AI$1019,4,FALSE) ->  | U16: TRUE | V16: 0 | W16: 0 | Y16: 9 | Z16: =IFERROR(VLOOKUP(Y16,Players!$BO$3:$BQ$1019,2,FALSE),"") ->  | AA16: =IFERROR(VLOOKUP(Y16,Players!$BO$3:$BQ$1019,3,FALSE),"") ->  | AB16: =VLOOKUP(Y16,Players!$BO$3:$BR$1019,4,FALSE) ->  | AD16: TRUE | AE16: 0 | AF16: 0 | DT16: 2B
A17: =IF('User Input'!C5 = 0,"",'User Input'!C5) -> e | B17: =IF('User Input'!C5=0,"",COUNTIF(Players!$O$3:$O$903,A17)) -> 0 | C17: =IF('User Input'!C5=0,"",COUNTIF(Players!$AV$3:$AW$937,A17)) -> 0 | D17: =IF('User Input'!C5=0,"",C17+B17) -> 0 | E17: =IF('User Input'!C5=0,"",SUMIF(Players!$O$3:$O$903,A17,Players!$P$3:$P$903)) -> 0 | F17: =IF('User Input'!C5=0,"",SUMIF(Players!$AW$3:$AW$937,A17,Players!$AX$3:$AX$937)) -> 0 | G17: =IF('User Input'!C5 = 0,"",F17+E17) -> 0 | H17: =IF('User Input'!C5=0,"",IF(('User Input'!$C$34-B17)<0,0,'User Input'!$C$34-B17)) -> 17 | I17: =IF('User Input'!C5=0,"",IF(('User Input'!$C$35-C17)<0,0,'User Input'!$C$35-C17)) -> 15 | J17: =IF('User Input'!C5=0,"",K17-H17-I17) -> 0 | K17: =IF('User Input'!C5 = 0,"",'User Input'!$C$34+'User Input'!$C$35+'User Input'!$C$36-D17) -> 32 | L17: =IF('User Input'!C5 = 0,"",'User Input'!$C$32-G17) -> 280 | M17: =IF('User Input'!C5=0,"",IF(K17<1,0,L17/K17)) -> 8.75 | N17: =IF('User Input'!C5 = 0,"",L17-K17+1) -> 249 | P17: 10 | Q17: =IFERROR(VLOOKUP(P17,Players!$AF$3:$AH$1019,2,FALSE),"") ->  | R17: =IFERROR(VLOOKUP(P17,Players!$AF$3:$AH$1019,3,FALSE),"") ->  | S17: =VLOOKUP(P17,Players!$AF$3:$AI$1019,4,FALSE) ->  | U17: TRUE | V17: 0 | W17: 0 | Y17: 10 | Z17: =IFERROR(VLOOKUP(Y17,Players!$BO$3:$BQ$1019,2,FALSE),"") ->  | AA17: =IFERROR(VLOOKUP(Y17,Players!$BO$3:$BQ$1019,3,FALSE),"") ->  | AB17: =VLOOKUP(Y17,Players!$BO$3:$BR$1019,4,FALSE) ->  | AD17: TRUE | AE17: 0 | AF17: 0 | DT17: 3B
A18: =IF('User Input'!C6 = 0,"",'User Input'!C6) -> f | B18: =IF('User Input'!C6=0,"",COUNTIF(Players!$O$3:$O$903,A18)) -> 0 | C18: =IF('User Input'!C6=0,"",COUNTIF(Players!$AV$3:$AW$937,A18)) -> 0 | D18: =IF('User Input'!C6=0,"",C18+B18) -> 0 | E18: =IF('User Input'!C6=0,"",SUMIF(Players!$O$3:$O$903,A18,Players!$P$3:$P$903)) -> 0 | F18: =IF('User Input'!C6=0,"",SUMIF(Players!$AW$3:$AW$937,A18,Players!$AX$3:$AX$937)) -> 0 | G18: =IF('User Input'!C6 = 0,"",F18+E18) -> 0 | H18: =IF('User Input'!C6=0,"",IF(('User Input'!$C$34-B18)<0,0,'User Input'!$C$34-B18)) -> 17 | I18: =IF('User Input'!C6=0,"",IF(('User Input'!$C$35-C18)<0,0,'User Input'!$C$35-C18)) -> 15 | J18: =IF('User Input'!C6=0,"",K18-H18-I18) -> 0 | K18: =IF('User Input'!C6 = 0,"",'User Input'!$C$34+'User Input'!$C$35+'User Input'!$C$36-D18) -> 32 | L18: =IF('User Input'!C6 = 0,"",'User Input'!$C$32-G18) -> 280 | M18: =IF('User Input'!C6=0,"",IF(K18<1,0,L18/K18)) -> 8.75 | N18: =IF('User Input'!C6 = 0,"",L18-K18+1) -> 249 | P18: 11 | Q18: =IFERROR(VLOOKUP(P18,Players!$AF$3:$AH$1019,2,FALSE),"") ->  | R18: =IFERROR(VLOOKUP(P18,Players!$AF$3:$AH$1019,3,FALSE),"") ->  | S18: =VLOOKUP(P18,Players!$AF$3:$AI$1019,4,FALSE) ->  | U18: TRUE | V18: 0 | W18: 0 | Y18: 11 | Z18: =IFERROR(VLOOKUP(Y18,Players!$BO$3:$BQ$1019,2,FALSE),"") ->  | AA18: =IFERROR(VLOOKUP(Y18,Players!$BO$3:$BQ$1019,3,FALSE),"") ->  | AB18: =VLOOKUP(Y18,Players!$BO$3:$BR$1019,4,FALSE) ->  | AD18: TRUE | AE18: 0 | AF18: 0 | DT18: SS
A19: =IF('User Input'!C7 = 0,"",'User Input'!C7) -> g | B19: =IF('User Input'!C7=0,"",COUNTIF(Players!$O$3:$O$903,A19)) -> 0 | C19: =IF('User Input'!C7=0,"",COUNTIF(Players!$AV$3:$AW$937,A19)) -> 0 | D19: =IF('User Input'!C7=0,"",C19+B19) -> 0 | E19: =IF('User Input'!C7=0,"",SUMIF(Players!$O$3:$O$903,A19,Players!$P$3:$P$903)) -> 0 | F19: =IF('User Input'!C7=0,"",SUMIF(Players!$AW$3:$AW$937,A19,Players!$AX$3:$AX$937)) -> 0 | G19: =IF('User Input'!C7 = 0,"",F19+E19) -> 0 | H19: =IF('User Input'!C7=0,"",IF(('User Input'!$C$34-B19)<0,0,'User Input'!$C$34-B19)) -> 17 | I19: =IF('User Input'!C7=0,"",IF(('User Input'!$C$35-C19)<0,0,'User Input'!$C$35-C19)) -> 15 | J19: =IF('User Input'!C7=0,"",K19-H19-I19) -> 0 | K19: =IF('User Input'!C7 = 0,"",'User Input'!$C$34+'User Input'!$C$35+'User Input'!$C$36-D19) -> 32 | L19: =IF('User Input'!C7 = 0,"",'User Input'!$C$32-G19) -> 280 | M19: =IF('User Input'!C7=0,"",IF(K19<1,0,L19/K19)) -> 8.75 | N19: =IF('User Input'!C7 = 0,"",L19-K19+1) -> 249 | P19: 12 | Q19: =IFERROR(VLOOKUP(P19,Players!$AF$3:$AH$1019,2,FALSE),"") ->  | R19: =IFERROR(VLOOKUP(P19,Players!$AF$3:$AH$1019,3,FALSE),"") ->  | S19: =VLOOKUP(P19,Players!$AF$3:$AI$1019,4,FALSE) ->  | U19: TRUE | V19: 0 | W19: 0 | Y19: 12 | Z19: =IFERROR(VLOOKUP(Y19,Players!$BO$3:$BQ$1019,2,FALSE),"") ->  | AA19: =IFERROR(VLOOKUP(Y19,Players!$BO$3:$BQ$1019,3,FALSE),"") ->  | AB19: =VLOOKUP(Y19,Players!$BO$3:$BR$1019,4,FALSE) ->  | AD19: TRUE | AE19: 0 | AF19: 0 | DT19: OF
A20: =IF('User Input'!C8 = 0,"",'User Input'!C8) -> h | B20: =IF('User Input'!C8=0,"",COUNTIF(Players!$O$3:$O$903,A20)) -> 0 | C20: =IF('User Input'!C8=0,"",COUNTIF(Players!$AV$3:$AW$937,A20)) -> 0 | D20: =IF('User Input'!C8=0,"",C20+B20) -> 0 | E20: =IF('User Input'!C8=0,"",SUMIF(Players!$O$3:$O$903,A20,Players!$P$3:$P$903)) -> 0 | F20: =IF('User Input'!C8=0,"",SUMIF(Players!$AW$3:$AW$937,A20,Players!$AX$3:$AX$937)) -> 0 | G20: =IF('User Input'!C8 = 0,"",F20+E20) -> 0 | H20: =IF('User Input'!C8=0,"",IF(('User Input'!$C$34-B20)<0,0,'User Input'!$C$34-B20)) -> 17 | I20: =IF('User Input'!C8=0,"",IF(('User Input'!$C$35-C20)<0,0,'User Input'!$C$35-C20)) -> 15 | J20: =IF('User Input'!C8=0,"",K20-H20-I20) -> 0 | K20: =IF('User Input'!C8 = 0,"",'User Input'!$C$34+'User Input'!$C$35+'User Input'!$C$36-D20) -> 32 | L20: =IF('User Input'!C8 = 0,"",'User Input'!$C$32-G20) -> 280 | M20: =IF('User Input'!C8=0,"",IF(K20<1,0,L20/K20)) -> 8.75 | N20: =IF('User Input'!C8 = 0,"",L20-K20+1) -> 249 | P20: 13 | Q20: =IFERROR(VLOOKUP(P20,Players!$AF$3:$AH$1019,2,FALSE),"") ->  | R20: =IFERROR(VLOOKUP(P20,Players!$AF$3:$AH$1019,3,FALSE),"") ->  | S20: =VLOOKUP(P20,Players!$AF$3:$AI$1019,4,FALSE) ->  | U20: TRUE | V20: 0 | W20: 0 | Y20: 13 | Z20: =IFERROR(VLOOKUP(Y20,Players!$BO$3:$BQ$1019,2,FALSE),"") ->  | AA20: =IFERROR(VLOOKUP(Y20,Players!$BO$3:$BQ$1019,3,FALSE),"") ->  | AB20: =VLOOKUP(Y20,Players!$BO$3:$BR$1019,4,FALSE) ->  | AD20: TRUE | AE20: 0 | AF20: 0 | DT20: CI
A21: =IF('User Input'!C9 = 0,"",'User Input'!C9) -> i | B21: =IF('User Input'!C9=0,"",COUNTIF(Players!$O$3:$O$903,A21)) -> 0 | C21: =IF('User Input'!C9=0,"",COUNTIF(Players!$AV$3:$AW$937,A21)) -> 0 | D21: =IF('User Input'!C9=0,"",C21+B21) -> 0 | E21: =IF('User Input'!C9=0,"",SUMIF(Players!$O$3:$O$903,A21,Players!$P$3:$P$903)) -> 0 | F21: =IF('User Input'!C9=0,"",SUMIF(Players!$AW$3:$AW$937,A21,Players!$AX$3:$AX$937)) -> 0 | G21: =IF('User Input'!C9 = 0,"",F21+E21) -> 0 | H21: =IF('User Input'!C9=0,"",IF(('User Input'!$C$34-B21)<0,0,'User Input'!$C$34-B21)) -> 17 | I21: =IF('User Input'!C9=0,"",IF(('User Input'!$C$35-C21)<0,0,'User Input'!$C$35-C21)) -> 15 | J21: =IF('User Input'!C9=0,"",K21-H21-I21) -> 0 | K21: =IF('User Input'!C9 = 0,"",'User Input'!$C$34+'User Input'!$C$35+'User Input'!$C$36-D21) -> 32 | L21: =IF('User Input'!C9 = 0,"",'User Input'!$C$32-G21) -> 280 | M21: =IF('User Input'!C9=0,"",IF(K21<1,0,L21/K21)) -> 8.75 | N21: =IF('User Input'!C9 = 0,"",L21-K21+1) -> 249 | P21: 14 | Q21: =IFERROR(VLOOKUP(P21,Players!$AF$3:$AH$1019,2,FALSE),"") ->  | R21: =IFERROR(VLOOKUP(P21,Players!$AF$3:$AH$1019,3,FALSE),"") ->  | S21: =VLOOKUP(P21,Players!$AF$3:$AI$1019,4,FALSE) ->  | U21: TRUE | V21: 0 | W21: 0 | Y21: 14 | Z21: =IFERROR(VLOOKUP(Y21,Players!$BO$3:$BQ$1019,2,FALSE),"") ->  | AA21: =IFERROR(VLOOKUP(Y21,Players!$BO$3:$BQ$1019,3,FALSE),"") ->  | AB21: =VLOOKUP(Y21,Players!$BO$3:$BR$1019,4,FALSE) ->  | AD21: TRUE | AE21: 0 | AF21: 0 | DT21: MI
A22: =IF('User Input'!C10 = 0,"",'User Input'!C10) -> j | B22: =IF('User Input'!C10=0,"",COUNTIF(Players!$O$3:$O$903,A22)) -> 0 | C22: =IF('User Input'!C10=0,"",COUNTIF(Players!$AV$3:$AW$937,A22)) -> 0 | D22: =IF('User Input'!C10=0,"",C22+B22) -> 0 | E22: =IF('User Input'!C10=0,"",SUMIF(Players!$O$3:$O$903,A22,Players!$P$3:$P$903)) -> 0 | F22: =IF('User Input'!C10=0,"",SUMIF(Players!$AW$3:$AW$937,A22,Players!$AX$3:$AX$937)) -> 0 | G22: =IF('User Input'!C10 = 0,"",F22+E22) -> 0 | H22: =IF('User Input'!C10=0,"",IF(('User Input'!$C$34-B22)<0,0,'User Input'!$C$34-B22)) -> 17 | I22: =IF('User Input'!C10=0,"",IF(('User Input'!$C$35-C22)<0,0,'User Input'!$C$35-C22)) -> 15 | J22: =IF('User Input'!C10=0,"",K22-H22-I22) -> 0 | K22: =IF('User Input'!C10 = 0,"",'User Input'!$C$34+'User Input'!$C$35+'User Input'!$C$36-D22) -> 32 | L22: =IF('User Input'!C10 = 0,"",'User Input'!$C$32-G22) -> 280 | M22: =IF('User Input'!C10=0,"",IF(K22<1,0,L22/K22)) -> 8.75 | N22: =IF('User Input'!C10 = 0,"",L22-K22+1) -> 249 | P22: 15 | Q22: =IFERROR(VLOOKUP(P22,Players!$AF$3:$AH$1019,2,FALSE),"") ->  | R22: =IFERROR(VLOOKUP(P22,Players!$AF$3:$AH$1019,3,FALSE),"") ->  | S22: =VLOOKUP(P22,Players!$AF$3:$AI$1019,4,FALSE) ->  | U22: TRUE | V22: 0 | W22: 0 | Y22: 15 | Z22: =IFERROR(VLOOKUP(Y22,Players!$BO$3:$BQ$1019,2,FALSE),"") ->  | AA22: =IFERROR(VLOOKUP(Y22,Players!$BO$3:$BQ$1019,3,FALSE),"") ->  | AB22: =VLOOKUP(Y22,Players!$BO$3:$BR$1019,4,FALSE) ->  | AD22: TRUE | AE22: 0 | AF22: 0 | DT22: UT
A23: =IF('User Input'!C11 = 0,"",'User Input'!C11) -> k | B23: =IF('User Input'!C11=0,"",COUNTIF(Players!$O$3:$O$903,A23)) -> 0 | C23: =IF('User Input'!C11=0,"",COUNTIF(Players!$AV$3:$AW$937,A23)) -> 0 | D23: =IF('User Input'!C11=0,"",C23+B23) -> 0 | E23: =IF('User Input'!C11=0,"",SUMIF(Players!$O$3:$O$903,A23,Players!$P$3:$P$903)) -> 0 | F23: =IF('User Input'!C11=0,"",SUMIF(Players!$AW$3:$AW$937,A23,Players!$AX$3:$AX$937)) -> 0 | G23: =IF('User Input'!C11 = 0,"",F23+E23) -> 0 | H23: =IF('User Input'!C11=0,"",IF(('User Input'!$C$34-B23)<0,0,'User Input'!$C$34-B23)) -> 17 | I23: =IF('User Input'!C11=0,"",IF(('User Input'!$C$35-C23)<0,0,'User Input'!$C$35-C23)) -> 15 | J23: =IF('User Input'!C11=0,"",K23-H23-I23) -> 0 | K23: =IF('User Input'!C11 = 0,"",'User Input'!$C$34+'User Input'!$C$35+'User Input'!$C$36-D23) -> 32 | L23: =IF('User Input'!C11 = 0,"",'User Input'!$C$32-G23) -> 280 | M23: =IF('User Input'!C11=0,"",IF(K23<1,0,L23/K23)) -> 8.75 | N23: =IF('User Input'!C11 = 0,"",L23-K23+1) -> 249 | P23: 16 | Q23: =IFERROR(VLOOKUP(P23,Players!$AF$3:$AH$1019,2,FALSE),"") ->  | R23: =IFERROR(VLOOKUP(P23,Players!$AF$3:$AH$1019,3,FALSE),"") ->  | S23: =VLOOKUP(P23,Players!$AF$3:$AI$1019,4,FALSE) ->  | U23: TRUE | V23: 0 | W23: 0 | Y23: 16 | Z23: =IFERROR(VLOOKUP(Y23,Players!$BO$3:$BQ$1019,2,FALSE),"") ->  | AA23: =IFERROR(VLOOKUP(Y23,Players!$BO$3:$BQ$1019,3,FALSE),"") ->  | AB23: =VLOOKUP(Y23,Players!$BO$3:$BR$1019,4,FALSE) ->  | AD23: =ISERROR(AB23) -> TRUE | AE23: =IF(AD23=FALSE,AA23,0) -> 0 | AF23: =IF(AD23=FALSE,AB23,0) -> 0
A24: =IF('User Input'!C12 = 0,"",'User Input'!C12) -> l | B24: =IF('User Input'!C12=0,"",COUNTIF(Players!$O$3:$O$903,A24)) -> 0 | C24: =IF('User Input'!C12=0,"",COUNTIF(Players!$AV$3:$AW$937,A24)) -> 0 | D24: =IF('User Input'!C12=0,"",C24+B24) -> 0 | E24: =IF('User Input'!C12=0,"",SUMIF(Players!$O$3:$O$903,A24,Players!$P$3:$P$903)) -> 0 | F24: =IF('User Input'!C12=0,"",SUMIF(Players!$AW$3:$AW$937,A24,Players!$AX$3:$AX$937)) -> 0 | G24: =IF('User Input'!C12 = 0,"",F24+E24) -> 0 | H24: =IF('User Input'!C12=0,"",IF(('User Input'!$C$34-B24)<0,0,'User Input'!$C$34-B24)) -> 17 | I24: =IF('User Input'!C12=0,"",IF(('User Input'!$C$35-C24)<0,0,'User Input'!$C$35-C24)) -> 15 | J24: =IF('User Input'!C12=0,"",K24-H24-I24) -> 0 | K24: =IF('User Input'!C12 = 0,"",'User Input'!$C$34+'User Input'!$C$35+'User Input'!$C$36-D24) -> 32 | L24: =IF('User Input'!C12 = 0,"",'User Input'!$C$32-G24) -> 280 | M24: =IF('User Input'!C12=0,"",IF(K24<1,0,L24/K24)) -> 8.75 | N24: =IF('User Input'!C12 = 0,"",L24-K24+1) -> 249 | P24: 17 | Q24: =IFERROR(VLOOKUP(P24,Players!$AF$3:$AH$1019,2,FALSE),"") ->  | R24: =IFERROR(VLOOKUP(P24,Players!$AF$3:$AH$1019,3,FALSE),"") ->  | S24: =VLOOKUP(P24,Players!$AF$3:$AI$1019,4,FALSE) ->  | U24: TRUE | V24: 0 | W24: 0 | Y24: 17 | Z24: =IFERROR(VLOOKUP(Y24,Players!$BO$3:$BQ$1019,2,FALSE),"") ->  | AA24: =IFERROR(VLOOKUP(Y24,Players!$BO$3:$BQ$1019,3,FALSE),"") ->  | AB24: =VLOOKUP(Y24,Players!$BO$3:$BR$1019,4,FALSE) ->  | AD24: TRUE | AE24: 0 | AF24: 0
A25: =IF('User Input'!C13 = 0,"",'User Input'!C13) ->  | B25: =IF('User Input'!C13=0,"",COUNTIF(Players!$O$3:$O$903,A25)) ->  | C25: =IF('User Input'!C13=0,"",COUNTIF(Players!$AV$3:$AW$937,A25)) ->  | D25: =IF('User Input'!C13=0,"",C25+B25) ->  | E25: =IF('User Input'!C13=0,"",SUMIF(Players!$O$3:$O$903,A25,Players!$P$3:$P$903)) ->  | F25: =IF('User Input'!C13=0,"",SUMIF(Players!$AW$3:$AW$937,A25,Players!$AX$3:$AX$937)) ->  | G25: =IF('User Input'!C13 = 0,"",F25+E25) ->  | H25: =IF('User Input'!C13=0,"",IF(('User Input'!$C$34-B25)<0,0,'User Input'!$C$34-B25)) ->  | I25: =IF('User Input'!C13=0,"",IF(('User Input'!$C$35-C25)<0,0,'User Input'!$C$35-C25)) ->  | J25: =IF('User Input'!C13=0,"",K25-H25-I25) ->  | K25: =IF('User Input'!C13 = 0,"",'User Input'!$C$34+'User Input'!$C$35+'User Input'!$C$36-D25) ->  | L25: =IF('User Input'!C13 = 0,"",'User Input'!$C$32-G25) ->  | M25: =IF('User Input'!C13=0,"",IF(K25<1,0,L25/K25)) ->  | N25: =IF('User Input'!C13 = 0,"",L25-K25+1) ->  | P25: 18 | Q25: =IFERROR(VLOOKUP(P25,Players!$AF$3:$AH$1019,2,FALSE),"") ->  | R25: =IFERROR(VLOOKUP(P25,Players!$AF$3:$AH$1019,3,FALSE),"") ->  | S25: =VLOOKUP(P25,Players!$AF$3:$AI$1019,4,FALSE) ->  | U25: TRUE | V25: 0 | W25: 0 | Y25: 18 | Z25: =IFERROR(VLOOKUP(Y25,Players!$BO$3:$BQ$1019,2,FALSE),"") ->  | AA25: =IFERROR(VLOOKUP(Y25,Players!$BO$3:$BQ$1019,3,FALSE),"") ->  | AB25: =VLOOKUP(Y25,Players!$BO$3:$BR$1019,4,FALSE) ->  | AD25: TRUE | AE25: 0 | AF25: 0
A26: =IF('User Input'!C14 = 0,"",'User Input'!C14) ->  | B26: =IF('User Input'!C14=0,"",COUNTIF(Players!$O$3:$O$903,A26)) ->  | C26: =IF('User Input'!C14=0,"",COUNTIF(Players!$AV$3:$AW$937,A26)) ->  | D26: =IF('User Input'!C14=0,"",C26+B26) ->  | E26: =IF('User Input'!C14=0,"",SUMIF(Players!$O$3:$O$903,A26,Players!$P$3:$P$903)) ->  | F26: =IF('User Input'!C14=0,"",SUMIF(Players!$AW$3:$AW$937,A26,Players!$AX$3:$AX$937)) ->  | G26: =IF('User Input'!C14 = 0,"",F26+E26) ->  | H26: =IF('User Input'!C14=0,"",IF(('User Input'!$C$34-B26)<0,0,'User Input'!$C$34-B26)) ->  | I26: =IF('User Input'!C14=0,"",IF(('User Input'!$C$35-C26)<0,0,'User Input'!$C$35-C26)) ->  | J26: =IF('User Input'!C14=0,"",K26-H26-I26) ->  | K26: =IF('User Input'!C14 = 0,"",'User Input'!$C$34+'User Input'!$C$35+'User Input'!$C$36-D26) ->  | L26: =IF('User Input'!C14 = 0,"",'User Input'!$C$32-G26) ->  | M26: =IF('User Input'!C14=0,"",IF(K26<1,0,L26/K26)) ->  | N26: =IF('User Input'!C14 = 0,"",L26-K26+1) ->  | P26: 19 | Q26: =IFERROR(VLOOKUP(P26,Players!$AF$3:$AH$1019,2,FALSE),"") ->  | R26: =IFERROR(VLOOKUP(P26,Players!$AF$3:$AH$1019,3,FALSE),"") ->  | S26: =VLOOKUP(P26,Players!$AF$3:$AI$1019,4,FALSE) ->  | U26: TRUE | V26: 0 | W26: 0 | Y26: 19 | Z26: =IFERROR(VLOOKUP(Y26,Players!$BO$3:$BQ$1019,2,FALSE),"") ->  | AA26: =IFERROR(VLOOKUP(Y26,Players!$BO$3:$BQ$1019,3,FALSE),"") ->  | AB26: =VLOOKUP(Y26,Players!$BO$3:$BR$1019,4,FALSE) ->  | AD26: TRUE | AE26: 0 | AF26: 0
A27: =IF('User Input'!C15 = 0,"",'User Input'!C15) ->  | B27: =IF('User Input'!C15=0,"",COUNTIF(Players!$O$3:$O$903,A27)) ->  | C27: =IF('User Input'!C15=0,"",COUNTIF(Players!$AV$3:$AW$937,A27)) ->  | D27: =IF('User Input'!C15=0,"",C27+B27) ->  | E27: =IF('User Input'!C15=0,"",SUMIF(Players!$O$3:$O$903,A27,Players!$P$3:$P$903)) ->  | F27: =IF('User Input'!C15=0,"",SUMIF(Players!$AW$3:$AW$937,A27,Players!$AX$3:$AX$937)) ->  | G27: =IF('User Input'!C15 = 0,"",F27+E27) ->  | H27: =IF('User Input'!C15=0,"",IF(('User Input'!$C$34-B27)<0,0,'User Input'!$C$34-B27)) ->  | I27: =IF('User Input'!C15=0,"",IF(('User Input'!$C$35-C27)<0,0,'User Input'!$C$35-C27)) ->  | J27: =IF('User Input'!C15=0,"",K27-H27-I27) ->  | K27: =IF('User Input'!C15 = 0,"",'User Input'!$C$34+'User Input'!$C$35+'User Input'!$C$36-D27) ->  | L27: =IF('User Input'!C15 = 0,"",'User Input'!$C$32-G27) ->  | M27: =IF('User Input'!C15=0,"",IF(K27<1,0,L27/K27)) ->  | N27: =IF('User Input'!C15 = 0,"",L27-K27+1) ->  | P27: 20 | Q27: =IFERROR(VLOOKUP(P27,Players!$AF$3:$AH$1019,2,FALSE),"") ->  | R27: =IFERROR(VLOOKUP(P27,Players!$AF$3:$AH$1019,3,FALSE),"") ->  | S27: =VLOOKUP(P27,Players!$AF$3:$AI$1019,4,FALSE) ->  | U27: TRUE | V27: 0 | W27: 0 | Y27: 20 | Z27: =IFERROR(VLOOKUP(Y27,Players!$BO$3:$BQ$1019,2,FALSE),"") ->  | AA27: =IFERROR(VLOOKUP(Y27,Players!$BO$3:$BQ$1019,3,FALSE),"") ->  | AB27: =VLOOKUP(Y27,Players!$BO$3:$BR$1019,4,FALSE) ->  | AD27: TRUE | AE27: 0 | AF27: 0
A28: =IF('User Input'!C16 = 0,"",'User Input'!C16) ->  | B28: =IF('User Input'!C16=0,"",COUNTIF(Players!$O$3:$O$903,A28)) ->  | C28: =IF('User Input'!C16=0,"",COUNTIF(Players!$AV$3:$AW$937,A28)) ->  | D28: =IF('User Input'!C16=0,"",C28+B28) ->  | E28: =IF('User Input'!C16=0,"",SUMIF(Players!$O$3:$O$903,A28,Players!$P$3:$P$903)) ->  | F28: =IF('User Input'!C16=0,"",SUMIF(Players!$AW$3:$AW$937,A28,Players!$AX$3:$AX$937)) ->  | G28: =IF('User Input'!C16 = 0,"",F28+E28) ->  | H28: =IF('User Input'!C16=0,"",IF(('User Input'!$C$34-B28)<0,0,'User Input'!$C$34-B28)) ->  | I28: =IF('User Input'!C16=0,"",IF(('User Input'!$C$35-C28)<0,0,'User Input'!$C$35-C28)) ->  | J28: =IF('User Input'!C16=0,"",K28-H28-I28) ->  | K28: =IF('User Input'!C16 = 0,"",'User Input'!$C$34+'User Input'!$C$35+'User Input'!$C$36-D28) ->  | L28: =IF('User Input'!C16 = 0,"",'User Input'!$C$32-G28) ->  | M28: =IF('User Input'!C16=0,"",IF(K28<1,0,L28/K28)) ->  | N28: =IF('User Input'!C16 = 0,"",L28-K28+1) ->  | P28: 21 | Q28: =IFERROR(VLOOKUP(P28,Players!$AF$3:$AH$1019,2,FALSE),"") ->  | R28: =IFERROR(VLOOKUP(P28,Players!$AF$3:$AH$1019,3,FALSE),"") ->  | S28: =VLOOKUP(P28,Players!$AF$3:$AI$1019,4,FALSE) ->  | U28: TRUE | V28: 0 | W28: 0 | Y28: 21 | Z28: =IFERROR(VLOOKUP(Y28,Players!$BO$3:$BQ$1019,2,FALSE),"") ->  | AA28: =IFERROR(VLOOKUP(Y28,Players!$BO$3:$BQ$1019,3,FALSE),"") ->  | AB28: =VLOOKUP(Y28,Players!$BO$3:$BR$1019,4,FALSE) ->  | AD28: TRUE | AE28: 0 | AF28: 0
A29: =IF('User Input'!C17 = 0,"",'User Input'!C17) ->  | B29: =IF('User Input'!C17=0,"",COUNTIF(Players!$O$3:$O$903,A29)) ->  | C29: =IF('User Input'!C17=0,"",COUNTIF(Players!$AV$3:$AW$937,A29)) ->  | D29: =IF('User Input'!C17=0,"",C29+B29) ->  | E29: =IF('User Input'!C17=0,"",SUMIF(Players!$O$3:$O$903,A29,Players!$P$3:$P$903)) ->  | F29: =IF('User Input'!C17=0,"",SUMIF(Players!$AW$3:$AW$937,A29,Players!$AX$3:$AX$937)) ->  | G29: =IF('User Input'!C17 = 0,"",F29+E29) ->  | H29: =IF('User Input'!C17=0,"",IF(('User Input'!$C$34-B29)<0,0,'User Input'!$C$34-B29)) ->  | I29: =IF('User Input'!C17=0,"",IF(('User Input'!$C$35-C29)<0,0,'User Input'!$C$35-C29)) ->  | J29: =IF('User Input'!C17=0,"",K29-H29-I29) ->  | K29: =IF('User Input'!C17 = 0,"",'User Input'!$C$34+'User Input'!$C$35+'User Input'!$C$36-D29) ->  | L29: =IF('User Input'!C17 = 0,"",'User Input'!$C$32-G29) ->  | M29: =IF('User Input'!C17=0,"",IF(K29<1,0,L29/K29)) ->  | N29: =IF('User Input'!C17 = 0,"",L29-K29+1) ->  | P29: 22 | Q29: =IFERROR(VLOOKUP(P29,Players!$AF$3:$AH$1019,2,FALSE),"") ->  | R29: =IFERROR(VLOOKUP(P29,Players!$AF$3:$AH$1019,3,FALSE),"") ->  | S29: =VLOOKUP(P29,Players!$AF$3:$AI$1019,4,FALSE) ->  | U29: TRUE | V29: 0 | W29: 0 | Y29: 22 | Z29: =IFERROR(VLOOKUP(Y29,Players!$BO$3:$BQ$1019,2,FALSE),"") ->  | AA29: =IFERROR(VLOOKUP(Y29,Players!$BO$3:$BQ$1019,3,FALSE),"") ->  | AB29: =VLOOKUP(Y29,Players!$BO$3:$BR$1019,4,FALSE) ->  | AD29: TRUE | AE29: 0 | AF29: 0
A30: =IF('User Input'!C18 = 0,"",'User Input'!C18) ->  | B30: =IF('User Input'!C18=0,"",COUNTIF(Players!$O$3:$O$903,A30)) ->  | C30: =IF('User Input'!C18=0,"",COUNTIF(Players!$AV$3:$AW$937,A30)) ->  | D30: =IF('User Input'!C18=0,"",C30+B30) ->  | E30: =IF('User Input'!C18=0,"",SUMIF(Players!$O$3:$O$903,A30,Players!$P$3:$P$903)) ->  | F30: =IF('User Input'!C18=0,"",SUMIF(Players!$AW$3:$AW$937,A30,Players!$AX$3:$AX$937)) ->  | G30: =IF('User Input'!C18 = 0,"",F30+E30) ->  | H30: =IF('User Input'!C18=0,"",IF(('User Input'!$C$34-B30)<0,0,'User Input'!$C$34-B30)) ->  | I30: =IF('User Input'!C18=0,"",IF(('User Input'!$C$35-C30)<0,0,'User Input'!$C$35-C30)) ->  | J30: =IF('User Input'!C18=0,"",K30-H30-I30) ->  | K30: =IF('User Input'!C18 = 0,"",'User Input'!$C$34+'User Input'!$C$35+'User Input'!$C$36-D30) ->  | L30: =IF('User Input'!C18 = 0,"",'User Input'!$C$32-G30) ->  | M30: =IF('User Input'!C18=0,"",IF(K30<1,0,L30/K30)) ->  | N30: =IF('User Input'!C18 = 0,"",L30-K30+1) ->  | P30: 23 | Q30: =IFERROR(VLOOKUP(P30,Players!$AF$3:$AH$1019,2,FALSE),"") ->  | R30: =IFERROR(VLOOKUP(P30,Players!$AF$3:$AH$1019,3,FALSE),"") ->  | S30: =VLOOKUP(P30,Players!$AF$3:$AI$1019,4,FALSE) ->  | U30: TRUE | V30: 0 | W30: 0 | Y30: 23 | Z30: =IFERROR(VLOOKUP(Y30,Players!$BO$3:$BQ$1019,2,FALSE),"") ->  | AA30: =IFERROR(VLOOKUP(Y30,Players!$BO$3:$BQ$1019,3,FALSE),"") ->  | AB30: =VLOOKUP(Y30,Players!$BO$3:$BR$1019,4,FALSE) ->  | AD30: TRUE | AE30: 0 | AF30: 0
A31: =IF('User Input'!C19 = 0,"",'User Input'!C19) ->  | B31: =IF('User Input'!C19=0,"",COUNTIF(Players!$O$3:$O$903,A31)) ->  | C31: =IF('User Input'!C19=0,"",COUNTIF(Players!$AV$3:$AW$937,A31)) ->  | D31: =IF('User Input'!C19=0,"",C31+B31) ->  | E31: =IF('User Input'!C19=0,"",SUMIF(Players!$O$3:$O$903,A31,Players!$P$3:$P$903)) ->  | F31: =IF('User Input'!C19=0,"",SUMIF(Players!$AW$3:$AW$937,A31,Players!$AX$3:$AX$937)) ->  | G31: =IF('User Input'!C19 = 0,"",F31+E31) ->  | H31: =IF('User Input'!C19=0,"",IF(('User Input'!$C$34-B31)<0,0,'User Input'!$C$34-B31)) ->  | I31: =IF('User Input'!C19=0,"",IF(('User Input'!$C$35-C31)<0,0,'User Input'!$C$35-C31)) ->  | J31: =IF('User Input'!C19=0,"",K31-H31-I31) ->  | K31: =IF('User Input'!C19 = 0,"",'User Input'!$C$34+'User Input'!$C$35+'User Input'!$C$36-D31) ->  | L31: =IF('User Input'!C19 = 0,"",'User Input'!$C$32-G31) ->  | M31: =IF('User Input'!C19=0,"",IF(K31<1,0,L31/K31)) ->  | N31: =IF('User Input'!C19 = 0,"",L31-K31+1) ->  | P31: 24 | Q31: =IFERROR(VLOOKUP(P31,Players!$AF$3:$AH$1019,2,FALSE),"") ->  | R31: =IFERROR(VLOOKUP(P31,Players!$AF$3:$AH$1019,3,FALSE),"") ->  | S31: =VLOOKUP(P31,Players!$AF$3:$AI$1019,4,FALSE) ->  | U31: TRUE | V31: 0 | W31: 0 | Y31: 24 | Z31: =IFERROR(VLOOKUP(Y31,Players!$BO$3:$BQ$1019,2,FALSE),"") ->  | AA31: =IFERROR(VLOOKUP(Y31,Players!$BO$3:$BQ$1019,3,FALSE),"") ->  | AB31: =VLOOKUP(Y31,Players!$BO$3:$BR$1019,4,FALSE) ->  | AD31: TRUE | AE31: 0 | AF31: 0
A32: =IF('User Input'!C20 = 0,"",'User Input'!C20) ->  | B32: =IF('User Input'!C20=0,"",COUNTIF(Players!$O$3:$O$903,A32)) ->  | C32: =IF('User Input'!C20=0,"",COUNTIF(Players!$AV$3:$AW$937,A32)) ->  | D32: =IF('User Input'!C20=0,"",C32+B32) ->  | E32: =IF('User Input'!C20=0,"",SUMIF(Players!$O$3:$O$903,A32,Players!$P$3:$P$903)) ->  | F32: =IF('User Input'!C20=0,"",SUMIF(Players!$AW$3:$AW$937,A32,Players!$AX$3:$AX$937)) ->  | G32: =IF('User Input'!C20 = 0,"",F32+E32) ->  | H32: =IF('User Input'!C20=0,"",IF(('User Input'!$C$34-B32)<0,0,'User Input'!$C$34-B32)) ->  | I32: =IF('User Input'!C20=0,"",IF(('User Input'!$C$35-C32)<0,0,'User Input'!$C$35-C32)) ->  | J32: =IF('User Input'!C20=0,"",K32-H32-I32) ->  | K32: =IF('User Input'!C20 = 0,"",'User Input'!$C$34+'User Input'!$C$35+'User Input'!$C$36-D32) ->  | L32: =IF('User Input'!C20 = 0,"",'User Input'!$C$32-G32) ->  | M32: =IF('User Input'!C20=0,"",IF(K32<1,0,L32/K32)) ->  | N32: =IF('User Input'!C20 = 0,"",L32-K32+1) ->  | P32: 25 | Q32: =IFERROR(VLOOKUP(P32,Players!$AF$3:$AH$1019,2,FALSE),"") ->  | R32: =IFERROR(VLOOKUP(P32,Players!$AF$3:$AH$1019,3,FALSE),"") ->  | S32: =VLOOKUP(P32,Players!$AF$3:$AI$1019,4,FALSE) ->  | U32: TRUE | V32: 0 | W32: 0 | Y32: 25 | Z32: =IFERROR(VLOOKUP(Y32,Players!$BO$3:$BQ$1019,2,FALSE),"") ->  | AA32: =IFERROR(VLOOKUP(Y32,Players!$BO$3:$BQ$1019,3,FALSE),"") ->  | AB32: =VLOOKUP(Y32,Players!$BO$3:$BR$1019,4,FALSE) ->  | AD32: TRUE | AE32: 0 | AF32: 0
A33: =IF('User Input'!C21 = 0,"",'User Input'!C21) ->  | B33: =IF('User Input'!C21=0,"",COUNTIF(Players!$O$3:$O$903,A33)) ->  | C33: =IF('User Input'!C21=0,"",COUNTIF(Players!$AV$3:$AW$937,A33)) ->  | D33: =IF('User Input'!C21=0,"",C33+B33) ->  | E33: =IF('User Input'!C21=0,"",SUMIF(Players!$O$3:$O$903,A33,Players!$P$3:$P$903)) ->  | F33: =IF('User Input'!C21=0,"",SUMIF(Players!$AW$3:$AW$937,A33,Players!$AX$3:$AX$937)) ->  | G33: =IF('User Input'!C21 = 0,"",F33+E33) ->  | H33: =IF('User Input'!C21=0,"",IF(('User Input'!$C$34-B33)<0,0,'User Input'!$C$34-B33)) ->  | I33: =IF('User Input'!C21=0,"",IF(('User Input'!$C$35-C33)<0,0,'User Input'!$C$35-C33)) ->  | J33: =IF('User Input'!C21=0,"",K33-H33-I33) ->  | K33: =IF('User Input'!C21 = 0,"",'User Input'!$C$34+'User Input'!$C$35+'User Input'!$C$36-D33) ->  | L33: =IF('User Input'!C21 = 0,"",'User Input'!$C$32-G33) ->  | M33: =IF('User Input'!C21=0,"",IF(K33<1,0,L33/K33)) ->  | N33: =IF('User Input'!C21 = 0,"",L33-K33+1) ->  | P33: 26 | Q33: =IFERROR(VLOOKUP(P33,Players!$AF$3:$AH$1019,2,FALSE),"") ->  | R33: =IFERROR(VLOOKUP(P33,Players!$AF$3:$AH$1019,3,FALSE),"") ->  | S33: =VLOOKUP(P33,Players!$AF$3:$AI$1019,4,FALSE) ->  | U33: TRUE | V33: 0 | W33: 0 | Y33: 26 | Z33: =IFERROR(VLOOKUP(Y33,Players!$BO$3:$BQ$1019,2,FALSE),"") ->  | AA33: =IFERROR(VLOOKUP(Y33,Players!$BO$3:$BQ$1019,3,FALSE),"") ->  | AB33: =VLOOKUP(Y33,Players!$BO$3:$BR$1019,4,FALSE) ->  | AD33: TRUE | AE33: 0 | AF33: 0
A34: =IF('User Input'!C22 = 0,"",'User Input'!C22) ->  | B34: =IF('User Input'!C22=0,"",COUNTIF(Players!$O$3:$O$903,A34)) ->  | C34: =IF('User Input'!C22=0,"",COUNTIF(Players!$AV$3:$AW$937,A34)) ->  | D34: =IF('User Input'!C22=0,"",C34+B34) ->  | E34: =IF('User Input'!C22=0,"",SUMIF(Players!$O$3:$O$903,A34,Players!$P$3:$P$903)) ->  | F34: =IF('User Input'!C22=0,"",SUMIF(Players!$AW$3:$AW$937,A34,Players!$AX$3:$AX$937)) ->  | G34: =IF('User Input'!C22 = 0,"",F34+E34) ->  | H34: =IF('User Input'!C22=0,"",IF(('User Input'!$C$34-B34)<0,0,'User Input'!$C$34-B34)) ->  | I34: =IF('User Input'!C22=0,"",IF(('User Input'!$C$35-C34)<0,0,'User Input'!$C$35-C34)) ->  | J34: =IF('User Input'!C22=0,"",K34-H34-I34) ->  | K34: =IF('User Input'!C22 = 0,"",'User Input'!$C$34+'User Input'!$C$35+'User Input'!$C$36-D34) ->  | L34: =IF('User Input'!C22 = 0,"",'User Input'!$C$32-G34) ->  | M34: =IF('User Input'!C22=0,"",IF(K34<1,0,L34/K34)) ->  | N34: =IF('User Input'!C22 = 0,"",L34-K34+1) ->  | P34: 27 | Q34: =IFERROR(VLOOKUP(P34,Players!$AF$3:$AH$1019,2,FALSE),"") ->  | R34: =IFERROR(VLOOKUP(P34,Players!$AF$3:$AH$1019,3,FALSE),"") ->  | S34: =VLOOKUP(P34,Players!$AF$3:$AI$1019,4,FALSE) ->  | U34: TRUE | V34: 0 | W34: 0 | Y34: 27 | Z34: =IFERROR(VLOOKUP(Y34,Players!$BO$3:$BQ$1019,2,FALSE),"") ->  | AA34: =IFERROR(VLOOKUP(Y34,Players!$BO$3:$BQ$1019,3,FALSE),"") ->  | AB34: =VLOOKUP(Y34,Players!$BO$3:$BR$1019,4,FALSE) ->  | AD34: TRUE | AE34: 0 | AF34: 0
A35: =IF('User Input'!C23 = 0,"",'User Input'!C23) ->  | B35: =IF('User Input'!C23=0,"",COUNTIF(Players!$O$3:$O$903,A35)) ->  | C35: =IF('User Input'!C23=0,"",COUNTIF(Players!$AV$3:$AW$937,A35)) ->  | D35: =IF('User Input'!C23=0,"",C35+B35) ->  | E35: =IF('User Input'!C23=0,"",SUMIF(Players!$O$3:$O$903,A35,Players!$P$3:$P$903)) ->  | F35: =IF('User Input'!C23=0,"",SUMIF(Players!$AW$3:$AW$937,A35,Players!$AX$3:$AX$937)) ->  | G35: =IF('User Input'!C23 = 0,"",F35+E35) ->  | H35: =IF('User Input'!C23=0,"",IF(('User Input'!$C$34-B35)<0,0,'User Input'!$C$34-B35)) ->  | I35: =IF('User Input'!C23=0,"",IF(('User Input'!$C$35-C35)<0,0,'User Input'!$C$35-C35)) ->  | J35: =IF('User Input'!C23=0,"",K35-H35-I35) ->  | K35: =IF('User Input'!C23 = 0,"",'User Input'!$C$34+'User Input'!$C$35+'User Input'!$C$36-D35) ->  | L35: =IF('User Input'!C23 = 0,"",'User Input'!$C$32-G35) ->  | M35: =IF('User Input'!C23=0,"",IF(K35<1,0,L35/K35)) ->  | N35: =IF('User Input'!C23 = 0,"",L35-K35+1) ->  | P35: 28 | Q35: =IFERROR(VLOOKUP(P35,Players!$AF$3:$AH$1019,2,FALSE),"") ->  | R35: =IFERROR(VLOOKUP(P35,Players!$AF$3:$AH$1019,3,FALSE),"") ->  | S35: =VLOOKUP(P35,Players!$AF$3:$AI$1019,4,FALSE) ->  | U35: TRUE | V35: 0 | W35: 0 | Y35: 28 | Z35: =IFERROR(VLOOKUP(Y35,Players!$BO$3:$BQ$1019,2,FALSE),"") ->  | AA35: =IFERROR(VLOOKUP(Y35,Players!$BO$3:$BQ$1019,3,FALSE),"") ->  | AB35: =VLOOKUP(Y35,Players!$BO$3:$BR$1019,4,FALSE) ->  | AD35: TRUE | AE35: 0 | AF35: 0
A36: =IF('User Input'!C24 = 0,"",'User Input'!C24) ->  | B36: =IF('User Input'!C24=0,"",COUNTIF(Players!$O$3:$O$903,A36)) ->  | C36: =IF('User Input'!C24=0,"",COUNTIF(Players!$AV$3:$AW$937,A36)) ->  | D36: =IF('User Input'!C24=0,"",C36+B36) ->  | E36: =IF('User Input'!C24=0,"",SUMIF(Players!$O$3:$O$903,A36,Players!$P$3:$P$903)) ->  | F36: =IF('User Input'!C24=0,"",SUMIF(Players!$AW$3:$AW$937,A36,Players!$AX$3:$AX$937)) ->  | G36: =IF('User Input'!C24 = 0,"",F36+E36) ->  | H36: =IF('User Input'!C24=0,"",IF(('User Input'!$C$34-B36)<0,0,'User Input'!$C$34-B36)) ->  | I36: =IF('User Input'!C24=0,"",IF(('User Input'!$C$35-C36)<0,0,'User Input'!$C$35-C36)) ->  | J36: =IF('User Input'!C24=0,"",K36-H36-I36) ->  | K36: =IF('User Input'!C24 = 0,"",'User Input'!$C$34+'User Input'!$C$35+'User Input'!$C$36-D36) ->  | L36: =IF('User Input'!C24 = 0,"",'User Input'!$C$32-G36) ->  | M36: =IF('User Input'!C24=0,"",IF(K36<1,0,L36/K36)) ->  | N36: =IF('User Input'!C24 = 0,"",L36-K36+1) ->  | P36: 29 | Q36: =IFERROR(VLOOKUP(P36,Players!$AF$3:$AH$1019,2,FALSE),"") ->  | R36: =IFERROR(VLOOKUP(P36,Players!$AF$3:$AH$1019,3,FALSE),"") ->  | S36: =VLOOKUP(P36,Players!$AF$3:$AI$1019,4,FALSE) ->  | U36: TRUE | V36: 0 | W36: 0 | Y36: 29 | Z36: =IFERROR(VLOOKUP(Y36,Players!$BO$3:$BQ$1019,2,FALSE),"") ->  | AA36: =IFERROR(VLOOKUP(Y36,Players!$BO$3:$BQ$1019,3,FALSE),"") ->  | AB36: =VLOOKUP(Y36,Players!$BO$3:$BR$1019,4,FALSE) ->  | AD36: TRUE | AE36: 0 | AF36: 0
A37: =IF('User Input'!C25 = 0,"",'User Input'!C25) ->  | B37: =IF('User Input'!C25=0,"",COUNTIF(Players!$O$3:$O$903,A37)) ->  | C37: =IF('User Input'!C25=0,"",COUNTIF(Players!$AV$3:$AW$937,A37)) ->  | D37: =IF('User Input'!C25=0,"",C37+B37) ->  | E37: =IF('User Input'!C25=0,"",SUMIF(Players!$O$3:$O$903,A37,Players!$P$3:$P$903)) ->  | F37: =IF('User Input'!C25=0,"",SUMIF(Players!$AW$3:$AW$937,A37,Players!$AX$3:$AX$937)) ->  | G37: =IF('User Input'!C25 = 0,"",F37+E37) ->  | H37: =IF('User Input'!C25=0,"",IF(('User Input'!$C$34-B37)<0,0,'User Input'!$C$34-B37)) ->  | I37: =IF('User Input'!C25=0,"",IF(('User Input'!$C$35-C37)<0,0,'User Input'!$C$35-C37)) ->  | J37: =IF('User Input'!C25=0,"",K37-H37-I37) ->  | K37: =IF('User Input'!C25 = 0,"",'User Input'!$C$34+'User Input'!$C$35+'User Input'!$C$36-D37) ->  | L37: =IF('User Input'!C25 = 0,"",'User Input'!$C$32-G37) ->  | M37: =IF('User Input'!C25=0,"",IF(K37<1,0,L37/K37)) ->  | N37: =IF('User Input'!C25 = 0,"",L37-K37+1) ->  | P37: 30 | Q37: =IFERROR(VLOOKUP(P37,Players!$AF$3:$AH$1019,2,FALSE),"") ->  | R37: =IFERROR(VLOOKUP(P37,Players!$AF$3:$AH$1019,3,FALSE),"") ->  | S37: =VLOOKUP(P37,Players!$AF$3:$AI$1019,4,FALSE) ->  | Y37: 30 | Z37: =IFERROR(VLOOKUP(Y37,Players!$BO$3:$BQ$1019,2,FALSE),"") ->  | AA37: =IFERROR(VLOOKUP(Y37,Players!$BO$3:$BQ$1019,3,FALSE),"") ->  | AB37: =VLOOKUP(Y37,Players!$BO$3:$BR$1019,4,FALSE) -> 
A38: =IF('User Input'!C26 = 0,"",'User Input'!C26) ->  | B38: =IF('User Input'!C26=0,"",COUNTIF(Players!$O$3:$O$903,A38)) ->  | C38: =IF('User Input'!C26=0,"",COUNTIF(Players!$AV$3:$AW$937,A38)) ->  | D38: =IF('User Input'!C26=0,"",C38+B38) ->  | E38: =IF('User Input'!C26=0,"",SUMIF(Players!$O$3:$O$903,A38,Players!$P$3:$P$903)) ->  | F38: =IF('User Input'!C26=0,"",SUMIF(Players!$AW$3:$AW$937,A38,Players!$AX$3:$AX$937)) ->  | G38: =IF('User Input'!C26 = 0,"",F38+E38) ->  | H38: =IF('User Input'!C26=0,"",IF(('User Input'!$C$34-B38)<0,0,'User Input'!$C$34-B38)) ->  | I38: =IF('User Input'!C26=0,"",IF(('User Input'!$C$35-C38)<0,0,'User Input'!$C$35-C38)) ->  | J38: =IF('User Input'!C26=0,"",K38-H38-I38) ->  | K38: =IF('User Input'!C26 = 0,"",'User Input'!$C$34+'User Input'!$C$35+'User Input'!$C$36-D38) ->  | L38: =IF('User Input'!C26 = 0,"",'User Input'!$C$32-G38) ->  | M38: =IF('User Input'!C26=0,"",IF(K38<1,0,L38/K38)) ->  | N38: =IF('User Input'!C26 = 0,"",L38-K38+1) ->  | P38: 31 | Q38: =IFERROR(VLOOKUP(P38,Players!$AF$3:$AH$1019,2,FALSE),"") ->  | R38: =IFERROR(VLOOKUP(P38,Players!$AF$3:$AH$1019,3,FALSE),"") ->  | S38: =VLOOKUP(P38,Players!$AF$3:$AI$1019,4,FALSE) ->  | Y38: 31 | Z38: =IFERROR(VLOOKUP(Y38,Players!$BO$3:$BQ$1019,2,FALSE),"") ->  | AA38: =IFERROR(VLOOKUP(Y38,Players!$BO$3:$BQ$1019,3,FALSE),"") ->  | AB38: =VLOOKUP(Y38,Players!$BO$3:$BR$1019,4,FALSE) -> 
A39: =IF('User Input'!C27 = 0,"",'User Input'!C27) ->  | B39: =IF('User Input'!C27=0,"",COUNTIF(Players!$O$3:$O$903,A39)) ->  | C39: =IF('User Input'!C27=0,"",COUNTIF(Players!$AV$3:$AW$937,A39)) ->  | D39: =IF('User Input'!C27=0,"",C39+B39) ->  | E39: =IF('User Input'!C27=0,"",SUMIF(Players!$O$3:$O$903,A39,Players!$P$3:$P$903)) ->  | F39: =IF('User Input'!C27=0,"",SUMIF(Players!$AW$3:$AW$937,A39,Players!$AX$3:$AX$937)) ->  | G39: =IF('User Input'!C27 = 0,"",F39+E39) ->  | H39: =IF('User Input'!C27=0,"",IF(('User Input'!$C$34-B39)<0,0,'User Input'!$C$34-B39)) ->  | I39: =IF('User Input'!C27=0,"",IF(('User Input'!$C$35-C39)<0,0,'User Input'!$C$35-C39)) ->  | J39: =IF('User Input'!C27=0,"",K39-H39-I39) ->  | K39: =IF('User Input'!C27 = 0,"",'User Input'!$C$34+'User Input'!$C$35+'User Input'!$C$36-D39) ->  | L39: =IF('User Input'!C27 = 0,"",'User Input'!$C$32-G39) ->  | M39: =IF('User Input'!C27=0,"",IF(K39<1,0,L39/K39)) ->  | N39: =IF('User Input'!C27 = 0,"",L39-K39+1) ->  | P39: 32 | Q39: =IFERROR(VLOOKUP(P39,Players!$AF$3:$AH$1019,2,FALSE),"") ->  | R39: =IFERROR(VLOOKUP(P39,Players!$AF$3:$AH$1019,3,FALSE),"") ->  | S39: =VLOOKUP(P39,Players!$AF$3:$AI$1019,4,FALSE) ->  | Y39: 32 | Z39: =IFERROR(VLOOKUP(Y39,Players!$BO$3:$BQ$1019,2,FALSE),"") ->  | AA39: =IFERROR(VLOOKUP(Y39,Players!$BO$3:$BQ$1019,3,FALSE),"") ->  | AB39: =VLOOKUP(Y39,Players!$BO$3:$BR$1019,4,FALSE) -> 
A40: =IF('User Input'!C28 = 0,"",'User Input'!C28) ->  | B40: =IF('User Input'!C28=0,"",COUNTIF(Players!$O$3:$O$903,A40)) ->  | C40: =IF('User Input'!C28=0,"",COUNTIF(Players!$AV$3:$AW$937,A40)) ->  | D40: =IF('User Input'!C28=0,"",C40+B40) ->  | E40: =IF('User Input'!C28=0,"",SUMIF(Players!$O$3:$O$903,A40,Players!$P$3:$P$903)) ->  | F40: =IF('User Input'!C28=0,"",SUMIF(Players!$AW$3:$AW$937,A40,Players!$AX$3:$AX$937)) ->  | G40: =IF('User Input'!C28 = 0,"",F40+E40) ->  | H40: =IF('User Input'!C28=0,"",IF(('User Input'!$C$34-B40)<0,0,'User Input'!$C$34-B40)) ->  | I40: =IF('User Input'!C28=0,"",IF(('User Input'!$C$35-C40)<0,0,'User Input'!$C$35-C40)) ->  | J40: =IF('User Input'!C28=0,"",K40-H40-I40) ->  | K40: =IF('User Input'!C28 = 0,"",'User Input'!$C$34+'User Input'!$C$35+'User Input'!$C$36-D40) ->  | L40: =IF('User Input'!C28 = 0,"",'User Input'!$C$32-G40) ->  | M40: =IF('User Input'!C28=0,"",IF(K40<1,0,L40/K40)) ->  | N40: =IF('User Input'!C28 = 0,"",L40-K40+1) ->  | P40: 33 | Q40: =IFERROR(VLOOKUP(P40,Players!$AF$3:$AH$1019,2,FALSE),"") ->  | R40: =IFERROR(VLOOKUP(P40,Players!$AF$3:$AH$1019,3,FALSE),"") ->  | S40: =VLOOKUP(P40,Players!$AF$3:$AI$1019,4,FALSE) ->  | Y40: 33 | Z40: =IFERROR(VLOOKUP(Y40,Players!$BO$3:$BQ$1019,2,FALSE),"") ->  | AA40: =IFERROR(VLOOKUP(Y40,Players!$BO$3:$BQ$1019,3,FALSE),"") ->  | AB40: =VLOOKUP(Y40,Players!$BO$3:$BR$1019,4,FALSE) -> 
A41: =IF('User Input'!C29 = 0,"",'User Input'!C29) ->  | B41: =IF('User Input'!C29=0,"",COUNTIF(Players!$O$3:$O$903,A41)) ->  | C41: =IF('User Input'!C29=0,"",COUNTIF(Players!$AV$3:$AW$937,A41)) ->  | D41: =IF('User Input'!C29=0,"",C41+B41) ->  | E41: =IF('User Input'!C29=0,"",SUMIF(Players!$O$3:$O$903,A41,Players!$P$3:$P$903)) ->  | F41: =IF('User Input'!C29=0,"",SUMIF(Players!$AW$3:$AW$937,A41,Players!$AX$3:$AX$937)) ->  | G41: =IF('User Input'!C29 = 0,"",F41+E41) ->  | H41: =IF('User Input'!C29=0,"",IF(('User Input'!$C$34-B41)<0,0,'User Input'!$C$34-B41)) ->  | I41: =IF('User Input'!C29=0,"",IF(('User Input'!$C$35-C41)<0,0,'User Input'!$C$35-C41)) ->  | J41: =IF('User Input'!C29=0,"",K41-H41-I41) ->  | K41: =IF('User Input'!C29 = 0,"",'User Input'!$C$34+'User Input'!$C$35+'User Input'!$C$36-D41) ->  | L41: =IF('User Input'!C29 = 0,"",'User Input'!$C$32-G41) ->  | M41: =IF('User Input'!C29=0,"",IF(K41<1,0,L41/K41)) ->  | N41: =IF('User Input'!C29 = 0,"",L41-K41+1) ->  | P41: 34 | Q41: =IFERROR(VLOOKUP(P41,Players!$AF$3:$AH$1019,2,FALSE),"") ->  | R41: =IFERROR(VLOOKUP(P41,Players!$AF$3:$AH$1019,3,FALSE),"") ->  | S41: =VLOOKUP(P41,Players!$AF$3:$AI$1019,4,FALSE) ->  | Y41: 34 | Z41: =IFERROR(VLOOKUP(Y41,Players!$BO$3:$BQ$1019,2,FALSE),"") ->  | AA41: =IFERROR(VLOOKUP(Y41,Players!$BO$3:$BQ$1019,3,FALSE),"") ->  | AB41: =VLOOKUP(Y41,Players!$BO$3:$BR$1019,4,FALSE) -> 
A42: =IF('User Input'!C30 = 0,"",'User Input'!C30) ->  | B42: =IF('User Input'!C30=0,"",COUNTIF(Players!$O$3:$O$903,A42)) ->  | C42: =IF('User Input'!C30=0,"",COUNTIF(Players!$AV$3:$AW$937,A42)) ->  | D42: =IF('User Input'!C30=0,"",C42+B42) ->  | E42: =IF('User Input'!C30=0,"",SUMIF(Players!$O$3:$O$903,A42,Players!$P$3:$P$903)) ->  | F42: =IF('User Input'!C30=0,"",SUMIF(Players!$AW$3:$AW$937,A42,Players!$AX$3:$AX$937)) ->  | G42: =IF('User Input'!C30 = 0,"",F42+E42) ->  | H42: =IF('User Input'!C30=0,"",IF(('User Input'!$C$34-B42)<0,0,'User Input'!$C$34-B42)) ->  | I42: =IF('User Input'!C30=0,"",IF(('User Input'!$C$35-C42)<0,0,'User Input'!$C$35-C42)) ->  | J42: =IF('User Input'!C30=0,"",K42-H42-I42) ->  | K42: =IF('User Input'!C30 = 0,"",'User Input'!$C$34+'User Input'!$C$35+'User Input'!$C$36-D42) ->  | L42: =IF('User Input'!C30 = 0,"",'User Input'!$C$32-G42) ->  | M42: =IF('User Input'!C30=0,"",IF(K42<1,0,L42/K42)) ->  | N42: =IF('User Input'!C30 = 0,"",L42-K42+1) ->  | P42: 35 | Q42: =IFERROR(VLOOKUP(P42,Players!$AF$3:$AH$1019,2,FALSE),"") ->  | R42: =IFERROR(VLOOKUP(P42,Players!$AF$3:$AH$1019,3,FALSE),"") ->  | S42: =VLOOKUP(P42,Players!$AF$3:$AI$1019,4,FALSE) ->  | U42: =ISERROR(S42) -> TRUE | V42: =IF(U42=FALSE,R42,0) -> 0 | W42: =IF(U42=FALSE,S42,0) -> 0 | Y42: 35 | Z42: =IFERROR(VLOOKUP(Y42,Players!$BO$3:$BQ$1019,2,FALSE),"") ->  | AA42: =IFERROR(VLOOKUP(Y42,Players!$BO$3:$BQ$1019,3,FALSE),"") ->  | AB42: =VLOOKUP(Y42,Players!$BO$3:$BR$1019,4,FALSE) ->  | AD42: TRUE | AE42: 0 | AF42: 0
R43: =SUM(V8:V42) -> 0 | S43: =SUM(W8:W42) -> 0 | AA43: =SUM(AE8:AE42) -> 0 | AB43: =SUM(AF8:AF42) -> 0
B44: RANKING STYLE: | C44: =IF(ranktype=1,'User Input'!N25,'User Input'!N24) -> descending 1-12 (1 is best, 12 worst) | I44: (change on User Input tab)
B45: Projected Batting Ranks | H45: Projected Pitching Ranks | M45: tot | N45: Team Rank** | O45: (** Total rank requires min 1 H and 1P from every active team)
B46: R | C46: HR | D46: RBI | E46: SB | F46: AVG | G46: IP | H46: ERA | I46: WHIP | J46: W | K46: S | L46: K
A47: =IF('User Input'!C1 = 0,"",'User Input'!C1) -> a | B47: =IF('User Input'!C1=0,"",RANK(C114,C$114:C$143,ranktype)) -> 1 | C47: =IF('User Input'!C1=0,"",RANK(D114,D$114:D$143,ranktype)) -> 1 | D47: =IF('User Input'!C1=0,"",RANK(E114,E$114:E$143,ranktype)) -> 1 | E47: =IF('User Input'!C1=0,"",RANK(F114,F$114:F$143,ranktype)) -> 1 | F47: =IF(ISERROR(IF('User Input'!C1=0,"",RANK(G114,G$114:G$143,ranktype))),"N/A",(IF('User Input'!C1=0,"",RANK(G114,G$114:G$143,ranktype)))) -> N/A | G47: =IF('User Input'!C1=0,"",SUMIF(Players!$AW$3:$AW$937,A47,Players!BD$3:BD$937)) -> 0 | H47: =IF(ISERROR(IF('User Input'!C1=0,"",RANK(I114,I$114:I$143,IF(ranktype=1,0,1)))),"N/A",(IF('User Input'!C1=0,"",RANK(I114,I$114:I$143,IF(ranktype=1,0,1))))) -> N/A | I47: =IF(ISERROR(IF('User Input'!C1=0,"",RANK(J114,J$114:J$143,IF(ranktype=1,0,1)))),"N/A",(IF('User Input'!C1=0,"",RANK(J114,J$114:J$143,IF(ranktype=1,0,1))))) -> N/A | J47: =IF('User Input'!C1=0,"",RANK(K114,K$114:K$143,ranktype)) -> 1 | K47: =IF('User Input'!C1=0,"",RANK(L114,L$114:L$143,ranktype)) -> 1 | L47: =IF('User Input'!C1=0,"",RANK(M114,M$114:M$143,ranktype)) -> 1 | M47: =IF(ISERROR(IF('User Input'!C1=0,"",B47+C47+D47+E47+F47+H47+I47+J47+K47+L47)),"N/A",(IF('User Input'!C1=0,"",B47+C47+D47+E47+F47+H47+I47+J47+K47+L47))) -> N/A | N47: =IF(ISERROR(IF('User Input'!C1=0,"",RANK(M47,M$47:M$76,IF(ranktype=1,0,1)))),"N/A",(IF('User Input'!C1=0,"",RANK(M47,M$47:M$76,IF(ranktype=1,0,1))))) -> N/A | O47: ← ← ← YOUR TEAM
A48: =IF('User Input'!C2 = 0,"",'User Input'!C2) -> b | B48: =IF('User Input'!C2=0,"",RANK(C115,C$114:C$143,ranktype)) -> 1 | C48: =IF('User Input'!C2=0,"",RANK(D115,D$114:D$143,ranktype)) -> 1 | D48: =IF('User Input'!C2=0,"",RANK(E115,E$114:E$143,ranktype)) -> 1 | E48: =IF('User Input'!C2=0,"",RANK(F115,F$114:F$143,ranktype)) -> 1 | F48: =IF(ISERROR(IF('User Input'!C2=0,"",RANK(G115,G$114:G$143,ranktype))),"N/A",(IF('User Input'!C2=0,"",RANK(G115,G$114:G$143,ranktype)))) -> N/A | G48: =IF('User Input'!C2=0,"",SUMIF(Players!$AW$3:$AW$937,A48,Players!BD$3:BD$937)) -> 0 | H48: =IF(ISERROR(IF('User Input'!C2=0,"",RANK(I115,I$114:I$143,IF(ranktype=1,0,1)))),"N/A",(IF('User Input'!C2=0,"",RANK(I115,I$114:I$143,IF(ranktype=1,0,1))))) -> N/A | I48: =IF(ISERROR(IF('User Input'!C2=0,"",RANK(J115,J$114:J$143,IF(ranktype=1,0,1)))),"N/A",(IF('User Input'!C2=0,"",RANK(J115,J$114:J$143,IF(ranktype=1,0,1))))) -> N/A | J48: =IF('User Input'!C2=0,"",RANK(K115,K$114:K$143,ranktype)) -> 1 | K48: =IF('User Input'!C2=0,"",RANK(L115,L$114:L$143,ranktype)) -> 1 | L48: =IF('User Input'!C2=0,"",RANK(M115,M$114:M$143,ranktype)) -> 1 | M48: =IF(ISERROR(IF('User Input'!C2=0,"",B48+C48+D48+E48+F48+H48+I48+J48+K48+L48)),"N/A",(IF('User Input'!C2=0,"",B48+C48+D48+E48+F48+H48+I48+J48+K48+L48))) -> N/A | N48: =IF(ISERROR(IF('User Input'!C2=0,"",RANK(M48,M$47:M$76,IF(ranktype=1,0,1)))),"N/A",(IF('User Input'!C2=0,"",RANK(M48,M$47:M$76,IF(ranktype=1,0,1))))) -> N/A
A49: =IF('User Input'!C3 = 0,"",'User Input'!C3) -> c | B49: =IF('User Input'!C3=0,"",RANK(C116,C$114:C$143,ranktype)) -> 1 | C49: =IF('User Input'!C3=0,"",RANK(D116,D$114:D$143,ranktype)) -> 1 | D49: =IF('User Input'!C3=0,"",RANK(E116,E$114:E$143,ranktype)) -> 1 | E49: =IF('User Input'!C3=0,"",RANK(F116,F$114:F$143,ranktype)) -> 1 | F49: =IF(ISERROR(IF('User Input'!C3=0,"",RANK(G116,G$114:G$143,ranktype))),"N/A",(IF('User Input'!C3=0,"",RANK(G116,G$114:G$143,ranktype)))) -> N/A | G49: =IF('User Input'!C3=0,"",SUMIF(Players!$AW$3:$AW$937,A49,Players!BD$3:BD$937)) -> 0 | H49: =IF(ISERROR(IF('User Input'!C3=0,"",RANK(I116,I$114:I$143,IF(ranktype=1,0,1)))),"N/A",(IF('User Input'!C3=0,"",RANK(I116,I$114:I$143,IF(ranktype=1,0,1))))) -> N/A | I49: =IF(ISERROR(IF('User Input'!C3=0,"",RANK(J116,J$114:J$143,IF(ranktype=1,0,1)))),"N/A",(IF('User Input'!C3=0,"",RANK(J116,J$114:J$143,IF(ranktype=1,0,1))))) -> N/A | J49: =IF('User Input'!C3=0,"",RANK(K116,K$114:K$143,ranktype)) -> 1 | K49: =IF('User Input'!C3=0,"",RANK(L116,L$114:L$143,ranktype)) -> 1 | L49: =IF('User Input'!C3=0,"",RANK(M116,M$114:M$143,ranktype)) -> 1 | M49: =IF(ISERROR(IF('User Input'!C3=0,"",B49+C49+D49+E49+F49+H49+I49+J49+K49+L49)),"N/A",(IF('User Input'!C3=0,"",B49+C49+D49+E49+F49+H49+I49+J49+K49+L49))) -> N/A | N49: =IF(ISERROR(IF('User Input'!C3=0,"",RANK(M49,M$47:M$76,IF(ranktype=1,0,1)))),"N/A",(IF('User Input'!C3=0,"",RANK(M49,M$47:M$76,IF(ranktype=1,0,1))))) -> N/A
A50: =IF('User Input'!C4 = 0,"",'User Input'!C4) -> d | B50: =IF('User Input'!C4=0,"",RANK(C117,C$114:C$143,ranktype)) -> 1 | C50: =IF('User Input'!C4=0,"",RANK(D117,D$114:D$143,ranktype)) -> 1 | D50: =IF('User Input'!C4=0,"",RANK(E117,E$114:E$143,ranktype)) -> 1 | E50: =IF('User Input'!C4=0,"",RANK(F117,F$114:F$143,ranktype)) -> 1 | F50: =IF(ISERROR(IF('User Input'!C4=0,"",RANK(G117,G$114:G$143,ranktype))),"N/A",(IF('User Input'!C4=0,"",RANK(G117,G$114:G$143,ranktype)))) -> N/A | G50: =IF('User Input'!C4=0,"",SUMIF(Players!$AW$3:$AW$937,A50,Players!BD$3:BD$937)) -> 0 | H50: =IF(ISERROR(IF('User Input'!C4=0,"",RANK(I117,I$114:I$143,IF(ranktype=1,0,1)))),"N/A",(IF('User Input'!C4=0,"",RANK(I117,I$114:I$143,IF(ranktype=1,0,1))))) -> N/A | I50: =IF(ISERROR(IF('User Input'!C4=0,"",RANK(J117,J$114:J$143,IF(ranktype=1,0,1)))),"N/A",(IF('User Input'!C4=0,"",RANK(J117,J$114:J$143,IF(ranktype=1,0,1))))) -> N/A | J50: =IF('User Input'!C4=0,"",RANK(K117,K$114:K$143,ranktype)) -> 1 | K50: =IF('User Input'!C4=0,"",RANK(L117,L$114:L$143,ranktype)) -> 1 | L50: =IF('User Input'!C4=0,"",RANK(M117,M$114:M$143,ranktype)) -> 1 | M50: =IF(ISERROR(IF('User Input'!C4=0,"",B50+C50+D50+E50+F50+H50+I50+J50+K50+L50)),"N/A",(IF('User Input'!C4=0,"",B50+C50+D50+E50+F50+H50+I50+J50+K50+L50))) -> N/A | N50: =IF(ISERROR(IF('User Input'!C4=0,"",RANK(M50,M$47:M$76,IF(ranktype=1,0,1)))),"N/A",(IF('User Input'!C4=0,"",RANK(M50,M$47:M$76,IF(ranktype=1,0,1))))) -> N/A
A51: =IF('User Input'!C5 = 0,"",'User Input'!C5) -> e | B51: =IF('User Input'!C5=0,"",RANK(C118,C$114:C$143,ranktype)) -> 1 | C51: =IF('User Input'!C5=0,"",RANK(D118,D$114:D$143,ranktype)) -> 1 | D51: =IF('User Input'!C5=0,"",RANK(E118,E$114:E$143,ranktype)) -> 1 | E51: =IF('User Input'!C5=0,"",RANK(F118,F$114:F$143,ranktype)) -> 1 | F51: =IF(ISERROR(IF('User Input'!C5=0,"",RANK(G118,G$114:G$143,ranktype))),"N/A",(IF('User Input'!C5=0,"",RANK(G118,G$114:G$143,ranktype)))) -> N/A | G51: =IF('User Input'!C5=0,"",SUMIF(Players!$AW$3:$AW$937,A51,Players!BD$3:BD$937)) -> 0 | H51: =IF(ISERROR(IF('User Input'!C5=0,"",RANK(I118,I$114:I$143,IF(ranktype=1,0,1)))),"N/A",(IF('User Input'!C5=0,"",RANK(I118,I$114:I$143,IF(ranktype=1,0,1))))) -> N/A | I51: =IF(ISERROR(IF('User Input'!C5=0,"",RANK(J118,J$114:J$143,IF(ranktype=1,0,1)))),"N/A",(IF('User Input'!C5=0,"",RANK(J118,J$114:J$143,IF(ranktype=1,0,1))))) -> N/A | J51: =IF('User Input'!C5=0,"",RANK(K118,K$114:K$143,ranktype)) -> 1 | K51: =IF('User Input'!C5=0,"",RANK(L118,L$114:L$143,ranktype)) -> 1 | L51: =IF('User Input'!C5=0,"",RANK(M118,M$114:M$143,ranktype)) -> 1 | M51: =IF(ISERROR(IF('User Input'!C5=0,"",B51+C51+D51+E51+F51+H51+I51+J51+K51+L51)),"N/A",(IF('User Input'!C5=0,"",B51+C51+D51+E51+F51+H51+I51+J51+K51+L51))) -> N/A | N51: =IF(ISERROR(IF('User Input'!C5=0,"",RANK(M51,M$47:M$76,IF(ranktype=1,0,1)))),"N/A",(IF('User Input'!C5=0,"",RANK(M51,M$47:M$76,IF(ranktype=1,0,1))))) -> N/A
A52: =IF('User Input'!C6 = 0,"",'User Input'!C6) -> f | B52: =IF('User Input'!C6=0,"",RANK(C119,C$114:C$143,ranktype)) -> 1 | C52: =IF('User Input'!C6=0,"",RANK(D119,D$114:D$143,ranktype)) -> 1 | D52: =IF('User Input'!C6=0,"",RANK(E119,E$114:E$143,ranktype)) -> 1 | E52: =IF('User Input'!C6=0,"",RANK(F119,F$114:F$143,ranktype)) -> 1 | F52: =IF(ISERROR(IF('User Input'!C6=0,"",RANK(G119,G$114:G$143,ranktype))),"N/A",(IF('User Input'!C6=0,"",RANK(G119,G$114:G$143,ranktype)))) -> N/A | G52: =IF('User Input'!C6=0,"",SUMIF(Players!$AW$3:$AW$937,A52,Players!BD$3:BD$937)) -> 0 | H52: =IF(ISERROR(IF('User Input'!C6=0,"",RANK(I119,I$114:I$143,IF(ranktype=1,0,1)))),"N/A",(IF('User Input'!C6=0,"",RANK(I119,I$114:I$143,IF(ranktype=1,0,1))))) -> N/A | I52: =IF(ISERROR(IF('User Input'!C6=0,"",RANK(J119,J$114:J$143,IF(ranktype=1,0,1)))),"N/A",(IF('User Input'!C6=0,"",RANK(J119,J$114:J$143,IF(ranktype=1,0,1))))) -> N/A | J52: =IF('User Input'!C6=0,"",RANK(K119,K$114:K$143,ranktype)) -> 1 | K52: =IF('User Input'!C6=0,"",RANK(L119,L$114:L$143,ranktype)) -> 1 | L52: =IF('User Input'!C6=0,"",RANK(M119,M$114:M$143,ranktype)) -> 1 | M52: =IF(ISERROR(IF('User Input'!C6=0,"",B52+C52+D52+E52+F52+H52+I52+J52+K52+L52)),"N/A",(IF('User Input'!C6=0,"",B52+C52+D52+E52+F52+H52+I52+J52+K52+L52))) -> N/A | N52: =IF(ISERROR(IF('User Input'!C6=0,"",RANK(M52,M$47:M$76,IF(ranktype=1,0,1)))),"N/A",(IF('User Input'!C6=0,"",RANK(M52,M$47:M$76,IF(ranktype=1,0,1))))) -> N/A
A53: =IF('User Input'!C7 = 0,"",'User Input'!C7) -> g | B53: =IF('User Input'!C7=0,"",RANK(C120,C$114:C$143,ranktype)) -> 1 | C53: =IF('User Input'!C7=0,"",RANK(D120,D$114:D$143,ranktype)) -> 1 | D53: =IF('User Input'!C7=0,"",RANK(E120,E$114:E$143,ranktype)) -> 1 | E53: =IF('User Input'!C7=0,"",RANK(F120,F$114:F$143,ranktype)) -> 1 | F53: =IF(ISERROR(IF('User Input'!C7=0,"",RANK(G120,G$114:G$143,ranktype))),"N/A",(IF('User Input'!C7=0,"",RANK(G120,G$114:G$143,ranktype)))) -> N/A | G53: =IF('User Input'!C7=0,"",SUMIF(Players!$AW$3:$AW$937,A53,Players!BD$3:BD$937)) -> 0 | H53: =IF(ISERROR(IF('User Input'!C7=0,"",RANK(I120,I$114:I$143,IF(ranktype=1,0,1)))),"N/A",(IF('User Input'!C7=0,"",RANK(I120,I$114:I$143,IF(ranktype=1,0,1))))) -> N/A | I53: =IF(ISERROR(IF('User Input'!C7=0,"",RANK(J120,J$114:J$143,IF(ranktype=1,0,1)))),"N/A",(IF('User Input'!C7=0,"",RANK(J120,J$114:J$143,IF(ranktype=1,0,1))))) -> N/A | J53: =IF('User Input'!C7=0,"",RANK(K120,K$114:K$143,ranktype)) -> 1 | K53: =IF('User Input'!C7=0,"",RANK(L120,L$114:L$143,ranktype)) -> 1 | L53: =IF('User Input'!C7=0,"",RANK(M120,M$114:M$143,ranktype)) -> 1 | M53: =IF(ISERROR(IF('User Input'!C7=0,"",B53+C53+D53+E53+F53+H53+I53+J53+K53+L53)),"N/A",(IF('User Input'!C7=0,"",B53+C53+D53+E53+F53+H53+I53+J53+K53+L53))) -> N/A | N53: =IF(ISERROR(IF('User Input'!C7=0,"",RANK(M53,M$47:M$76,IF(ranktype=1,0,1)))),"N/A",(IF('User Input'!C7=0,"",RANK(M53,M$47:M$76,IF(ranktype=1,0,1))))) -> N/A
A54: =IF('User Input'!C8 = 0,"",'User Input'!C8) -> h | B54: =IF('User Input'!C8=0,"",RANK(C121,C$114:C$143,ranktype)) -> 1 | C54: =IF('User Input'!C8=0,"",RANK(D121,D$114:D$143,ranktype)) -> 1 | D54: =IF('User Input'!C8=0,"",RANK(E121,E$114:E$143,ranktype)) -> 1 | E54: =IF('User Input'!C8=0,"",RANK(F121,F$114:F$143,ranktype)) -> 1 | F54: =IF(ISERROR(IF('User Input'!C8=0,"",RANK(G121,G$114:G$143,ranktype))),"N/A",(IF('User Input'!C8=0,"",RANK(G121,G$114:G$143,ranktype)))) -> N/A | G54: =IF('User Input'!C8=0,"",SUMIF(Players!$AW$3:$AW$937,A54,Players!BD$3:BD$937)) -> 0 | H54: =IF(ISERROR(IF('User Input'!C8=0,"",RANK(I121,I$114:I$143,IF(ranktype=1,0,1)))),"N/A",(IF('User Input'!C8=0,"",RANK(I121,I$114:I$143,IF(ranktype=1,0,1))))) -> N/A | I54: =IF(ISERROR(IF('User Input'!C8=0,"",RANK(J121,J$114:J$143,IF(ranktype=1,0,1)))),"N/A",(IF('User Input'!C8=0,"",RANK(J121,J$114:J$143,IF(ranktype=1,0,1))))) -> N/A | J54: =IF('User Input'!C8=0,"",RANK(K121,K$114:K$143,ranktype)) -> 1 | K54: =IF('User Input'!C8=0,"",RANK(L121,L$114:L$143,ranktype)) -> 1 | L54: =IF('User Input'!C8=0,"",RANK(M121,M$114:M$143,ranktype)) -> 1 | M54: =IF(ISERROR(IF('User Input'!C8=0,"",B54+C54+D54+E54+F54+H54+I54+J54+K54+L54)),"N/A",(IF('User Input'!C8=0,"",B54+C54+D54+E54+F54+H54+I54+J54+K54+L54))) -> N/A | N54: =IF(ISERROR(IF('User Input'!C8=0,"",RANK(M54,M$47:M$76,IF(ranktype=1,0,1)))),"N/A",(IF('User Input'!C8=0,"",RANK(M54,M$47:M$76,IF(ranktype=1,0,1))))) -> N/A
A55: =IF('User Input'!C9 = 0,"",'User Input'!C9) -> i | B55: =IF('User Input'!C9=0,"",RANK(C122,C$114:C$143,ranktype)) -> 1 | C55: =IF('User Input'!C9=0,"",RANK(D122,D$114:D$143,ranktype)) -> 1 | D55: =IF('User Input'!C9=0,"",RANK(E122,E$114:E$143,ranktype)) -> 1 | E55: =IF('User Input'!C9=0,"",RANK(F122,F$114:F$143,ranktype)) -> 1 | F55: =IF(ISERROR(IF('User Input'!C9=0,"",RANK(G122,G$114:G$143,ranktype))),"N/A",(IF('User Input'!C9=0,"",RANK(G122,G$114:G$143,ranktype)))) -> N/A | G55: =IF('User Input'!C9=0,"",SUMIF(Players!$AW$3:$AW$937,A55,Players!BD$3:BD$937)) -> 0 | H55: =IF(ISERROR(IF('User Input'!C9=0,"",RANK(I122,I$114:I$143,IF(ranktype=1,0,1)))),"N/A",(IF('User Input'!C9=0,"",RANK(I122,I$114:I$143,IF(ranktype=1,0,1))))) -> N/A | I55: =IF(ISERROR(IF('User Input'!C9=0,"",RANK(J122,J$114:J$143,IF(ranktype=1,0,1)))),"N/A",(IF('User Input'!C9=0,"",RANK(J122,J$114:J$143,IF(ranktype=1,0,1))))) -> N/A | J55: =IF('User Input'!C9=0,"",RANK(K122,K$114:K$143,ranktype)) -> 1 | K55: =IF('User Input'!C9=0,"",RANK(L122,L$114:L$143,ranktype)) -> 1 | L55: =IF('User Input'!C9=0,"",RANK(M122,M$114:M$143,ranktype)) -> 1 | M55: =IF(ISERROR(IF('User Input'!C9=0,"",B55+C55+D55+E55+F55+H55+I55+J55+K55+L55)),"N/A",(IF('User Input'!C9=0,"",B55+C55+D55+E55+F55+H55+I55+J55+K55+L55))) -> N/A | N55: =IF(ISERROR(IF('User Input'!C9=0,"",RANK(M55,M$47:M$76,IF(ranktype=1,0,1)))),"N/A",(IF('User Input'!C9=0,"",RANK(M55,M$47:M$76,IF(ranktype=1,0,1))))) -> N/A
A56: =IF('User Input'!C10 = 0,"",'User Input'!C10) -> j | B56: =IF('User Input'!C10=0,"",RANK(C123,C$114:C$143,ranktype)) -> 1 | C56: =IF('User Input'!C10=0,"",RANK(D123,D$114:D$143,ranktype)) -> 1 | D56: =IF('User Input'!C10=0,"",RANK(E123,E$114:E$143,ranktype)) -> 1 | E56: =IF('User Input'!C10=0,"",RANK(F123,F$114:F$143,ranktype)) -> 1 | F56: =IF(ISERROR(IF('User Input'!C10=0,"",RANK(G123,G$114:G$143,ranktype))),"N/A",(IF('User Input'!C10=0,"",RANK(G123,G$114:G$143,ranktype)))) -> N/A | G56: =IF('User Input'!C10=0,"",SUMIF(Players!$AW$3:$AW$937,A56,Players!BD$3:BD$937)) -> 0 | H56: =IF(ISERROR(IF('User Input'!C10=0,"",RANK(I123,I$114:I$143,IF(ranktype=1,0,1)))),"N/A",(IF('User Input'!C10=0,"",RANK(I123,I$114:I$143,IF(ranktype=1,0,1))))) -> N/A | I56: =IF(ISERROR(IF('User Input'!C10=0,"",RANK(J123,J$114:J$143,IF(ranktype=1,0,1)))),"N/A",(IF('User Input'!C10=0,"",RANK(J123,J$114:J$143,IF(ranktype=1,0,1))))) -> N/A | J56: =IF('User Input'!C10=0,"",RANK(K123,K$114:K$143,ranktype)) -> 1 | K56: =IF('User Input'!C10=0,"",RANK(L123,L$114:L$143,ranktype)) -> 1 | L56: =IF('User Input'!C10=0,"",RANK(M123,M$114:M$143,ranktype)) -> 1 | M56: =IF(ISERROR(IF('User Input'!C10=0,"",B56+C56+D56+E56+F56+H56+I56+J56+K56+L56)),"N/A",(IF('User Input'!C10=0,"",B56+C56+D56+E56+F56+H56+I56+J56+K56+L56))) -> N/A | N56: =IF(ISERROR(IF('User Input'!C10=0,"",RANK(M56,M$47:M$76,IF(ranktype=1,0,1)))),"N/A",(IF('User Input'!C10=0,"",RANK(M56,M$47:M$76,IF(ranktype=1,0,1))))) -> N/A
A57: =IF('User Input'!C11 = 0,"",'User Input'!C11) -> k | B57: =IF('User Input'!C11=0,"",RANK(C124,C$114:C$143,ranktype)) -> 1 | C57: =IF('User Input'!C11=0,"",RANK(D124,D$114:D$143,ranktype)) -> 1 | D57: =IF('User Input'!C11=0,"",RANK(E124,E$114:E$143,ranktype)) -> 1 | E57: =IF('User Input'!C11=0,"",RANK(F124,F$114:F$143,ranktype)) -> 1 | F57: =IF(ISERROR(IF('User Input'!C11=0,"",RANK(G124,G$114:G$143,ranktype))),"N/A",(IF('User Input'!C11=0,"",RANK(G124,G$114:G$143,ranktype)))) -> N/A | G57: =IF('User Input'!C11=0,"",SUMIF(Players!$AW$3:$AW$937,A57,Players!BD$3:BD$937)) -> 0 | H57: =IF(ISERROR(IF('User Input'!C11=0,"",RANK(I124,I$114:I$143,IF(ranktype=1,0,1)))),"N/A",(IF('User Input'!C11=0,"",RANK(I124,I$114:I$143,IF(ranktype=1,0,1))))) -> N/A | I57: =IF(ISERROR(IF('User Input'!C11=0,"",RANK(J124,J$114:J$143,IF(ranktype=1,0,1)))),"N/A",(IF('User Input'!C11=0,"",RANK(J124,J$114:J$143,IF(ranktype=1,0,1))))) -> N/A | J57: =IF('User Input'!C11=0,"",RANK(K124,K$114:K$143,ranktype)) -> 1 | K57: =IF('User Input'!C11=0,"",RANK(L124,L$114:L$143,ranktype)) -> 1 | L57: =IF('User Input'!C11=0,"",RANK(M124,M$114:M$143,ranktype)) -> 1 | M57: =IF(ISERROR(IF('User Input'!C11=0,"",B57+C57+D57+E57+F57+H57+I57+J57+K57+L57)),"N/A",(IF('User Input'!C11=0,"",B57+C57+D57+E57+F57+H57+I57+J57+K57+L57))) -> N/A | N57: =IF(ISERROR(IF('User Input'!C11=0,"",RANK(M57,M$47:M$76,IF(ranktype=1,0,1)))),"N/A",(IF('User Input'!C11=0,"",RANK(M57,M$47:M$76,IF(ranktype=1,0,1))))) -> N/A
A58: =IF('User Input'!C12 = 0,"",'User Input'!C12) -> l | B58: =IF('User Input'!C12=0,"",RANK(C125,C$114:C$143,ranktype)) -> 1 | C58: =IF('User Input'!C12=0,"",RANK(D125,D$114:D$143,ranktype)) -> 1 | D58: =IF('User Input'!C12=0,"",RANK(E125,E$114:E$143,ranktype)) -> 1 | E58: =IF('User Input'!C12=0,"",RANK(F125,F$114:F$143,ranktype)) -> 1 | F58: =IF(ISERROR(IF('User Input'!C12=0,"",RANK(G125,G$114:G$143,ranktype))),"N/A",(IF('User Input'!C12=0,"",RANK(G125,G$114:G$143,ranktype)))) -> N/A | G58: =IF('User Input'!C12=0,"",SUMIF(Players!$AW$3:$AW$937,A58,Players!BD$3:BD$937)) -> 0 | H58: =IF(ISERROR(IF('User Input'!C12=0,"",RANK(I125,I$114:I$143,IF(ranktype=1,0,1)))),"N/A",(IF('User Input'!C12=0,"",RANK(I125,I$114:I$143,IF(ranktype=1,0,1))))) -> N/A | I58: =IF(ISERROR(IF('User Input'!C12=0,"",RANK(J125,J$114:J$143,IF(ranktype=1,0,1)))),"N/A",(IF('User Input'!C12=0,"",RANK(J125,J$114:J$143,IF(ranktype=1,0,1))))) -> N/A | J58: =IF('User Input'!C12=0,"",RANK(K125,K$114:K$143,ranktype)) -> 1 | K58: =IF('User Input'!C12=0,"",RANK(L125,L$114:L$143,ranktype)) -> 1 | L58: =IF('User Input'!C12=0,"",RANK(M125,M$114:M$143,ranktype)) -> 1 | M58: =IF(ISERROR(IF('User Input'!C12=0,"",B58+C58+D58+E58+F58+H58+I58+J58+K58+L58)),"N/A",(IF('User Input'!C12=0,"",B58+C58+D58+E58+F58+H58+I58+J58+K58+L58))) -> N/A | N58: =IF(ISERROR(IF('User Input'!C12=0,"",RANK(M58,M$47:M$76,IF(ranktype=1,0,1)))),"N/A",(IF('User Input'!C12=0,"",RANK(M58,M$47:M$76,IF(ranktype=1,0,1))))) -> N/A
A59: =IF('User Input'!C13 = 0,"",'User Input'!C13) ->  | B59: =IF('User Input'!C13=0,"",RANK(C126,C$114:C$143,ranktype)) ->  | C59: =IF('User Input'!C13=0,"",RANK(D126,D$114:D$143,ranktype)) ->  | D59: =IF('User Input'!C13=0,"",RANK(E126,E$114:E$143,ranktype)) ->  | E59: =IF('User Input'!C13=0,"",RANK(F126,F$114:F$143,ranktype)) ->  | F59: =IF(ISERROR(IF('User Input'!C13=0,"",RANK(G126,G$114:G$143,ranktype))),"N/A",(IF('User Input'!C13=0,"",RANK(G126,G$114:G$143,ranktype)))) ->  | G59: =IF('User Input'!C13=0,"",SUMIF(Players!$AW$3:$AW$937,A59,Players!BD$3:BD$937)) ->  | H59: =IF(ISERROR(IF('User Input'!C13=0,"",RANK(I126,I$114:I$143,IF(ranktype=1,0,1)))),"N/A",(IF('User Input'!C13=0,"",RANK(I126,I$114:I$143,IF(ranktype=1,0,1))))) ->  | I59: =IF(ISERROR(IF('User Input'!C13=0,"",RANK(J126,J$114:J$143,IF(ranktype=1,0,1)))),"N/A",(IF('User Input'!C13=0,"",RANK(J126,J$114:J$143,IF(ranktype=1,0,1))))) ->  | J59: =IF('User Input'!C13=0,"",RANK(K126,K$114:K$143,ranktype)) ->  | K59: =IF('User Input'!C13=0,"",RANK(L126,L$114:L$143,ranktype)) ->  | L59: =IF('User Input'!C13=0,"",RANK(M126,M$114:M$143,ranktype)) ->  | M59: =IF(ISERROR(IF('User Input'!C13=0,"",B59+C59+D59+E59+F59+H59+I59+J59+K59+L59)),"N/A",(IF('User Input'!C13=0,"",B59+C59+D59+E59+F59+H59+I59+J59+K59+L59))) ->  | N59: =IF(ISERROR(IF('User Input'!C13=0,"",RANK(M59,M$47:M$76,IF(ranktype=1,0,1)))),"N/A",(IF('User Input'!C13=0,"",RANK(M59,M$47:M$76,IF(ranktype=1,0,1))))) -> 
A60: =IF('User Input'!C14 = 0,"",'User Input'!C14) ->  | B60: =IF('User Input'!C14=0,"",RANK(C127,C$114:C$143,ranktype)) ->  | C60: =IF('User Input'!C14=0,"",RANK(D127,D$114:D$143,ranktype)) ->  | D60: =IF('User Input'!C14=0,"",RANK(E127,E$114:E$143,ranktype)) ->  | E60: =IF('User Input'!C14=0,"",RANK(F127,F$114:F$143,ranktype)) ->  | F60: =IF(ISERROR(IF('User Input'!C14=0,"",RANK(G127,G$114:G$143,ranktype))),"N/A",(IF('User Input'!C14=0,"",RANK(G127,G$114:G$143,ranktype)))) ->  | G60: =IF('User Input'!C14=0,"",SUMIF(Players!$AW$3:$AW$937,A60,Players!BD$3:BD$937)) ->  | H60: =IF(ISERROR(IF('User Input'!C14=0,"",RANK(I127,I$114:I$143,IF(ranktype=1,0,1)))),"N/A",(IF('User Input'!C14=0,"",RANK(I127,I$114:I$143,IF(ranktype=1,0,1))))) ->  | I60: =IF(ISERROR(IF('User Input'!C14=0,"",RANK(J127,J$114:J$143,IF(ranktype=1,0,1)))),"N/A",(IF('User Input'!C14=0,"",RANK(J127,J$114:J$143,IF(ranktype=1,0,1))))) ->  | J60: =IF('User Input'!C14=0,"",RANK(K127,K$114:K$143,ranktype)) ->  | K60: =IF('User Input'!C14=0,"",RANK(L127,L$114:L$143,ranktype)) ->  | L60: =IF('User Input'!C14=0,"",RANK(M127,M$114:M$143,ranktype)) ->  | M60: =IF(ISERROR(IF('User Input'!C14=0,"",B60+C60+D60+E60+F60+H60+I60+J60+K60+L60)),"N/A",(IF('User Input'!C14=0,"",B60+C60+D60+E60+F60+H60+I60+J60+K60+L60))) ->  | N60: =IF(ISERROR(IF('User Input'!C14=0,"",RANK(M60,M$47:M$76,IF(ranktype=1,0,1)))),"N/A",(IF('User Input'!C14=0,"",RANK(M60,M$47:M$76,IF(ranktype=1,0,1))))) -> 
A61: =IF('User Input'!C15 = 0,"",'User Input'!C15) ->  | B61: =IF('User Input'!C15=0,"",RANK(C128,C$114:C$143,ranktype)) ->  | C61: =IF('User Input'!C15=0,"",RANK(D128,D$114:D$143,ranktype)) ->  | D61: =IF('User Input'!C15=0,"",RANK(E128,E$114:E$143,ranktype)) ->  | E61: =IF('User Input'!C15=0,"",RANK(F128,F$114:F$143,ranktype)) ->  | F61: =IF(ISERROR(IF('User Input'!C15=0,"",RANK(G128,G$114:G$143,ranktype))),"N/A",(IF('User Input'!C15=0,"",RANK(G128,G$114:G$143,ranktype)))) ->  | G61: =IF('User Input'!C15=0,"",SUMIF(Players!$AW$3:$AW$937,A61,Players!BD$3:BD$937)) ->  | H61: =IF(ISERROR(IF('User Input'!C15=0,"",RANK(I128,I$114:I$143,IF(ranktype=1,0,1)))),"N/A",(IF('User Input'!C15=0,"",RANK(I128,I$114:I$143,IF(ranktype=1,0,1))))) ->  | I61: =IF(ISERROR(IF('User Input'!C15=0,"",RANK(J128,J$114:J$143,IF(ranktype=1,0,1)))),"N/A",(IF('User Input'!C15=0,"",RANK(J128,J$114:J$143,IF(ranktype=1,0,1))))) ->  | J61: =IF('User Input'!C15=0,"",RANK(K128,K$114:K$143,ranktype)) ->  | K61: =IF('User Input'!C15=0,"",RANK(L128,L$114:L$143,ranktype)) ->  | L61: =IF('User Input'!C15=0,"",RANK(M128,M$114:M$143,ranktype)) ->  | M61: =IF(ISERROR(IF('User Input'!C15=0,"",B61+C61+D61+E61+F61+H61+I61+J61+K61+L61)),"N/A",(IF('User Input'!C15=0,"",B61+C61+D61+E61+F61+H61+I61+J61+K61+L61))) ->  | N61: =IF(ISERROR(IF('User Input'!C15=0,"",RANK(M61,M$47:M$76,IF(ranktype=1,0,1)))),"N/A",(IF('User Input'!C15=0,"",RANK(M61,M$47:M$76,IF(ranktype=1,0,1))))) -> 
A62: =IF('User Input'!C16 = 0,"",'User Input'!C16) ->  | B62: =IF('User Input'!C16=0,"",RANK(C134,C$114:C$143,ranktype)) ->  | C62: =IF('User Input'!C16=0,"",RANK(D134,D$114:D$143,ranktype)) ->  | D62: =IF('User Input'!C16=0,"",RANK(E134,E$114:E$143,ranktype)) ->  | E62: =IF('User Input'!C16=0,"",RANK(F134,F$114:F$143,ranktype)) ->  | F62: =IF(ISERROR(IF('User Input'!C16=0,"",RANK(G134,G$114:G$143,ranktype))),"N/A",(IF('User Input'!C16=0,"",RANK(G134,G$114:G$143,ranktype)))) ->  | G62: =IF('User Input'!C16=0,"",SUMIF(Players!$AW$3:$AW$937,A62,Players!BD$3:BD$937)) ->  | H62: =IF(ISERROR(IF('User Input'!C16=0,"",RANK(I134,I$114:I$143,IF(ranktype=1,0,1)))),"N/A",(IF('User Input'!C16=0,"",RANK(I134,I$114:I$143,IF(ranktype=1,0,1))))) ->  | I62: =IF(ISERROR(IF('User Input'!C16=0,"",RANK(J134,J$114:J$143,IF(ranktype=1,0,1)))),"N/A",(IF('User Input'!C16=0,"",RANK(J134,J$114:J$143,IF(ranktype=1,0,1))))) ->  | J62: =IF('User Input'!C16=0,"",RANK(K134,K$114:K$143,ranktype)) ->  | K62: =IF('User Input'!C16=0,"",RANK(L134,L$114:L$143,ranktype)) ->  | L62: =IF('User Input'!C16=0,"",RANK(M134,M$114:M$143,ranktype)) ->  | M62: =IF(ISERROR(IF('User Input'!C16=0,"",B62+C62+D62+E62+F62+H62+I62+J62+K62+L62)),"N/A",(IF('User Input'!C16=0,"",B62+C62+D62+E62+F62+H62+I62+J62+K62+L62))) ->  | N62: =IF(ISERROR(IF('User Input'!C16=0,"",RANK(M62,M$47:M$76,IF(ranktype=1,0,1)))),"N/A",(IF('User Input'!C16=0,"",RANK(M62,M$47:M$76,IF(ranktype=1,0,1))))) -> 
A63: =IF('User Input'!C17 = 0,"",'User Input'!C17) ->  | B63: =IF('User Input'!C17=0,"",RANK(C135,C$114:C$143,ranktype)) ->  | C63: =IF('User Input'!C17=0,"",RANK(D135,D$114:D$143,ranktype)) ->  | D63: =IF('User Input'!C17=0,"",RANK(E135,E$114:E$143,ranktype)) ->  | E63: =IF('User Input'!C17=0,"",RANK(F135,F$114:F$143,ranktype)) ->  | F63: =IF(ISERROR(IF('User Input'!C17=0,"",RANK(G135,G$114:G$143,ranktype))),"N/A",(IF('User Input'!C17=0,"",RANK(G135,G$114:G$143,ranktype)))) ->  | G63: =IF('User Input'!C17=0,"",SUMIF(Players!$AW$3:$AW$937,A63,Players!BD$3:BD$937)) ->  | H63: =IF(ISERROR(IF('User Input'!C17=0,"",RANK(I135,I$114:I$143,IF(ranktype=1,0,1)))),"N/A",(IF('User Input'!C17=0,"",RANK(I135,I$114:I$143,IF(ranktype=1,0,1))))) ->  | I63: =IF(ISERROR(IF('User Input'!C17=0,"",RANK(J135,J$114:J$143,IF(ranktype=1,0,1)))),"N/A",(IF('User Input'!C17=0,"",RANK(J135,J$114:J$143,IF(ranktype=1,0,1))))) ->  | J63: =IF('User Input'!C17=0,"",RANK(K135,K$114:K$143,ranktype)) ->  | K63: =IF('User Input'!C17=0,"",RANK(L135,L$114:L$143,ranktype)) ->  | L63: =IF('User Input'!C17=0,"",RANK(M135,M$114:M$143,ranktype)) ->  | M63: =IF(ISERROR(IF('User Input'!C17=0,"",B63+C63+D63+E63+F63+H63+I63+J63+K63+L63)),"N/A",(IF('User Input'!C17=0,"",B63+C63+D63+E63+F63+H63+I63+J63+K63+L63))) ->  | N63: =IF(ISERROR(IF('User Input'!C17=0,"",RANK(M63,M$47:M$76,IF(ranktype=1,0,1)))),"N/A",(IF('User Input'!C17=0,"",RANK(M63,M$47:M$76,IF(ranktype=1,0,1))))) -> 
A64: =IF('User Input'!C18 = 0,"",'User Input'!C18) ->  | B64: =IF('User Input'!C18=0,"",RANK(C136,C$114:C$143,ranktype)) ->  | C64: =IF('User Input'!C18=0,"",RANK(D136,D$114:D$143,ranktype)) ->  | D64: =IF('User Input'!C18=0,"",RANK(E136,E$114:E$143,ranktype)) ->  | E64: =IF('User Input'!C18=0,"",RANK(F136,F$114:F$143,ranktype)) ->  | F64: =IF(ISERROR(IF('User Input'!C18=0,"",RANK(G136,G$114:G$143,ranktype))),"N/A",(IF('User Input'!C18=0,"",RANK(G136,G$114:G$143,ranktype)))) ->  | G64: =IF('User Input'!C18=0,"",SUMIF(Players!$AW$3:$AW$937,A64,Players!BD$3:BD$937)) ->  | H64: =IF(ISERROR(IF('User Input'!C18=0,"",RANK(I136,I$114:I$143,IF(ranktype=1,0,1)))),"N/A",(IF('User Input'!C18=0,"",RANK(I136,I$114:I$143,IF(ranktype=1,0,1))))) ->  | I64: =IF(ISERROR(IF('User Input'!C18=0,"",RANK(J136,J$114:J$143,IF(ranktype=1,0,1)))),"N/A",(IF('User Input'!C18=0,"",RANK(J136,J$114:J$143,IF(ranktype=1,0,1))))) ->  | J64: =IF('User Input'!C18=0,"",RANK(K136,K$114:K$143,ranktype)) ->  | K64: =IF('User Input'!C18=0,"",RANK(L136,L$114:L$143,ranktype)) ->  | L64: =IF('User Input'!C18=0,"",RANK(M136,M$114:M$143,ranktype)) ->  | M64: =IF(ISERROR(IF('User Input'!C18=0,"",B64+C64+D64+E64+F64+H64+I64+J64+K64+L64)),"N/A",(IF('User Input'!C18=0,"",B64+C64+D64+E64+F64+H64+I64+J64+K64+L64))) ->  | N64: =IF(ISERROR(IF('User Input'!C18=0,"",RANK(M64,M$47:M$76,IF(ranktype=1,0,1)))),"N/A",(IF('User Input'!C18=0,"",RANK(M64,M$47:M$76,IF(ranktype=1,0,1))))) -> 
A65: =IF('User Input'!C19 = 0,"",'User Input'!C19) ->  | B65: =IF('User Input'!C19=0,"",RANK(C137,C$114:C$143,ranktype)) ->  | C65: =IF('User Input'!C19=0,"",RANK(D137,D$114:D$143,ranktype)) ->  | D65: =IF('User Input'!C19=0,"",RANK(E137,E$114:E$143,ranktype)) ->  | E65: =IF('User Input'!C19=0,"",RANK(F137,F$114:F$143,ranktype)) ->  | F65: =IF(ISERROR(IF('User Input'!C19=0,"",RANK(G137,G$114:G$143,ranktype))),"N/A",(IF('User Input'!C19=0,"",RANK(G137,G$114:G$143,ranktype)))) ->  | G65: =IF('User Input'!C19=0,"",SUMIF(Players!$AW$3:$AW$937,A65,Players!BD$3:BD$937)) ->  | H65: =IF(ISERROR(IF('User Input'!C19=0,"",RANK(I137,I$114:I$143,IF(ranktype=1,0,1)))),"N/A",(IF('User Input'!C19=0,"",RANK(I137,I$114:I$143,IF(ranktype=1,0,1))))) ->  | I65: =IF(ISERROR(IF('User Input'!C19=0,"",RANK(J137,J$114:J$143,IF(ranktype=1,0,1)))),"N/A",(IF('User Input'!C19=0,"",RANK(J137,J$114:J$143,IF(ranktype=1,0,1))))) ->  | J65: =IF('User Input'!C19=0,"",RANK(K137,K$114:K$143,ranktype)) ->  | K65: =IF('User Input'!C19=0,"",RANK(L137,L$114:L$143,ranktype)) ->  | L65: =IF('User Input'!C19=0,"",RANK(M137,M$114:M$143,ranktype)) ->  | M65: =IF(ISERROR(IF('User Input'!C19=0,"",B65+C65+D65+E65+F65+H65+I65+J65+K65+L65)),"N/A",(IF('User Input'!C19=0,"",B65+C65+D65+E65+F65+H65+I65+J65+K65+L65))) ->  | N65: =IF(ISERROR(IF('User Input'!C19=0,"",RANK(M65,M$47:M$76,IF(ranktype=1,0,1)))),"N/A",(IF('User Input'!C19=0,"",RANK(M65,M$47:M$76,IF(ranktype=1,0,1))))) -> 
A66: =IF('User Input'!C20 = 0,"",'User Input'!C20) ->  | B66: =IF('User Input'!C20=0,"",RANK(C138,C$114:C$143,ranktype)) ->  | C66: =IF('User Input'!C20=0,"",RANK(D138,D$114:D$143,ranktype)) ->  | D66: =IF('User Input'!C20=0,"",RANK(E138,E$114:E$143,ranktype)) ->  | E66: =IF('User Input'!C20=0,"",RANK(F138,F$114:F$143,ranktype)) ->  | F66: =IF(ISERROR(IF('User Input'!C20=0,"",RANK(G138,G$114:G$143,ranktype))),"N/A",(IF('User Input'!C20=0,"",RANK(G138,G$114:G$143,ranktype)))) ->  | G66: =IF('User Input'!C20=0,"",SUMIF(Players!$AW$3:$AW$937,A66,Players!BD$3:BD$937)) ->  | H66: =IF(ISERROR(IF('User Input'!C20=0,"",RANK(I138,I$114:I$143,IF(ranktype=1,0,1)))),"N/A",(IF('User Input'!C20=0,"",RANK(I138,I$114:I$143,IF(ranktype=1,0,1))))) ->  | I66: =IF(ISERROR(IF('User Input'!C20=0,"",RANK(J138,J$114:J$143,IF(ranktype=1,0,1)))),"N/A",(IF('User Input'!C20=0,"",RANK(J138,J$114:J$143,IF(ranktype=1,0,1))))) ->  | J66: =IF('User Input'!C20=0,"",RANK(K138,K$114:K$143,ranktype)) ->  | K66: =IF('User Input'!C20=0,"",RANK(L138,L$114:L$143,ranktype)) ->  | L66: =IF('User Input'!C20=0,"",RANK(M138,M$114:M$143,ranktype)) ->  | M66: =IF(ISERROR(IF('User Input'!C20=0,"",B66+C66+D66+E66+F66+H66+I66+J66+K66+L66)),"N/A",(IF('User Input'!C20=0,"",B66+C66+D66+E66+F66+H66+I66+J66+K66+L66))) ->  | N66: =IF(ISERROR(IF('User Input'!C20=0,"",RANK(M66,M$47:M$76,IF(ranktype=1,0,1)))),"N/A",(IF('User Input'!C20=0,"",RANK(M66,M$47:M$76,IF(ranktype=1,0,1))))) -> 
A67: =IF('User Input'!C21 = 0,"",'User Input'!C21) ->  | B67: =IF('User Input'!C21=0,"",RANK(C139,C$114:C$143,ranktype)) ->  | C67: =IF('User Input'!C21=0,"",RANK(D139,D$114:D$143,ranktype)) ->  | D67: =IF('User Input'!C21=0,"",RANK(E139,E$114:E$143,ranktype)) ->  | E67: =IF('User Input'!C21=0,"",RANK(F139,F$114:F$143,ranktype)) ->  | F67: =IF(ISERROR(IF('User Input'!C21=0,"",RANK(G139,G$114:G$143,ranktype))),"N/A",(IF('User Input'!C21=0,"",RANK(G139,G$114:G$143,ranktype)))) ->  | G67: =IF('User Input'!C21=0,"",SUMIF(Players!$AW$3:$AW$937,A67,Players!BD$3:BD$937)) ->  | H67: =IF(ISERROR(IF('User Input'!C21=0,"",RANK(I139,I$114:I$143,IF(ranktype=1,0,1)))),"N/A",(IF('User Input'!C21=0,"",RANK(I139,I$114:I$143,IF(ranktype=1,0,1))))) ->  | I67: =IF(ISERROR(IF('User Input'!C21=0,"",RANK(J139,J$114:J$143,IF(ranktype=1,0,1)))),"N/A",(IF('User Input'!C21=0,"",RANK(J139,J$114:J$143,IF(ranktype=1,0,1))))) ->  | J67: =IF('User Input'!C21=0,"",RANK(K139,K$114:K$143,ranktype)) ->  | K67: =IF('User Input'!C21=0,"",RANK(L139,L$114:L$143,ranktype)) ->  | L67: =IF('User Input'!C21=0,"",RANK(M139,M$114:M$143,ranktype)) ->  | M67: =IF(ISERROR(IF('User Input'!C21=0,"",B67+C67+D67+E67+F67+H67+I67+J67+K67+L67)),"N/A",(IF('User Input'!C21=0,"",B67+C67+D67+E67+F67+H67+I67+J67+K67+L67))) ->  | N67: =IF(ISERROR(IF('User Input'!C21=0,"",RANK(M67,M$47:M$76,IF(ranktype=1,0,1)))),"N/A",(IF('User Input'!C21=0,"",RANK(M67,M$47:M$76,IF(ranktype=1,0,1))))) -> 
A68: =IF('User Input'!C22 = 0,"",'User Input'!C22) ->  | B68: =IF('User Input'!C22=0,"",RANK(C140,C$114:C$143,ranktype)) ->  | C68: =IF('User Input'!C22=0,"",RANK(D140,D$114:D$143,ranktype)) ->  | D68: =IF('User Input'!C22=0,"",RANK(E140,E$114:E$143,ranktype)) ->  | E68: =IF('User Input'!C22=0,"",RANK(F140,F$114:F$143,ranktype)) ->  | F68: =IF(ISERROR(IF('User Input'!C22=0,"",RANK(G140,G$114:G$143,ranktype))),"N/A",(IF('User Input'!C22=0,"",RANK(G140,G$114:G$143,ranktype)))) ->  | G68: =IF('User Input'!C22=0,"",SUMIF(Players!$AW$3:$AW$937,A68,Players!BD$3:BD$937)) ->  | H68: =IF(ISERROR(IF('User Input'!C22=0,"",RANK(I140,I$114:I$143,IF(ranktype=1,0,1)))),"N/A",(IF('User Input'!C22=0,"",RANK(I140,I$114:I$143,IF(ranktype=1,0,1))))) ->  | I68: =IF(ISERROR(IF('User Input'!C22=0,"",RANK(J140,J$114:J$143,IF(ranktype=1,0,1)))),"N/A",(IF('User Input'!C22=0,"",RANK(J140,J$114:J$143,IF(ranktype=1,0,1))))) ->  | J68: =IF('User Input'!C22=0,"",RANK(K140,K$114:K$143,ranktype)) ->  | K68: =IF('User Input'!C22=0,"",RANK(L140,L$114:L$143,ranktype)) ->  | L68: =IF('User Input'!C22=0,"",RANK(M140,M$114:M$143,ranktype)) ->  | M68: =IF(ISERROR(IF('User Input'!C22=0,"",B68+C68+D68+E68+F68+H68+I68+J68+K68+L68)),"N/A",(IF('User Input'!C22=0,"",B68+C68+D68+E68+F68+H68+I68+J68+K68+L68))) ->  | N68: =IF(ISERROR(IF('User Input'!C22=0,"",RANK(M68,M$47:M$76,IF(ranktype=1,0,1)))),"N/A",(IF('User Input'!C22=0,"",RANK(M68,M$47:M$76,IF(ranktype=1,0,1))))) -> 
A69: =IF('User Input'!C23 = 0,"",'User Input'!C23) ->  | B69: =IF('User Input'!C23=0,"",RANK(C141,C$114:C$143,ranktype)) ->  | C69: =IF('User Input'!C23=0,"",RANK(D141,D$114:D$143,ranktype)) ->  | D69: =IF('User Input'!C23=0,"",RANK(E141,E$114:E$143,ranktype)) ->  | E69: =IF('User Input'!C23=0,"",RANK(F141,F$114:F$143,ranktype)) ->  | F69: =IF(ISERROR(IF('User Input'!C23=0,"",RANK(G141,G$114:G$143,ranktype))),"N/A",(IF('User Input'!C23=0,"",RANK(G141,G$114:G$143,ranktype)))) ->  | G69: =IF('User Input'!C23=0,"",SUMIF(Players!$AW$3:$AW$937,A69,Players!BD$3:BD$937)) ->  | H69: =IF(ISERROR(IF('User Input'!C23=0,"",RANK(I141,I$114:I$143,IF(ranktype=1,0,1)))),"N/A",(IF('User Input'!C23=0,"",RANK(I141,I$114:I$143,IF(ranktype=1,0,1))))) ->  | I69: =IF(ISERROR(IF('User Input'!C23=0,"",RANK(J141,J$114:J$143,IF(ranktype=1,0,1)))),"N/A",(IF('User Input'!C23=0,"",RANK(J141,J$114:J$143,IF(ranktype=1,0,1))))) ->  | J69: =IF('User Input'!C23=0,"",RANK(K141,K$114:K$143,ranktype)) ->  | K69: =IF('User Input'!C23=0,"",RANK(L141,L$114:L$143,ranktype)) ->  | L69: =IF('User Input'!C23=0,"",RANK(M141,M$114:M$143,ranktype)) ->  | M69: =IF(ISERROR(IF('User Input'!C23=0,"",B69+C69+D69+E69+F69+H69+I69+J69+K69+L69)),"N/A",(IF('User Input'!C23=0,"",B69+C69+D69+E69+F69+H69+I69+J69+K69+L69))) ->  | N69: =IF(ISERROR(IF('User Input'!C23=0,"",RANK(M69,M$47:M$76,IF(ranktype=1,0,1)))),"N/A",(IF('User Input'!C23=0,"",RANK(M69,M$47:M$76,IF(ranktype=1,0,1))))) -> 
A70: =IF('User Input'!C24 = 0,"",'User Input'!C24) ->  | B70: =IF('User Input'!C24=0,"",RANK(C142,C$114:C$143,ranktype)) ->  | C70: =IF('User Input'!C24=0,"",RANK(D142,D$114:D$143,ranktype)) ->  | D70: =IF('User Input'!C24=0,"",RANK(E142,E$114:E$143,ranktype)) ->  | E70: =IF('User Input'!C24=0,"",RANK(F142,F$114:F$143,ranktype)) ->  | F70: =IF(ISERROR(IF('User Input'!C24=0,"",RANK(G142,G$114:G$143,ranktype))),"N/A",(IF('User Input'!C24=0,"",RANK(G142,G$114:G$143,ranktype)))) ->  | G70: =IF('User Input'!C24=0,"",SUMIF(Players!$AW$3:$AW$937,A70,Players!BD$3:BD$937)) ->  | H70: =IF(ISERROR(IF('User Input'!C24=0,"",RANK(I142,I$114:I$143,IF(ranktype=1,0,1)))),"N/A",(IF('User Input'!C24=0,"",RANK(I142,I$114:I$143,IF(ranktype=1,0,1))))) ->  | I70: =IF(ISERROR(IF('User Input'!C24=0,"",RANK(J142,J$114:J$143,IF(ranktype=1,0,1)))),"N/A",(IF('User Input'!C24=0,"",RANK(J142,J$114:J$143,IF(ranktype=1,0,1))))) ->  | J70: =IF('User Input'!C24=0,"",RANK(K142,K$114:K$143,ranktype)) ->  | K70: =IF('User Input'!C24=0,"",RANK(L142,L$114:L$143,ranktype)) ->  | L70: =IF('User Input'!C24=0,"",RANK(M142,M$114:M$143,ranktype)) ->  | M70: =IF(ISERROR(IF('User Input'!C24=0,"",B70+C70+D70+E70+F70+H70+I70+J70+K70+L70)),"N/A",(IF('User Input'!C24=0,"",B70+C70+D70+E70+F70+H70+I70+J70+K70+L70))) ->  | N70: =IF(ISERROR(IF('User Input'!C24=0,"",RANK(M70,M$47:M$76,IF(ranktype=1,0,1)))),"N/A",(IF('User Input'!C24=0,"",RANK(M70,M$47:M$76,IF(ranktype=1,0,1))))) -> 
A71: =IF('User Input'!C25 = 0,"",'User Input'!C25) ->  | B71: =IF('User Input'!C25=0,"",RANK(C143,C$114:C$143,ranktype)) ->  | C71: =IF('User Input'!C25=0,"",RANK(D143,D$114:D$143,ranktype)) ->  | D71: =IF('User Input'!C25=0,"",RANK(E143,E$114:E$143,ranktype)) ->  | E71: =IF('User Input'!C25=0,"",RANK(F143,F$114:F$143,ranktype)) ->  | F71: =IF(ISERROR(IF('User Input'!C25=0,"",RANK(G143,G$114:G$143,ranktype))),"N/A",(IF('User Input'!C25=0,"",RANK(G143,G$114:G$143,ranktype)))) ->  | G71: =IF('User Input'!C25=0,"",SUMIF(Players!$AW$3:$AW$937,A71,Players!BD$3:BD$937)) ->  | H71: =IF(ISERROR(IF('User Input'!C25=0,"",RANK(I143,I$114:I$143,IF(ranktype=1,0,1)))),"N/A",(IF('User Input'!C25=0,"",RANK(I143,I$114:I$143,IF(ranktype=1,0,1))))) ->  | I71: =IF(ISERROR(IF('User Input'!C25=0,"",RANK(J143,J$114:J$143,IF(ranktype=1,0,1)))),"N/A",(IF('User Input'!C25=0,"",RANK(J143,J$114:J$143,IF(ranktype=1,0,1))))) ->  | J71: =IF('User Input'!C25=0,"",RANK(K143,K$114:K$143,ranktype)) ->  | K71: =IF('User Input'!C25=0,"",RANK(L143,L$114:L$143,ranktype)) ->  | L71: =IF('User Input'!C25=0,"",RANK(M143,M$114:M$143,ranktype)) ->  | M71: =IF(ISERROR(IF('User Input'!C25=0,"",B71+C71+D71+E71+F71+H71+I71+J71+K71+L71)),"N/A",(IF('User Input'!C25=0,"",B71+C71+D71+E71+F71+H71+I71+J71+K71+L71))) ->  | N71: =IF(ISERROR(IF('User Input'!C25=0,"",RANK(M71,M$47:M$76,IF(ranktype=1,0,1)))),"N/A",(IF('User Input'!C25=0,"",RANK(M71,M$47:M$76,IF(ranktype=1,0,1))))) -> 
A72: =IF('User Input'!C26 = 0,"",'User Input'!C26) ->  | B72: =IF('User Input'!C26=0,"",RANK(C144,C$114:C$143,ranktype)) ->  | C72: =IF('User Input'!C26=0,"",RANK(D144,D$114:D$143,ranktype)) ->  | D72: =IF('User Input'!C26=0,"",RANK(E144,E$114:E$143,ranktype)) ->  | E72: =IF('User Input'!C26=0,"",RANK(F144,F$114:F$143,ranktype)) ->  | F72: =IF(ISERROR(IF('User Input'!C26=0,"",RANK(G144,G$114:G$143,ranktype))),"N/A",(IF('User Input'!C26=0,"",RANK(G144,G$114:G$143,ranktype)))) ->  | G72: =IF('User Input'!C26=0,"",SUMIF(Players!$AW$3:$AW$937,A72,Players!BD$3:BD$937)) ->  | H72: =IF(ISERROR(IF('User Input'!C26=0,"",RANK(I144,I$114:I$143,IF(ranktype=1,0,1)))),"N/A",(IF('User Input'!C26=0,"",RANK(I144,I$114:I$143,IF(ranktype=1,0,1))))) ->  | I72: =IF(ISERROR(IF('User Input'!C26=0,"",RANK(J144,J$114:J$143,IF(ranktype=1,0,1)))),"N/A",(IF('User Input'!C26=0,"",RANK(J144,J$114:J$143,IF(ranktype=1,0,1))))) ->  | J72: =IF('User Input'!C26=0,"",RANK(K144,K$114:K$143,ranktype)) ->  | K72: =IF('User Input'!C26=0,"",RANK(L144,L$114:L$143,ranktype)) ->  | L72: =IF('User Input'!C26=0,"",RANK(M144,M$114:M$143,ranktype)) ->  | M72: =IF(ISERROR(IF('User Input'!C26=0,"",B72+C72+D72+E72+F72+H72+I72+J72+K72+L72)),"N/A",(IF('User Input'!C26=0,"",B72+C72+D72+E72+F72+H72+I72+J72+K72+L72))) ->  | N72: =IF(ISERROR(IF('User Input'!C26=0,"",RANK(M72,M$47:M$76,IF(ranktype=1,0,1)))),"N/A",(IF('User Input'!C26=0,"",RANK(M72,M$47:M$76,IF(ranktype=1,0,1))))) -> 
A73: =IF('User Input'!C27 = 0,"",'User Input'!C27) ->  | B73: =IF('User Input'!C27=0,"",RANK(C145,C$114:C$143,ranktype)) ->  | C73: =IF('User Input'!C27=0,"",RANK(D145,D$114:D$143,ranktype)) ->  | D73: =IF('User Input'!C27=0,"",RANK(E145,E$114:E$143,ranktype)) ->  | E73: =IF('User Input'!C27=0,"",RANK(F145,F$114:F$143,ranktype)) ->  | F73: =IF(ISERROR(IF('User Input'!C27=0,"",RANK(G145,G$114:G$143,ranktype))),"N/A",(IF('User Input'!C27=0,"",RANK(G145,G$114:G$143,ranktype)))) ->  | G73: =IF('User Input'!C27=0,"",SUMIF(Players!$AW$3:$AW$937,A73,Players!BD$3:BD$937)) ->  | H73: =IF(ISERROR(IF('User Input'!C27=0,"",RANK(I145,I$114:I$143,IF(ranktype=1,0,1)))),"N/A",(IF('User Input'!C27=0,"",RANK(I145,I$114:I$143,IF(ranktype=1,0,1))))) ->  | I73: =IF(ISERROR(IF('User Input'!C27=0,"",RANK(J145,J$114:J$143,IF(ranktype=1,0,1)))),"N/A",(IF('User Input'!C27=0,"",RANK(J145,J$114:J$143,IF(ranktype=1,0,1))))) ->  | J73: =IF('User Input'!C27=0,"",RANK(K145,K$114:K$143,ranktype)) ->  | K73: =IF('User Input'!C27=0,"",RANK(L145,L$114:L$143,ranktype)) ->  | L73: =IF('User Input'!C27=0,"",RANK(M145,M$114:M$143,ranktype)) ->  | M73: =IF(ISERROR(IF('User Input'!C27=0,"",B73+C73+D73+E73+F73+H73+I73+J73+K73+L73)),"N/A",(IF('User Input'!C27=0,"",B73+C73+D73+E73+F73+H73+I73+J73+K73+L73))) ->  | N73: =IF(ISERROR(IF('User Input'!C27=0,"",RANK(M73,M$47:M$76,IF(ranktype=1,0,1)))),"N/A",(IF('User Input'!C27=0,"",RANK(M73,M$47:M$76,IF(ranktype=1,0,1))))) -> 
A74: =IF('User Input'!C28 = 0,"",'User Input'!C28) ->  | B74: =IF('User Input'!C28=0,"",RANK(C146,C$114:C$143,ranktype)) ->  | C74: =IF('User Input'!C28=0,"",RANK(D146,D$114:D$143,ranktype)) ->  | D74: =IF('User Input'!C28=0,"",RANK(E146,E$114:E$143,ranktype)) ->  | E74: =IF('User Input'!C28=0,"",RANK(F146,F$114:F$143,ranktype)) ->  | F74: =IF(ISERROR(IF('User Input'!C28=0,"",RANK(G146,G$114:G$143,ranktype))),"N/A",(IF('User Input'!C28=0,"",RANK(G146,G$114:G$143,ranktype)))) ->  | G74: =IF('User Input'!C28=0,"",SUMIF(Players!$AW$3:$AW$937,A74,Players!BD$3:BD$937)) ->  | H74: =IF(ISERROR(IF('User Input'!C28=0,"",RANK(I146,I$114:I$143,IF(ranktype=1,0,1)))),"N/A",(IF('User Input'!C28=0,"",RANK(I146,I$114:I$143,IF(ranktype=1,0,1))))) ->  | I74: =IF(ISERROR(IF('User Input'!C28=0,"",RANK(J146,J$114:J$143,IF(ranktype=1,0,1)))),"N/A",(IF('User Input'!C28=0,"",RANK(J146,J$114:J$143,IF(ranktype=1,0,1))))) ->  | J74: =IF('User Input'!C28=0,"",RANK(K146,K$114:K$143,ranktype)) ->  | K74: =IF('User Input'!C28=0,"",RANK(L146,L$114:L$143,ranktype)) ->  | L74: =IF('User Input'!C28=0,"",RANK(M146,M$114:M$143,ranktype)) ->  | M74: =IF(ISERROR(IF('User Input'!C28=0,"",B74+C74+D74+E74+F74+H74+I74+J74+K74+L74)),"N/A",(IF('User Input'!C28=0,"",B74+C74+D74+E74+F74+H74+I74+J74+K74+L74))) ->  | N74: =IF(ISERROR(IF('User Input'!C28=0,"",RANK(M74,M$47:M$76,IF(ranktype=1,0,1)))),"N/A",(IF('User Input'!C28=0,"",RANK(M74,M$47:M$76,IF(ranktype=1,0,1))))) -> 
A75: =IF('User Input'!C29 = 0,"",'User Input'!C29) ->  | B75: =IF('User Input'!C29=0,"",RANK(C147,C$114:C$143,ranktype)) ->  | C75: =IF('User Input'!C29=0,"",RANK(D147,D$114:D$143,ranktype)) ->  | D75: =IF('User Input'!C29=0,"",RANK(E147,E$114:E$143,ranktype)) ->  | E75: =IF('User Input'!C29=0,"",RANK(F147,F$114:F$143,ranktype)) ->  | F75: =IF(ISERROR(IF('User Input'!C29=0,"",RANK(G147,G$114:G$143,ranktype))),"N/A",(IF('User Input'!C29=0,"",RANK(G147,G$114:G$143,ranktype)))) ->  | G75: =IF('User Input'!C29=0,"",SUMIF(Players!$AW$3:$AW$937,A75,Players!BD$3:BD$937)) ->  | H75: =IF(ISERROR(IF('User Input'!C29=0,"",RANK(I147,I$114:I$143,IF(ranktype=1,0,1)))),"N/A",(IF('User Input'!C29=0,"",RANK(I147,I$114:I$143,IF(ranktype=1,0,1))))) ->  | I75: =IF(ISERROR(IF('User Input'!C29=0,"",RANK(J147,J$114:J$143,IF(ranktype=1,0,1)))),"N/A",(IF('User Input'!C29=0,"",RANK(J147,J$114:J$143,IF(ranktype=1,0,1))))) ->  | J75: =IF('User Input'!C29=0,"",RANK(K147,K$114:K$143,ranktype)) ->  | K75: =IF('User Input'!C29=0,"",RANK(L147,L$114:L$143,ranktype)) ->  | L75: =IF('User Input'!C29=0,"",RANK(M147,M$114:M$143,ranktype)) ->  | M75: =IF(ISERROR(IF('User Input'!C29=0,"",B75+C75+D75+E75+F75+H75+I75+J75+K75+L75)),"N/A",(IF('User Input'!C29=0,"",B75+C75+D75+E75+F75+H75+I75+J75+K75+L75))) ->  | N75: =IF(ISERROR(IF('User Input'!C29=0,"",RANK(M75,M$47:M$76,IF(ranktype=1,0,1)))),"N/A",(IF('User Input'!C29=0,"",RANK(M75,M$47:M$76,IF(ranktype=1,0,1))))) -> 
A76: =IF('User Input'!C30 = 0,"",'User Input'!C30) ->  | B76: =IF('User Input'!C30=0,"",RANK(C148,C$114:C$143,ranktype)) ->  | C76: =IF('User Input'!C30=0,"",RANK(D148,D$114:D$143,ranktype)) ->  | D76: =IF('User Input'!C30=0,"",RANK(E148,E$114:E$143,ranktype)) ->  | E76: =IF('User Input'!C30=0,"",RANK(F148,F$114:F$143,ranktype)) ->  | F76: =IF(ISERROR(IF('User Input'!C30=0,"",RANK(G148,G$114:G$143,ranktype))),"N/A",(IF('User Input'!C30=0,"",RANK(G148,G$114:G$143,ranktype)))) ->  | G76: =IF('User Input'!C30=0,"",SUMIF(Players!$AW$3:$AW$937,A76,Players!BD$3:BD$937)) ->  | H76: =IF(ISERROR(IF('User Input'!C30=0,"",RANK(I148,I$114:I$143,IF(ranktype=1,0,1)))),"N/A",(IF('User Input'!C30=0,"",RANK(I148,I$114:I$143,IF(ranktype=1,0,1))))) ->  | I76: =IF(ISERROR(IF('User Input'!C30=0,"",RANK(J148,J$114:J$143,IF(ranktype=1,0,1)))),"N/A",(IF('User Input'!C30=0,"",RANK(J148,J$114:J$143,IF(ranktype=1,0,1))))) ->  | J76: =IF('User Input'!C30=0,"",RANK(K148,K$114:K$143,ranktype)) ->  | K76: =IF('User Input'!C30=0,"",RANK(L148,L$114:L$143,ranktype)) ->  | L76: =IF('User Input'!C30=0,"",RANK(M148,M$114:M$143,ranktype)) ->  | M76: =IF(ISERROR(IF('User Input'!C30=0,"",B76+C76+D76+E76+F76+H76+I76+J76+K76+L76)),"N/A",(IF('User Input'!C30=0,"",B76+C76+D76+E76+F76+H76+I76+J76+K76+L76))) ->  | N76: =IF(ISERROR(IF('User Input'!C30=0,"",RANK(M76,M$47:M$76,IF(ranktype=1,0,1)))),"N/A",(IF('User Input'!C30=0,"",RANK(M76,M$47:M$76,IF(ranktype=1,0,1))))) -> 
C79: Batting Per Player | I79: Pitching Per Player
A80: Team | C80: R | D80: HR | E80: RBI | F80: SB | G80: AVG | I80: ERA | J80: WHIP | K80: W | L80: S | M80: K
A81: =IF('User Input'!C1 = 0,"",'User Input'!C1) -> a | C81: =IF('User Input'!C1 = 0,"",C114/$B13) ->  | D81: =IF('User Input'!C1 = 0,"",D114/$B13) ->  | E81: =IF('User Input'!C1 = 0,"",E114/$B13) ->  | F81: =IF('User Input'!C1 = 0,"",F114/$B13) ->  | G81: =IF('User Input'!C1 = 0,"",G114) ->  | I81: =IF('User Input'!C1 = 0,"",I114) ->  | J81: =IF('User Input'!C1 = 0,"",J114) ->  | K81: =IF('User Input'!C1 = 0,"",K114/$C13) ->  | L81: =IF('User Input'!C1 = 0,"",L114/$C13) ->  | M81: =IF('User Input'!C1 = 0,"",M114/$C13) ->  | N81: ← ← ← | O81: YOUR TEAM
A82: =IF('User Input'!C2 = 0,"",'User Input'!C2) -> b | C82: =IF('User Input'!C2 = 0,"",C115/$B14) ->  | D82: =IF('User Input'!C2 = 0,"",D115/$B14) ->  | E82: =IF('User Input'!C2 = 0,"",E115/$B14) ->  | F82: =IF('User Input'!C2 = 0,"",F115/$B14) ->  | G82: =IF('User Input'!C2 = 0,"",G115) ->  | I82: =IF('User Input'!C2 = 0,"",I115) ->  | J82: =IF('User Input'!C2 = 0,"",J115) ->  | K82: =IF('User Input'!C2 = 0,"",K115/$C14) ->  | L82: =IF('User Input'!C2 = 0,"",L115/$C14) ->  | M82: =IF('User Input'!C2 = 0,"",M115/$C14) -> 
A83: =IF('User Input'!C3 = 0,"",'User Input'!C3) -> c | C83: =IF('User Input'!C3 = 0,"",C116/$B15) ->  | D83: =IF('User Input'!C3 = 0,"",D116/$B15) ->  | E83: =IF('User Input'!C3 = 0,"",E116/$B15) ->  | F83: =IF('User Input'!C3 = 0,"",F116/$B15) ->  | G83: =IF('User Input'!C3 = 0,"",G116) ->  | I83: =IF('User Input'!C3 = 0,"",I116) ->  | J83: =IF('User Input'!C3 = 0,"",J116) ->  | K83: =IF('User Input'!C3 = 0,"",K116/$C15) ->  | L83: =IF('User Input'!C3 = 0,"",L116/$C15) ->  | M83: =IF('User Input'!C3 = 0,"",M116/$C15) -> 
A84: =IF('User Input'!C4 = 0,"",'User Input'!C4) -> d | C84: =IF('User Input'!C4 = 0,"",C117/$B16) ->  | D84: =IF('User Input'!C4 = 0,"",D117/$B16) ->  | E84: =IF('User Input'!C4 = 0,"",E117/$B16) ->  | F84: =IF('User Input'!C4 = 0,"",F117/$B16) ->  | G84: =IF('User Input'!C4 = 0,"",G117) ->  | I84: =IF('User Input'!C4 = 0,"",I117) ->  | J84: =IF('User Input'!C4 = 0,"",J117) ->  | K84: =IF('User Input'!C4 = 0,"",K117/$C16) ->  | L84: =IF('User Input'!C4 = 0,"",L117/$C16) ->  | M84: =IF('User Input'!C4 = 0,"",M117/$C16) -> 
A85: =IF('User Input'!C5 = 0,"",'User Input'!C5) -> e | C85: =IF('User Input'!C5 = 0,"",C118/$B17) ->  | D85: =IF('User Input'!C5 = 0,"",D118/$B17) ->  | E85: =IF('User Input'!C5 = 0,"",E118/$B17) ->  | F85: =IF('User Input'!C5 = 0,"",F118/$B17) ->  | G85: =IF('User Input'!C5 = 0,"",G118) ->  | I85: =IF('User Input'!C5 = 0,"",I118) ->  | J85: =IF('User Input'!C5 = 0,"",J118) ->  | K85: =IF('User Input'!C5 = 0,"",K118/$C17) ->  | L85: =IF('User Input'!C5 = 0,"",L118/$C17) ->  | M85: =IF('User Input'!C5 = 0,"",M118/$C17) -> 
A86: =IF('User Input'!C6 = 0,"",'User Input'!C6) -> f | C86: =IF('User Input'!C6 = 0,"",C119/$B18) ->  | D86: =IF('User Input'!C6 = 0,"",D119/$B18) ->  | E86: =IF('User Input'!C6 = 0,"",E119/$B18) ->  | F86: =IF('User Input'!C6 = 0,"",F119/$B18) ->  | G86: =IF('User Input'!C6 = 0,"",G119) ->  | I86: =IF('User Input'!C6 = 0,"",I119) ->  | J86: =IF('User Input'!C6 = 0,"",J119) ->  | K86: =IF('User Input'!C6 = 0,"",K119/$C18) ->  | L86: =IF('User Input'!C6 = 0,"",L119/$C18) ->  | M86: =IF('User Input'!C6 = 0,"",M119/$C18) -> 
A87: =IF('User Input'!C7 = 0,"",'User Input'!C7) -> g | C87: =IF('User Input'!C7 = 0,"",C120/$B19) ->  | D87: =IF('User Input'!C7 = 0,"",D120/$B19) ->  | E87: =IF('User Input'!C7 = 0,"",E120/$B19) ->  | F87: =IF('User Input'!C7 = 0,"",F120/$B19) ->  | G87: =IF('User Input'!C7 = 0,"",G120) ->  | I87: =IF('User Input'!C7 = 0,"",I120) ->  | J87: =IF('User Input'!C7 = 0,"",J120) ->  | K87: =IF('User Input'!C7 = 0,"",K120/$C19) ->  | L87: =IF('User Input'!C7 = 0,"",L120/$C19) ->  | M87: =IF('User Input'!C7 = 0,"",M120/$C19) -> 
A88: =IF('User Input'!C8 = 0,"",'User Input'!C8) -> h | C88: =IF('User Input'!C8 = 0,"",C121/$B20) ->  | D88: =IF('User Input'!C8 = 0,"",D121/$B20) ->  | E88: =IF('User Input'!C8 = 0,"",E121/$B20) ->  | F88: =IF('User Input'!C8 = 0,"",F121/$B20) ->  | G88: =IF('User Input'!C8 = 0,"",G121) ->  | I88: =IF('User Input'!C8 = 0,"",I121) ->  | J88: =IF('User Input'!C8 = 0,"",J121) ->  | K88: =IF('User Input'!C8 = 0,"",K121/$C20) ->  | L88: =IF('User Input'!C8 = 0,"",L121/$C20) ->  | M88: =IF('User Input'!C8 = 0,"",M121/$C20) -> 
A89: =IF('User Input'!C9 = 0,"",'User Input'!C9) -> i | C89: =IF('User Input'!C9 = 0,"",C122/$B21) ->  | D89: =IF('User Input'!C9 = 0,"",D122/$B21) ->  | E89: =IF('User Input'!C9 = 0,"",E122/$B21) ->  | F89: =IF('User Input'!C9 = 0,"",F122/$B21) ->  | G89: =IF('User Input'!C9 = 0,"",G122) ->  | I89: =IF('User Input'!C9 = 0,"",I122) ->  | J89: =IF('User Input'!C9 = 0,"",J122) ->  | K89: =IF('User Input'!C9 = 0,"",K122/$C21) ->  | L89: =IF('User Input'!C9 = 0,"",L122/$C21) ->  | M89: =IF('User Input'!C9 = 0,"",M122/$C21) -> 
A90: =IF('User Input'!C10 = 0,"",'User Input'!C10) -> j | C90: =IF('User Input'!C10 = 0,"",C123/$B22) ->  | D90: =IF('User Input'!C10 = 0,"",D123/$B22) ->  | E90: =IF('User Input'!C10 = 0,"",E123/$B22) ->  | F90: =IF('User Input'!C10 = 0,"",F123/$B22) ->  | G90: =IF('User Input'!C10 = 0,"",G123) ->  | I90: =IF('User Input'!C10 = 0,"",I123) ->  | J90: =IF('User Input'!C10 = 0,"",J123) ->  | K90: =IF('User Input'!C10 = 0,"",K123/$C22) ->  | L90: =IF('User Input'!C10 = 0,"",L123/$C22) ->  | M90: =IF('User Input'!C10 = 0,"",M123/$C22) -> 
A91: =IF('User Input'!C11 = 0,"",'User Input'!C11) -> k | C91: =IF('User Input'!C11 = 0,"",C124/$B23) ->  | D91: =IF('User Input'!C11 = 0,"",D124/$B23) ->  | E91: =IF('User Input'!C11 = 0,"",E124/$B23) ->  | F91: =IF('User Input'!C11 = 0,"",F124/$B23) ->  | G91: =IF('User Input'!C11 = 0,"",G124) ->  | I91: =IF('User Input'!C11 = 0,"",I124) ->  | J91: =IF('User Input'!C11 = 0,"",J124) ->  | K91: =IF('User Input'!C11 = 0,"",K124/$C23) ->  | L91: =IF('User Input'!C11 = 0,"",L124/$C23) ->  | M91: =IF('User Input'!C11 = 0,"",M124/$C23) -> 
A92: =IF('User Input'!C12 = 0,"",'User Input'!C12) -> l | C92: =IF('User Input'!C12 = 0,"",C125/$B24) ->  | D92: =IF('User Input'!C12 = 0,"",D125/$B24) ->  | E92: =IF('User Input'!C12 = 0,"",E125/$B24) ->  | F92: =IF('User Input'!C12 = 0,"",F125/$B24) ->  | G92: =IF('User Input'!C12 = 0,"",G125) ->  | I92: =IF('User Input'!C12 = 0,"",I125) ->  | J92: =IF('User Input'!C12 = 0,"",J125) ->  | K92: =IF('User Input'!C12 = 0,"",K125/$C24) ->  | L92: =IF('User Input'!C12 = 0,"",L125/$C24) ->  | M92: =IF('User Input'!C12 = 0,"",M125/$C24) -> 
A93: =IF('User Input'!C13 = 0,"",'User Input'!C13) ->  | C93: =IF('User Input'!C13 = 0,"",C126/$B25) ->  | D93: =IF('User Input'!C13 = 0,"",D126/$B25) ->  | E93: =IF('User Input'!C13 = 0,"",E126/$B25) ->  | F93: =IF('User Input'!C13 = 0,"",F126/$B25) ->  | G93: =IF('User Input'!C13 = 0,"",G126) ->  | I93: =IF('User Input'!C13 = 0,"",I126) ->  | J93: =IF('User Input'!C13 = 0,"",J126) ->  | K93: =IF('User Input'!C13 = 0,"",K126/$C25) ->  | L93: =IF('User Input'!C13 = 0,"",L126/$C25) ->  | M93: =IF('User Input'!C13 = 0,"",M126/$C25) -> 
A94: =IF('User Input'!C14 = 0,"",'User Input'!C14) ->  | C94: =IF('User Input'!C14 = 0,"",C127/$B26) ->  | D94: =IF('User Input'!C14 = 0,"",D127/$B26) ->  | E94: =IF('User Input'!C14 = 0,"",E127/$B26) ->  | F94: =IF('User Input'!C14 = 0,"",F127/$B26) ->  | G94: =IF('User Input'!C14 = 0,"",G127) ->  | I94: =IF('User Input'!C14 = 0,"",I127) ->  | J94: =IF('User Input'!C14 = 0,"",J127) ->  | K94: =IF('User Input'!C14 = 0,"",K127/$C26) ->  | L94: =IF('User Input'!C14 = 0,"",L127/$C26) ->  | M94: =IF('User Input'!C14 = 0,"",M127/$C26) -> 
A95: =IF('User Input'!C15 = 0,"",'User Input'!C15) ->  | C95: =IF('User Input'!C15 = 0,"",C128/$B27) ->  | D95: =IF('User Input'!C15 = 0,"",D128/$B27) ->  | E95: =IF('User Input'!C15 = 0,"",E128/$B27) ->  | F95: =IF('User Input'!C15 = 0,"",F128/$B27) ->  | G95: =IF('User Input'!C15 = 0,"",G128) ->  | I95: =IF('User Input'!C15 = 0,"",I128) ->  | J95: =IF('User Input'!C15 = 0,"",J128) ->  | K95: =IF('User Input'!C15 = 0,"",K128/$C27) ->  | L95: =IF('User Input'!C15 = 0,"",L128/$C27) ->  | M95: =IF('User Input'!C15 = 0,"",M128/$C27) -> 
A96: =IF('User Input'!C16 = 0,"",'User Input'!C16) ->  | C96: =IF('User Input'!C16 = 0,"",C129/$B28) ->  | D96: =IF('User Input'!C16 = 0,"",D129/$B28) ->  | E96: =IF('User Input'!C16 = 0,"",E129/$B28) ->  | F96: =IF('User Input'!C16 = 0,"",F129/$B28) ->  | G96: =IF('User Input'!C16 = 0,"",G129) ->  | I96: =IF('User Input'!C16 = 0,"",I129) ->  | J96: =IF('User Input'!C16 = 0,"",J129) ->  | K96: =IF('User Input'!C16 = 0,"",K129/$C28) ->  | L96: =IF('User Input'!C16 = 0,"",L129/$C28) ->  | M96: =IF('User Input'!C16 = 0,"",M129/$C28) -> 
A97: =IF('User Input'!C17 = 0,"",'User Input'!C17) ->  | C97: =IF('User Input'!C17 = 0,"",C130/$B29) ->  | D97: =IF('User Input'!C17 = 0,"",D130/$B29) ->  | E97: =IF('User Input'!C17 = 0,"",E130/$B29) ->  | F97: =IF('User Input'!C17 = 0,"",F130/$B29) ->  | G97: =IF('User Input'!C17 = 0,"",G130) ->  | I97: =IF('User Input'!C17 = 0,"",I130) ->  | J97: =IF('User Input'!C17 = 0,"",J130) ->  | K97: =IF('User Input'!C17 = 0,"",K130/$C29) ->  | L97: =IF('User Input'!C17 = 0,"",L130/$C29) ->  | M97: =IF('User Input'!C17 = 0,"",M130/$C29) -> 
A98: =IF('User Input'!C18 = 0,"",'User Input'!C18) ->  | C98: =IF('User Input'!C18 = 0,"",C131/$B30) ->  | D98: =IF('User Input'!C18 = 0,"",D131/$B30) ->  | E98: =IF('User Input'!C18 = 0,"",E131/$B30) ->  | F98: =IF('User Input'!C18 = 0,"",F131/$B30) ->  | G98: =IF('User Input'!C18 = 0,"",G131) ->  | I98: =IF('User Input'!C18 = 0,"",I131) ->  | J98: =IF('User Input'!C18 = 0,"",J131) ->  | K98: =IF('User Input'!C18 = 0,"",K131/$C30) ->  | L98: =IF('User Input'!C18 = 0,"",L131/$C30) ->  | M98: =IF('User Input'!C18 = 0,"",M131/$C30) -> 
A99: =IF('User Input'!C19 = 0,"",'User Input'!C19) ->  | C99: =IF('User Input'!C19 = 0,"",C132/$B31) ->  | D99: =IF('User Input'!C19 = 0,"",D132/$B31) ->  | E99: =IF('User Input'!C19 = 0,"",E132/$B31) ->  | F99: =IF('User Input'!C19 = 0,"",F132/$B31) ->  | G99: =IF('User Input'!C19 = 0,"",G132) ->  | I99: =IF('User Input'!C19 = 0,"",I132) ->  | J99: =IF('User Input'!C19 = 0,"",J132) ->  | K99: =IF('User Input'!C19 = 0,"",K132/$C31) ->  | L99: =IF('User Input'!C19 = 0,"",L132/$C31) ->  | M99: =IF('User Input'!C19 = 0,"",M132/$C31) -> 
A100: =IF('User Input'!C20 = 0,"",'User Input'!C20) ->  | C100: =IF('User Input'!C20 = 0,"",C133/$B32) ->  | D100: =IF('User Input'!C20 = 0,"",D133/$B32) ->  | E100: =IF('User Input'!C20 = 0,"",E133/$B32) ->  | F100: =IF('User Input'!C20 = 0,"",F133/$B32) ->  | G100: =IF('User Input'!C20 = 0,"",G133) ->  | I100: =IF('User Input'!C20 = 0,"",I133) ->  | J100: =IF('User Input'!C20 = 0,"",J133) ->  | K100: =IF('User Input'!C20 = 0,"",K133/$C32) ->  | L100: =IF('User Input'!C20 = 0,"",L133/$C32) ->  | M100: =IF('User Input'!C20 = 0,"",M133/$C32) -> 
A101: =IF('User Input'!C21 = 0,"",'User Input'!C21) ->  | C101: =IF('User Input'!C21 = 0,"",C134/$B33) ->  | D101: =IF('User Input'!C21 = 0,"",D134/$B33) ->  | E101: =IF('User Input'!C21 = 0,"",E134/$B33) ->  | F101: =IF('User Input'!C21 = 0,"",F134/$B33) ->  | G101: =IF('User Input'!C21 = 0,"",G134) ->  | I101: =IF('User Input'!C21 = 0,"",I134) ->  | J101: =IF('User Input'!C21 = 0,"",J134) ->  | K101: =IF('User Input'!C21 = 0,"",K134/$C33) ->  | L101: =IF('User Input'!C21 = 0,"",L134/$C33) ->  | M101: =IF('User Input'!C21 = 0,"",M134/$C33) -> 
A102: =IF('User Input'!C22 = 0,"",'User Input'!C22) ->  | C102: =IF('User Input'!C22 = 0,"",C135/$B34) ->  | D102: =IF('User Input'!C22 = 0,"",D135/$B34) ->  | E102: =IF('User Input'!C22 = 0,"",E135/$B34) ->  | F102: =IF('User Input'!C22 = 0,"",F135/$B34) ->  | G102: =IF('User Input'!C22 = 0,"",G135) ->  | I102: =IF('User Input'!C22 = 0,"",I135) ->  | J102: =IF('User Input'!C22 = 0,"",J135) ->  | K102: =IF('User Input'!C22 = 0,"",K135/$C34) ->  | L102: =IF('User Input'!C22 = 0,"",L135/$C34) ->  | M102: =IF('User Input'!C22 = 0,"",M135/$C34) -> 
A103: =IF('User Input'!C23 = 0,"",'User Input'!C23) ->  | C103: =IF('User Input'!C23 = 0,"",C136/$B35) ->  | D103: =IF('User Input'!C23 = 0,"",D136/$B35) ->  | E103: =IF('User Input'!C23 = 0,"",E136/$B35) ->  | F103: =IF('User Input'!C23 = 0,"",F136/$B35) ->  | G103: =IF('User Input'!C23 = 0,"",G136) ->  | I103: =IF('User Input'!C23 = 0,"",I136) ->  | J103: =IF('User Input'!C23 = 0,"",J136) ->  | K103: =IF('User Input'!C23 = 0,"",K136/$C35) ->  | L103: =IF('User Input'!C23 = 0,"",L136/$C35) ->  | M103: =IF('User Input'!C23 = 0,"",M136/$C35) -> 
A104: =IF('User Input'!C24 = 0,"",'User Input'!C24) ->  | C104: =IF('User Input'!C24 = 0,"",C137/$B36) ->  | D104: =IF('User Input'!C24 = 0,"",D137/$B36) ->  | E104: =IF('User Input'!C24 = 0,"",E137/$B36) ->  | F104: =IF('User Input'!C24 = 0,"",F137/$B36) ->  | G104: =IF('User Input'!C24 = 0,"",G137) ->  | I104: =IF('User Input'!C24 = 0,"",I137) ->  | J104: =IF('User Input'!C24 = 0,"",J137) ->  | K104: =IF('User Input'!C24 = 0,"",K137/$C36) ->  | L104: =IF('User Input'!C24 = 0,"",L137/$C36) ->  | M104: =IF('User Input'!C24 = 0,"",M137/$C36) -> 
A105: =IF('User Input'!C25 = 0,"",'User Input'!C25) ->  | C105: =IF('User Input'!C25 = 0,"",C138/$B37) ->  | D105: =IF('User Input'!C25 = 0,"",D138/$B37) ->  | E105: =IF('User Input'!C25 = 0,"",E138/$B37) ->  | F105: =IF('User Input'!C25 = 0,"",F138/$B37) ->  | G105: =IF('User Input'!C25 = 0,"",G138) ->  | I105: =IF('User Input'!C25 = 0,"",I138) ->  | J105: =IF('User Input'!C25 = 0,"",J138) ->  | K105: =IF('User Input'!C25 = 0,"",K138/$C37) ->  | L105: =IF('User Input'!C25 = 0,"",L138/$C37) ->  | M105: =IF('User Input'!C25 = 0,"",M138/$C37) -> 
A106: =IF('User Input'!C26 = 0,"",'User Input'!C26) ->  | C106: =IF('User Input'!C26 = 0,"",C139/$B38) ->  | D106: =IF('User Input'!C26 = 0,"",D139/$B38) ->  | E106: =IF('User Input'!C26 = 0,"",E139/$B38) ->  | F106: =IF('User Input'!C26 = 0,"",F139/$B38) ->  | G106: =IF('User Input'!C26 = 0,"",G139) ->  | I106: =IF('User Input'!C26 = 0,"",I139) ->  | J106: =IF('User Input'!C26 = 0,"",J139) ->  | K106: =IF('User Input'!C26 = 0,"",K139/$C38) ->  | L106: =IF('User Input'!C26 = 0,"",L139/$C38) ->  | M106: =IF('User Input'!C26 = 0,"",M139/$C38) -> 
A107: =IF('User Input'!C27 = 0,"",'User Input'!C27) ->  | C107: =IF('User Input'!C27 = 0,"",C140/$B39) ->  | D107: =IF('User Input'!C27 = 0,"",D140/$B39) ->  | E107: =IF('User Input'!C27 = 0,"",E140/$B39) ->  | F107: =IF('User Input'!C27 = 0,"",F140/$B39) ->  | G107: =IF('User Input'!C27 = 0,"",G140) ->  | I107: =IF('User Input'!C27 = 0,"",I140) ->  | J107: =IF('User Input'!C27 = 0,"",J140) ->  | K107: =IF('User Input'!C27 = 0,"",K140/$C39) ->  | L107: =IF('User Input'!C27 = 0,"",L140/$C39) ->  | M107: =IF('User Input'!C27 = 0,"",M140/$C39) -> 
A108: =IF('User Input'!C28 = 0,"",'User Input'!C28) ->  | C108: =IF('User Input'!C28 = 0,"",C141/$B40) ->  | D108: =IF('User Input'!C28 = 0,"",D141/$B40) ->  | E108: =IF('User Input'!C28 = 0,"",E141/$B40) ->  | F108: =IF('User Input'!C28 = 0,"",F141/$B40) ->  | G108: =IF('User Input'!C28 = 0,"",G141) ->  | I108: =IF('User Input'!C28 = 0,"",I141) ->  | J108: =IF('User Input'!C28 = 0,"",J141) ->  | K108: =IF('User Input'!C28 = 0,"",K141/$C40) ->  | L108: =IF('User Input'!C28 = 0,"",L141/$C40) ->  | M108: =IF('User Input'!C28 = 0,"",M141/$C40) -> 
A109: =IF('User Input'!C29 = 0,"",'User Input'!C29) ->  | C109: =IF('User Input'!C29 = 0,"",C142/$B41) ->  | D109: =IF('User Input'!C29 = 0,"",D142/$B41) ->  | E109: =IF('User Input'!C29 = 0,"",E142/$B41) ->  | F109: =IF('User Input'!C29 = 0,"",F142/$B41) ->  | G109: =IF('User Input'!C29 = 0,"",G142) ->  | I109: =IF('User Input'!C29 = 0,"",I142) ->  | J109: =IF('User Input'!C29 = 0,"",J142) ->  | K109: =IF('User Input'!C29 = 0,"",K142/$C41) ->  | L109: =IF('User Input'!C29 = 0,"",L142/$C41) ->  | M109: =IF('User Input'!C29 = 0,"",M142/$C41) -> 
A110: =IF('User Input'!C30 = 0,"",'User Input'!C30) ->  | C110: =IF('User Input'!C30 = 0,"",C143/$B42) ->  | D110: =IF('User Input'!C30 = 0,"",D143/$B42) ->  | E110: =IF('User Input'!C30 = 0,"",E143/$B42) ->  | F110: =IF('User Input'!C30 = 0,"",F143/$B42) ->  | G110: =IF('User Input'!C30 = 0,"",G143) ->  | I110: =IF('User Input'!C30 = 0,"",I143) ->  | J110: =IF('User Input'!C30 = 0,"",J143) ->  | K110: =IF('User Input'!C30 = 0,"",K143/$C42) ->  | L110: =IF('User Input'!C30 = 0,"",L143/$C42) ->  | M110: =IF('User Input'!C30 = 0,"",M143/$C42) -> 
B112: Projected Batting Totals | H112: Projected Pitching Totals
A113: Team | B113: AB | C113: R | D113: HR | E113: RBI | F113: SB | G113: AVG | H113: IP | I113: ERA | J113: WHIP | K113: W | L113: S | M113: K
A114: =IF('User Input'!C1 = 0,"",'User Input'!C1) -> a | B114: =IF('User Input'!C1=0,"",SUMIF(Players!$O$3:$O$903,A114,Players!V$3:V$903)) -> 0 | C114: =IF('User Input'!C1=0,"",SUMIF(Players!$O$3:$O$903,A114,Players!W$3:W$903)) -> 0 | D114: =IF('User Input'!C1=0,"",SUMIF(Players!$O$3:$O$903,A114,Players!X$3:X$903)) -> 0 | E114: =IF('User Input'!C1=0,"",SUMIF(Players!$O$3:$O$903,A114,Players!Y$3:Y$903)) -> 0 | F114: =IF('User Input'!C1=0,"",SUMIF(Players!$O$3:$O$903,A114,Players!Z$3:Z$903)) -> 0 | G114: =IF('User Input'!C1=0,"",(SUMIF(Players!$O$3:$O$903,A114,Players!AC$3:AC$1019))/B114) ->  | H114: =IF('User Input'!C1=0,"",SUMIF(Players!$AW$3:$AW$937,A114,Players!BD$3:BD$937)) -> 0 | I114: =IF('User Input'!C1=0,"",SUMIF(Players!$AW$3:$AW$937,A114,Players!BK$3:BK$1019)/H114) ->  | J114: =IF('User Input'!C1=0,"",SUMIF(Players!$AW$3:$AW$937,A114,Players!BL$3:BL$1019)/H114) ->  | K114: =IF('User Input'!C1=0,"",SUMIF(Players!$AW$3:$AW$937,A114,Players!BG$3:BG$937)) -> 0 | L114: =IF('User Input'!C1=0,"",SUMIF(Players!$AW$3:$AW$937,A114,Players!BH$3:BH$937)) -> 0 | M114: =IF('User Input'!C1=0,"",SUMIF(Players!$AW$3:$AW$937,A114,Players!BI$3:BI$937)) -> 0 | N114: ← ← ← | O114: YOUR TEAM
A115: =IF('User Input'!C2 = 0,"",'User Input'!C2) -> b | B115: =IF('User Input'!C2=0,"",SUMIF(Players!$O$3:$O$903,A115,Players!V$3:V$903)) -> 0 | C115: =IF('User Input'!C2=0,"",SUMIF(Players!$O$3:$O$903,A115,Players!W$3:W$903)) -> 0 | D115: =IF('User Input'!C2=0,"",SUMIF(Players!$O$3:$O$903,A115,Players!X$3:X$903)) -> 0 | E115: =IF('User Input'!C2=0,"",SUMIF(Players!$O$3:$O$903,A115,Players!Y$3:Y$903)) -> 0 | F115: =IF('User Input'!C2=0,"",SUMIF(Players!$O$3:$O$903,A115,Players!Z$3:Z$903)) -> 0 | G115: =IF('User Input'!C2=0,"",(SUMIF(Players!$O$3:$O$903,A115,Players!AC$3:AC$1019))/B115) ->  | H115: =IF('User Input'!C2=0,"",SUMIF(Players!$AW$3:$AW$937,A115,Players!BD$3:BD$937)) -> 0 | I115: =IF('User Input'!C2=0,"",SUMIF(Players!$AW$3:$AW$937,A115,Players!BK$3:BK$1019)/H115) ->  | J115: =IF('User Input'!C2=0,"",SUMIF(Players!$AW$3:$AW$937,A115,Players!BL$3:BL$1019)/H115) ->  | K115: =IF('User Input'!C2=0,"",SUMIF(Players!$AW$3:$AW$937,A115,Players!BG$3:BG$937)) -> 0 | L115: =IF('User Input'!C2=0,"",SUMIF(Players!$AW$3:$AW$937,A115,Players!BH$3:BH$937)) -> 0 | M115: =IF('User Input'!C2=0,"",SUMIF(Players!$AW$3:$AW$937,A115,Players!BI$3:BI$937)) -> 0
A116: =IF('User Input'!C3 = 0,"",'User Input'!C3) -> c | B116: =IF('User Input'!C3=0,"",SUMIF(Players!$O$3:$O$903,A116,Players!V$3:V$903)) -> 0 | C116: =IF('User Input'!C3=0,"",SUMIF(Players!$O$3:$O$903,A116,Players!W$3:W$903)) -> 0 | D116: =IF('User Input'!C3=0,"",SUMIF(Players!$O$3:$O$903,A116,Players!X$3:X$903)) -> 0 | E116: =IF('User Input'!C3=0,"",SUMIF(Players!$O$3:$O$903,A116,Players!Y$3:Y$903)) -> 0 | F116: =IF('User Input'!C3=0,"",SUMIF(Players!$O$3:$O$903,A116,Players!Z$3:Z$903)) -> 0 | G116: =IF('User Input'!C3=0,"",(SUMIF(Players!$O$3:$O$903,A116,Players!AC$3:AC$1019))/B116) ->  | H116: =IF('User Input'!C3=0,"",SUMIF(Players!$AW$3:$AW$937,A116,Players!BD$3:BD$937)) -> 0 | I116: =IF('User Input'!C3=0,"",SUMIF(Players!$AW$3:$AW$937,A116,Players!BK$3:BK$1019)/H116) ->  | J116: =IF('User Input'!C3=0,"",SUMIF(Players!$AW$3:$AW$937,A116,Players!BL$3:BL$1019)/H116) ->  | K116: =IF('User Input'!C3=0,"",SUMIF(Players!$AW$3:$AW$937,A116,Players!BG$3:BG$937)) -> 0 | L116: =IF('User Input'!C3=0,"",SUMIF(Players!$AW$3:$AW$937,A116,Players!BH$3:BH$937)) -> 0 | M116: =IF('User Input'!C3=0,"",SUMIF(Players!$AW$3:$AW$937,A116,Players!BI$3:BI$937)) -> 0
A117: =IF('User Input'!C4 = 0,"",'User Input'!C4) -> d | B117: =IF('User Input'!C4=0,"",SUMIF(Players!$O$3:$O$903,A117,Players!V$3:V$903)) -> 0 | C117: =IF('User Input'!C4=0,"",SUMIF(Players!$O$3:$O$903,A117,Players!W$3:W$903)) -> 0 | D117: =IF('User Input'!C4=0,"",SUMIF(Players!$O$3:$O$903,A117,Players!X$3:X$903)) -> 0 | E117: =IF('User Input'!C4=0,"",SUMIF(Players!$O$3:$O$903,A117,Players!Y$3:Y$903)) -> 0 | F117: =IF('User Input'!C4=0,"",SUMIF(Players!$O$3:$O$903,A117,Players!Z$3:Z$903)) -> 0 | G117: =IF('User Input'!C4=0,"",(SUMIF(Players!$O$3:$O$903,A117,Players!AC$3:AC$1019))/B117) ->  | H117: =IF('User Input'!C4=0,"",SUMIF(Players!$AW$3:$AW$937,A117,Players!BD$3:BD$937)) -> 0 | I117: =IF('User Input'!C4=0,"",SUMIF(Players!$AW$3:$AW$937,A117,Players!BK$3:BK$1019)/H117) ->  | J117: =IF('User Input'!C4=0,"",SUMIF(Players!$AW$3:$AW$937,A117,Players!BL$3:BL$1019)/H117) ->  | K117: =IF('User Input'!C4=0,"",SUMIF(Players!$AW$3:$AW$937,A117,Players!BG$3:BG$937)) -> 0 | L117: =IF('User Input'!C4=0,"",SUMIF(Players!$AW$3:$AW$937,A117,Players!BH$3:BH$937)) -> 0 | M117: =IF('User Input'!C4=0,"",SUMIF(Players!$AW$3:$AW$937,A117,Players!BI$3:BI$937)) -> 0
A118: =IF('User Input'!C5 = 0,"",'User Input'!C5) -> e | B118: =IF('User Input'!C5=0,"",SUMIF(Players!$O$3:$O$903,A118,Players!V$3:V$903)) -> 0 | C118: =IF('User Input'!C5=0,"",SUMIF(Players!$O$3:$O$903,A118,Players!W$3:W$903)) -> 0 | D118: =IF('User Input'!C5=0,"",SUMIF(Players!$O$3:$O$903,A118,Players!X$3:X$903)) -> 0 | E118: =IF('User Input'!C5=0,"",SUMIF(Players!$O$3:$O$903,A118,Players!Y$3:Y$903)) -> 0 | F118: =IF('User Input'!C5=0,"",SUMIF(Players!$O$3:$O$903,A118,Players!Z$3:Z$903)) -> 0 | G118: =IF('User Input'!C5=0,"",(SUMIF(Players!$O$3:$O$903,A118,Players!AC$3:AC$1019))/B118) ->  | H118: =IF('User Input'!C5=0,"",SUMIF(Players!$AW$3:$AW$937,A118,Players!BD$3:BD$937)) -> 0 | I118: =IF('User Input'!C5=0,"",SUMIF(Players!$AW$3:$AW$937,A118,Players!BK$3:BK$1019)/H118) ->  | J118: =IF('User Input'!C5=0,"",SUMIF(Players!$AW$3:$AW$937,A118,Players!BL$3:BL$1019)/H118) ->  | K118: =IF('User Input'!C5=0,"",SUMIF(Players!$AW$3:$AW$937,A118,Players!BG$3:BG$937)) -> 0 | L118: =IF('User Input'!C5=0,"",SUMIF(Players!$AW$3:$AW$937,A118,Players!BH$3:BH$937)) -> 0 | M118: =IF('User Input'!C5=0,"",SUMIF(Players!$AW$3:$AW$937,A118,Players!BI$3:BI$937)) -> 0
A119: =IF('User Input'!C6 = 0,"",'User Input'!C6) -> f | B119: =IF('User Input'!C6=0,"",SUMIF(Players!$O$3:$O$903,A119,Players!V$3:V$903)) -> 0 | C119: =IF('User Input'!C6=0,"",SUMIF(Players!$O$3:$O$903,A119,Players!W$3:W$903)) -> 0 | D119: =IF('User Input'!C6=0,"",SUMIF(Players!$O$3:$O$903,A119,Players!X$3:X$903)) -> 0 | E119: =IF('User Input'!C6=0,"",SUMIF(Players!$O$3:$O$903,A119,Players!Y$3:Y$903)) -> 0 | F119: =IF('User Input'!C6=0,"",SUMIF(Players!$O$3:$O$903,A119,Players!Z$3:Z$903)) -> 0 | G119: =IF('User Input'!C6=0,"",(SUMIF(Players!$O$3:$O$903,A119,Players!AC$3:AC$1019))/B119) ->  | H119: =IF('User Input'!C6=0,"",SUMIF(Players!$AW$3:$AW$937,A119,Players!BD$3:BD$937)) -> 0 | I119: =IF('User Input'!C6=0,"",SUMIF(Players!$AW$3:$AW$937,A119,Players!BK$3:BK$1019)/H119) ->  | J119: =IF('User Input'!C6=0,"",SUMIF(Players!$AW$3:$AW$937,A119,Players!BL$3:BL$1019)/H119) ->  | K119: =IF('User Input'!C6=0,"",SUMIF(Players!$AW$3:$AW$937,A119,Players!BG$3:BG$937)) -> 0 | L119: =IF('User Input'!C6=0,"",SUMIF(Players!$AW$3:$AW$937,A119,Players!BH$3:BH$937)) -> 0 | M119: =IF('User Input'!C6=0,"",SUMIF(Players!$AW$3:$AW$937,A119,Players!BI$3:BI$937)) -> 0
A120: =IF('User Input'!C7 = 0,"",'User Input'!C7) -> g | B120: =IF('User Input'!C7=0,"",SUMIF(Players!$O$3:$O$903,A120,Players!V$3:V$903)) -> 0 | C120: =IF('User Input'!C7=0,"",SUMIF(Players!$O$3:$O$903,A120,Players!W$3:W$903)) -> 0 | D120: =IF('User Input'!C7=0,"",SUMIF(Players!$O$3:$O$903,A120,Players!X$3:X$903)) -> 0 | E120: =IF('User Input'!C7=0,"",SUMIF(Players!$O$3:$O$903,A120,Players!Y$3:Y$903)) -> 0 | F120: =IF('User Input'!C7=0,"",SUMIF(Players!$O$3:$O$903,A120,Players!Z$3:Z$903)) -> 0 | G120: =IF('User Input'!C7=0,"",(SUMIF(Players!$O$3:$O$903,A120,Players!AC$3:AC$1019))/B120) ->  | H120: =IF('User Input'!C7=0,"",SUMIF(Players!$AW$3:$AW$937,A120,Players!BD$3:BD$937)) -> 0 | I120: =IF('User Input'!C7=0,"",SUMIF(Players!$AW$3:$AW$937,A120,Players!BK$3:BK$1019)/H120) ->  | J120: =IF('User Input'!C7=0,"",SUMIF(Players!$AW$3:$AW$937,A120,Players!BL$3:BL$1019)/H120) ->  | K120: =IF('User Input'!C7=0,"",SUMIF(Players!$AW$3:$AW$937,A120,Players!BG$3:BG$937)) -> 0 | L120: =IF('User Input'!C7=0,"",SUMIF(Players!$AW$3:$AW$937,A120,Players!BH$3:BH$937)) -> 0 | M120: =IF('User Input'!C7=0,"",SUMIF(Players!$AW$3:$AW$937,A120,Players!BI$3:BI$937)) -> 0
A121: =IF('User Input'!C8 = 0,"",'User Input'!C8) -> h | B121: =IF('User Input'!C8=0,"",SUMIF(Players!$O$3:$O$903,A121,Players!V$3:V$903)) -> 0 | C121: =IF('User Input'!C8=0,"",SUMIF(Players!$O$3:$O$903,A121,Players!W$3:W$903)) -> 0 | D121: =IF('User Input'!C8=0,"",SUMIF(Players!$O$3:$O$903,A121,Players!X$3:X$903)) -> 0 | E121: =IF('User Input'!C8=0,"",SUMIF(Players!$O$3:$O$903,A121,Players!Y$3:Y$903)) -> 0 | F121: =IF('User Input'!C8=0,"",SUMIF(Players!$O$3:$O$903,A121,Players!Z$3:Z$903)) -> 0 | G121: =IF('User Input'!C8=0,"",(SUMIF(Players!$O$3:$O$903,A121,Players!AC$3:AC$1019))/B121) ->  | H121: =IF('User Input'!C8=0,"",SUMIF(Players!$AW$3:$AW$937,A121,Players!BD$3:BD$937)) -> 0 | I121: =IF('User Input'!C8=0,"",SUMIF(Players!$AW$3:$AW$937,A121,Players!BK$3:BK$1019)/H121) ->  | J121: =IF('User Input'!C8=0,"",SUMIF(Players!$AW$3:$AW$937,A121,Players!BL$3:BL$1019)/H121) ->  | K121: =IF('User Input'!C8=0,"",SUMIF(Players!$AW$3:$AW$937,A121,Players!BG$3:BG$937)) -> 0 | L121: =IF('User Input'!C8=0,"",SUMIF(Players!$AW$3:$AW$937,A121,Players!BH$3:BH$937)) -> 0 | M121: =IF('User Input'!C8=0,"",SUMIF(Players!$AW$3:$AW$937,A121,Players!BI$3:BI$937)) -> 0
A122: =IF('User Input'!C9 = 0,"",'User Input'!C9) -> i | B122: =IF('User Input'!C9=0,"",SUMIF(Players!$O$3:$O$903,A122,Players!V$3:V$903)) -> 0 | C122: =IF('User Input'!C9=0,"",SUMIF(Players!$O$3:$O$903,A122,Players!W$3:W$903)) -> 0 | D122: =IF('User Input'!C9=0,"",SUMIF(Players!$O$3:$O$903,A122,Players!X$3:X$903)) -> 0 | E122: =IF('User Input'!C9=0,"",SUMIF(Players!$O$3:$O$903,A122,Players!Y$3:Y$903)) -> 0 | F122: =IF('User Input'!C9=0,"",SUMIF(Players!$O$3:$O$903,A122,Players!Z$3:Z$903)) -> 0 | G122: =IF('User Input'!C9=0,"",(SUMIF(Players!$O$3:$O$903,A122,Players!AC$3:AC$1019))/B122) ->  | H122: =IF('User Input'!C9=0,"",SUMIF(Players!$AW$3:$AW$937,A122,Players!BD$3:BD$937)) -> 0 | I122: =IF('User Input'!C9=0,"",SUMIF(Players!$AW$3:$AW$937,A122,Players!BK$3:BK$1019)/H122) ->  | J122: =IF('User Input'!C9=0,"",SUMIF(Players!$AW$3:$AW$937,A122,Players!BL$3:BL$1019)/H122) ->  | K122: =IF('User Input'!C9=0,"",SUMIF(Players!$AW$3:$AW$937,A122,Players!BG$3:BG$937)) -> 0 | L122: =IF('User Input'!C9=0,"",SUMIF(Players!$AW$3:$AW$937,A122,Players!BH$3:BH$937)) -> 0 | M122: =IF('User Input'!C9=0,"",SUMIF(Players!$AW$3:$AW$937,A122,Players!BI$3:BI$937)) -> 0
A123: =IF('User Input'!C10 = 0,"",'User Input'!C10) -> j | B123: =IF('User Input'!C10=0,"",SUMIF(Players!$O$3:$O$903,A123,Players!V$3:V$903)) -> 0 | C123: =IF('User Input'!C10=0,"",SUMIF(Players!$O$3:$O$903,A123,Players!W$3:W$903)) -> 0 | D123: =IF('User Input'!C10=0,"",SUMIF(Players!$O$3:$O$903,A123,Players!X$3:X$903)) -> 0 | E123: =IF('User Input'!C10=0,"",SUMIF(Players!$O$3:$O$903,A123,Players!Y$3:Y$903)) -> 0 | F123: =IF('User Input'!C10=0,"",SUMIF(Players!$O$3:$O$903,A123,Players!Z$3:Z$903)) -> 0 | G123: =IF('User Input'!C10=0,"",(SUMIF(Players!$O$3:$O$903,A123,Players!AC$3:AC$1019))/B123) ->  | H123: =IF('User Input'!C10=0,"",SUMIF(Players!$AW$3:$AW$937,A123,Players!BD$3:BD$937)) -> 0 | I123: =IF('User Input'!C10=0,"",SUMIF(Players!$AW$3:$AW$937,A123,Players!BK$3:BK$1019)/H123) ->  | J123: =IF('User Input'!C10=0,"",SUMIF(Players!$AW$3:$AW$937,A123,Players!BL$3:BL$1019)/H123) ->  | K123: =IF('User Input'!C10=0,"",SUMIF(Players!$AW$3:$AW$937,A123,Players!BG$3:BG$937)) -> 0 | L123: =IF('User Input'!C10=0,"",SUMIF(Players!$AW$3:$AW$937,A123,Players!BH$3:BH$937)) -> 0 | M123: =IF('User Input'!C10=0,"",SUMIF(Players!$AW$3:$AW$937,A123,Players!BI$3:BI$937)) -> 0
A124: =IF('User Input'!C11 = 0,"",'User Input'!C11) -> k | B124: =IF('User Input'!C11=0,"",SUMIF(Players!$O$3:$O$903,A124,Players!V$3:V$903)) -> 0 | C124: =IF('User Input'!C11=0,"",SUMIF(Players!$O$3:$O$903,A124,Players!W$3:W$903)) -> 0 | D124: =IF('User Input'!C11=0,"",SUMIF(Players!$O$3:$O$903,A124,Players!X$3:X$903)) -> 0 | E124: =IF('User Input'!C11=0,"",SUMIF(Players!$O$3:$O$903,A124,Players!Y$3:Y$903)) -> 0 | F124: =IF('User Input'!C11=0,"",SUMIF(Players!$O$3:$O$903,A124,Players!Z$3:Z$903)) -> 0 | G124: =IF('User Input'!C11=0,"",(SUMIF(Players!$O$3:$O$903,A124,Players!AC$3:AC$1019))/B124) ->  | H124: =IF('User Input'!C11=0,"",SUMIF(Players!$AW$3:$AW$937,A124,Players!BD$3:BD$937)) -> 0 | I124: =IF('User Input'!C11=0,"",SUMIF(Players!$AW$3:$AW$937,A124,Players!BK$3:BK$1019)/H124) ->  | J124: =IF('User Input'!C11=0,"",SUMIF(Players!$AW$3:$AW$937,A124,Players!BL$3:BL$1019)/H124) ->  | K124: =IF('User Input'!C11=0,"",SUMIF(Players!$AW$3:$AW$937,A124,Players!BG$3:BG$937)) -> 0 | L124: =IF('User Input'!C11=0,"",SUMIF(Players!$AW$3:$AW$937,A124,Players!BH$3:BH$937)) -> 0 | M124: =IF('User Input'!C11=0,"",SUMIF(Players!$AW$3:$AW$937,A124,Players!BI$3:BI$937)) -> 0
A125: =IF('User Input'!C12 = 0,"",'User Input'!C12) -> l | B125: =IF('User Input'!C12=0,"",SUMIF(Players!$O$3:$O$903,A125,Players!V$3:V$903)) -> 0 | C125: =IF('User Input'!C12=0,"",SUMIF(Players!$O$3:$O$903,A125,Players!W$3:W$903)) -> 0 | D125: =IF('User Input'!C12=0,"",SUMIF(Players!$O$3:$O$903,A125,Players!X$3:X$903)) -> 0 | E125: =IF('User Input'!C12=0,"",SUMIF(Players!$O$3:$O$903,A125,Players!Y$3:Y$903)) -> 0 | F125: =IF('User Input'!C12=0,"",SUMIF(Players!$O$3:$O$903,A125,Players!Z$3:Z$903)) -> 0 | G125: =IF('User Input'!C12=0,"",(SUMIF(Players!$O$3:$O$903,A125,Players!AC$3:AC$1019))/B125) ->  | H125: =IF('User Input'!C12=0,"",SUMIF(Players!$AW$3:$AW$937,A125,Players!BD$3:BD$937)) -> 0 | I125: =IF('User Input'!C12=0,"",SUMIF(Players!$AW$3:$AW$937,A125,Players!BK$3:BK$1019)/H125) ->  | J125: =IF('User Input'!C12=0,"",SUMIF(Players!$AW$3:$AW$937,A125,Players!BL$3:BL$1019)/H125) ->  | K125: =IF('User Input'!C12=0,"",SUMIF(Players!$AW$3:$AW$937,A125,Players!BG$3:BG$937)) -> 0 | L125: =IF('User Input'!C12=0,"",SUMIF(Players!$AW$3:$AW$937,A125,Players!BH$3:BH$937)) -> 0 | M125: =IF('User Input'!C12=0,"",SUMIF(Players!$AW$3:$AW$937,A125,Players!BI$3:BI$937)) -> 0
A126: =IF('User Input'!C13 = 0,"",'User Input'!C13) ->  | B126: =IF('User Input'!C13=0,"",SUMIF(Players!$O$3:$O$903,A126,Players!V$3:V$903)) ->  | C126: =IF('User Input'!C13=0,"",SUMIF(Players!$O$3:$O$903,A126,Players!W$3:W$903)) ->  | D126: =IF('User Input'!C13=0,"",SUMIF(Players!$O$3:$O$903,A126,Players!X$3:X$903)) ->  | E126: =IF('User Input'!C13=0,"",SUMIF(Players!$O$3:$O$903,A126,Players!Y$3:Y$903)) ->  | F126: =IF('User Input'!C13=0,"",SUMIF(Players!$O$3:$O$903,A126,Players!Z$3:Z$903)) ->  | G126: =IF('User Input'!C13=0,"",(SUMIF(Players!$O$3:$O$903,A126,Players!AC$3:AC$1019))/B126) ->  | H126: =IF('User Input'!C13=0,"",SUMIF(Players!$AW$3:$AW$937,A126,Players!BD$3:BD$937)) ->  | I126: =IF('User Input'!C13=0,"",SUMIF(Players!$AW$3:$AW$937,A126,Players!BK$3:BK$1019)/H126) ->  | J126: =IF('User Input'!C13=0,"",SUMIF(Players!$AW$3:$AW$937,A126,Players!BL$3:BL$1019)/H126) ->  | K126: =IF('User Input'!C13=0,"",SUMIF(Players!$AW$3:$AW$937,A126,Players!BG$3:BG$937)) ->  | L126: =IF('User Input'!C13=0,"",SUMIF(Players!$AW$3:$AW$937,A126,Players!BH$3:BH$937)) ->  | M126: =IF('User Input'!C13=0,"",SUMIF(Players!$AW$3:$AW$937,A126,Players!BI$3:BI$937)) -> 
A127: =IF('User Input'!C14 = 0,"",'User Input'!C14) ->  | B127: =IF('User Input'!C14=0,"",SUMIF(Players!$O$3:$O$903,A127,Players!V$3:V$903)) ->  | C127: =IF('User Input'!C14=0,"",SUMIF(Players!$O$3:$O$903,A127,Players!W$3:W$903)) ->  | D127: =IF('User Input'!C14=0,"",SUMIF(Players!$O$3:$O$903,A127,Players!X$3:X$903)) ->  | E127: =IF('User Input'!C14=0,"",SUMIF(Players!$O$3:$O$903,A127,Players!Y$3:Y$903)) ->  | F127: =IF('User Input'!C14=0,"",SUMIF(Players!$O$3:$O$903,A127,Players!Z$3:Z$903)) ->  | G127: =IF('User Input'!C14=0,"",(SUMIF(Players!$O$3:$O$903,A127,Players!AC$3:AC$1019))/B127) ->  | H127: =IF('User Input'!C14=0,"",SUMIF(Players!$AW$3:$AW$937,A127,Players!BD$3:BD$937)) ->  | I127: =IF('User Input'!C14=0,"",SUMIF(Players!$AW$3:$AW$937,A127,Players!BK$3:BK$1019)/H127) ->  | J127: =IF('User Input'!C14=0,"",SUMIF(Players!$AW$3:$AW$937,A127,Players!BL$3:BL$1019)/H127) ->  | K127: =IF('User Input'!C14=0,"",SUMIF(Players!$AW$3:$AW$937,A127,Players!BG$3:BG$937)) ->  | L127: =IF('User Input'!C14=0,"",SUMIF(Players!$AW$3:$AW$937,A127,Players!BH$3:BH$937)) ->  | M127: =IF('User Input'!C14=0,"",SUMIF(Players!$AW$3:$AW$937,A127,Players!BI$3:BI$937)) -> 
A128: =IF('User Input'!C15 = 0,"",'User Input'!C15) ->  | B128: =IF('User Input'!C15=0,"",SUMIF(Players!$O$3:$O$903,A128,Players!V$3:V$903)) ->  | C128: =IF('User Input'!C15=0,"",SUMIF(Players!$O$3:$O$903,A128,Players!W$3:W$903)) ->  | D128: =IF('User Input'!C15=0,"",SUMIF(Players!$O$3:$O$903,A128,Players!X$3:X$903)) ->  | E128: =IF('User Input'!C15=0,"",SUMIF(Players!$O$3:$O$903,A128,Players!Y$3:Y$903)) ->  | F128: =IF('User Input'!C15=0,"",SUMIF(Players!$O$3:$O$903,A128,Players!Z$3:Z$903)) ->  | G128: =IF('User Input'!C15=0,"",(SUMIF(Players!$O$3:$O$903,A128,Players!AC$3:AC$1019))/B128) ->  | H128: =IF('User Input'!C15=0,"",SUMIF(Players!$AW$3:$AW$937,A128,Players!BD$3:BD$937)) ->  | I128: =IF('User Input'!C15=0,"",SUMIF(Players!$AW$3:$AW$937,A128,Players!BK$3:BK$1019)/H128) ->  | J128: =IF('User Input'!C15=0,"",SUMIF(Players!$AW$3:$AW$937,A128,Players!BL$3:BL$1019)/H128) ->  | K128: =IF('User Input'!C15=0,"",SUMIF(Players!$AW$3:$AW$937,A128,Players!BG$3:BG$937)) ->  | L128: =IF('User Input'!C15=0,"",SUMIF(Players!$AW$3:$AW$937,A128,Players!BH$3:BH$937)) ->  | M128: =IF('User Input'!C15=0,"",SUMIF(Players!$AW$3:$AW$937,A128,Players!BI$3:BI$937)) -> 
A129: =IF('User Input'!C16 = 0,"",'User Input'!C16) ->  | B129: =IF('User Input'!C16=0,"",SUMIF(Players!$O$3:$O$903,A129,Players!V$3:V$903)) ->  | C129: =IF('User Input'!C16=0,"",SUMIF(Players!$O$3:$O$903,A129,Players!W$3:W$903)) ->  | D129: =IF('User Input'!C16=0,"",SUMIF(Players!$O$3:$O$903,A129,Players!X$3:X$903)) ->  | E129: =IF('User Input'!C16=0,"",SUMIF(Players!$O$3:$O$903,A129,Players!Y$3:Y$903)) ->  | F129: =IF('User Input'!C16=0,"",SUMIF(Players!$O$3:$O$903,A129,Players!Z$3:Z$903)) ->  | G129: =IF('User Input'!C16=0,"",(SUMIF(Players!$O$3:$O$903,A129,Players!AC$3:AC$1019))/B129) ->  | H129: =IF('User Input'!C16=0,"",SUMIF(Players!$AW$3:$AW$937,A129,Players!BD$3:BD$937)) ->  | I129: =IF('User Input'!C16=0,"",SUMIF(Players!$AW$3:$AW$937,A129,Players!BK$3:BK$1019)/H129) ->  | J129: =IF('User Input'!C16=0,"",SUMIF(Players!$AW$3:$AW$937,A129,Players!BL$3:BL$1019)/H129) ->  | K129: =IF('User Input'!C16=0,"",SUMIF(Players!$AW$3:$AW$937,A129,Players!BG$3:BG$937)) ->  | L129: =IF('User Input'!C16=0,"",SUMIF(Players!$AW$3:$AW$937,A129,Players!BH$3:BH$937)) ->  | M129: =IF('User Input'!C16=0,"",SUMIF(Players!$AW$3:$AW$937,A129,Players!BI$3:BI$937)) -> 
A130: =IF('User Input'!C17 = 0,"",'User Input'!C17) ->  | B130: =IF('User Input'!C17=0,"",SUMIF(Players!$O$3:$O$903,A130,Players!V$3:V$903)) ->  | C130: =IF('User Input'!C17=0,"",SUMIF(Players!$O$3:$O$903,A130,Players!W$3:W$903)) ->  | D130: =IF('User Input'!C17=0,"",SUMIF(Players!$O$3:$O$903,A130,Players!X$3:X$903)) ->  | E130: =IF('User Input'!C17=0,"",SUMIF(Players!$O$3:$O$903,A130,Players!Y$3:Y$903)) ->  | F130: =IF('User Input'!C17=0,"",SUMIF(Players!$O$3:$O$903,A130,Players!Z$3:Z$903)) ->  | G130: =IF('User Input'!C17=0,"",(SUMIF(Players!$O$3:$O$903,A130,Players!AC$3:AC$1019))/B130) ->  | H130: =IF('User Input'!C17=0,"",SUMIF(Players!$AW$3:$AW$937,A130,Players!BD$3:BD$937)) ->  | I130: =IF('User Input'!C17=0,"",SUMIF(Players!$AW$3:$AW$937,A130,Players!BK$3:BK$1019)/H130) ->  | J130: =IF('User Input'!C17=0,"",SUMIF(Players!$AW$3:$AW$937,A130,Players!BL$3:BL$1019)/H130) ->  | K130: =IF('User Input'!C17=0,"",SUMIF(Players!$AW$3:$AW$937,A130,Players!BG$3:BG$937)) ->  | L130: =IF('User Input'!C17=0,"",SUMIF(Players!$AW$3:$AW$937,A130,Players!BH$3:BH$937)) ->  | M130: =IF('User Input'!C17=0,"",SUMIF(Players!$AW$3:$AW$937,A130,Players!BI$3:BI$937)) -> 
A131: =IF('User Input'!C18 = 0,"",'User Input'!C18) ->  | B131: =IF('User Input'!C18=0,"",SUMIF(Players!$O$3:$O$903,A131,Players!V$3:V$903)) ->  | C131: =IF('User Input'!C18=0,"",SUMIF(Players!$O$3:$O$903,A131,Players!W$3:W$903)) ->  | D131: =IF('User Input'!C18=0,"",SUMIF(Players!$O$3:$O$903,A131,Players!X$3:X$903)) ->  | E131: =IF('User Input'!C18=0,"",SUMIF(Players!$O$3:$O$903,A131,Players!Y$3:Y$903)) ->  | F131: =IF('User Input'!C18=0,"",SUMIF(Players!$O$3:$O$903,A131,Players!Z$3:Z$903)) ->  | G131: =IF('User Input'!C18=0,"",(SUMIF(Players!$O$3:$O$903,A131,Players!AC$3:AC$1019))/B131) ->  | H131: =IF('User Input'!C18=0,"",SUMIF(Players!$AW$3:$AW$937,A131,Players!BD$3:BD$937)) ->  | I131: =IF('User Input'!C18=0,"",SUMIF(Players!$AW$3:$AW$937,A131,Players!BK$3:BK$1019)/H131) ->  | J131: =IF('User Input'!C18=0,"",SUMIF(Players!$AW$3:$AW$937,A131,Players!BL$3:BL$1019)/H131) ->  | K131: =IF('User Input'!C18=0,"",SUMIF(Players!$AW$3:$AW$937,A131,Players!BG$3:BG$937)) ->  | L131: =IF('User Input'!C18=0,"",SUMIF(Players!$AW$3:$AW$937,A131,Players!BH$3:BH$937)) ->  | M131: =IF('User Input'!C18=0,"",SUMIF(Players!$AW$3:$AW$937,A131,Players!BI$3:BI$937)) -> 
A132: =IF('User Input'!C19 = 0,"",'User Input'!C19) ->  | B132: =IF('User Input'!C19=0,"",SUMIF(Players!$O$3:$O$903,A132,Players!V$3:V$903)) ->  | C132: =IF('User Input'!C19=0,"",SUMIF(Players!$O$3:$O$903,A132,Players!W$3:W$903)) ->  | D132: =IF('User Input'!C19=0,"",SUMIF(Players!$O$3:$O$903,A132,Players!X$3:X$903)) ->  | E132: =IF('User Input'!C19=0,"",SUMIF(Players!$O$3:$O$903,A132,Players!Y$3:Y$903)) ->  | F132: =IF('User Input'!C19=0,"",SUMIF(Players!$O$3:$O$903,A132,Players!Z$3:Z$903)) ->  | G132: =IF('User Input'!C19=0,"",(SUMIF(Players!$O$3:$O$903,A132,Players!AC$3:AC$1019))/B132) ->  | H132: =IF('User Input'!C19=0,"",SUMIF(Players!$AW$3:$AW$937,A132,Players!BD$3:BD$937)) ->  | I132: =IF('User Input'!C19=0,"",SUMIF(Players!$AW$3:$AW$937,A132,Players!BK$3:BK$1019)/H132) ->  | J132: =IF('User Input'!C19=0,"",SUMIF(Players!$AW$3:$AW$937,A132,Players!BL$3:BL$1019)/H132) ->  | K132: =IF('User Input'!C19=0,"",SUMIF(Players!$AW$3:$AW$937,A132,Players!BG$3:BG$937)) ->  | L132: =IF('User Input'!C19=0,"",SUMIF(Players!$AW$3:$AW$937,A132,Players!BH$3:BH$937)) ->  | M132: =IF('User Input'!C19=0,"",SUMIF(Players!$AW$3:$AW$937,A132,Players!BI$3:BI$937)) -> 
A133: =IF('User Input'!C20 = 0,"",'User Input'!C20) ->  | B133: =IF('User Input'!C20=0,"",SUMIF(Players!$O$3:$O$903,A133,Players!V$3:V$903)) ->  | C133: =IF('User Input'!C20=0,"",SUMIF(Players!$O$3:$O$903,A133,Players!W$3:W$903)) ->  | D133: =IF('User Input'!C20=0,"",SUMIF(Players!$O$3:$O$903,A133,Players!X$3:X$903)) ->  | E133: =IF('User Input'!C20=0,"",SUMIF(Players!$O$3:$O$903,A133,Players!Y$3:Y$903)) ->  | F133: =IF('User Input'!C20=0,"",SUMIF(Players!$O$3:$O$903,A133,Players!Z$3:Z$903)) ->  | G133: =IF('User Input'!C20=0,"",(SUMIF(Players!$O$3:$O$903,A133,Players!AC$3:AC$1019))/B133) ->  | H133: =IF('User Input'!C20=0,"",SUMIF(Players!$AW$3:$AW$937,A133,Players!BD$3:BD$937)) ->  | I133: =IF('User Input'!C20=0,"",SUMIF(Players!$AW$3:$AW$937,A133,Players!BK$3:BK$1019)/H133) ->  | J133: =IF('User Input'!C20=0,"",SUMIF(Players!$AW$3:$AW$937,A133,Players!BL$3:BL$1019)/H133) ->  | K133: =IF('User Input'!C20=0,"",SUMIF(Players!$AW$3:$AW$937,A133,Players!BG$3:BG$937)) ->  | L133: =IF('User Input'!C20=0,"",SUMIF(Players!$AW$3:$AW$937,A133,Players!BH$3:BH$937)) ->  | M133: =IF('User Input'!C20=0,"",SUMIF(Players!$AW$3:$AW$937,A133,Players!BI$3:BI$937)) -> 
A134: =IF('User Input'!C21 = 0,"",'User Input'!C21) ->  | B134: =IF('User Input'!C21=0,"",SUMIF(Players!$O$3:$O$903,A134,Players!V$3:V$903)) ->  | C134: =IF('User Input'!C21=0,"",SUMIF(Players!$O$3:$O$903,A134,Players!W$3:W$903)) ->  | D134: =IF('User Input'!C21=0,"",SUMIF(Players!$O$3:$O$903,A134,Players!X$3:X$903)) ->  | E134: =IF('User Input'!C21=0,"",SUMIF(Players!$O$3:$O$903,A134,Players!Y$3:Y$903)) ->  | F134: =IF('User Input'!C21=0,"",SUMIF(Players!$O$3:$O$903,A134,Players!Z$3:Z$903)) ->  | G134: =IF('User Input'!C21=0,"",(SUMIF(Players!$O$3:$O$903,A134,Players!AC$3:AC$1019))/B134) ->  | H134: =IF('User Input'!C21=0,"",SUMIF(Players!$AW$3:$AW$937,A134,Players!BD$3:BD$937)) ->  | I134: =IF('User Input'!C21=0,"",SUMIF(Players!$AW$3:$AW$937,A134,Players!BK$3:BK$1019)/H134) ->  | J134: =IF('User Input'!C21=0,"",SUMIF(Players!$AW$3:$AW$937,A134,Players!BL$3:BL$1019)/H134) ->  | K134: =IF('User Input'!C21=0,"",SUMIF(Players!$AW$3:$AW$937,A134,Players!BG$3:BG$937)) ->  | L134: =IF('User Input'!C21=0,"",SUMIF(Players!$AW$3:$AW$937,A134,Players!BH$3:BH$937)) ->  | M134: =IF('User Input'!C21=0,"",SUMIF(Players!$AW$3:$AW$937,A134,Players!BI$3:BI$937)) -> 
A135: =IF('User Input'!C22 = 0,"",'User Input'!C22) ->  | B135: =IF('User Input'!C22=0,"",SUMIF(Players!$O$3:$O$903,A135,Players!V$3:V$903)) ->  | C135: =IF('User Input'!C22=0,"",SUMIF(Players!$O$3:$O$903,A135,Players!W$3:W$903)) ->  | D135: =IF('User Input'!C22=0,"",SUMIF(Players!$O$3:$O$903,A135,Players!X$3:X$903)) ->  | E135: =IF('User Input'!C22=0,"",SUMIF(Players!$O$3:$O$903,A135,Players!Y$3:Y$903)) ->  | F135: =IF('User Input'!C22=0,"",SUMIF(Players!$O$3:$O$903,A135,Players!Z$3:Z$903)) ->  | G135: =IF('User Input'!C22=0,"",(SUMIF(Players!$O$3:$O$903,A135,Players!AC$3:AC$1019))/B135) ->  | H135: =IF('User Input'!C22=0,"",SUMIF(Players!$AW$3:$AW$937,A135,Players!BD$3:BD$937)) ->  | I135: =IF('User Input'!C22=0,"",SUMIF(Players!$AW$3:$AW$937,A135,Players!BK$3:BK$1019)/H135) ->  | J135: =IF('User Input'!C22=0,"",SUMIF(Players!$AW$3:$AW$937,A135,Players!BL$3:BL$1019)/H135) ->  | K135: =IF('User Input'!C22=0,"",SUMIF(Players!$AW$3:$AW$937,A135,Players!BG$3:BG$937)) ->  | L135: =IF('User Input'!C22=0,"",SUMIF(Players!$AW$3:$AW$937,A135,Players!BH$3:BH$937)) ->  | M135: =IF('User Input'!C22=0,"",SUMIF(Players!$AW$3:$AW$937,A135,Players!BI$3:BI$937)) -> 
A136: =IF('User Input'!C23 = 0,"",'User Input'!C23) ->  | B136: =IF('User Input'!C23=0,"",SUMIF(Players!$O$3:$O$903,A136,Players!V$3:V$903)) ->  | C136: =IF('User Input'!C23=0,"",SUMIF(Players!$O$3:$O$903,A136,Players!W$3:W$903)) ->  | D136: =IF('User Input'!C23=0,"",SUMIF(Players!$O$3:$O$903,A136,Players!X$3:X$903)) ->  | E136: =IF('User Input'!C23=0,"",SUMIF(Players!$O$3:$O$903,A136,Players!Y$3:Y$903)) ->  | F136: =IF('User Input'!C23=0,"",SUMIF(Players!$O$3:$O$903,A136,Players!Z$3:Z$903)) ->  | G136: =IF('User Input'!C23=0,"",(SUMIF(Players!$O$3:$O$903,A136,Players!AC$3:AC$1019))/B136) ->  | H136: =IF('User Input'!C23=0,"",SUMIF(Players!$AW$3:$AW$937,A136,Players!BD$3:BD$937)) ->  | I136: =IF('User Input'!C23=0,"",SUMIF(Players!$AW$3:$AW$937,A136,Players!BK$3:BK$1019)/H136) ->  | J136: =IF('User Input'!C23=0,"",SUMIF(Players!$AW$3:$AW$937,A136,Players!BL$3:BL$1019)/H136) ->  | K136: =IF('User Input'!C23=0,"",SUMIF(Players!$AW$3:$AW$937,A136,Players!BG$3:BG$937)) ->  | L136: =IF('User Input'!C23=0,"",SUMIF(Players!$AW$3:$AW$937,A136,Players!BH$3:BH$937)) ->  | M136: =IF('User Input'!C23=0,"",SUMIF(Players!$AW$3:$AW$937,A136,Players!BI$3:BI$937)) -> 
A137: =IF('User Input'!C24 = 0,"",'User Input'!C24) ->  | B137: =IF('User Input'!C24=0,"",SUMIF(Players!$O$3:$O$903,A137,Players!V$3:V$903)) ->  | C137: =IF('User Input'!C24=0,"",SUMIF(Players!$O$3:$O$903,A137,Players!W$3:W$903)) ->  | D137: =IF('User Input'!C24=0,"",SUMIF(Players!$O$3:$O$903,A137,Players!X$3:X$903)) ->  | E137: =IF('User Input'!C24=0,"",SUMIF(Players!$O$3:$O$903,A137,Players!Y$3:Y$903)) ->  | F137: =IF('User Input'!C24=0,"",SUMIF(Players!$O$3:$O$903,A137,Players!Z$3:Z$903)) ->  | G137: =IF('User Input'!C24=0,"",(SUMIF(Players!$O$3:$O$903,A137,Players!AC$3:AC$1019))/B137) ->  | H137: =IF('User Input'!C24=0,"",SUMIF(Players!$AW$3:$AW$937,A137,Players!BD$3:BD$937)) ->  | I137: =IF('User Input'!C24=0,"",SUMIF(Players!$AW$3:$AW$937,A137,Players!BK$3:BK$1019)/H137) ->  | J137: =IF('User Input'!C24=0,"",SUMIF(Players!$AW$3:$AW$937,A137,Players!BL$3:BL$1019)/H137) ->  | K137: =IF('User Input'!C24=0,"",SUMIF(Players!$AW$3:$AW$937,A137,Players!BG$3:BG$937)) ->  | L137: =IF('User Input'!C24=0,"",SUMIF(Players!$AW$3:$AW$937,A137,Players!BH$3:BH$937)) ->  | M137: =IF('User Input'!C24=0,"",SUMIF(Players!$AW$3:$AW$937,A137,Players!BI$3:BI$937)) -> 
A138: =IF('User Input'!C25 = 0,"",'User Input'!C25) ->  | B138: =IF('User Input'!C25=0,"",SUMIF(Players!$O$3:$O$903,A138,Players!V$3:V$903)) ->  | C138: =IF('User Input'!C25=0,"",SUMIF(Players!$O$3:$O$903,A138,Players!W$3:W$903)) ->  | D138: =IF('User Input'!C25=0,"",SUMIF(Players!$O$3:$O$903,A138,Players!X$3:X$903)) ->  | E138: =IF('User Input'!C25=0,"",SUMIF(Players!$O$3:$O$903,A138,Players!Y$3:Y$903)) ->  | F138: =IF('User Input'!C25=0,"",SUMIF(Players!$O$3:$O$903,A138,Players!Z$3:Z$903)) ->  | G138: =IF('User Input'!C25=0,"",(SUMIF(Players!$O$3:$O$903,A138,Players!AC$3:AC$1019))/B138) ->  | H138: =IF('User Input'!C25=0,"",SUMIF(Players!$AW$3:$AW$937,A138,Players!BD$3:BD$937)) ->  | I138: =IF('User Input'!C25=0,"",SUMIF(Players!$AW$3:$AW$937,A138,Players!BK$3:BK$1019)/H138) ->  | J138: =IF('User Input'!C25=0,"",SUMIF(Players!$AW$3:$AW$937,A138,Players!BL$3:BL$1019)/H138) ->  | K138: =IF('User Input'!C25=0,"",SUMIF(Players!$AW$3:$AW$937,A138,Players!BG$3:BG$937)) ->  | L138: =IF('User Input'!C25=0,"",SUMIF(Players!$AW$3:$AW$937,A138,Players!BH$3:BH$937)) ->  | M138: =IF('User Input'!C25=0,"",SUMIF(Players!$AW$3:$AW$937,A138,Players!BI$3:BI$937)) -> 
A139: =IF('User Input'!C26 = 0,"",'User Input'!C26) ->  | B139: =IF('User Input'!C26=0,"",SUMIF(Players!$O$3:$O$903,A139,Players!V$3:V$903)) ->  | C139: =IF('User Input'!C26=0,"",SUMIF(Players!$O$3:$O$903,A139,Players!W$3:W$903)) ->  | D139: =IF('User Input'!C26=0,"",SUMIF(Players!$O$3:$O$903,A139,Players!X$3:X$903)) ->  | E139: =IF('User Input'!C26=0,"",SUMIF(Players!$O$3:$O$903,A139,Players!Y$3:Y$903)) ->  | F139: =IF('User Input'!C26=0,"",SUMIF(Players!$O$3:$O$903,A139,Players!Z$3:Z$903)) ->  | G139: =IF('User Input'!C26=0,"",(SUMIF(Players!$O$3:$O$903,A139,Players!AC$3:AC$1019))/B139) ->  | H139: =IF('User Input'!C26=0,"",SUMIF(Players!$AW$3:$AW$937,A139,Players!BD$3:BD$937)) ->  | I139: =IF('User Input'!C26=0,"",SUMIF(Players!$AW$3:$AW$937,A139,Players!BK$3:BK$1019)/H139) ->  | J139: =IF('User Input'!C26=0,"",SUMIF(Players!$AW$3:$AW$937,A139,Players!BL$3:BL$1019)/H139) ->  | K139: =IF('User Input'!C26=0,"",SUMIF(Players!$AW$3:$AW$937,A139,Players!BG$3:BG$937)) ->  | L139: =IF('User Input'!C26=0,"",SUMIF(Players!$AW$3:$AW$937,A139,Players!BH$3:BH$937)) ->  | M139: =IF('User Input'!C26=0,"",SUMIF(Players!$AW$3:$AW$937,A139,Players!BI$3:BI$937)) -> 
A140: =IF('User Input'!C27 = 0,"",'User Input'!C27) ->  | B140: =IF('User Input'!C27=0,"",SUMIF(Players!$O$3:$O$903,A140,Players!V$3:V$903)) ->  | C140: =IF('User Input'!C27=0,"",SUMIF(Players!$O$3:$O$903,A140,Players!W$3:W$903)) ->  | D140: =IF('User Input'!C27=0,"",SUMIF(Players!$O$3:$O$903,A140,Players!X$3:X$903)) ->  | E140: =IF('User Input'!C27=0,"",SUMIF(Players!$O$3:$O$903,A140,Players!Y$3:Y$903)) ->  | F140: =IF('User Input'!C27=0,"",SUMIF(Players!$O$3:$O$903,A140,Players!Z$3:Z$903)) ->  | G140: =IF('User Input'!C27=0,"",(SUMIF(Players!$O$3:$O$903,A140,Players!AC$3:AC$1019))/B140) ->  | H140: =IF('User Input'!C27=0,"",SUMIF(Players!$AW$3:$AW$937,A140,Players!BD$3:BD$937)) ->  | I140: =IF('User Input'!C27=0,"",SUMIF(Players!$AW$3:$AW$937,A140,Players!BK$3:BK$1019)/H140) ->  | J140: =IF('User Input'!C27=0,"",SUMIF(Players!$AW$3:$AW$937,A140,Players!BL$3:BL$1019)/H140) ->  | K140: =IF('User Input'!C27=0,"",SUMIF(Players!$AW$3:$AW$937,A140,Players!BG$3:BG$937)) ->  | L140: =IF('User Input'!C27=0,"",SUMIF(Players!$AW$3:$AW$937,A140,Players!BH$3:BH$937)) ->  | M140: =IF('User Input'!C27=0,"",SUMIF(Players!$AW$3:$AW$937,A140,Players!BI$3:BI$937)) -> 
A141: =IF('User Input'!C28 = 0,"",'User Input'!C28) ->  | B141: =IF('User Input'!C28=0,"",SUMIF(Players!$O$3:$O$903,A141,Players!V$3:V$903)) ->  | C141: =IF('User Input'!C28=0,"",SUMIF(Players!$O$3:$O$903,A141,Players!W$3:W$903)) ->  | D141: =IF('User Input'!C28=0,"",SUMIF(Players!$O$3:$O$903,A141,Players!X$3:X$903)) ->  | E141: =IF('User Input'!C28=0,"",SUMIF(Players!$O$3:$O$903,A141,Players!Y$3:Y$903)) ->  | F141: =IF('User Input'!C28=0,"",SUMIF(Players!$O$3:$O$903,A141,Players!Z$3:Z$903)) ->  | G141: =IF('User Input'!C28=0,"",(SUMIF(Players!$O$3:$O$903,A141,Players!AC$3:AC$1019))/B141) ->  | H141: =IF('User Input'!C28=0,"",SUMIF(Players!$AW$3:$AW$937,A141,Players!BD$3:BD$937)) ->  | I141: =IF('User Input'!C28=0,"",SUMIF(Players!$AW$3:$AW$937,A141,Players!BK$3:BK$1019)/H141) ->  | J141: =IF('User Input'!C28=0,"",SUMIF(Players!$AW$3:$AW$937,A141,Players!BL$3:BL$1019)/H141) ->  | K141: =IF('User Input'!C28=0,"",SUMIF(Players!$AW$3:$AW$937,A141,Players!BG$3:BG$937)) ->  | L141: =IF('User Input'!C28=0,"",SUMIF(Players!$AW$3:$AW$937,A141,Players!BH$3:BH$937)) ->  | M141: =IF('User Input'!C28=0,"",SUMIF(Players!$AW$3:$AW$937,A141,Players!BI$3:BI$937)) -> 
A142: =IF('User Input'!C29 = 0,"",'User Input'!C29) ->  | B142: =IF('User Input'!C29=0,"",SUMIF(Players!$O$3:$O$903,A142,Players!V$3:V$903)) ->  | C142: =IF('User Input'!C29=0,"",SUMIF(Players!$O$3:$O$903,A142,Players!W$3:W$903)) ->  | D142: =IF('User Input'!C29=0,"",SUMIF(Players!$O$3:$O$903,A142,Players!X$3:X$903)) ->  | E142: =IF('User Input'!C29=0,"",SUMIF(Players!$O$3:$O$903,A142,Players!Y$3:Y$903)) ->  | F142: =IF('User Input'!C29=0,"",SUMIF(Players!$O$3:$O$903,A142,Players!Z$3:Z$903)) ->  | G142: =IF('User Input'!C29=0,"",(SUMIF(Players!$O$3:$O$903,A142,Players!AC$3:AC$1019))/B142) ->  | H142: =IF('User Input'!C29=0,"",SUMIF(Players!$AW$3:$AW$937,A142,Players!BD$3:BD$937)) ->  | I142: =IF('User Input'!C29=0,"",SUMIF(Players!$AW$3:$AW$937,A142,Players!BK$3:BK$1019)/H142) ->  | J142: =IF('User Input'!C29=0,"",SUMIF(Players!$AW$3:$AW$937,A142,Players!BL$3:BL$1019)/H142) ->  | K142: =IF('User Input'!C29=0,"",SUMIF(Players!$AW$3:$AW$937,A142,Players!BG$3:BG$937)) ->  | L142: =IF('User Input'!C29=0,"",SUMIF(Players!$AW$3:$AW$937,A142,Players!BH$3:BH$937)) ->  | M142: =IF('User Input'!C29=0,"",SUMIF(Players!$AW$3:$AW$937,A142,Players!BI$3:BI$937)) -> 
A143: =IF('User Input'!C30 = 0,"",'User Input'!C30) ->  | B143: =IF('User Input'!C30=0,"",SUMIF(Players!$O$3:$O$903,A143,Players!V$3:V$903)) ->  | C143: =IF('User Input'!C30=0,"",SUMIF(Players!$O$3:$O$903,A143,Players!W$3:W$903)) ->  | D143: =IF('User Input'!C30=0,"",SUMIF(Players!$O$3:$O$903,A143,Players!X$3:X$903)) ->  | E143: =IF('User Input'!C30=0,"",SUMIF(Players!$O$3:$O$903,A143,Players!Y$3:Y$903)) ->  | F143: =IF('User Input'!C30=0,"",SUMIF(Players!$O$3:$O$903,A143,Players!Z$3:Z$903)) ->  | G143: =IF('User Input'!C30=0,"",(SUMIF(Players!$O$3:$O$903,A143,Players!AC$3:AC$1019))/B143) ->  | H143: =IF('User Input'!C30=0,"",SUMIF(Players!$AW$3:$AW$937,A143,Players!BD$3:BD$937)) ->  | I143: =IF('User Input'!C30=0,"",SUMIF(Players!$AW$3:$AW$937,A143,Players!BK$3:BK$1019)/H143) ->  | J143: =IF('User Input'!C30=0,"",SUMIF(Players!$AW$3:$AW$937,A143,Players!BL$3:BL$1019)/H143) ->  | K143: =IF('User Input'!C30=0,"",SUMIF(Players!$AW$3:$AW$937,A143,Players!BG$3:BG$937)) ->  | L143: =IF('User Input'!C30=0,"",SUMIF(Players!$AW$3:$AW$937,A143,Players!BH$3:BH$937)) ->  | M143: =IF('User Input'!C30=0,"",SUMIF(Players!$AW$3:$AW$937,A143,Players!BI$3:BI$937)) -> 

Sheet Players
H1: Category: | I1: SLG | N1: HITTER Vitals | V1: Average | AC1: Formulas | AS1: Category: | AT1: QS | AV1: PITCHER Vitals | BD1: Average | BK1: Formulas | BT1: 9 | BU1: 7 | BV1: ← | BW1: custom k/9 & 'ace' cutoff | CM1: LISTTEAMS
A2: Grey Hitter Rank | B2: Grey Tot Rank | D2: Prospects-ALL | E2: Prospects-HIT | F2: PTS_TOT_RANK | G2: PTS_Total_PTS | H2: PTS_PPG | I2: USER RANK HIT | K2: OBP_RANK_6x6 | L2: OPS_RANK_6x6 | N2: Name | O2: Owner | P2: Sal | Q2: Team | R2: ESPN | S2: Yahoo | T2: $ | V2: AB | W2: R | X2: HR | Y2: RBI | Z2: SB | AA2: AVG | AC2: OBP Calc | AD2: A | AE2: B | AF2: C | AG2: WR Player | AH2: WR Sal | AI2: P S | AJ2: Hitter ETA | AL2: Grey Pitch Rank | AM2: Grey Tot Rank | AO2: Prospects-ALL_ | AP2: Prospects-PITCH | AQ2: PTS_TOT_RANK | AR2: PTS_Total_PTS | AS2: PTS_PPG | AT2: USER RANK PITCH | AV2: Name | AW2: Owner | AX2: Salary | AY2: Team | AZ2: ESPN | BA2: Yahoo | BB2: $ P | BD2: IP | BE2: ERA | BF2: WHIP | BG2: W | BH2: S | BI2: K | BK2: ERA Calc | BL2: WHIP Calc | BM2: A10 | BN2: B11 | BO2: C12 | BP2: WR Player13 | BQ2: WR Sal14 | BR2: P S15 | BS2: Pitch ETA | BT2: K/9 | BU2: "ACE STUFF" (K/9 - BB/9) | BV2: >7 is good per Grey | CK2: =IF(CL2="","",MAX(CK$1:CK1)+1) -> 1 | CL2: =IF('User Input'!C1=0,"",'User Input'!C1) -> a | CM2: =IFERROR(INDEX($CL$2:$CL$31,MATCH(ROW()-ROW($CM$1),$CK$2:$CK$31,0)),"") -> a
A3: 1 | B3: =IFERROR(VLOOKUP(N3,Import!$B$3:$T$677,19,FALSE),"") -> 1 | D3: =IFERROR(VLOOKUP(N3,Import!$AD$3:$AH$677,3,FALSE),"") ->  | E3: =IFERROR(VLOOKUP(N3,Import!$AD$3:$AH$677,4,FALSE),"") ->  | F3: =IFERROR(VLOOKUP(N3,Import!$AT$3:$BG$677,8,FALSE),"") -> 1 | G3: =IFERROR(VLOOKUP($N3,Import!$AT$3:$BG$677,2,FALSE),"") -> 624.25 | H3: =IFERROR(VLOOKUP($N3,Import!$AT$3:$BG$677,3,FALSE),"") -> 4.365384615 | I3: =IFERROR(VLOOKUP($N3,Import!$AT$3:$BG$677,9,FALSE),"") -> 1 | K3: =IFERROR(VLOOKUP(N3,Import!$AT$3:$BG$677,12,FALSE),"") -> 1 | L3: =IFERROR(VLOOKUP(N3,Import!$AT$3:$BG$677,14,FALSE),"") -> 1 | N3: =IFERROR(VLOOKUP(A3,Import!$V$3:$X$677,3,FALSE),"") -> Mike Trout | Q3: =IFERROR(VLOOKUP($N3,Import!$B$3:$AL$676,2,FALSE),"") -> LAA | R3: =IFERROR(VLOOKUP($N3,Import!$B$3:$AL$676,3,FALSE),"") -> OF | S3: =IFERROR(VLOOKUP($N3,Import!$B$3:$AL$676,4,FALSE),"") -> OF | T3: =IFERROR(VLOOKUP($N3,Import!$B$3:$AL$676,5,FALSE),"") -> 48 | V3: =IFERROR(VLOOKUP($N3,Import!$B$3:$AL$676,6,FALSE),"") -> 517 | W3: =IFERROR(VLOOKUP($N3,Import!$B$3:$AL$676,7,FALSE),"") -> 108 | X3: =IFERROR(VLOOKUP($N3,Import!$B$3:$AL$676,8,FALSE),"") -> 37 | Y3: =IFERROR(VLOOKUP($N3,Import!$B$3:$AL$676,9,FALSE),"") -> 111 | Z3: =IFERROR(VLOOKUP($N3,Import!$B$3:$AL$676,10,FALSE),"") -> 17 | AA3: =IFERROR(VLOOKUP($N3,Import!$B$3:$AL$676,11,FALSE),"") -> 0.305 | AC3: =AA3*V3 -> 157.685 | AD3: =IF(O3='User Input'!$C$1,1,0) -> 0 | AE3: =AD3 -> 0 | AF3: =IF(AE3=AE2,0,AE3) -> 0 | AG3: =N3 -> Mike Trout | AH3: =P3 -> 0 | AI3: =T3 -> 48 | AJ3: =IFERROR(VLOOKUP($N3,Import!$B$3:$AL$676,35,FALSE),"") ->  | AL3: 1 | AM3: =IFERROR(VLOOKUP(AV3,Import!$B$3:$T$677,19,FALSE),"") -> 19 | AO3: =IFERROR(VLOOKUP(AV3,Import!$AD$3:$AH$677,3,FALSE),"") ->  | AP3: =IFERROR(VLOOKUP(AV3,Import!$AD$3:$AH$677,5,FALSE),"") ->  | AQ3: =IFERROR(VLOOKUP(AV3,Import!$AW$3:$BA$677,5,FALSE),"") -> 3 | AR3: =IFERROR(VLOOKUP($AV3,Import!$AW$3:$BG$677,2,FALSE),"") -> 595.7 | AS3: =IFERROR(VLOOKUP($AV3,Import!$AW$3:$BG$677,3,FALSE),"") -> 19.21612903 | AT3: =IFERROR(VLOOKUP($AV3,Import!$AW$3:$BG$677,7,FALSE),"") -> 2 | AV3: =IFERROR(VLOOKUP(AL3,Import!$W$3:$X$677,2,FALSE),"") -> Max Scherzer | AY3: =IFERROR(VLOOKUP($AV3,Import!$B$3:$L$676,2,FALSE),"") -> WSH | AZ3: =IFERROR(VLOOKUP($AV3,Import!$B$3:$L$676,3,FALSE),"") -> SP | BA3: =IFERROR(VLOOKUP($AV3,Import!$B$3:$L$676,4,FALSE),"") -> SP | BB3: =IFERROR(VLOOKUP($AV3,Import!$B$3:$L$676,5,FALSE),"") -> 29 | BD3: =IFERROR(VLOOKUP($AV3,Import!$B$3:$X$677,12,FALSE),"") -> 212 | BE3: =IFERROR(VLOOKUP($AV3,Import!$B$3:$X$677,15,FALSE),"") -> 2.58 | BF3: =IFERROR(VLOOKUP($AV3,Import!$B$3:$X$677,16,FALSE),"") -> 0.93 | BG3: =IFERROR(VLOOKUP($AV3,Import!$B$3:$X$677,13,FALSE),"") -> 17 | BH3: =IFERROR(VLOOKUP($AV3,Import!$B$3:$X$677,14,FALSE),"") -> 0 | BI3: =IFERROR(VLOOKUP($AV3,Import!$B$3:$X$677,17,FALSE),"") -> 285 | BK3: =BE3*BD3 -> 546.96 | BL3: =BF3*BD3 -> 197.16 | BM3: =IF(AW3='User Input'!$C$1,1,0) -> 0 | BN3: =BM3 -> 0 | BO3: =IF(BN3=BN2,0,BN3) -> 0 | BP3: =AV3 -> Max Scherzer | BQ3: =AX3 -> 0 | BR3: =BB3 -> 29 | BS3: =IFERROR(VLOOKUP($AV3,Import!$B$3:$AL$676,35,FALSE),"") ->  | BT3: =9*(Table2[[#This Row],[K]]/Table2[[#This Row],[IP]]) -> 12.0990566 | BU3: =IFERROR(VLOOKUP($AV3,PITCH!$B$7:$AJ$2004,31,FALSE),"N/A") -> 9.418604651 | CK3: =IF(CL3="","",MAX(CK$1:CK2)+1) -> 2 | CL3: =IF('User Input'!C2=0,"",'User Input'!C2) -> b | CM3: =IFERROR(INDEX($CL$2:$CL$31,MATCH(ROW()-ROW($CM$1),$CK$2:$CK$31,0)),"") -> b
A4: 2 | B4: =IFERROR(VLOOKUP(N4,Import!$B$4:$T$677,19,FALSE),"") -> 2 | D4: =IFERROR(VLOOKUP(N4,Import!$AD$3:$AH$677,3,FALSE),"") ->  | E4: =IFERROR(VLOOKUP(N4,Import!$AD$3:$AH$677,4,FALSE),"") ->  | F4: =IFERROR(VLOOKUP(N4,Import!$AT$3:$BG$677,8,FALSE),"") -> 2 | G4: =IFERROR(VLOOKUP($N4,Import!$AT$3:$BG$677,2,FALSE),"") -> 610.85 | H4: =IFERROR(VLOOKUP($N4,Import!$AT$3:$BG$677,3,FALSE),"") -> 4.127364865 | I4: =IFERROR(VLOOKUP($N4,Import!$AT$3:$BG$677,9,FALSE),"") -> 5 | K4: =IFERROR(VLOOKUP(N4,Import!$AT$3:$BG$677,12,FALSE),"") -> 2 | L4: =IFERROR(VLOOKUP(N4,Import!$AT$3:$BG$677,14,FALSE),"") -> 2 | N4: =IFERROR(VLOOKUP(A4,Import!$V$3:$X$677,3,FALSE),"") -> Mookie Betts | Q4: =IFERROR(VLOOKUP($N4,Import!$B$3:$AL$676,2,FALSE),"") -> BOS | R4: =IFERROR(VLOOKUP($N4,Import!$B$3:$AL$676,3,FALSE),"") -> OF | S4: =IFERROR(VLOOKUP($N4,Import!$B$3:$AL$676,4,FALSE),"") -> OF | T4: =IFERROR(VLOOKUP($N4,Import!$B$3:$AL$676,5,FALSE),"") -> 47 | V4: =IFERROR(VLOOKUP($N4,Import!$B$3:$AL$676,6,FALSE),"") -> 581 | W4: =IFERROR(VLOOKUP($N4,Import!$B$3:$AL$676,7,FALSE),"") -> 114 | X4: =IFERROR(VLOOKUP($N4,Import!$B$3:$AL$676,8,FALSE),"") -> 28 | Y4: =IFERROR(VLOOKUP($N4,Import!$B$3:$AL$676,9,FALSE),"") -> 91 | Z4: =IFERROR(VLOOKUP($N4,Import!$B$3:$AL$676,10,FALSE),"") -> 27 | AA4: =IFERROR(VLOOKUP($N4,Import!$B$3:$AL$676,11,FALSE),"") -> 0.317 | AC4: 184.177 | AD4: =IF(O4='User Input'!$C$1,1,0) -> 0 | AE4: =AD4+AE3 -> 0 | AF4: 0 | AG4: Mookie Betts | AH4: 0 | AI4: 47 | AJ4: =IFERROR(VLOOKUP($N4,Import!$B$3:$AL$676,35,FALSE),"") ->  | AL4: 2 | AM4: =IFERROR(VLOOKUP(AV4,Import!$B$3:$T$677,19,FALSE),"") -> 26 | AO4: =IFERROR(VLOOKUP(AV4,Import!$AD$3:$AH$677,3,FALSE),"") ->  | AP4: =IFERROR(VLOOKUP(AV4,Import!$AD$3:$AH$677,5,FALSE),"") ->  | AQ4: =IFERROR(VLOOKUP(AV4,Import!$AW$3:$BA$677,5,FALSE),"") -> 4 | AR4: =IFERROR(VLOOKUP($AV4,Import!$AW$3:$BG$677,2,FALSE),"") -> 579.2 | AS4: =IFERROR(VLOOKUP($AV4,Import!$AW$3:$BG$677,3,FALSE),"") -> 18.68387097 | AT4: =IFERROR(VLOOKUP($AV4,Import!$AW$3:$BG$677,7,FALSE),"") -> 1 | AV4: =IFERROR(VLOOKUP(AL4,Import!$W$3:$X$677,2,FALSE),"") -> Jacob deGrom | AY4: =IFERROR(VLOOKUP($AV4,Import!$B$3:$L$676,2,FALSE),"") -> NYM | AZ4: =IFERROR(VLOOKUP($AV4,Import!$B$3:$L$676,3,FALSE),"") -> SP | BA4: =IFERROR(VLOOKUP($AV4,Import!$B$3:$L$676,4,FALSE),"") -> SP | BB4: =IFERROR(VLOOKUP($AV4,Import!$B$3:$L$676,5,FALSE),"") -> 25 | BD4: =IFERROR(VLOOKUP($AV4,Import!$B$3:$X$677,12,FALSE),"") -> 218 | BE4: =IFERROR(VLOOKUP($AV4,Import!$B$3:$X$677,15,FALSE),"") -> 2.66 | BF4: =IFERROR(VLOOKUP($AV4,Import!$B$3:$X$677,16,FALSE),"") -> 0.95 | BG4: =IFERROR(VLOOKUP($AV4,Import!$B$3:$X$677,13,FALSE),"") -> 16 | BH4: =IFERROR(VLOOKUP($AV4,Import!$B$3:$X$677,14,FALSE),"") -> 0 | BI4: =IFERROR(VLOOKUP($AV4,Import!$B$3:$X$677,17,FALSE),"") -> 264 | BK4: 579.88 | BL4: 207.1 | BM4: =IF(AW4='User Input'!$C$1,1,0) -> 0 | BN4: =BM4+BN3 -> 0 | BO4: 0 | BP4: Jacob deGrom | BQ4: 0 | BR4: 25 | BS4: =IFERROR(VLOOKUP($AV4,Import!$B$3:$AL$676,35,FALSE),"") ->  | BT4: =9*(Table2[[#This Row],[K]]/Table2[[#This Row],[IP]]) -> 10.89908257 | BU4: =IFERROR(VLOOKUP($AV4,PITCH!$B$7:$AJ$2004,31,FALSE),"N/A") -> 8.681948424 | CK4: =IF(CL4="","",MAX(CK$1:CK3)+1) -> 3 | CL4: =IF('User Input'!C3=0,"",'User Input'!C3) -> c | CM4: c
A5: 3 | B5: =IFERROR(VLOOKUP(N5,Import!$B$4:$T$677,19,FALSE),"") -> 3 | D5: =IFERROR(VLOOKUP(N5,Import!$AD$3:$AH$677,3,FALSE),"") ->  | E5: =IFERROR(VLOOKUP(N5,Import!$AD$3:$AL$677,4,FALSE),"") ->  | F5: =IFERROR(VLOOKUP(N5,Import!$AT$3:$BG$677,8,FALSE),"") -> 17 | G5: =IFERROR(VLOOKUP($N5,Import!$AT$3:$BG$677,2,FALSE),"") -> 510 | H5: =IFERROR(VLOOKUP($N5,Import!$AT$3:$BG$677,3,FALSE),"") -> 3.445945946 | I5: =IFERROR(VLOOKUP($N5,Import!$AT$3:$BG$677,9,FALSE),"") -> 12 | K5: =IFERROR(VLOOKUP(N5,Import!$AT$3:$BG$677,12,FALSE),"") -> 6 | L5: =IFERROR(VLOOKUP(N5,Import!$AT$3:$BG$677,14,FALSE),"") -> 8 | N5: =IFERROR(VLOOKUP(A5,Import!$V$3:$X$677,3,FALSE),"") -> Christian Yelich | Q5: =IFERROR(VLOOKUP($N5,Import!$B$3:$AL$676,2,FALSE),"") -> MIL | R5: =IFERROR(VLOOKUP($N5,Import!$B$3:$AL$676,3,FALSE),"") -> OF | S5: =IFERROR(VLOOKUP($N5,Import!$B$3:$AL$676,4,FALSE),"") -> OF | T5: =IFERROR(VLOOKUP($N5,Import!$B$3:$AL$676,5,FALSE),"") -> 38 | V5: =IFERROR(VLOOKUP($N5,Import!$B$3:$AL$676,6,FALSE),"") -> 589 | W5: =IFERROR(VLOOKUP($N5,Import!$B$3:$AL$676,7,FALSE),"") -> 103 | X5: =IFERROR(VLOOKUP($N5,Import!$B$3:$AL$676,8,FALSE),"") -> 28 | Y5: =IFERROR(VLOOKUP($N5,Import!$B$3:$AL$676,9,FALSE),"") -> 111 | Z5: =IFERROR(VLOOKUP($N5,Import!$B$3:$AL$676,10,FALSE),"") -> 21 | AA5: =IFERROR(VLOOKUP($N5,Import!$B$3:$AL$676,11,FALSE),"") -> 0.306 | AC5: 180.234 | AD5: =IF(O5='User Input'!$C$1,1,0) -> 0 | AE5: 0 | AF5: 0 | AG5: Christian Yelich | AH5: 0 | AI5: 38 | AJ5: =IFERROR(VLOOKUP($N5,Import!$B$3:$AL$676,35,FALSE),"") ->  | AL5: 3 | AM5: =IFERROR(VLOOKUP(AV5,Import!$B$3:$T$677,19,FALSE),"") -> 27 | AO5: =IFERROR(VLOOKUP(AV5,Import!$AD$3:$AH$677,3,FALSE),"") ->  | AP5: =IFERROR(VLOOKUP(AV5,Import!$AD$3:$AH$677,5,FALSE),"") ->  | AQ5: =IFERROR(VLOOKUP(AV5,Import!$AW$3:$BA$677,5,FALSE),"") -> 6 | AR5: =IFERROR(VLOOKUP($AV5,Import!$AW$3:$BG$677,2,FALSE),"") -> 569 | AS5: =IFERROR(VLOOKUP($AV5,Import!$AW$3:$BG$677,3,FALSE),"") -> 19.62068966 | AT5: =IFERROR(VLOOKUP($AV5,Import!$AW$3:$BG$677,7,FALSE),"") -> 3 | AV5: =IFERROR(VLOOKUP(AL5,Import!$W$3:$X$677,2,FALSE),"") -> Chris Sale | AY5: =IFERROR(VLOOKUP($AV5,Import!$B$3:$L$676,2,FALSE),"") -> BOS | AZ5: =IFERROR(VLOOKUP($AV5,Import!$B$3:$L$676,3,FALSE),"") -> SP | BA5: =IFERROR(VLOOKUP($AV5,Import!$B$3:$L$676,4,FALSE),"") -> SP | BB5: =IFERROR(VLOOKUP($AV5,Import!$B$3:$L$676,5,FALSE),"") -> 25 | BD5: =IFERROR(VLOOKUP($AV5,Import!$B$3:$X$677,12,FALSE),"") -> 171 | BE5: =IFERROR(VLOOKUP($AV5,Import!$B$3:$X$677,15,FALSE),"") -> 2.41 | BF5: =IFERROR(VLOOKUP($AV5,Import!$B$3:$X$677,16,FALSE),"") -> 0.97 | BG5: =IFERROR(VLOOKUP($AV5,Import!$B$3:$X$677,13,FALSE),"") -> 15 | BH5: =IFERROR(VLOOKUP($AV5,Import!$B$3:$X$677,14,FALSE),"") -> 0 | BI5: =IFERROR(VLOOKUP($AV5,Import!$B$3:$X$677,17,FALSE),"") -> 246 | BK5: 412.11 | BL5: 165.87 | BM5: =IF(AW5='User Input'!$C$1,1,0) -> 0 | BN5: 0 | BO5: 0 | BP5: Chris Sale | BQ5: 0 | BR5: 25 | BS5: =IFERROR(VLOOKUP($AV5,Import!$B$3:$AL$676,35,FALSE),"") ->  | BT5: =9*(Table2[[#This Row],[K]]/Table2[[#This Row],[IP]]) -> 12.94736842 | BU5: =IFERROR(VLOOKUP($AV5,PITCH!$B$7:$AJ$2004,31,FALSE),"N/A") -> 10.19337017 | CK5: =IF(CL5="","",MAX(CK$1:CK4)+1) -> 4 | CL5: =IF('User Input'!C4=0,"",'User Input'!C4) -> d | CM5: d
A6: 4 | B6: =IFERROR(VLOOKUP(N6,Import!$B$4:$T$677,19,FALSE),"") -> 4 | D6: =IFERROR(VLOOKUP(N6,Import!$AD$3:$AH$677,3,FALSE),"") ->  | E6: =IFERROR(VLOOKUP(N6,Import!$AD$3:$AL$677,4,FALSE),"") ->  | F6: =IFERROR(VLOOKUP(N6,Import!$AT$3:$BG$677,8,FALSE),"") -> 33 | G6: =IFERROR(VLOOKUP($N6,Import!$AT$3:$BG$677,2,FALSE),"") -> 472.8 | H6: =IFERROR(VLOOKUP($N6,Import!$AT$3:$BG$677,3,FALSE),"") -> 3.238356164 | I6: =IFERROR(VLOOKUP($N6,Import!$AT$3:$BG$677,9,FALSE),"") -> 30 | K6: =IFERROR(VLOOKUP(N6,Import!$AT$3:$BG$677,12,FALSE),"") -> 16 | L6: =IFERROR(VLOOKUP(N6,Import!$AT$3:$BG$677,14,FALSE),"") -> 11 | N6: =IFERROR(VLOOKUP(A6,Import!$V$3:$X$677,3,FALSE),"") -> Ronald Acuna Jr. | Q6: =IFERROR(VLOOKUP($N6,Import!$B$3:$AL$676,2,FALSE),"") -> ATL | R6: =IFERROR(VLOOKUP($N6,Import!$B$3:$AL$676,3,FALSE),"") -> OF | S6: =IFERROR(VLOOKUP($N6,Import!$B$3:$AL$676,4,FALSE),"") -> OF | T6: =IFERROR(VLOOKUP($N6,Import!$B$3:$AL$676,5,FALSE),"") -> 37 | V6: =IFERROR(VLOOKUP($N6,Import!$B$3:$AL$676,6,FALSE),"") -> 578 | W6: =IFERROR(VLOOKUP($N6,Import!$B$3:$AL$676,7,FALSE),"") -> 104 | X6: =IFERROR(VLOOKUP($N6,Import!$B$3:$AL$676,8,FALSE),"") -> 30 | Y6: =IFERROR(VLOOKUP($N6,Import!$B$3:$AL$676,9,FALSE),"") -> 77 | Z6: =IFERROR(VLOOKUP($N6,Import!$B$3:$AL$676,10,FALSE),"") -> 27 | AA6: =IFERROR(VLOOKUP($N6,Import!$B$3:$AL$676,11,FALSE),"") -> 0.282 | AC6: 162.996 | AD6: =IF(O6='User Input'!$C$1,1,0) -> 0 | AE6: 0 | AF6: 0 | AG6: Ronald Acuna Jr. | AH6: 0 | AI6: 37 | AJ6: =IFERROR(VLOOKUP($N6,Import!$B$3:$AL$676,35,FALSE),"") ->  | AL6: 4 | AM6: =IFERROR(VLOOKUP(AV6,Import!$B$3:$T$677,19,FALSE),"") -> 30 | AO6: =IFERROR(VLOOKUP(AV6,Import!$AD$3:$AH$677,3,FALSE),"") ->  | AP6: =IFERROR(VLOOKUP(AV6,Import!$AD$3:$AH$677,5,FALSE),"") ->  | AQ6: =IFERROR(VLOOKUP(AV6,Import!$AW$3:$BA$677,5,FALSE),"") -> 11 | AR6: =IFERROR(VLOOKUP($AV6,Import!$AW$3:$BG$677,2,FALSE),"") -> 530 | AS6: =IFERROR(VLOOKUP($AV6,Import!$AW$3:$BG$677,3,FALSE),"") -> 17.09677419 | AT6: =IFERROR(VLOOKUP($AV6,Import!$AW$3:$BG$677,7,FALSE),"") -> 5 | AV6: =IFERROR(VLOOKUP(AL6,Import!$W$3:$X$677,2,FALSE),"") -> Justin Verlander | AY6: =IFERROR(VLOOKUP($AV6,Import!$B$3:$L$676,2,FALSE),"") -> HOU | AZ6: =IFERROR(VLOOKUP($AV6,Import!$B$3:$L$676,3,FALSE),"") -> SP | BA6: =IFERROR(VLOOKUP($AV6,Import!$B$3:$L$676,4,FALSE),"") -> SP | BB6: =IFERROR(VLOOKUP($AV6,Import!$B$3:$L$676,5,FALSE),"") -> 23 | BD6: =IFERROR(VLOOKUP($AV6,Import!$B$3:$X$677,12,FALSE),"") -> 207 | BE6: =IFERROR(VLOOKUP($AV6,Import!$B$3:$X$677,15,FALSE),"") -> 2.88 | BF6: =IFERROR(VLOOKUP($AV6,Import!$B$3:$X$677,16,FALSE),"") -> 0.97 | BG6: =IFERROR(VLOOKUP($AV6,Import!$B$3:$X$677,13,FALSE),"") -> 16 | BH6: =IFERROR(VLOOKUP($AV6,Import!$B$3:$X$677,14,FALSE),"") -> 0 | BI6: =IFERROR(VLOOKUP($AV6,Import!$B$3:$X$677,17,FALSE),"") -> 276 | BK6: 596.16 | BL6: 200.79 | BM6: =IF(AW6='User Input'!$C$1,1,0) -> 0 | BN6: 0 | BO6: 0 | BP6: Justin Verlander | BQ6: 0 | BR6: 23 | BS6: =IFERROR(VLOOKUP($AV6,Import!$B$3:$AL$676,35,FALSE),"") ->  | BT6: =9*(Table2[[#This Row],[K]]/Table2[[#This Row],[IP]]) -> 12 | BU6: =IFERROR(VLOOKUP($AV6,PITCH!$B$7:$AJ$2004,31,FALSE),"N/A") -> 8.858638743 | CK6: =IF(CL6="","",MAX(CK$1:CK5)+1) -> 5 | CL6: =IF('User Input'!C5=0,"",'User Input'!C5) -> e | CM6: e
A7: 5 | B7: =IFERROR(VLOOKUP(N7,Import!$B$4:$T$677,19,FALSE),"") -> 5 | D7: =IFERROR(VLOOKUP(N7,Import!$AD$3:$AH$677,3,FALSE),"") ->  | E7: =IFERROR(VLOOKUP(N7,Import!$AD$3:$AL$677,4,FALSE),"") ->  | F7: =IFERROR(VLOOKUP(N7,Import!$AT$3:$BG$677,8,FALSE),"") -> 18 | G7: =IFERROR(VLOOKUP($N7,Import!$AT$3:$BG$677,2,FALSE),"") -> 506.45 | H7: =IFERROR(VLOOKUP($N7,Import!$AT$3:$BG$677,3,FALSE),"") -> 3.468835616 | I7: =IFERROR(VLOOKUP($N7,Import!$AT$3:$BG$677,9,FALSE),"") -> 109 | K7: =IFERROR(VLOOKUP(N7,Import!$AT$3:$BG$677,12,FALSE),"") -> 7 | L7: =IFERROR(VLOOKUP(N7,Import!$AT$3:$BG$677,14,FALSE),"") -> 7 | N7: =IFERROR(VLOOKUP(A7,Import!$V$3:$X$677,3,FALSE),"") -> Trea Turner | Q7: =IFERROR(VLOOKUP($N7,Import!$B$3:$AL$676,2,FALSE),"") -> WSH | R7: =IFERROR(VLOOKUP($N7,Import!$B$3:$AL$676,3,FALSE),"") -> SS | S7: =IFERROR(VLOOKUP($N7,Import!$B$3:$AL$676,4,FALSE),"") -> SS | T7: =IFERROR(VLOOKUP($N7,Import!$B$3:$AL$676,5,FALSE),"") -> 37 | V7: =IFERROR(VLOOKUP($N7,Import!$B$3:$AL$676,6,FALSE),"") -> 603 | W7: =IFERROR(VLOOKUP($N7,Import!$B$3:$AL$676,7,FALSE),"") -> 105 | X7: =IFERROR(VLOOKUP($N7,Import!$B$3:$AL$676,8,FALSE),"") -> 20 | Y7: =IFERROR(VLOOKUP($N7,Import!$B$3:$AL$676,9,FALSE),"") -> 71 | Z7: =IFERROR(VLOOKUP($N7,Import!$B$3:$AL$676,10,FALSE),"") -> 41 | AA7: =IFERROR(VLOOKUP($N7,Import!$B$3:$AL$676,11,FALSE),"") -> 0.292 | AC7: 176.076 | AD7: =IF(O7='User Input'!$C$1,1,0) -> 0 | AE7: 0 | AF7: 0 | AG7: Trea Turner | AH7: 0 | AI7: 37 | AJ7: =IFERROR(VLOOKUP($N7,Import!$B$3:$AL$676,35,FALSE),"") ->  | AL7: 7 | AM7: =IFERROR(VLOOKUP(AV7,Import!$B$3:$T$677,19,FALSE),"") -> 39 | AO7: =IFERROR(VLOOKUP(AV7,Import!$AD$3:$AH$677,3,FALSE),"") ->  | AP7: =IFERROR(VLOOKUP(AV7,Import!$AD$3:$AH$677,5,FALSE),"") ->  | AQ7: =IFERROR(VLOOKUP(AV7,Import!$AW$3:$BA$677,5,FALSE),"") -> 14 | AR7: =IFERROR(VLOOKUP($AV7,Import!$AW$3:$BG$677,2,FALSE),"") -> 519.1 | AS7: =IFERROR(VLOOKUP($AV7,Import!$AW$3:$BG$677,3,FALSE),"") -> 16.74516129 | AT7: =IFERROR(VLOOKUP($AV7,Import!$AW$3:$BG$677,7,FALSE),"") -> 3 | AV7: =IFERROR(VLOOKUP(AL7,Import!$W$3:$X$677,2,FALSE),"") -> Corey Kluber | AY7: =IFERROR(VLOOKUP($AV7,Import!$B$3:$L$676,2,FALSE),"") -> CLE | AZ7: =IFERROR(VLOOKUP($AV7,Import!$B$3:$L$676,3,FALSE),"") -> SP | BA7: =IFERROR(VLOOKUP($AV7,Import!$B$3:$L$676,4,FALSE),"") -> SP | BB7: =IFERROR(VLOOKUP($AV7,Import!$B$3:$L$676,5,FALSE),"") -> 21 | BD7: =IFERROR(VLOOKUP($AV7,Import!$B$3:$X$677,12,FALSE),"") -> 219 | BE7: =IFERROR(VLOOKUP($AV7,Import!$B$3:$X$677,15,FALSE),"") -> 3.03 | BF7: =IFERROR(VLOOKUP($AV7,Import!$B$3:$X$677,16,FALSE),"") -> 1.01 | BG7: =IFERROR(VLOOKUP($AV7,Import!$B$3:$X$677,13,FALSE),"") -> 14 | BH7: =IFERROR(VLOOKUP($AV7,Import!$B$3:$X$677,14,FALSE),"") -> 0 | BI7: =IFERROR(VLOOKUP($AV7,Import!$B$3:$X$677,17,FALSE),"") -> 224 | BK7: 663.57 | BL7: 221.19 | BM7: =IF(AW7='User Input'!$C$1,1,0) -> 0 | BN7: 0 | BO7: 0 | BP7: Corey Kluber | BQ7: 0 | BR7: 21 | BS7: =IFERROR(VLOOKUP($AV7,Import!$B$3:$AL$676,35,FALSE),"") ->  | BT7: =9*(Table2[[#This Row],[K]]/Table2[[#This Row],[IP]]) -> 9.205479452 | BU7: =IFERROR(VLOOKUP($AV7,PITCH!$B$7:$AJ$2004,31,FALSE),"N/A") -> 7.597402597 | CK7: =IF(CL7="","",MAX(CK$1:CK6)+1) -> 6 | CL7: =IF('User Input'!C6=0,"",'User Input'!C6) -> f | CM7: f
A8: 6 | B8: =IFERROR(VLOOKUP(N8,Import!$B$4:$T$677,19,FALSE),"") -> 6 | D8: =IFERROR(VLOOKUP(N8,Import!$AD$3:$AH$677,3,FALSE),"") ->  | E8: =IFERROR(VLOOKUP(N8,Import!$AD$3:$AL$677,4,FALSE),"") ->  | F8: =IFERROR(VLOOKUP(N8,Import!$AT$3:$BG$677,8,FALSE),"") -> 36 | G8: =IFERROR(VLOOKUP($N8,Import!$AT$3:$BG$677,2,FALSE),"") -> 468.25 | H8: =IFERROR(VLOOKUP($N8,Import!$AT$3:$BG$677,3,FALSE),"") -> 3.14261745 | I8: =IFERROR(VLOOKUP($N8,Import!$AT$3:$BG$677,9,FALSE),"") -> 32 | K8: =IFERROR(VLOOKUP(N8,Import!$AT$3:$BG$677,12,FALSE),"") -> 27 | L8: =IFERROR(VLOOKUP(N8,Import!$AT$3:$BG$677,14,FALSE),"") -> 18 | N8: =IFERROR(VLOOKUP(A8,Import!$V$3:$X$677,3,FALSE),"") -> Javier Baez | Q8: =IFERROR(VLOOKUP($N8,Import!$B$3:$AL$676,2,FALSE),"") -> CHC | R8: =IFERROR(VLOOKUP($N8,Import!$B$3:$AL$676,3,FALSE),"") -> 2B/SS/ 3B | S8: =IFERROR(VLOOKUP($N8,Import!$B$3:$AL$676,4,FALSE),"") -> 2B/SS/ 3B | T8: =IFERROR(VLOOKUP($N8,Import!$B$3:$AL$676,5,FALSE),"") -> 35 | V8: =IFERROR(VLOOKUP($N8,Import!$B$3:$AL$676,6,FALSE),"") -> 590 | W8: =IFERROR(VLOOKUP($N8,Import!$B$3:$AL$676,7,FALSE),"") -> 102 | X8: =IFERROR(VLOOKUP($N8,Import!$B$3:$AL$676,8,FALSE),"") -> 35 | Y8: =IFERROR(VLOOKUP($N8,Import!$B$3:$AL$676,9,FALSE),"") -> 109 | Z8: =IFERROR(VLOOKUP($N8,Import!$B$3:$AL$676,10,FALSE),"") -> 18 | AA8: =IFERROR(VLOOKUP($N8,Import!$B$3:$AL$676,11,FALSE),"") -> 0.281 | AC8: 165.79 | AD8: =IF(O8='User Input'!$C$1,1,0) -> 0 | AE8: 0 | AF8: 0 | AG8: Javier Baez | AH8: 0 | AI8: 35 | AJ8: =IFERROR(VLOOKUP($N8,Import!$B$3:$AL$676,35,FALSE),"") ->  | AL8: 6 | AM8: =IFERROR(VLOOKUP(AV8,Import!$B$3:$T$677,19,FALSE),"") -> 37 | AO8: =IFERROR(VLOOKUP(AV8,Import!$AD$3:$AH$677,3,FALSE),"") ->  | AP8: =IFERROR(VLOOKUP(AV8,Import!$AD$3:$AH$677,5,FALSE),"") ->  | AQ8: =IFERROR(VLOOKUP(AV8,Import!$AW$3:$BA$677,5,FALSE),"") -> 16 | AR8: =IFERROR(VLOOKUP($AV8,Import!$AW$3:$BG$677,2,FALSE),"") -> 513 | AS8: =IFERROR(VLOOKUP($AV8,Import!$AW$3:$BG$677,3,FALSE),"") -> 16.5483871 | AT8: =IFERROR(VLOOKUP($AV8,Import!$AW$3:$BG$677,7,FALSE),"") -> 5 | AV8: =IFERROR(VLOOKUP(AL8,Import!$W$3:$X$677,2,FALSE),"") -> Gerrit Cole | AY8: =IFERROR(VLOOKUP($AV8,Import!$B$3:$L$676,2,FALSE),"") -> HOU | AZ8: =IFERROR(VLOOKUP($AV8,Import!$B$3:$L$676,3,FALSE),"") -> SP | BA8: =IFERROR(VLOOKUP($AV8,Import!$B$3:$L$676,4,FALSE),"") -> SP | BB8: =IFERROR(VLOOKUP($AV8,Import!$B$3:$L$676,5,FALSE),"") -> 22 | BD8: =IFERROR(VLOOKUP($AV8,Import!$B$3:$X$677,12,FALSE),"") -> 204 | BE8: =IFERROR(VLOOKUP($AV8,Import!$B$3:$X$677,15,FALSE),"") -> 2.81 | BF8: =IFERROR(VLOOKUP($AV8,Import!$B$3:$X$677,16,FALSE),"") -> 1.02 | BG8: =IFERROR(VLOOKUP($AV8,Import!$B$3:$X$677,13,FALSE),"") -> 16 | BH8: =IFERROR(VLOOKUP($AV8,Import!$B$3:$X$677,14,FALSE),"") -> 0 | BI8: =IFERROR(VLOOKUP($AV8,Import!$B$3:$X$677,17,FALSE),"") -> 254 | BK8: 573.24 | BL8: 208.08 | BM8: =IF(AW8='User Input'!$C$1,1,0) -> 0 | BN8: 0 | BO8: 0 | BP8: Gerrit Cole | BQ8: 0 | BR8: 22 | BS8: =IFERROR(VLOOKUP($AV8,Import!$B$3:$AL$676,35,FALSE),"") ->  | BT8: =9*(Table2[[#This Row],[K]]/Table2[[#This Row],[IP]]) -> 11.20588235 | BU8: =IFERROR(VLOOKUP($AV8,PITCH!$B$7:$AJ$2004,31,FALSE),"N/A") -> 8.072164948 | CK8: =IF(CL8="","",MAX(CK$1:CK7)+1) -> 7 | CL8: =IF('User Input'!C7=0,"",'User Input'!C7) -> g | CM8: g
A9: 7 | B9: =IFERROR(VLOOKUP(N9,Import!$B$4:$T$677,19,FALSE),"") -> 7 | D9: =IFERROR(VLOOKUP(N9,Import!$AD$3:$AH$677,3,FALSE),"") ->  | E9: =IFERROR(VLOOKUP(N9,Import!$AD$3:$AL$677,4,FALSE),"") ->  | F9: =IFERROR(VLOOKUP(N9,Import!$AT$3:$BG$677,8,FALSE),"") -> 9 | G9: =IFERROR(VLOOKUP($N9,Import!$AT$3:$BG$677,2,FALSE),"") -> 535.25 | H9: =IFERROR(VLOOKUP($N9,Import!$AT$3:$BG$677,3,FALSE),"") -> 3.592281879 | I9: =IFERROR(VLOOKUP($N9,Import!$AT$3:$BG$677,9,FALSE),"") -> 28 | K9: =IFERROR(VLOOKUP(N9,Import!$AT$3:$BG$677,12,FALSE),"") -> 13 | L9: =IFERROR(VLOOKUP(N9,Import!$AT$3:$BG$677,14,FALSE),"") -> 14 | N9: =IFERROR(VLOOKUP(A9,Import!$V$3:$X$677,3,FALSE),"") -> Alex Bregman | Q9: =IFERROR(VLOOKUP($N9,Import!$B$3:$AL$676,2,FALSE),"") -> HOU | R9: =IFERROR(VLOOKUP($N9,Import!$B$3:$AL$676,3,FALSE),"") -> SS/3B | S9: =IFERROR(VLOOKUP($N9,Import!$B$3:$AL$676,4,FALSE),"") -> SS/3B | T9: =IFERROR(VLOOKUP($N9,Import!$B$3:$AL$676,5,FALSE),"") -> 35 | V9: =IFERROR(VLOOKUP($N9,Import!$B$3:$AL$676,6,FALSE),"") -> 589 | W9: =IFERROR(VLOOKUP($N9,Import!$B$3:$AL$676,7,FALSE),"") -> 101 | X9: =IFERROR(VLOOKUP($N9,Import!$B$3:$AL$676,8,FALSE),"") -> 33 | Y9: =IFERROR(VLOOKUP($N9,Import!$B$3:$AL$676,9,FALSE),"") -> 107 | Z9: =IFERROR(VLOOKUP($N9,Import!$B$3:$AL$676,10,FALSE),"") -> 12 | AA9: =IFERROR(VLOOKUP($N9,Import!$B$3:$AL$676,11,FALSE),"") -> 0.288 | AC9: 169.632 | AD9: =IF(O9='User Input'!$C$1,1,0) -> 0 | AE9: 0 | AF9: 0 | AG9: Alex Bregman | AH9: 0 | AI9: 35 | AJ9: =IFERROR(VLOOKUP($N9,Import!$B$3:$AL$676,35,FALSE),"") ->  | AL9: 12 | AM9: =IFERROR(VLOOKUP(AV9,Import!$B$3:$T$677,19,FALSE),"") -> 50 | AO9: =IFERROR(VLOOKUP(AV9,Import!$AD$3:$AH$677,3,FALSE),"") ->  | AP9: =IFERROR(VLOOKUP(AV9,Import!$AD$3:$AH$677,5,FALSE),"") ->  | AQ9: =IFERROR(VLOOKUP(AV9,Import!$AW$3:$BA$677,5,FALSE),"") -> 21 | AR9: =IFERROR(VLOOKUP($AV9,Import!$AW$3:$BG$677,2,FALSE),"") -> 499 | AS9: =IFERROR(VLOOKUP($AV9,Import!$AW$3:$BG$677,3,FALSE),"") -> 16.09677419 | AT9: =IFERROR(VLOOKUP($AV9,Import!$AW$3:$BG$677,7,FALSE),"") -> 5 | AV9: =IFERROR(VLOOKUP(AL9,Import!$W$3:$X$677,2,FALSE),"") -> Carlos Carrasco | AY9: =IFERROR(VLOOKUP($AV9,Import!$B$3:$L$676,2,FALSE),"") -> CLE | AZ9: =IFERROR(VLOOKUP($AV9,Import!$B$3:$L$676,3,FALSE),"") -> SP | BA9: =IFERROR(VLOOKUP($AV9,Import!$B$3:$L$676,4,FALSE),"") -> SP | BB9: =IFERROR(VLOOKUP($AV9,Import!$B$3:$L$676,5,FALSE),"") -> 20 | BD9: =IFERROR(VLOOKUP($AV9,Import!$B$3:$X$677,12,FALSE),"") -> 202 | BE9: =IFERROR(VLOOKUP($AV9,Import!$B$3:$X$677,15,FALSE),"") -> 3.14 | BF9: =IFERROR(VLOOKUP($AV9,Import!$B$3:$X$677,16,FALSE),"") -> 1.1 | BG9: =IFERROR(VLOOKUP($AV9,Import!$B$3:$X$677,13,FALSE),"") -> 16 | BH9: =IFERROR(VLOOKUP($AV9,Import!$B$3:$X$677,14,FALSE),"") -> 0 | BI9: =IFERROR(VLOOKUP($AV9,Import!$B$3:$X$677,17,FALSE),"") -> 234 | BK9: 634.28 | BL9: 222.2 | BM9: =IF(AW9='User Input'!$C$1,1,0) -> 0 | BN9: 0 | BO9: 0 | BP9: Carlos Carrasco | BQ9: 0 | BR9: 20 | BS9: =IFERROR(VLOOKUP($AV9,Import!$B$3:$AL$676,35,FALSE),"") ->  | BT9: =9*(Table2[[#This Row],[K]]/Table2[[#This Row],[IP]]) -> 10.42574257 | BU9: =IFERROR(VLOOKUP($AV9,PITCH!$B$7:$AJ$2004,31,FALSE),"N/A") -> 7.633507853 | CK9: =IF(CL9="","",MAX(CK$1:CK8)+1) -> 8 | CL9: =IF('User Input'!C8=0,"",'User Input'!C8) -> h | CM9: h
A10: 8 | B10: =IFERROR(VLOOKUP(N10,Import!$B$4:$T$677,19,FALSE),"") -> 8 | D10: =IFERROR(VLOOKUP(N10,Import!$AD$3:$AH$677,3,FALSE),"") ->  | E10: =IFERROR(VLOOKUP(N10,Import!$AD$3:$AL$677,4,FALSE),"") ->  | F10: =IFERROR(VLOOKUP(N10,Import!$AT$3:$BG$677,8,FALSE),"") -> 7 | G10: =IFERROR(VLOOKUP($N10,Import!$AT$3:$BG$677,2,FALSE),"") -> 541 | H10: =IFERROR(VLOOKUP($N10,Import!$AT$3:$BG$677,3,FALSE),"") -> 3.630872483 | I10: =IFERROR(VLOOKUP($N10,Import!$AT$3:$BG$677,9,FALSE),"") -> 4 | K10: =IFERROR(VLOOKUP(N10,Import!$AT$3:$BG$677,12,FALSE),"") -> 10 | L10: =IFERROR(VLOOKUP(N10,Import!$AT$3:$BG$677,14,FALSE),"") -> 6 | N10: =IFERROR(VLOOKUP(A10,Import!$V$3:$X$677,3,FALSE),"") -> Nolan Arenado | Q10: =IFERROR(VLOOKUP($N10,Import!$B$3:$AL$676,2,FALSE),"") -> COL | R10: =IFERROR(VLOOKUP($N10,Import!$B$3:$AL$676,3,FALSE),"") -> 3B | S10: =IFERROR(VLOOKUP($N10,Import!$B$3:$AL$676,4,FALSE),"") -> 3B | T10: =IFERROR(VLOOKUP($N10,Import!$B$3:$AL$676,5,FALSE),"") -> 34 | V10: =IFERROR(VLOOKUP($N10,Import!$B$3:$AL$676,6,FALSE),"") -> 595 | W10: =IFERROR(VLOOKUP($N10,Import!$B$3:$AL$676,7,FALSE),"") -> 97 | X10: =IFERROR(VLOOKUP($N10,Import!$B$3:$AL$676,8,FALSE),"") -> 35 | Y10: =IFERROR(VLOOKUP($N10,Import!$B$3:$AL$676,9,FALSE),"") -> 112 | Z10: =IFERROR(VLOOKUP($N10,Import!$B$3:$AL$676,10,FALSE),"") -> 2 | AA10: =IFERROR(VLOOKUP($N10,Import!$B$3:$AL$676,11,FALSE),"") -> 0.284 | AC10: 168.98 | AD10: =IF(O10='User Input'!$C$1,1,0) -> 0 | AE10: 0 | AF10: 0 | AG10: Nolan Arenado | AH10: 0 | AI10: 34 | AJ10: =IFERROR(VLOOKUP($N10,Import!$B$3:$AL$676,35,FALSE),"") ->  | AL10: 9 | AM10: =IFERROR(VLOOKUP(AV10,Import!$B$3:$T$677,19,FALSE),"") -> 44 | AO10: =IFERROR(VLOOKUP(AV10,Import!$AD$3:$AH$677,3,FALSE),"") ->  | AP10: =IFERROR(VLOOKUP(AV10,Import!$AD$3:$AH$677,5,FALSE),"") ->  | AQ10: =IFERROR(VLOOKUP(AV10,Import!$AW$3:$BA$677,5,FALSE),"") -> 24 | AR10: =IFERROR(VLOOKUP($AV10,Import!$AW$3:$BG$677,2,FALSE),"") -> 490.5 | AS10: =IFERROR(VLOOKUP($AV10,Import!$AW$3:$BG$677,3,FALSE),"") -> 15.82258065 | AT10: =IFERROR(VLOOKUP($AV10,Import!$AW$3:$BG$677,7,FALSE),"") -> 5 | AV10: =IFERROR(VLOOKUP(AL10,Import!$W$3:$X$677,2,FALSE),"") -> Trevor Bauer | AY10: =IFERROR(VLOOKUP($AV10,Import!$B$3:$L$676,2,FALSE),"") -> CLE | AZ10: =IFERROR(VLOOKUP($AV10,Import!$B$3:$L$676,3,FALSE),"") -> SP | BA10: =IFERROR(VLOOKUP($AV10,Import!$B$3:$L$676,4,FALSE),"") -> SP | BB10: =IFERROR(VLOOKUP($AV10,Import!$B$3:$L$676,5,FALSE),"") -> 20 | BD10: =IFERROR(VLOOKUP($AV10,Import!$B$3:$X$677,12,FALSE),"") -> 202 | BE10: =IFERROR(VLOOKUP($AV10,Import!$B$3:$X$677,15,FALSE),"") -> 3.14 | BF10: =IFERROR(VLOOKUP($AV10,Import!$B$3:$X$677,16,FALSE),"") -> 1.08 | BG10: =IFERROR(VLOOKUP($AV10,Import!$B$3:$X$677,13,FALSE),"") -> 15 | BH10: =IFERROR(VLOOKUP($AV10,Import!$B$3:$X$677,14,FALSE),"") -> 0 | BI10: =IFERROR(VLOOKUP($AV10,Import!$B$3:$X$677,17,FALSE),"") -> 248 | BK10: 634.28 | BL10: 218.16 | BM10: =IF(AW10='User Input'!$C$1,1,0) -> 0 | BN10: 0 | BO10: 0 | BP10: Trevor Bauer | BQ10: 0 | BR10: 20 | BS10: =IFERROR(VLOOKUP($AV10,Import!$B$3:$AL$676,35,FALSE),"") ->  | BT10: =9*(Table2[[#This Row],[K]]/Table2[[#This Row],[IP]]) -> 11.04950495 | BU10: =IFERROR(VLOOKUP($AV10,PITCH!$B$7:$AJ$2004,31,FALSE),"N/A") -> 7.097938144 | CK10: =IF(CL10="","",MAX(CK$1:CK9)+1) -> 9 | CL10: =IF('User Input'!C9=0,"",'User Input'!C9) -> i | CM10: i
A11: 9 | B11: =IFERROR(VLOOKUP(N11,Import!$B$4:$T$677,19,FALSE),"") -> 9 | D11: =IFERROR(VLOOKUP(N11,Import!$AD$3:$AH$677,3,FALSE),"") ->  | E11: =IFERROR(VLOOKUP(N11,Import!$AD$3:$AL$677,4,FALSE),"") ->  | F11: =IFERROR(VLOOKUP(N11,Import!$AT$3:$BG$677,8,FALSE),"") -> 20 | G11: =IFERROR(VLOOKUP($N11,Import!$AT$3:$BG$677,2,FALSE),"") -> 499.85 | H11: =IFERROR(VLOOKUP($N11,Import!$AT$3:$BG$677,3,FALSE),"") -> 3.354697987 | I11: =IFERROR(VLOOKUP($N11,Import!$AT$3:$BG$677,9,FALSE),"") -> 11 | K11: =IFERROR(VLOOKUP(N11,Import!$AT$3:$BG$677,12,FALSE),"") -> 23 | L11: =IFERROR(VLOOKUP(N11,Import!$AT$3:$BG$677,14,FALSE),"") -> 19 | N11: =IFERROR(VLOOKUP(A11,Import!$V$3:$X$677,3,FALSE),"") -> Manny Machado | Q11: =IFERROR(VLOOKUP($N11,Import!$B$3:$AL$676,2,FALSE),"") -> SD | R11: =IFERROR(VLOOKUP($N11,Import!$B$3:$AL$676,3,FALSE),"") -> SS | S11: =IFERROR(VLOOKUP($N11,Import!$B$3:$AL$676,4,FALSE),"") -> SS/3B | T11: =IFERROR(VLOOKUP($N11,Import!$B$3:$AL$676,5,FALSE),"") -> 32 | V11: =IFERROR(VLOOKUP($N11,Import!$B$3:$AL$676,6,FALSE),"") -> 602 | W11: =IFERROR(VLOOKUP($N11,Import!$B$3:$AL$676,7,FALSE),"") -> 96 | X11: =IFERROR(VLOOKUP($N11,Import!$B$3:$AL$676,8,FALSE),"") -> 34 | Y11: =IFERROR(VLOOKUP($N11,Import!$B$3:$AL$676,9,FALSE),"") -> 102 | Z11: =IFERROR(VLOOKUP($N11,Import!$B$3:$AL$676,10,FALSE),"") -> 12 | AA11: =IFERROR(VLOOKUP($N11,Import!$B$3:$AL$676,11,FALSE),"") -> 0.281 | AC11: 169.162 | AD11: =IF(O11='User Input'!$C$1,1,0) -> 0 | AE11: 0 | AF11: 0 | AG11: Manny Machado | AH11: 0 | AI11: 32 | AJ11: =IFERROR(VLOOKUP($N11,Import!$B$3:$AL$676,35,FALSE),"") ->  | AL11: 8 | AM11: =IFERROR(VLOOKUP(AV11,Import!$B$3:$T$677,19,FALSE),"") -> 40 | AO11: =IFERROR(VLOOKUP(AV11,Import!$AD$3:$AH$677,3,FALSE),"") ->  | AP11: =IFERROR(VLOOKUP(AV11,Import!$AD$3:$AH$677,5,FALSE),"") ->  | AQ11: =IFERROR(VLOOKUP(AV11,Import!$AW$3:$BA$677,5,FALSE),"") -> 27 | AR11: =IFERROR(VLOOKUP($AV11,Import!$AW$3:$BG$677,2,FALSE),"") -> 483.3 | AS11: =IFERROR(VLOOKUP($AV11,Import!$AW$3:$BG$677,3,FALSE),"") -> 15.59032258 | AT11: =IFERROR(VLOOKUP($AV11,Import!$AW$3:$BG$677,7,FALSE),"") -> 5 | AV11: =IFERROR(VLOOKUP(AL11,Import!$W$3:$X$677,2,FALSE),"") -> Aaron Nola | AY11: =IFERROR(VLOOKUP($AV11,Import!$B$3:$L$676,2,FALSE),"") -> PHI | AZ11: =IFERROR(VLOOKUP($AV11,Import!$B$3:$L$676,3,FALSE),"") -> SP | BA11: =IFERROR(VLOOKUP($AV11,Import!$B$3:$L$676,4,FALSE),"") -> SP | BB11: =IFERROR(VLOOKUP($AV11,Import!$B$3:$L$676,5,FALSE),"") -> 21 | BD11: =IFERROR(VLOOKUP($AV11,Import!$B$3:$X$677,12,FALSE),"") -> 210 | BE11: =IFERROR(VLOOKUP($AV11,Import!$B$3:$X$677,15,FALSE),"") -> 3.05 | BF11: =IFERROR(VLOOKUP($AV11,Import!$B$3:$X$677,16,FALSE),"") -> 1.02 | BG11: =IFERROR(VLOOKUP($AV11,Import!$B$3:$X$677,13,FALSE),"") -> 16 | BH11: =IFERROR(VLOOKUP($AV11,Import!$B$3:$X$677,14,FALSE),"") -> 0 | BI11: =IFERROR(VLOOKUP($AV11,Import!$B$3:$X$677,17,FALSE),"") -> 215 | BK11: 640.5 | BL11: 214.2 | BM11: =IF(AW11='User Input'!$C$1,1,0) -> 0 | BN11: 0 | BO11: 0 | BP11: Aaron Nola | BQ11: 0 | BR11: 21 | BS11: =IFERROR(VLOOKUP($AV11,Import!$B$3:$AL$676,35,FALSE),"") ->  | BT11: =9*(Table2[[#This Row],[K]]/Table2[[#This Row],[IP]]) -> 9.214285714 | BU11: =IFERROR(VLOOKUP($AV11,PITCH!$B$7:$AJ$2004,31,FALSE),"N/A") -> 7.168949772 | CK11: =IF(CL11="","",MAX(CK$1:CK10)+1) -> 10 | CL11: =IF('User Input'!C10=0,"",'User Input'!C10) -> j | CM11: j
A12: 10 | B12: =IFERROR(VLOOKUP(N12,Import!$B$4:$T$677,19,FALSE),"") -> 10 | D12: =IFERROR(VLOOKUP(N12,Import!$AD$3:$AH$677,3,FALSE),"") ->  | E12: =IFERROR(VLOOKUP(N12,Import!$AD$3:$AL$677,4,FALSE),"") ->  | F12: =IFERROR(VLOOKUP(N12,Import!$AT$3:$BG$677,8,FALSE),"") -> 23 | G12: =IFERROR(VLOOKUP($N12,Import!$AT$3:$BG$677,2,FALSE),"") -> 492.5 | H12: =IFERROR(VLOOKUP($N12,Import!$AT$3:$BG$677,3,FALSE),"") -> 3.759541985 | I12: =IFERROR(VLOOKUP($N12,Import!$AT$3:$BG$677,9,FALSE),"") -> 15 | K12: =IFERROR(VLOOKUP(N12,Import!$AT$3:$BG$677,12,FALSE),"") -> 17 | L12: =IFERROR(VLOOKUP(N12,Import!$AT$3:$BG$677,14,FALSE),"") -> 12 | N12: =IFERROR(VLOOKUP(A12,Import!$V$3:$X$677,3,FALSE),"") -> Francisco Lindor | Q12: =IFERROR(VLOOKUP($N12,Import!$B$3:$AL$676,2,FALSE),"") -> CLE | R12: =IFERROR(VLOOKUP($N12,Import!$B$3:$AL$676,3,FALSE),"") -> SS | S12: =IFERROR(VLOOKUP($N12,Import!$B$3:$AL$676,4,FALSE),"") -> SS | T12: =IFERROR(VLOOKUP($N12,Import!$B$3:$AL$676,5,FALSE),"") -> 32 | V12: =IFERROR(VLOOKUP($N12,Import!$B$3:$AL$676,6,FALSE),"") -> 525 | W12: =IFERROR(VLOOKUP($N12,Import!$B$3:$AL$676,7,FALSE),"") -> 89 | X12: =IFERROR(VLOOKUP($N12,Import!$B$3:$AL$676,8,FALSE),"") -> 28 | Y12: =IFERROR(VLOOKUP($N12,Import!$B$3:$AL$676,9,FALSE),"") -> 91 | Z12: =IFERROR(VLOOKUP($N12,Import!$B$3:$AL$676,10,FALSE),"") -> 18 | AA12: =IFERROR(VLOOKUP($N12,Import!$B$3:$AL$676,11,FALSE),"") -> 0.282 | AC12: 148.05 | AD12: =IF(O12='User Input'!$C$1,1,0) -> 0 | AE12: 0 | AF12: 0 | AG12: Francisco Lindor | AH12: 0 | AI12: 32 | AJ12: =IFERROR(VLOOKUP($N12,Import!$B$3:$AL$676,35,FALSE),"") ->  | AL12: 5 | AM12: =IFERROR(VLOOKUP(AV12,Import!$B$3:$T$677,19,FALSE),"") -> 31 | AO12: =IFERROR(VLOOKUP(AV12,Import!$AD$3:$AH$677,3,FALSE),"") ->  | AP12: =IFERROR(VLOOKUP(AV12,Import!$AD$3:$AH$677,5,FALSE),"") ->  | AQ12: =IFERROR(VLOOKUP(AV12,Import!$AW$3:$BA$677,5,FALSE),"") -> 32 | AR12: =IFERROR(VLOOKUP($AV12,Import!$AW$3:$BG$677,2,FALSE),"") -> 476.1 | AS12: =IFERROR(VLOOKUP($AV12,Import!$AW$3:$BG$677,3,FALSE),"") -> 15.35806452 | AT12: =IFERROR(VLOOKUP($AV12,Import!$AW$3:$BG$677,7,FALSE),"") -> 5 | AV12: =IFERROR(VLOOKUP(AL12,Import!$W$3:$X$677,2,FALSE),"") -> Blake Snell | AY12: =IFERROR(VLOOKUP($AV12,Import!$B$3:$L$676,2,FALSE),"") -> TB | AZ12: =IFERROR(VLOOKUP($AV12,Import!$B$3:$L$676,3,FALSE),"") -> SP | BA12: =IFERROR(VLOOKUP($AV12,Import!$B$3:$L$676,4,FALSE),"") -> SP | BB12: =IFERROR(VLOOKUP($AV12,Import!$B$3:$L$676,5,FALSE),"") -> 23 | BD12: =IFERROR(VLOOKUP($AV12,Import!$B$3:$X$677,12,FALSE),"") -> 195 | BE12: =IFERROR(VLOOKUP($AV12,Import!$B$3:$X$677,15,FALSE),"") -> 2.76 | BF12: =IFERROR(VLOOKUP($AV12,Import!$B$3:$X$677,16,FALSE),"") -> 1 | BG12: =IFERROR(VLOOKUP($AV12,Import!$B$3:$X$677,13,FALSE),"") -> 15 | BH12: =IFERROR(VLOOKUP($AV12,Import!$B$3:$X$677,14,FALSE),"") -> 0 | BI12: =IFERROR(VLOOKUP($AV12,Import!$B$3:$X$677,17,FALSE),"") -> 240 | BK12: 538.2 | BL12: 195 | BM12: =IF(AW12='User Input'!$C$1,1,0) -> 0 | BN12: 0 | BO12: 0 | BP12: Blake Snell | BQ12: 0 | BR12: 23 | BS12: =IFERROR(VLOOKUP($AV12,Import!$B$3:$AL$676,35,FALSE),"") ->  | BT12: =9*(Table2[[#This Row],[K]]/Table2[[#This Row],[IP]]) -> 11.07692308 | BU12: =IFERROR(VLOOKUP($AV12,PITCH!$B$7:$AJ$2004,31,FALSE),"N/A") -> 7.380297193 | CK12: =IF(CL12="","",MAX(CK$1:CK11)+1) -> 11 | CL12: =IF('User Input'!C11=0,"",'User Input'!C11) -> k | CM12: k
A13: 11 | B13: =IFERROR(VLOOKUP(N13,Import!$B$4:$T$677,19,FALSE),"") -> 11 | D13: =IFERROR(VLOOKUP(N13,Import!$AD$3:$AH$677,3,FALSE),"") ->  | E13: =IFERROR(VLOOKUP(N13,Import!$AD$3:$AL$677,4,FALSE),"") ->  | F13: =IFERROR(VLOOKUP(N13,Import!$AT$3:$BG$677,8,FALSE),"") -> 8 | G13: =IFERROR(VLOOKUP($N13,Import!$AT$3:$BG$677,2,FALSE),"") -> 535.8 | H13: =IFERROR(VLOOKUP($N13,Import!$AT$3:$BG$677,3,FALSE),"") -> 3.669863014 | I13: =IFERROR(VLOOKUP($N13,Import!$AT$3:$BG$677,9,FALSE),"") -> 8 | K13: =IFERROR(VLOOKUP(N13,Import!$AT$3:$BG$677,12,FALSE),"") -> 5 | L13: =IFERROR(VLOOKUP(N13,Import!$AT$3:$BG$677,14,FALSE),"") -> 9 | N13: =IFERROR(VLOOKUP(A13,Import!$V$3:$X$677,3,FALSE),"") -> Bryce Harper | Q13: =IFERROR(VLOOKUP($N13,Import!$B$3:$AL$676,2,FALSE),"") -> PHI | R13: =IFERROR(VLOOKUP($N13,Import!$B$3:$AL$676,3,FALSE),"") -> OF | S13: =IFERROR(VLOOKUP($N13,Import!$B$3:$AL$676,4,FALSE),"") -> OF | T13: =IFERROR(VLOOKUP($N13,Import!$B$3:$AL$676,5,FALSE),"") -> 32 | V13: =IFERROR(VLOOKUP($N13,Import!$B$3:$AL$676,6,FALSE),"") -> 527 | W13: =IFERROR(VLOOKUP($N13,Import!$B$3:$AL$676,7,FALSE),"") -> 97 | X13: =IFERROR(VLOOKUP($N13,Import!$B$3:$AL$676,8,FALSE),"") -> 35 | Y13: =IFERROR(VLOOKUP($N13,Import!$B$3:$AL$676,9,FALSE),"") -> 112 | Z13: =IFERROR(VLOOKUP($N13,Import!$B$3:$AL$676,10,FALSE),"") -> 14 | AA13: =IFERROR(VLOOKUP($N13,Import!$B$3:$AL$676,11,FALSE),"") -> 0.261 | AC13: 137.547 | AD13: =IF(O13='User Input'!$C$1,1,0) -> 0 | AE13: 0 | AF13: 0 | AG13: Bryce Harper | AH13: 0 | AI13: 32 | AJ13: =IFERROR(VLOOKUP($N13,Import!$B$3:$AL$676,35,FALSE),"") ->  | AL13: 22 | AM13: =IFERROR(VLOOKUP(AV13,Import!$B$3:$T$677,19,FALSE),"") -> 74 | AO13: =IFERROR(VLOOKUP(AV13,Import!$AD$3:$AH$677,3,FALSE),"") ->  | AP13: =IFERROR(VLOOKUP(AV13,Import!$AD$3:$AH$677,5,FALSE),"") ->  | AQ13: =IFERROR(VLOOKUP(AV13,Import!$AW$3:$BA$677,5,FALSE),"") -> 35 | AR13: =IFERROR(VLOOKUP($AV13,Import!$AW$3:$BG$677,2,FALSE),"") -> 468.8 | AS13: =IFERROR(VLOOKUP($AV13,Import!$AW$3:$BG$677,3,FALSE),"") -> 15.12258065 | AT13: =IFERROR(VLOOKUP($AV13,Import!$AW$3:$BG$677,7,FALSE),"") -> 12 | AV13: =IFERROR(VLOOKUP(AL13,Import!$W$3:$X$677,2,FALSE),"") -> Luis Severino | AY13: =IFERROR(VLOOKUP($AV13,Import!$B$3:$L$676,2,FALSE),"") -> NYY | AZ13: =IFERROR(VLOOKUP($AV13,Import!$B$3:$L$676,3,FALSE),"") -> SP | BA13: =IFERROR(VLOOKUP($AV13,Import!$B$3:$L$676,4,FALSE),"") -> SP | BB13: =IFERROR(VLOOKUP($AV13,Import!$B$3:$L$676,5,FALSE),"") -> 15 | BD13: =IFERROR(VLOOKUP($AV13,Import!$B$3:$X$677,12,FALSE),"") -> 187 | BE13: =IFERROR(VLOOKUP($AV13,Import!$B$3:$X$677,15,FALSE),"") -> 3.42 | BF13: =IFERROR(VLOOKUP($AV13,Import!$B$3:$X$677,16,FALSE),"") -> 1.16 | BG13: =IFERROR(VLOOKUP($AV13,Import!$B$3:$X$677,13,FALSE),"") -> 15 | BH13: =IFERROR(VLOOKUP($AV13,Import!$B$3:$X$677,14,FALSE),"") -> 0 | BI13: =IFERROR(VLOOKUP($AV13,Import!$B$3:$X$677,17,FALSE),"") -> 208 | BK13: 639.54 | BL13: 216.92 | BM13: =IF(AW13='User Input'!$C$1,1,0) -> 0 | BN13: 0 | BO13: 0 | BP13: Luis Severino | BQ13: 0 | BR13: 15 | BS13: =IFERROR(VLOOKUP($AV13,Import!$B$3:$AL$676,35,FALSE),"") ->  | BT13: =9*(Table2[[#This Row],[K]]/Table2[[#This Row],[IP]]) -> 10.01069519 | BU13: =IFERROR(VLOOKUP($AV13,PITCH!$B$7:$AJ$2004,31,FALSE),"N/A") -> 7.709966405 | CK13: =IF(CL13="","",MAX(CK$1:CK12)+1) -> 12 | CL13: =IF('User Input'!C12=0,"",'User Input'!C12) -> l | CM13: l
A14: 12 | B14: =IFERROR(VLOOKUP(N14,Import!$B$4:$T$677,19,FALSE),"") -> 12 | D14: =IFERROR(VLOOKUP(N14,Import!$AD$3:$AH$677,3,FALSE),"") ->  | E14: =IFERROR(VLOOKUP(N14,Import!$AD$3:$AL$677,4,FALSE),"") ->  | F14: =IFERROR(VLOOKUP(N14,Import!$AT$3:$BG$677,8,FALSE),"") -> 5 | G14: =IFERROR(VLOOKUP($N14,Import!$AT$3:$BG$677,2,FALSE),"") -> 573.75 | H14: =IFERROR(VLOOKUP($N14,Import!$AT$3:$BG$677,3,FALSE),"") -> 3.850671141 | I14: =IFERROR(VLOOKUP($N14,Import!$AT$3:$BG$677,9,FALSE),"") -> 12 | K14: =IFERROR(VLOOKUP(N14,Import!$AT$3:$BG$677,12,FALSE),"") -> 3 | L14: =IFERROR(VLOOKUP(N14,Import!$AT$3:$BG$677,14,FALSE),"") -> 4 | N14: =IFERROR(VLOOKUP(A14,Import!$V$3:$X$677,3,FALSE),"") -> Jose Ramirez | Q14: =IFERROR(VLOOKUP($N14,Import!$B$3:$AL$676,2,FALSE),"") -> CLE | R14: =IFERROR(VLOOKUP($N14,Import!$B$3:$AL$676,3,FALSE),"") -> 3B | S14: =IFERROR(VLOOKUP($N14,Import!$B$3:$AL$676,4,FALSE),"") -> 3B | T14: =IFERROR(VLOOKUP($N14,Import!$B$3:$AL$676,5,FALSE),"") -> 31 | V14: =IFERROR(VLOOKUP($N14,Import!$B$3:$AL$676,6,FALSE),"") -> 582 | W14: =IFERROR(VLOOKUP($N14,Import!$B$3:$AL$676,7,FALSE),"") -> 104 | X14: =IFERROR(VLOOKUP($N14,Import!$B$3:$AL$676,8,FALSE),"") -> 25 | Y14: =IFERROR(VLOOKUP($N14,Import!$B$3:$AL$676,9,FALSE),"") -> 82 | Z14: =IFERROR(VLOOKUP($N14,Import!$B$3:$AL$676,10,FALSE),"") -> 24 | AA14: =IFERROR(VLOOKUP($N14,Import!$B$3:$AL$676,11,FALSE),"") -> 0.288 | AC14: 167.616 | AD14: =IF(O14='User Input'!$C$1,1,0) -> 0 | AE14: 0 | AF14: 0 | AG14: Jose Ramirez | AH14: 0 | AI14: 31 | AJ14: =IFERROR(VLOOKUP($N14,Import!$B$3:$AL$676,35,FALSE),"") ->  | AL14: 11 | AM14: =IFERROR(VLOOKUP(AV14,Import!$B$3:$T$677,19,FALSE),"") -> 48 | AO14: =IFERROR(VLOOKUP(AV14,Import!$AD$3:$AH$677,3,FALSE),"") ->  | AP14: =IFERROR(VLOOKUP(AV14,Import!$AD$3:$AH$677,5,FALSE),"") ->  | AQ14: =IFERROR(VLOOKUP(AV14,Import!$AW$3:$BA$677,5,FALSE),"") -> 39 | AR14: =IFERROR(VLOOKUP($AV14,Import!$AW$3:$BG$677,2,FALSE),"") -> 464.2 | AS14: =IFERROR(VLOOKUP($AV14,Import!$AW$3:$BG$677,3,FALSE),"") -> 14.97419355 | AT14: =IFERROR(VLOOKUP($AV14,Import!$AW$3:$BG$677,7,FALSE),"") -> 5 | AV14: =IFERROR(VLOOKUP(AL14,Import!$W$3:$X$677,2,FALSE),"") -> Patrick Corbin | AY14: =IFERROR(VLOOKUP($AV14,Import!$B$3:$L$676,2,FALSE),"") -> WSH | AZ14: =IFERROR(VLOOKUP($AV14,Import!$B$3:$L$676,3,FALSE),"") -> SP | BA14: =IFERROR(VLOOKUP($AV14,Import!$B$3:$L$676,4,FALSE),"") -> SP | BB14: =IFERROR(VLOOKUP($AV14,Import!$B$3:$L$676,5,FALSE),"") -> 20 | BD14: =IFERROR(VLOOKUP($AV14,Import!$B$3:$X$677,12,FALSE),"") -> 202 | BE14: =IFERROR(VLOOKUP($AV14,Import!$B$3:$X$677,15,FALSE),"") -> 3.09 | BF14: =IFERROR(VLOOKUP($AV14,Import!$B$3:$X$677,16,FALSE),"") -> 1.07 | BG14: =IFERROR(VLOOKUP($AV14,Import!$B$3:$X$677,13,FALSE),"") -> 14 | BH14: =IFERROR(VLOOKUP($AV14,Import!$B$3:$X$677,14,FALSE),"") -> 0 | BI14: =IFERROR(VLOOKUP($AV14,Import!$B$3:$X$677,17,FALSE),"") -> 226 | BK14: 624.18 | BL14: 216.14 | BM14: =IF(AW14='User Input'!$C$1,1,0) -> 0 | BN14: 0 | BO14: 0 | BP14: Patrick Corbin | BQ14: 0 | BR14: 20 | BS14: =IFERROR(VLOOKUP($AV14,Import!$B$3:$AL$676,35,FALSE),"") ->  | BT14: =9*(Table2[[#This Row],[K]]/Table2[[#This Row],[IP]]) -> 10.06930693 | BU14: =IFERROR(VLOOKUP($AV14,PITCH!$B$7:$AJ$2004,31,FALSE),"N/A") -> 6.705694518 | CK14: =IF(CL14="","",MAX(CK$1:CK13)+1) ->  | CL14: =IF('User Input'!C13=0,"",'User Input'!C13) -> 
A15: 13 | B15: =IFERROR(VLOOKUP(N15,Import!$B$4:$T$677,19,FALSE),"") -> 13 | D15: =IFERROR(VLOOKUP(N15,Import!$AD$3:$AH$677,3,FALSE),"") ->  | E15: =IFERROR(VLOOKUP(N15,Import!$AD$3:$AL$677,4,FALSE),"") ->  | F15: =IFERROR(VLOOKUP(N15,Import!$AT$3:$BG$677,8,FALSE),"") -> 10 | G15: =IFERROR(VLOOKUP($N15,Import!$AT$3:$BG$677,2,FALSE),"") -> 533.15 | H15: =IFERROR(VLOOKUP($N15,Import!$AT$3:$BG$677,3,FALSE),"") -> 3.728321678 | I15: =IFERROR(VLOOKUP($N15,Import!$AT$3:$BG$677,9,FALSE),"") -> 3 | K15: =IFERROR(VLOOKUP(N15,Import!$AT$3:$BG$677,12,FALSE),"") -> 4 | L15: =IFERROR(VLOOKUP(N15,Import!$AT$3:$BG$677,14,FALSE),"") -> 3 | N15: =IFERROR(VLOOKUP(A15,Import!$V$3:$X$677,3,FALSE),"") -> J.D. Martinez | Q15: =IFERROR(VLOOKUP($N15,Import!$B$3:$AL$676,2,FALSE),"") -> BOS | R15: =IFERROR(VLOOKUP($N15,Import!$B$3:$AL$676,3,FALSE),"") -> OF | S15: =IFERROR(VLOOKUP($N15,Import!$B$3:$AL$676,4,FALSE),"") -> OF | T15: =IFERROR(VLOOKUP($N15,Import!$B$3:$AL$676,5,FALSE),"") -> 31 | V15: =IFERROR(VLOOKUP($N15,Import!$B$3:$AL$676,6,FALSE),"") -> 512 | W15: =IFERROR(VLOOKUP($N15,Import!$B$3:$AL$676,7,FALSE),"") -> 96 | X15: =IFERROR(VLOOKUP($N15,Import!$B$3:$AL$676,8,FALSE),"") -> 34 | Y15: =IFERROR(VLOOKUP($N15,Import!$B$3:$AL$676,9,FALSE),"") -> 105 | Z15: =IFERROR(VLOOKUP($N15,Import!$B$3:$AL$676,10,FALSE),"") -> 4 | AA15: =IFERROR(VLOOKUP($N15,Import!$B$3:$AL$676,11,FALSE),"") -> 0.307 | AC15: 157.184 | AD15: =IF(O15='User Input'!$C$1,1,0) -> 0 | AE15: 0 | AF15: 0 | AG15: J.D. Martinez | AH15: 0 | AI15: 31 | AJ15: =IFERROR(VLOOKUP($N15,Import!$B$3:$AL$676,35,FALSE),"") ->  | AL15: 23 | AM15: =IFERROR(VLOOKUP(AV15,Import!$B$3:$T$677,19,FALSE),"") -> 75 | AO15: =IFERROR(VLOOKUP(AV15,Import!$AD$3:$AH$677,3,FALSE),"") ->  | AP15: =IFERROR(VLOOKUP(AV15,Import!$AD$3:$AH$677,5,FALSE),"") ->  | AQ15: =IFERROR(VLOOKUP(AV15,Import!$AW$3:$BA$677,5,FALSE),"") -> 62 | AR15: =IFERROR(VLOOKUP($AV15,Import!$AW$3:$BG$677,2,FALSE),"") -> 429 | AS15: =IFERROR(VLOOKUP($AV15,Import!$AW$3:$BG$677,3,FALSE),"") -> 13.83870968 | AT15: =IFERROR(VLOOKUP($AV15,Import!$AW$3:$BG$677,7,FALSE),"") -> 12 | AV15: =IFERROR(VLOOKUP(AL15,Import!$W$3:$X$677,2,FALSE),"") -> Zack Greinke | AY15: =IFERROR(VLOOKUP($AV15,Import!$B$3:$L$676,2,FALSE),"") -> ARI | AZ15: =IFERROR(VLOOKUP($AV15,Import!$B$3:$L$676,3,FALSE),"") -> SP | BA15: =IFERROR(VLOOKUP($AV15,Import!$B$3:$L$676,4,FALSE),"") -> SP | BB15: =IFERROR(VLOOKUP($AV15,Import!$B$3:$L$676,5,FALSE),"") -> 14 | BD15: =IFERROR(VLOOKUP($AV15,Import!$B$3:$X$677,12,FALSE),"") -> 206 | BE15: =IFERROR(VLOOKUP($AV15,Import!$B$3:$X$677,15,FALSE),"") -> 3.58 | BF15: =IFERROR(VLOOKUP($AV15,Import!$B$3:$X$677,16,FALSE),"") -> 1.12 | BG15: =IFERROR(VLOOKUP($AV15,Import!$B$3:$X$677,13,FALSE),"") -> 10 | BH15: =IFERROR(VLOOKUP($AV15,Import!$B$3:$X$677,14,FALSE),"") -> 0 | BI15: =IFERROR(VLOOKUP($AV15,Import!$B$3:$X$677,17,FALSE),"") -> 194 | BK15: 737.48 | BL15: 230.72 | BM15: =IF(AW15='User Input'!$C$1,1,0) -> 0 | BN15: 0 | BO15: 0 | BP15: Zack Greinke | BQ15: 0 | BR15: 14 | BS15: =IFERROR(VLOOKUP($AV15,Import!$B$3:$AL$676,35,FALSE),"") ->  | BT15: =9*(Table2[[#This Row],[K]]/Table2[[#This Row],[IP]]) -> 8.475728155 | BU15: =IFERROR(VLOOKUP($AV15,PITCH!$B$7:$AJ$2004,31,FALSE),"N/A") -> 6.262886598 | CK15: =IF(CL15="","",MAX(CK$1:CK14)+1) ->  | CL15: =IF('User Input'!C14=0,"",'User Input'!C14) -> 
